Workbook

Sheet RESUMO MODULO TOTAL
B1: CONTRATAÇÃO DE SERVIÇOS DE EXECUÇÃO DE CAPA ASFÁLTICA COM CONCRETO BETUMINOSO USINADO A QUENTE (CBUQ) EM VIAS DE DIVERSOS MUNICÍPIOS INSERIDOS NA ÁREA DE ATUAÇÃO DA 16ª SUPERINTENDÊNCIA REGIONAL DA CODEVASF, NO ESTADO DE MINAS GERAIS - REGIÃO NOROESTE | N1: xxxxxxxxxxxx
M2: SICRO: | N2: ='SINTÉTICO SICRO'!B2 -> Minas Gerais - Abril/2024
M3: SINAPI: | N3: =RIGHT('INSUMOS SINAPI'!A3,7) -> 06/2024
M4: Data base do orçamento: | N4: 2024-08-01
B5: =B1 -> CONTRATAÇÃO DE SERVIÇOS DE EXECUÇÃO DE CAPA ASFÁLTICA COM CONCRETO BETUMINOSO USINADO A QUENTE (CBUQ) EM VIAS DE DIVERSOS MUNICÍPIOS INSERIDOS NA ÁREA DE ATUAÇÃO DA 16ª SUPERINTENDÊNCIA REGIONAL DA CODEVASF, NO ESTADO DE MINAS GERAIS - REGIÃO NOROESTE
B6: ITEM | C6: ORIGEM COMPOSIÇÃO | D6: CÓDIGO COMPOSIÇÃO | E6: DISCRIMINAÇÃO DOS SERVIÇOS | I6: BDI % = | J6: =BDI!C16 -> 0.2339 | K6: BDI DIFERENCIADO%: | L6: =BDI!C66 -> 0.15 | M6: R$/m² = | N6: =N49/I8 -> 117.13
I7: Total de m² | J7: Encargos Sociais: | K7: Horista R$ | L7: Mensalista R$ | M7: PREÇO UNITÁRIO COM BDI | N7: PREÇO TOTAL COM BDI
I8: ='MC MODULO'!G1*'MC MODULO'!C1*'MC MODULO'!C2 -> 224000 | K8: ='ENC. SOCIAIS'!$E$47 -> 108.9 | L8: ='ENC. SOCIAIS'!$F$47 -> 67.79
I9: UND | J9: QTDE. | K9: BDI | L9: PREÇO UNITÁRIO
E10: MOBILIZAÇÃO/DESMOBILIZAÇÃO
A11: =VLOOKUP(N11,'RESUMO MODULO TOTAL'!$O$11:$P$45,2,0) ->  | B11: 1 | C11: Codevasf | D11: Mob | E11: Mobilização | I11: kmxfrente | J11: =Mob!B64*Mob!H6 -> 8000 | K11: =(M11/L11-1) -> 0.2339 | L11: =Mob!B61 -> 107.6269733 | M11: =Mob!B63 -> 132.8009224 | N11: =ROUND(ROUND(J11,2)*ROUND(M11,6),2) -> 1062407.38 | O11: =N11/N49 -> 0.04049253043
A12: =VLOOKUP(N12,'RESUMO MODULO TOTAL'!$O$11:$P$45,2,0) ->  | B12: 2 | C12: Codevasf | D12: Mob | E12: Desmobilização | I12: kmxfrente | J12: =Mob!H6*Mob!B64 -> 8000 | K12: =(M12/L12-1) -> 0.2339 | L12: =Mob!B61 -> 107.6269733 | M12: =Mob!B63 -> 132.8009224 | N12: =ROUND(ROUND(J12,2)*ROUND(M12,6),2) -> 1062407.38 | O12: =N12/$N$49 -> 0.04049253043
E13: INSTALAÇÃO DE CANTEIRO
A14: =VLOOKUP(#REF!,'RESUMO MODULO TOTAL'!$O$11:$P$45,2,0) ->  | B14: 3 | C14: Codevasf | D14: Canteiro | E14: Canteiro de Obras | I14: frente | J14: ='MC MODULO'!G1 -> 16 | K14: =(M14/L14-1) -> 0.2339 | L14: =' Canteiro'!F11 -> 22194.84 | M14: =' Canteiro'!F13 -> 27386.21308 | N14: =ROUND(ROUND(J14,2)*ROUND(M14,6),2) -> 438179.41 | O14: =N14/J20 -> 1.95615808
A15: =VLOOKUP(N14,'RESUMO MODULO TOTAL'!$O$11:$P$45,2,0) ->  | B15: 4 | C15: SINAPI | D15: 103689 | E15: Fornecimento e instalação de placa de obra com chapa galvanizada e estrutura de madeira. af_03/2022_ps | I15: m² | J15: ='MC MODULO'!H25 -> 256 | K15: =(M15/L15-1) -> 0.2339 | L15: =VLOOKUP(D15,'COMP Sint. Sinapi'!G7:K1048576,5,0) -> 308.43 | M15: =L15*(1+$J$6) -> 380.571777 | N15: =ROUND(ROUND(J15,2)*ROUND(M15,6),2) -> 97426.37
E16: ADMINISTRAÇÃO LOCAL DA OBRA
B17: 5 | C17: Codevasf | D17: Adm Local | E17: Administração Local da Obra | I17: und | J17: 1 | K17: =(M17/L17-1) -> 0.2339 | L17: ='Adm Local'!J249 -> 815404.5086 | M17: ='Adm Local'!I251 -> 1006127.623 | N17: =ROUND(ROUND(J17,2)*ROUND(M17,6),2) -> 1006127.62 | O17: =N17/N49 -> 0.03834748707
A18: =VLOOKUP(N18,'RESUMO MODULO TOTAL'!$O$11:$P$45,2,0) ->  | E18: PAVIMENTAÇÃO
A19: =VLOOKUP(N19,'RESUMO MODULO TOTAL'!$O$11:$P$45,2,0) ->  | B19: 6 | C19: SICRO | D19: 4011463 | E19: =VLOOKUP(D19,'SINTÉTICO SICRO'!$A$4:$D$1048576,2,0) -> Concreto asfáltico - faixa C - areia e brita comerciais | I19: t | J19: ='MC MODULO'!H33 -> 26880 | K19: =(M19/L19-1) -> 0.2339 | L19: =ROUND(IF(C19="CODEVASF",VLOOKUP(D19,'CPU CODEVASF'!E:I,5,FALSE),VLOOKUP(D19,'SINTÉTICO SICRO'!A:D,4,FALSE)),6) -> 222.99 | M19: =ROUND(IF(C19="CODEVASF",VLOOKUP(D19,'CPU CODEVASF'!E:H,4,FALSE),VLOOKUP(D19,'SINTÉTICO SICRO'!A:D,4,FALSE)*(1+$J$6)),6) -> 275.147361 | N19: =ROUND(ROUND(J19,2)*ROUND(M19,6),2) -> 7395961.06
A20: =VLOOKUP(N20,'RESUMO MODULO TOTAL'!$O$11:$P$45,2,0) ->  | B20: 7 | C20: SICRO | D20: 4011353 | E20: =VLOOKUP(D20,'SINTÉTICO SICRO'!$A$4:$D$1048576,2,0) -> Pintura de ligação | I20: m² | J20: ='MC MODULO'!H39 -> 224000 | K20: 0.2339 | L20: =ROUND(IF(C20="CODEVASF",VLOOKUP(D20,'CPU CODEVASF'!E:I,5,FALSE),VLOOKUP(D20,'SINTÉTICO SICRO'!A:D,4,FALSE)),6) -> 0.27 | M20: =ROUND(IF(C20="CODEVASF",VLOOKUP(D20,'CPU CODEVASF'!E:H,4,FALSE),VLOOKUP(D20,'SINTÉTICO SICRO'!A:D,4,FALSE)*(1+$J$6)),6) -> 0.333153 | N20: 74626.27
A21: =VLOOKUP(N21,'RESUMO MODULO TOTAL'!$O$11:$P$45,2,0) ->  | B21: 8 | C21: SICRO | D21: 4915663 | E21: =VLOOKUP(D21,'SINTÉTICO SICRO'!$A$4:$D$1048576,2,0) -> Fresagem descontínua de revestimento asfáltico - espessura de 5 cm | I21: m³ | J21: ='MC MODULO'!H45 -> 1120 | K21: 0.2339 | L21: =ROUND(IF(C21="CODEVASF",VLOOKUP(D21,'CPU CODEVASF'!E:I,5,FALSE),VLOOKUP(D21,'SINTÉTICO SICRO'!A:D,4,FALSE)),6) -> 72.55 | M21: =ROUND(IF(C21="CODEVASF",VLOOKUP(D21,'CPU CODEVASF'!E:H,4,FALSE),VLOOKUP(D21,'SINTÉTICO SICRO'!A:D,4,FALSE)*(1+$J$6)),6) -> 89.519445 | N21: 100261.78
A22: =VLOOKUP(N22,'RESUMO MODULO TOTAL'!$O$11:$P$45,2,0) ->  | B22: 9 | C22: SICRO | D22: 4915618 | E22: =VLOOKUP(D22,'SINTÉTICO SICRO'!$A$4:$D$1048576,2,0) -> Recomposição de camada granular do pavimento com material de jazida | I22: m² | J22: ='MC MODULO'!H51 -> 22400 | K22: 0.2339 | L22: =ROUND(IF(C22="CODEVASF",VLOOKUP(D22,'CPU CODEVASF'!E:I,5,FALSE),VLOOKUP(D22,'SINTÉTICO SICRO'!A:D,4,FALSE)),6) -> 3.12 | M22: =ROUND(IF(C22="CODEVASF",VLOOKUP(D22,'CPU CODEVASF'!E:H,4,FALSE),VLOOKUP(D22,'SINTÉTICO SICRO'!A:D,4,FALSE)*(1+$J$6)),6) -> 3.849768 | N22: 86234.8
A23: =VLOOKUP(N23,'RESUMO MODULO TOTAL'!$O$11:$P$45,2,0) ->  | E23: AQUISIÇÃO E TRANSPORTE DO MATERIAL BETUMINOSO
A24: =VLOOKUP(N24,'RESUMO MODULO TOTAL'!$O$11:$P$45,2,0) ->  | B24: 10 | C24: CODEVASF | D24: CPU-13 | E24: AQUISIÇÃO DE CIMENTO ASFALTICO CAP 50/70 | I24: t | J24: =' CONSUMO DE MAT. B TOTAL'!O16 -> 1733.49 | K24: =(M24/L24-1) -> 0.15 | L24: =ROUND(IF(C24="CODEVASF",VLOOKUP(D24,'CPU CODEVASF'!E:I,5,FALSE),VLOOKUP(D24,'SINTÉTICO SICRO'!A:D,4,FALSE)),6) -> 4221.863193 | M24: =ROUND(IF(C24="CODEVASF",VLOOKUP(D24,'CPU CODEVASF'!E:H,4,FALSE),VLOOKUP(D24,'SINTÉTICO SICRO'!A:D,4,FALSE)*(1+$J$6)),6) -> 4855.142672 | N24: =ROUND(ROUND(J24,2)*ROUND(M24,6),2) -> 8416341.27
A25: =VLOOKUP(N25,'RESUMO MODULO TOTAL'!$O$11:$P$45,2,0) ->  | B25: 11 | C25: CODEVASF | D25: CPU-17 | E25: TRANSPORTE CAP 50/70 | I25: t | J25: =' CONSUMO DE MAT. B TOTAL'!O16 -> 1733.49 | K25: 0.1500111339 | L25: =ROUND(IF(C25="CODEVASF",VLOOKUP(D25,'CPU CODEVASF'!E:I,5,FALSE),VLOOKUP(D25,'SINTÉTICO SICRO'!A:D,4,FALSE)),6) -> 404.17 | M25: =ROUND(IF(C25="CODEVASF",VLOOKUP(D25,'CPU CODEVASF'!E:H,4,FALSE),VLOOKUP(D25,'SINTÉTICO SICRO'!A:D,4,FALSE)*(1+$J$6)),6) -> 464.8 | N25: 805726.15
A26: =VLOOKUP(N26,'RESUMO MODULO TOTAL'!$O$11:$P$45,2,0) ->  | B26: 12 | C26: CODEVASF | D26: CPU-15 | E26: AQUISIÇÃO DE EMULSÃO ASFÁLTICA RR-1C | I26: t | J26: =' CONSUMO DE MAT. B TOTAL'!O14 -> 100.8 | K26: 0.15 | L26: =ROUND(IF(C26="CODEVASF",VLOOKUP(D26,'CPU CODEVASF'!E:I,5,FALSE),VLOOKUP(D26,'SINTÉTICO SICRO'!A:D,4,FALSE)),6) -> 3081.851513 | M26: =ROUND(IF(C26="CODEVASF",VLOOKUP(D26,'CPU CODEVASF'!E:H,4,FALSE),VLOOKUP(D26,'SINTÉTICO SICRO'!A:D,4,FALSE)*(1+$J$6)),6) -> 3544.12924 | N26: 357248.23
A27: =VLOOKUP(N27,'RESUMO MODULO TOTAL'!$O$11:$P$45,2,0) ->  | B27: 13 | C27: CODEVASF | D27: CPU-19 | E27: TRANSPORTE RR-1C | I27: t | J27: =' CONSUMO DE MAT. B TOTAL'!O14 -> 100.8 | K27: 0.150000001 | L27: =ROUND(IF(C27="CODEVASF",VLOOKUP(D27,'CPU CODEVASF'!E:I,5,FALSE),VLOOKUP(D27,'SINTÉTICO SICRO'!A:D,4,FALSE)),6) -> 305.495238 | M27: =ROUND(IF(C27="CODEVASF",VLOOKUP(D27,'CPU CODEVASF'!E:H,4,FALSE),VLOOKUP(D27,'SINTÉTICO SICRO'!A:D,4,FALSE)*(1+$J$6)),6) -> 351.319524 | N27: 35413.01
A28: =VLOOKUP(N28,'RESUMO MODULO TOTAL'!$O$11:$P$45,2,0) ->  | E28: SINALIZAÇÃO
A29: =VLOOKUP(N29,'RESUMO MODULO TOTAL'!$O$11:$P$45,2,0) ->  | B29: 14 | C29: SICRO | D29: 5213440 | E29: =VLOOKUP(D29,'SINTÉTICO SICRO'!$A$4:$D$1048576,2,0) -> Placa de regulamentação em aço D = 0,60 m - película retrorrefletiva tipo I + SI - fornecimento e implantação | I29: und | J29: ='MC MODULO'!H58 -> 96 | K29: =(M29/L29-1) -> 0.2339 | L29: =ROUND(IF(C29="CODEVASF",VLOOKUP(D29,'CPU CODEVASF'!E:I,5,FALSE),VLOOKUP(D29,'SINTÉTICO SICRO'!A:D,4,FALSE)),6) -> 247.15 | M29: =ROUND(IF(C29="CODEVASF",VLOOKUP(D29,'CPU CODEVASF'!E:H,4,FALSE),VLOOKUP(D29,'SINTÉTICO SICRO'!A:D,4,FALSE)*(1+$J$6)),6) -> 304.958385 | N29: =ROUND(ROUND(J29,2)*ROUND(M29,6),2) -> 29276
B30: 15 | C30: SICRO | D30: 5213464 | E30: =VLOOKUP(D30,'SINTÉTICO SICRO'!$A$4:$D$1048576,2,0) -> Placa de advertência em aço, lado de 0,60 m - película retrorrefletiva tipo I + SI - fornecimento e implantação | I30: und | J30: ='MC MODULO'!H63 -> 96 | K30: =M30/L30-1 -> 0.2339 | L30: =ROUND(IF(C30="CODEVASF",VLOOKUP(D30,'CPU CODEVASF'!E:I,5,FALSE),VLOOKUP(D30,'SINTÉTICO SICRO'!A:D,4,FALSE)),6) -> 247.18 | M30: =ROUND(IF(C30="CODEVASF",VLOOKUP(D30,'CPU CODEVASF'!E:H,4,FALSE),VLOOKUP(D30,'SINTÉTICO SICRO'!A:D,4,FALSE)*(1+$J$6)),6) -> 304.995402 | N30: 29279.56
A31: =VLOOKUP(N31,'RESUMO MODULO TOTAL'!$O$11:$P$45,2,0) ->  | B31: 16 | C31: SICRO | D31: 5213863 | E31: =VLOOKUP(D31,'SINTÉTICO SICRO'!$A$4:$D$1048576,2,0) -> Suporte metálico galvanizado para placa de advertência ou regulamentação - lado ou diâmetro de 0,60 m - fornecimento e implantação | I31: und | J31: ='MC MODULO'!H69 -> 192 | K31: =(M31/L31-1) -> 0.2339 | L31: =ROUND(IF(C31="CODEVASF",VLOOKUP(D31,'CPU CODEVASF'!E:I,5,FALSE),VLOOKUP(D31,'SINTÉTICO SICRO'!A:D,4,FALSE)),6) -> 448.44 | M31: =ROUND(IF(C31="CODEVASF",VLOOKUP(D31,'CPU CODEVASF'!E:H,4,FALSE),VLOOKUP(D31,'SINTÉTICO SICRO'!A:D,4,FALSE)*(1+$J$6)),6) -> 553.330116 | N31: 106239.38
A32: =VLOOKUP(N32,'RESUMO MODULO TOTAL'!$O$11:$P$45,2,0) ->  | B32: 17 | C32: SICRO | D32: 5213400 | E32: =VLOOKUP(D32,'SINTÉTICO SICRO'!$A$4:$D$1048576,2,0) -> Pintura de faixa com tinta acrílica - espessura de 0,4 mm | I32: m² | J32: ='MC MODULO'!H74+'MC MODULO'!H79 -> 7680 | K32: 0.2339 | L32: =ROUND(IF(C32="CODEVASF",VLOOKUP(D32,'CPU CODEVASF'!E:I,5,FALSE),VLOOKUP(D32,'SINTÉTICO SICRO'!A:D,4,FALSE)),6) -> 23.4 | M32: =ROUND(IF(C32="CODEVASF",VLOOKUP(D32,'CPU CODEVASF'!E:H,4,FALSE),VLOOKUP(D32,'SINTÉTICO SICRO'!A:D,4,FALSE)*(1+$J$6)),6) -> 28.87326 | N32: 221746.64
A33: =VLOOKUP(N33,'RESUMO MODULO TOTAL'!$O$11:$P$45,2,0) ->  | E33: DRENAGEM
A34: =VLOOKUP(N34,'RESUMO MODULO TOTAL'!$O$11:$P$45,2,0) ->  | B34: 18 | C34: SICRO | D34: 4915777 | E34: =VLOOKUP(D34,'SINTÉTICO SICRO'!$A$4:$D$1048576,2,0) -> Reassentamento manual de meio-fio com material arrancado da pista | I34: m | J34: ='MC MODULO'!H86 -> 6400 | K34: =(M34/L34-1) -> 0.2339 | L34: =ROUND(IF(C34="CODEVASF",VLOOKUP(D34,'CPU CODEVASF'!E:I,5,FALSE),VLOOKUP(D34,'SINTÉTICO SICRO'!A:D,4,FALSE)),6) -> 13.34 | M34: =ROUND(IF(C34="CODEVASF",VLOOKUP(D34,'CPU CODEVASF'!E:H,4,FALSE),VLOOKUP(D34,'SINTÉTICO SICRO'!A:D,4,FALSE)*(1+$J$6)),6) -> 16.460226 | N34: =ROUND(ROUND(J34,2)*ROUND(M34,6),2) -> 105345.45
A35: =VLOOKUP(N35,'RESUMO MODULO TOTAL'!$O$11:$P$45,2,0) ->  | B35: 19 | C35: SICRO | D35: 4915708 | E35: =VLOOKUP(D35,'SINTÉTICO SICRO'!$A$4:$D$1048576,2,0) -> Limpeza de sarjeta e meio-fio | I35: m | J35: ='MC MODULO'!H91 -> 64000 | K35: 0.2339 | L35: =ROUND(IF(C35="CODEVASF",VLOOKUP(D35,'CPU CODEVASF'!E:I,5,FALSE),VLOOKUP(D35,'SINTÉTICO SICRO'!A:D,4,FALSE)),6) -> 0.69 | M35: =ROUND(IF(C35="CODEVASF",VLOOKUP(D35,'CPU CODEVASF'!E:H,4,FALSE),VLOOKUP(D35,'SINTÉTICO SICRO'!A:D,4,FALSE)*(1+$J$6)),6) -> 0.851391 | N35: 54489.02
A36: =VLOOKUP(N36,'RESUMO MODULO TOTAL'!$O$11:$P$45,2,0) ->  | B36: 20 | C36: SICRO | D36: 4915724 | E36: =VLOOKUP(D36,'SINTÉTICO SICRO'!$A$4:$D$1048576,2,0) -> Caiação mecanizada com fixador de cal | I36: m² | J36: ='MC MODULO'!H96 -> 7680 | K36: 0.2339 | L36: =ROUND(IF(C36="CODEVASF",VLOOKUP(D36,'CPU CODEVASF'!E:I,5,FALSE),VLOOKUP(D36,'SINTÉTICO SICRO'!A:D,4,FALSE)),6) -> 1.79 | M36: =ROUND(IF(C36="CODEVASF",VLOOKUP(D36,'CPU CODEVASF'!E:H,4,FALSE),VLOOKUP(D36,'SINTÉTICO SICRO'!A:D,4,FALSE)*(1+$J$6)),6) -> 2.208681 | N36: 16962.67
A37: =VLOOKUP(N37,'RESUMO MODULO TOTAL'!$O$11:$P$45,2,0) ->  | E37: PROJETO EXECUTIVO
A38: =VLOOKUP(N38,'RESUMO MODULO TOTAL'!$O$11:$P$45,2,0) ->  | B38: 21 | C38: Codevasf | D38: Composição Própria | E38: Projeto Executivo | I38: m² | J38: ='MC MODULO'!H110 -> 224000 | K38: =(M38/L38-1) -> 0.2339003671 | L38: =ROUND(('Projeto Executivo'!G29)/(1+J6),6) -> 1.299231 | M38: ='Projeto Executivo'!G29 -> 1.603121608 | N38: =ROUND(ROUND(J38,2)*ROUND(M38,6),2) -> 359099.33 | O38: =N38/N49 -> 0.01368669008
A39: =VLOOKUP(N39,'RESUMO MODULO TOTAL'!$O$11:$P$45,2,0) ->  | E39: MOMENTO DE TRANSPORTE
A40: =VLOOKUP(N40,'RESUMO MODULO TOTAL'!$O$11:$P$45,2,0) ->  | B40: 22 | C40: SICRO | D40: 5914359 | E40: =VLOOKUP(D40,'SINTÉTICO SICRO'!$A$4:$D$1048576,2,0) -> Transporte com caminhão basculante de 10 m³ - rodovia em leito natural | I40: tkm | J40: =ROUND(SUMIF('MOMENTO DE TRANSPORTE - PRINC'!A:A,'RESUMO MODULO TOTAL'!D40,'MOMENTO DE TRANSPORTE - PRINC'!K:K)+SUMIF('MOMENTO DE TRANSPORTE - AUX'!A:A,'RESUMO MODULO TOTAL'!D40,'MOMENTO DE TRANSPORTE - AUX'!K:K),2) -> 399111.93 | K40: =(M40/L40-1) -> 0.2339 | L40: =ROUND(IF(C40="CODEVASF",VLOOKUP(D40,'CPU CODEVASF'!E:I,5,FALSE),VLOOKUP(D40,'SINTÉTICO SICRO'!A:D,4,FALSE)),6) -> 1.21 | M40: =ROUND(IF(C40="CODEVASF",VLOOKUP(D40,'CPU CODEVASF'!E:H,4,FALSE),VLOOKUP(D40,'SINTÉTICO SICRO'!A:D,4,FALSE)*(1+$J$6)),6) -> 1.493019 | N40: =ROUND(ROUND(J40,2)*ROUND(M40,6),2) -> 595881.69
A41: =VLOOKUP(N41,'RESUMO MODULO TOTAL'!$O$11:$P$45,2,0) ->  | B41: 23 | C41: SICRO | D41: 5914374 | E41: =VLOOKUP(D41,'SINTÉTICO SICRO'!$A$4:$D$1048576,2,0) -> Transporte com caminhão basculante de 10 m³ - rodovia em revestimento primário | I41: tkm | J41: =ROUND(SUMIF('MOMENTO DE TRANSPORTE - PRINC'!A:A,'RESUMO MODULO TOTAL'!D41,'MOMENTO DE TRANSPORTE - PRINC'!K:K)+SUMIF('MOMENTO DE TRANSPORTE - AUX'!A:A,'RESUMO MODULO TOTAL'!D41,'MOMENTO DE TRANSPORTE - AUX'!K:K),2) -> 399111.93 | K41: 0.2339 | L41: =ROUND(IF(C41="CODEVASF",VLOOKUP(D41,'CPU CODEVASF'!E:I,5,FALSE),VLOOKUP(D41,'SINTÉTICO SICRO'!A:D,4,FALSE)),6) -> 0.97 | M41: =ROUND(IF(C41="CODEVASF",VLOOKUP(D41,'CPU CODEVASF'!E:H,4,FALSE),VLOOKUP(D41,'SINTÉTICO SICRO'!A:D,4,FALSE)*(1+$J$6)),6) -> 1.196883 | N41: 477690.28
A42: =VLOOKUP(N42,'RESUMO MODULO TOTAL'!$O$11:$P$45,2,0) ->  | B42: 24 | C42: SICRO | D42: 5914389 | E42: =VLOOKUP(D42,'SINTÉTICO SICRO'!$A$4:$D$1048576,2,0) -> Transporte com caminhão basculante de 10 m³ - rodovia pavimentada | I42: tkm | J42: =ROUND(SUMIF('MOMENTO DE TRANSPORTE - PRINC'!A:A,'RESUMO MODULO TOTAL'!D42,'MOMENTO DE TRANSPORTE - PRINC'!K:K)+SUMIF('MOMENTO DE TRANSPORTE - AUX'!A:A,'RESUMO MODULO TOTAL'!D42,'MOMENTO DE TRANSPORTE - AUX'!K:K),2) -> 3192895.43 | K42: 0.2339 | L42: =ROUND(IF(C42="CODEVASF",VLOOKUP(D42,'CPU CODEVASF'!E:I,5,FALSE),VLOOKUP(D42,'SINTÉTICO SICRO'!A:D,4,FALSE)),6) -> 0.79 | M42: =ROUND(IF(C42="CODEVASF",VLOOKUP(D42,'CPU CODEVASF'!E:H,4,FALSE),VLOOKUP(D42,'SINTÉTICO SICRO'!A:D,4,FALSE)*(1+$J$6)),6) -> 0.974781 | N42: 3112373.8
A43: =VLOOKUP(N43,'RESUMO MODULO TOTAL'!$O$11:$P$45,2,0) ->  | B43: 25 | C43: SICRO | D43: 5914364 | E43: =VLOOKUP(D43,'SINTÉTICO SICRO'!$A$4:$D$1048576,2,0) -> Transporte de cimento ou cal hidratada a granel com caminhão silo de 30 m³ - rodovia em leito natural | I43: tkm | J43: =ROUND(SUMIF('MOMENTO DE TRANSPORTE - PRINC'!A:A,'RESUMO MODULO TOTAL'!D43,'MOMENTO DE TRANSPORTE - PRINC'!K:K)+SUMIF('MOMENTO DE TRANSPORTE - AUX'!A:A,'RESUMO MODULO TOTAL'!D43,'MOMENTO DE TRANSPORTE - AUX'!K:K),2) -> 9245.21 | K43: 0.2339 | L43: =ROUND(IF(C43="CODEVASF",VLOOKUP(D43,'CPU CODEVASF'!E:I,5,FALSE),VLOOKUP(D43,'SINTÉTICO SICRO'!A:D,4,FALSE)),6) -> 0.89 | M43: =ROUND(IF(C43="CODEVASF",VLOOKUP(D43,'CPU CODEVASF'!E:H,4,FALSE),VLOOKUP(D43,'SINTÉTICO SICRO'!A:D,4,FALSE)*(1+$J$6)),6) -> 1.098171 | N43: 10152.82
A44: =VLOOKUP(N44,'RESUMO MODULO TOTAL'!$O$11:$P$45,2,0) ->  | B44: 26 | C44: SICRO | D44: 5914365 | E44: =VLOOKUP(D44,'SINTÉTICO SICRO'!$A$4:$D$1048576,2,0) -> Transporte de cimento ou cal hidratada a granel com caminhão silo de 30 m³ - rodovia em revestimento primário | I44: tkm | J44: =ROUND(SUMIF('MOMENTO DE TRANSPORTE - PRINC'!A:A,'RESUMO MODULO TOTAL'!D44,'MOMENTO DE TRANSPORTE - PRINC'!K:K)+SUMIF('MOMENTO DE TRANSPORTE - AUX'!A:A,'RESUMO MODULO TOTAL'!D44,'MOMENTO DE TRANSPORTE - AUX'!K:K),2) -> 9245.21 | K44: 0.2339 | L44: =ROUND(IF(C44="CODEVASF",VLOOKUP(D44,'CPU CODEVASF'!E:I,5,FALSE),VLOOKUP(D44,'SINTÉTICO SICRO'!A:D,4,FALSE)),6) -> 0.71 | M44: =ROUND(IF(C44="CODEVASF",VLOOKUP(D44,'CPU CODEVASF'!E:H,4,FALSE),VLOOKUP(D44,'SINTÉTICO SICRO'!A:D,4,FALSE)*(1+$J$6)),6) -> 0.876069 | N44: 8099.44
A45: =VLOOKUP(N45,'RESUMO MODULO TOTAL'!$O$11:$P$45,2,0) ->  | B45: 27 | C45: SICRO | D45: 5914366 | E45: =VLOOKUP(D45,'SINTÉTICO SICRO'!$A$4:$D$1048576,2,0) -> Transporte de cimento ou cal hidratada a granel com caminhão silo de 30 m³ - rodovia pavimentada | I45: tkm | J45: =ROUND(SUMIF('MOMENTO DE TRANSPORTE - PRINC'!A:A,'RESUMO MODULO TOTAL'!D45,'MOMENTO DE TRANSPORTE - PRINC'!K:K)+SUMIF('MOMENTO DE TRANSPORTE - AUX'!A:A,'RESUMO MODULO TOTAL'!D45,'MOMENTO DE TRANSPORTE - AUX'!K:K),2) -> 73961.72 | K45: 0.2339 | L45: =ROUND(IF(C45="CODEVASF",VLOOKUP(D45,'CPU CODEVASF'!E:I,5,FALSE),VLOOKUP(D45,'SINTÉTICO SICRO'!A:D,4,FALSE)),6) -> 0.58 | M45: =ROUND(IF(C45="CODEVASF",VLOOKUP(D45,'CPU CODEVASF'!E:H,4,FALSE),VLOOKUP(D45,'SINTÉTICO SICRO'!A:D,4,FALSE)*(1+$J$6)),6) -> 0.715662 | N45: 52931.59
A46: =VLOOKUP(N46,'RESUMO MODULO TOTAL'!$O$11:$P$45,2,0) ->  | B46: 28 | C46: SICRO | D46: 5914314 | E46: =VLOOKUP(D46,'SINTÉTICO SICRO'!$A$4:$D$1048576,2,0) -> Transporte com caminhão basculante de 6 m³ - rodovia em leito natural | I46: tkm | J46: =ROUND(SUMIF('MOMENTO DE TRANSPORTE - PRINC'!A:A,'RESUMO MODULO TOTAL'!D46,'MOMENTO DE TRANSPORTE - PRINC'!K:K)+SUMIF('MOMENTO DE TRANSPORTE - AUX'!A:A,'RESUMO MODULO TOTAL'!D46,'MOMENTO DE TRANSPORTE - AUX'!K:K),2) -> 11090.42 | K46: 0.2339 | L46: =ROUND(IF(C46="CODEVASF",VLOOKUP(D46,'CPU CODEVASF'!E:I,5,FALSE),VLOOKUP(D46,'SINTÉTICO SICRO'!A:D,4,FALSE)),6) -> 1.24 | M46: =ROUND(IF(C46="CODEVASF",VLOOKUP(D46,'CPU CODEVASF'!E:H,4,FALSE),VLOOKUP(D46,'SINTÉTICO SICRO'!A:D,4,FALSE)*(1+$J$6)),6) -> 1.530036 | N46: 16968.74
A47: =VLOOKUP(N47,'RESUMO MODULO TOTAL'!$O$11:$P$45,2,0) ->  | B47: 29 | C47: SICRO | D47: 5914329 | E47: =VLOOKUP(D47,'SINTÉTICO SICRO'!$A$4:$D$1048576,2,0) -> Transporte com caminhão basculante de 6 m³ - rodovia em revestimento primário | I47: tkm | J47: =ROUND(SUMIF('MOMENTO DE TRANSPORTE - PRINC'!A:A,'RESUMO MODULO TOTAL'!D47,'MOMENTO DE TRANSPORTE - PRINC'!K:K)+SUMIF('MOMENTO DE TRANSPORTE - AUX'!A:A,'RESUMO MODULO TOTAL'!D47,'MOMENTO DE TRANSPORTE - AUX'!K:K),2) -> 11090.42 | K47: 0.2339 | L47: =ROUND(IF(C47="CODEVASF",VLOOKUP(D47,'CPU CODEVASF'!E:I,5,FALSE),VLOOKUP(D47,'SINTÉTICO SICRO'!A:D,4,FALSE)),6) -> 0.99 | M47: =ROUND(IF(C47="CODEVASF",VLOOKUP(D47,'CPU CODEVASF'!E:H,4,FALSE),VLOOKUP(D47,'SINTÉTICO SICRO'!A:D,4,FALSE)*(1+$J$6)),6) -> 1.221561 | N47: 13547.62
A48: =VLOOKUP(N48,'RESUMO MODULO TOTAL'!$O$11:$P$45,2,0) ->  | B48: 30 | C48: SICRO | D48: 5914344 | E48: =VLOOKUP(D48,'SINTÉTICO SICRO'!$A$4:$D$1048576,2,0) -> Transporte com caminhão basculante de 6 m³ - rodovia pavimentada | I48: tkm | J48: =ROUND(SUMIF('MOMENTO DE TRANSPORTE - PRINC'!A:A,'RESUMO MODULO TOTAL'!D48,'MOMENTO DE TRANSPORTE - PRINC'!K:K)+SUMIF('MOMENTO DE TRANSPORTE - AUX'!A:A,'RESUMO MODULO TOTAL'!D48,'MOMENTO DE TRANSPORTE - AUX'!K:K),2) -> 88723.35 | K48: 0.2339 | L48: =ROUND(IF(C48="CODEVASF",VLOOKUP(D48,'CPU CODEVASF'!E:I,5,FALSE),VLOOKUP(D48,'SINTÉTICO SICRO'!A:D,4,FALSE)),6) -> 0.81 | M48: =ROUND(IF(C48="CODEVASF",VLOOKUP(D48,'CPU CODEVASF'!E:H,4,FALSE),VLOOKUP(D48,'SINTÉTICO SICRO'!A:D,4,FALSE)*(1+$J$6)),6) -> 0.999459 | N48: 88675.35
J49: VALOR TOTAL DO SRP | N49: =INT(SUM(N11:N48)) -> 26237120
B50: Obs.: Os valores estão apresentados com apenas 2 casas decimais, mas os valores da presente planilha foram calculados utilizando a precisão de 6 casa decimais.
N51: =117.13*I8 -> 26237120

Sheet CRONOGRAMA TOTAL
A2: ='RESUMO MODULO TOTAL'!B1 -> CONTRATAÇÃO DE SERVIÇOS DE EXECUÇÃO DE CAPA ASFÁLTICA COM CONCRETO BETUMINOSO USINADO A QUENTE (CBUQ) EM VIAS DE DIVERSOS MUNICÍPIOS INSERIDOS NA ÁREA DE ATUAÇÃO DA 16ª SUPERINTENDÊNCIA REGIONAL DA CODEVASF, NO ESTADO DE MINAS GERAIS - REGIÃO NOROESTE
A3: Cronograma Físico e Financeiro
A4: Item | B4: Descrição | C4: Total Por Etapa | D4: 30 DIAS | E4: 60 DIAS | F4: 90 DIAS | G4: 120 DIAS | H4: 150 DIAS | I4: 180 DIAS | J4: 210 DIAS | K4: 240 DIAS | L4: 270 DIAS | M4: 300 DIAS | N4: 330 DIAS | O4: 360 DIAS
B5: ='RESUMO MODULO TOTAL'!E10 -> MOBILIZAÇÃO/DESMOBILIZAÇÃO | C5: =SUM(D5:O5) -> 1 | D5: 0.5 | O5: 0.5
C6: =SUM('RESUMO MODULO TOTAL'!N11:N12) -> 2124814.76 | D6: =$C$6*D5 -> 1062407.38 | O6: =$C$6*O5 -> 1062407.38 | P6: =SUM(D6:O6) -> 2124814.76 | Q6: =IF(P6=C6,"OK","") -> OK
B7: ='RESUMO MODULO TOTAL'!E13 -> INSTALAÇÃO DE CANTEIRO | C7: =SUM(D7:O7) -> 1 | D7: 0.1 | E7: 0.5 | F7: 0.4
C8: =SUM('RESUMO MODULO TOTAL'!N14:N15) -> 535605.78 | D8: =$C$8*D7 -> 53560.578 | E8: =$C$8*E7 -> 267802.89 | F8: 214242.312 | G8: 0 | H8: 0 | I8: 0 | J8: 0 | K8: 0 | L8: 0 | M8: 0 | N8: 0 | O8: 0 | P8: =SUM(D8:O8) -> 535605.78 | Q8: =IF(P8=C8,"OK","") -> OK
B9: ='RESUMO MODULO TOTAL'!E16 -> ADMINISTRAÇÃO LOCAL DA OBRA | C9: =SUM(D9:O9) -> 1.000000004 | D9: =(D6+D8+D12+D14+D16+D18+D20+D22)/($O$29-$C$10) -> 0.05846251569 | E9: =(E6+E8+E12+E14+E16+E18+E20+E22)/($O$29-$C$10) -> 0.01061404506 | F9: 0.008491236047 | G9: 0.1429996198 | H9: 0.1429996198 | I9: 0.1429996198 | J9: 0.1429996198 | K9: 0.1429996198 | L9: 0.1429996198 | M9: 0.003503570873 | N9: 0.003503570873 | O9: 0.05742734722
C10: =SUM('RESUMO MODULO TOTAL'!N17) -> 1006127.62 | D10: =$C$10*D9 -> 58820.75177 | E10: =$C$10*E9 -> 10679.08389 | F10: =$C$10*F9 -> 8543.267115 | G10: 143875.8671 | H10: 143875.8671 | I10: 143875.8671 | J10: 143875.8671 | K10: 143875.8671 | L10: 143875.8671 | M10: 3525.039424 | N10: 3525.039424 | O10: 57779.24018 | P10: =SUM(D10:O10) -> 1006127.624 | Q10: =IF(P10=C10,"OK","") -> 
B11: ='RESUMO MODULO TOTAL'!E18 -> PAVIMENTAÇÃO | C11: =SUM(D11:O11) -> 1 | G11: =1/6 -> 0.1666666667 | H11: =1/6 -> 0.1666666667 | I11: 0.1666666667 | J11: 0.1666666667 | K11: 0.1666666667 | L11: 0.1666666667
C12: =SUM('RESUMO MODULO TOTAL'!N19:N22) -> 7657083.91 | D12: =$C$14*D11 -> 0 | E12: =$C$12*E11 -> 0 | F12: 0 | G12: 1276180.652 | H12: 1276180.652 | I12: 1276180.652 | J12: 1276180.652 | K12: 1276180.652 | L12: 1276180.652 | M12: 0 | N12: 0 | O12: 0 | P12: =SUM(D12:O12) -> 7657083.91 | Q12: =IF(P12=C12,"OK","") -> OK
B13: ='RESUMO MODULO TOTAL'!E23 -> AQUISIÇÃO E TRANSPORTE DO MATERIAL BETUMINOSO | C13: =SUM(D13:O13) -> 1 | G13: =1/6 -> 0.1666666667 | H13: 0.1666666667 | I13: 0.1666666667 | J13: 0.1666666667 | K13: 0.1666666667 | L13: 0.1666666667
C14: =SUM('RESUMO MODULO TOTAL'!N24:N27) -> 9614728.66 | D14: =$C$14*D13 -> 0 | E14: =$C$14*E13 -> 0 | F14: 0 | G14: 1602454.777 | H14: 1602454.777 | I14: 1602454.777 | J14: 1602454.777 | K14: 1602454.777 | L14: 1602454.777 | M14: 0 | N14: 0 | O14: 0 | P14: =SUM(D14:O14) -> 9614728.66 | Q14: =IF(P14=C14,"OK","") -> OK
B15: ='RESUMO MODULO TOTAL'!E28 -> SINALIZAÇÃO | C15: =SUM(D15:O15) -> 1 | O15: 1
C16: =SUM('RESUMO MODULO TOTAL'!N29:N32) -> 386541.58 | D16: =$C$16*D15 -> 0 | E16: =$C$16*E15 -> 0 | F16: 0 | G16: 0 | H16: 0 | I16: 0 | J16: 0 | K16: 0 | L16: 0 | M16: 0 | N16: 0 | O16: 386541.58 | P16: =SUM(D16:O16) -> 386541.58 | Q16: =IF(P16=C16,"OK","") -> OK
B17: ='RESUMO MODULO TOTAL'!E33 -> DRENAGEM | C17: =SUM(D17:O17) -> 1 | M17: 0.5 | N17: 0.5
C18: =SUM('RESUMO MODULO TOTAL'!N34:N36) -> 176797.14 | D18: =$C$18*D17 -> 0 | E18: =$C$18*E17 -> 0 | F18: 0 | G18: 0 | H18: 0 | I18: 0 | J18: 0 | K18: 0 | L18: 0 | M18: 88398.57 | N18: 88398.57 | O18: 0 | P18: =SUM(D18:O18) -> 176797.14 | Q18: =IF(P18=C18,"OK","") -> OK
B19: ='RESUMO MODULO TOTAL'!E37 -> PROJETO EXECUTIVO | C19: =SUM(D19:O19) -> 1 | D19: 1
C20: =SUM('RESUMO MODULO TOTAL'!N38) -> 359099.33 | D20: =$C$20*D19 -> 359099.33 | E20: =$C$20*E19 -> 0 | F20: 0 | G20: 0 | H20: 0 | I20: 0 | J20: 0 | K20: 0 | L20: 0 | M20: 0 | N20: 0 | O20: 0 | P20: =SUM(D20:O20) -> 359099.33 | Q20: =IF(P20=C20,"OK","") -> OK
B21: ='RESUMO MODULO TOTAL'!E39 -> MOMENTO DE TRANSPORTE | C21: =SUM(D21:O21) -> 1 | G21: =1/6 -> 0.1666666667 | H21: =1/6 -> 0.1666666667 | I21: 0.1666666667 | J21: 0.1666666667 | K21: 0.1666666667 | L21: 0.1666666667
C22: =SUM('RESUMO MODULO TOTAL'!N40:N48) -> 4376321.33 | D22: =$C$22*D21 -> 0 | E22: =$C$22*E21 -> 0 | F22: 0 | G22: 729386.8883 | H22: 729386.8883 | I22: 729386.8883 | J22: 729386.8883 | K22: 729386.8883 | L22: 729386.8883 | M22: 0 | N22: 0 | O22: 0 | P22: =SUM(D22:O22) -> 4376321.33 | Q22: =IF(P22=C22,"OK","") -> OK
A24: Porcentagem | D24: =SUM(D6+D8+D10+D12+D14+D16+D18+D20+D22)/$O$29 -> 0.05846251569 | E24: =SUM(E6+E8+E10+E12+E14+E16+E18+E20+E22)/$O$29 -> 0.01061404506 | F24: 0.008491236047 | G24: 0.1429996198 | H24: 0.1429996198 | I24: 0.1429996198 | J24: 0.1429996198 | K24: 0.1429996198 | L24: 0.1429996198 | M24: 0.003503570873 | N24: 0.003503570873 | O24: 0.05742734722
A25: Custo | D25: =$O$29*D24 -> 1533888.04 | E25: =$O$29*E24 -> 278481.9739 | F25: =$O$29*F24 -> 222785.5791 | G25: 3751898.184 | H25: 3751898.184 | I25: 3751898.184 | J25: 3751898.184 | K25: 3751898.184 | L25: 3751898.184 | M25: 91923.60942 | N25: 91923.60942 | O25: 1506728.2
A26: Porcentagem Acumulado | D26: =D24 -> 0.05846251569 | E26: =D26+E24 -> 0.06907656075 | F26: =E26+F24 -> 0.0775677968 | G26: 0.2205674166 | H26: 0.3635670363 | I26: 0.5065666561 | J26: 0.6495662759 | K26: 0.7925658956 | L26: 0.9355655154 | M26: 0.9390690863 | N26: 0.9425726571 | O26: =N26+O24 -> 1.000000004
A27: Custo Acumulado | D27: =D25 -> 1533888.04 | E27: =D27+E25 -> 1812370.014 | F27: 2035155.593 | G27: 5787053.777 | H27: 9538951.96 | I27: 13290850.14 | J27: 17042748.33 | K27: 20794646.51 | L27: 24546544.7 | M27: 24638468.3 | N27: 24730391.91 | O27: =INT(N27+O25) -> 26237120
D29: Total Geral | N29: R$ | O29: =INT(C6+C8+C10+C12+C14+C16+C18+C20+C22) -> 26237120
O32: =O27-O29 -> 0
O34: ='RESUMO MODULO TOTAL'!N49 -> 26237120
O36: =O29-O34 -> 0

Sheet Mob
A4: =#REF! -> 
A5: MOBILIZAÇÃO/DESMOBILIZAÇÃO (MOB) | F5: Frentes de serviços | H5: ='MC MODULO'!G1 -> 16
F6: Distância da Capital ao Canteiro: | H6: 500 | I6: Fica a cargo de cada SR colocar a distancia adequada de acordo com o historico de mobilização
F8: Velocidade média de transporte (pavim.): | H8: 60
A10: Transporte dos equipamentos
A11: CODIGO | B11: EQUIPAMENTO | C11: VEÍCULO TRANSPORTADOR | D11: QTDE | E11: K | F11: FU | G11: CUSTO DO TRANSPORTE
G12: (R$/h) | H12: (R$)/km
A13: E9524 | B13: =VLOOKUP(A13,Equipamentos!$A:$K,2,FALSE) -> Motoniveladora - 93 kW | C13: =IFERROR(INDEX('Tabelas 2 e 3 mob'!A:K,MATCH(A13,'Tabelas 2 e 3 mob'!A:A,0),9),"ERRO") -> E9665 | D13: 0 | E13: 2 | F13: 1 | G13: =IF(C13="Veículo(s) da própria frota.",0,INDEX(Equipamentos!B:K,MATCH(C13,Equipamentos!A:A,0),9)) -> 387.0539 | H13: =((D13*E13*F13)/$H$8)*G13 -> 0
A14: E9526 | B14: =VLOOKUP(A14,Equipamentos!$A:$K,2,FALSE) -> Retroescavadeira de pneus - capacidade da caçamba da pá-carregadeira de 0,76 m³ e da retroescavadeira de 0,29 m³ - 58 kW | C14: =IFERROR(INDEX('Tabelas 2 e 3 mob'!A:K,MATCH(A14,'Tabelas 2 e 3 mob'!A:A,0),9),"ERRO") -> E9665 | D14: 0 | E14: 2 | F14: 1 | G14: =IF(C14="Veículo(s) da própria frota.",0,INDEX(Equipamentos!B:K,MATCH(C14,Equipamentos!A:A,0),9)) -> 387.0539 | H14: =((D14*E14*F14)/$H$8)*G14 -> 0
A15: E9577 | B15: =VLOOKUP(A15,Equipamentos!$A:$K,2,FALSE) -> Trator agrícola sobre pneus - 77 kW | C15: =IFERROR(INDEX('Tabelas 2 e 3 mob'!A:K,MATCH(A15,'Tabelas 2 e 3 mob'!A:A,0),9),"ERRO") -> E9665 | D15: 0 | E15: 2 | F15: 0.5 | G15: =IF(C15="Veículo(s) da própria frota.",0,INDEX(Equipamentos!B:K,MATCH(C15,Equipamentos!A:A,0),9)) -> 387.0539 | H15: 0
A16: E9518 | B16: =VLOOKUP(A16,Equipamentos!$A:$K,2,FALSE) -> Grade de 24 discos rebocável de D = 60 cm (24") | C16: =IFERROR(INDEX('Tabelas 2 e 3 mob'!A:K,MATCH(A16,'Tabelas 2 e 3 mob'!A:A,0),9),"ERRO") -> Veículo(s) da própria frota. | D16: 1 | E16: 2 | F16: 0 | G16: =IF(C16="Veículo(s) da própria frota.",0,INDEX(Equipamentos!B:K,MATCH(C16,Equipamentos!A:A,0),9)) -> 0 | H16: 0
A17: E9530 | B17: =VLOOKUP(A17,Equipamentos!$A:$K,2,FALSE) -> Rolo compactador liso vibratório autopropelido por pneus de 11 t - 97 kW | C17: =IFERROR(INDEX('Tabelas 2 e 3 mob'!A:K,MATCH(A17,'Tabelas 2 e 3 mob'!A:A,0),9),"ERRO") -> E9666 | D17: 0 | E17: 2 | F17: 0.5 | G17: =IF(C17="Veículo(s) da própria frota.",0,INDEX(Equipamentos!B:K,MATCH(C17,Equipamentos!A:A,0),9)) -> 412.2525 | H17: 0
A18: E9558 | B18: =VLOOKUP(A18,Equipamentos!$A:$K,2,FALSE) -> Tanque de estocagem de asfalto com capacidade de 30.000 l | C18: =IFERROR(INDEX('Tabelas 2 e 3 mob'!A:K,MATCH(A18,'Tabelas 2 e 3 mob'!A:A,0),9),"ERRO") -> E9665 | D18: 1 | E18: 2 | F18: 1 | G18: =IF(C18="Veículo(s) da própria frota.",0,INDEX(Equipamentos!B:K,MATCH(C18,Equipamentos!A:A,0),9)) -> 387.0539 | H18: 12.90179667
A19: E9758 | B19: =VLOOKUP(A19,Equipamentos!$A:$K,2,FALSE) -> Vibroacabadora de asfalto sobre pneus - 82 kW | C19: =IFERROR(INDEX('Tabelas 2 e 3 mob'!A:K,MATCH(A19,'Tabelas 2 e 3 mob'!A:A,0),9),"ERRO") -> E9018 | D19: 0 | E19: 2 | F19: 0.5 | G19: =IF(C19="Veículo(s) da própria frota.",0,INDEX(Equipamentos!B:K,MATCH(C19,Equipamentos!A:A,0),9)) -> 521.0922 | H19: 0
A20: E9685 | B20: =VLOOKUP(A20,Equipamentos!$A:$K,2,FALSE) -> Rolo compactador pé de carneiro vibratório autopropelido por pneus de 11,6 t - 82 kW | C20: =IFERROR(INDEX('Tabelas 2 e 3 mob'!A:K,MATCH(A20,'Tabelas 2 e 3 mob'!A:A,0),9),"ERRO") -> E9666 | D20: 0 | E20: 2 | F20: 0.5 | G20: =IF(C20="Veículo(s) da própria frota.",0,INDEX(Equipamentos!B:K,MATCH(C20,Equipamentos!A:A,0),9)) -> 412.2525 | H20: 0
A21: E9605 | B21: =VLOOKUP(A21,Equipamentos!$A:$K,2,FALSE) -> Caminhão tanque com capacidade de 6.000 l - 136 kW | C21: =IFERROR(INDEX('Tabelas 2 e 3 mob'!A:K,MATCH(A21,'Tabelas 2 e 3 mob'!A:A,0),9),"ERRO") -> E9605 | D21: 0 | E21: 1 | F21: 1 | G21: =IF(C21="Veículo(s) da própria frota.",0,INDEX(Equipamentos!B:K,MATCH(C21,Equipamentos!A:A,0),9)) -> 245.8369 | H21: 0
A22: E9579 | B22: =VLOOKUP(A22,Equipamentos!$A:$K,2,FALSE) -> Caminhão basculante com capacidade de 10 m³ - 210 kW | C22: =IFERROR(INDEX('Tabelas 2 e 3 mob'!A:K,MATCH(A22,'Tabelas 2 e 3 mob'!A:A,0),9),"ERRO") -> E9579 | D22: 5 | E22: 1 | F22: 1 | G22: =IF(C22="Veículo(s) da própria frota.",0,INDEX(Equipamentos!B:K,MATCH(C22,Equipamentos!A:A,0),9)) -> 295.9517 | H22: 24.66264167
A23: E9509 | B23: =VLOOKUP(A23,Equipamentos!$A:$K,2,FALSE) -> Caminhão tanque distribuidor de asfalto com capacidade de 6.000 l - 7 kW/136 kW | C23: =IFERROR(INDEX('Tabelas 2 e 3 mob'!A:K,MATCH(A23,'Tabelas 2 e 3 mob'!A:A,0),9),"ERRO") -> E9509 | D23: 1 | E23: 1 | F23: 1 | G23: =IF(C23="Veículo(s) da própria frota.",0,INDEX(Equipamentos!B:K,MATCH(C23,Equipamentos!A:A,0),9)) -> 257.1202 | H23: 4.285336667
A24: E9762 | B24: =VLOOKUP(A24,Equipamentos!$A:$K,2,FALSE) -> Rolo compactador de pneus autopropelido de 27 t - 85 kW | C24: =IFERROR(INDEX('Tabelas 2 e 3 mob'!A:K,MATCH(A24,'Tabelas 2 e 3 mob'!A:A,0),9),"ERRO") -> E9666 | D24: 1 | E24: 2 | F24: 0.5 | G24: =IF(C24="Veículo(s) da própria frota.",0,INDEX(Equipamentos!B:K,MATCH(C24,Equipamentos!A:A,0),9)) -> 412.2525 | H24: 6.870875
A25: E9681 | B25: =VLOOKUP(A25,Equipamentos!$A:$K,2,FALSE) -> Rolo compactador liso tandem vibratório autopropelido de 10,4 t - 82 kW | C25: =IFERROR(INDEX('Tabelas 2 e 3 mob'!A:K,MATCH(A25,'Tabelas 2 e 3 mob'!A:A,0),9),"ERRO") -> E9666 | D25: 1 | E25: 2 | F25: 0.5 | G25: =IF(C25="Veículo(s) da própria frota.",0,INDEX(Equipamentos!B:K,MATCH(C25,Equipamentos!A:A,0),9)) -> 412.2525 | H25: 6.870875
A26: E9545 | B26: =VLOOKUP(A26,Equipamentos!$A:$K,2,FALSE) -> Vibroacabadora de asfalto sobre esteiras - 82 kW | C26: =IFERROR(INDEX('Tabelas 2 e 3 mob'!A:K,MATCH(A26,'Tabelas 2 e 3 mob'!A:A,0),9),"ERRO") -> E9018 | D26: 1 | E26: 2 | F26: 0.5 | G26: =IF(C26="Veículo(s) da própria frota.",0,INDEX(Equipamentos!B:K,MATCH(C26,Equipamentos!A:A,0),9)) -> 521.0922 | H26: 8.68487
A27: E9571 | B27: =VLOOKUP(A27,Equipamentos!$A:$K,2,FALSE) -> Caminhão tanque com capacidade de 10.000 l - 188 kW | C27: =IFERROR(INDEX('Tabelas 2 e 3 mob'!A:K,MATCH(A27,'Tabelas 2 e 3 mob'!A:A,0),9),"ERRO") -> E9571 | D27: 0 | E27: 1 | F27: 1 | G27: =IF(C27="Veículo(s) da própria frota.",0,INDEX(Equipamentos!B:K,MATCH(C27,Equipamentos!A:A,0),9)) -> 322.7857 | H27: 0
A28: E9514 | B28: =VLOOKUP(A28,Equipamentos!$A:$K,2,FALSE) -> Distribuidor de agregados sobre pneus autopropelido - 130 kW | C28: =IFERROR(INDEX('Tabelas 2 e 3 mob'!A:K,MATCH(A28,'Tabelas 2 e 3 mob'!A:A,0),9),"ERRO") -> E9665 | D28: 0 | E28: 2 | F28: 0.5 | G28: =IF(C28="Veículo(s) da própria frota.",0,INDEX(Equipamentos!B:K,MATCH(C28,Equipamentos!A:A,0),9)) -> 387.0539 | H28: 0
A29: E9511 | B29: =VLOOKUP(A29,Equipamentos!$A:$K,2,FALSE) -> Carregadeira de pneus com capacidade de 3,40 m³ - 195 kW | C29: =IFERROR(INDEX('Tabelas 2 e 3 mob'!A:K,MATCH(A29,'Tabelas 2 e 3 mob'!A:A,0),9),"ERRO") -> E9665 | D29: 0 | E29: 2 | F29: 1 | G29: =IF(C29="Veículo(s) da própria frota.",0,INDEX(Equipamentos!B:K,MATCH(C29,Equipamentos!A:A,0),9)) -> 387.0539 | H29: 0
A30: E9779 | B30: =VLOOKUP(A30,Equipamentos!$A:$K,2,FALSE) -> Grupo gerador - 113 kVA | C30: =IFERROR(INDEX('Tabelas 2 e 3 mob'!A:K,MATCH(A30,'Tabelas 2 e 3 mob'!A:A,0),9),"ERRO") -> Veículo(s) da própria frota. | D30: 1 | E30: 2 | F30: 0 | G30: =IF(C30="Veículo(s) da própria frota.",0,INDEX(Equipamentos!B:K,MATCH(C30,Equipamentos!A:A,0),9)) -> 0 | H30: 0
A31: E9559 | B31: =VLOOKUP(A31,Equipamentos!$A:$K,2,FALSE) -> Aquecedor de fluido térmico - 12 kW | C31: =IFERROR(INDEX('Tabelas 2 e 3 mob'!A:K,MATCH(A31,'Tabelas 2 e 3 mob'!A:A,0),9),"ERRO") -> Veículo(s) da própria frota. | D31: 1 | E31: 2 | F31: 0 | G31: =IF(C31="Veículo(s) da própria frota.",0,INDEX(Equipamentos!B:K,MATCH(C31,Equipamentos!A:A,0),9)) -> 0 | H31: 0
A32: E9584 | B32: =VLOOKUP(A32,Equipamentos!$A:$K,2,FALSE) -> Carregadeira de pneus com capacidade de 1,72 m³ - 113 kW | C32: =IFERROR(INDEX('Tabelas 2 e 3 mob'!A:K,MATCH(A32,'Tabelas 2 e 3 mob'!A:A,0),9),"ERRO") -> E9665 | D32: 0 | E32: 2 | F32: 1 | G32: =IF(C32="Veículo(s) da própria frota.",0,INDEX(Equipamentos!B:K,MATCH(C32,Equipamentos!A:A,0),9)) -> 387.0539 | H32: 0
A33: E9021 | B33: =VLOOKUP(A33,Equipamentos!$A:$K,2,FALSE) -> Grupo gerador - 456 kVA | C33: =IFERROR(INDEX('Tabelas 2 e 3 mob'!A:K,MATCH(A33,'Tabelas 2 e 3 mob'!A:A,0),9),"ERRO") -> E9508 | D33: 1 | E33: 2 | F33: 1 | G33: =IF(C33="Veículo(s) da própria frota.",0,INDEX(Equipamentos!B:K,MATCH(C33,Equipamentos!A:A,0),9)) -> 180.2049 | H33: 6.00683
A34: E9687 | B34: =VLOOKUP(A34,Equipamentos!$A:$K,2,FALSE) -> Caminhão carroceria com capacidade de 5 t - 115 kW | C34: =IFERROR(INDEX('Tabelas 2 e 3 mob'!A:K,MATCH(A34,'Tabelas 2 e 3 mob'!A:A,0),9),"ERRO") -> E9687 | D34: 1 | E34: 1 | F34: 1 | G34: =IF(C34="Veículo(s) da própria frota.",0,INDEX(Equipamentos!B:K,MATCH(C34,Equipamentos!A:A,0),9)) -> 147.5104 | H34: 2.458506667
A35: E9667 | B35: =VLOOKUP(A35,Equipamentos!$A:$K,2,FALSE) -> Caminhão basculante com capacidade de 14 m³ - 210 kW | C35: =IFERROR(INDEX('Tabelas 2 e 3 mob'!A:K,MATCH(A35,'Tabelas 2 e 3 mob'!A:A,0),9),"ERRO") -> E9667 | D35: 0 | E35: 1 | F35: 1 | G35: =IF(C35="Veículo(s) da própria frota.",0,INDEX(Equipamentos!B:K,MATCH(C35,Equipamentos!A:A,0),9)) -> 297.0271 | H35: 0
A36: E9644 | B36: =VLOOKUP(A36,Equipamentos!$A:$K,2,FALSE) -> Caminhão demarcador de faixas com sistema de pintura a frio - 28 kW/115 kW | C36: =IFERROR(INDEX('Tabelas 2 e 3 mob'!A:K,MATCH(A36,'Tabelas 2 e 3 mob'!A:A,0),9),"ERRO") -> E9644 | D36: 1 | E36: 1 | F36: 1 | G36: =IF(C36="Veículo(s) da própria frota.",0,INDEX(Equipamentos!B:K,MATCH(C36,Equipamentos!A:A,0),9)) -> 370.4914 | H36: 6.174856667
A37: E9592 | B37: =VLOOKUP(A37,Equipamentos!$A:$K,2,FALSE) -> Caminhão carroceria com capacidade de 15 t - 188 kW | C37: =IFERROR(INDEX('Tabelas 2 e 3 mob'!A:K,MATCH(A37,'Tabelas 2 e 3 mob'!A:A,0),9),"ERRO") -> E9592 | D37: 1 | E37: 1 | F37: 1 | G37: =IF(C37="Veículo(s) da própria frota.",0,INDEX(Equipamentos!B:K,MATCH(C37,Equipamentos!A:A,0),9)) -> 262.9005 | H37: 4.381675
A38: E9540 | B38: =VLOOKUP(A38,Equipamentos!$A:$K,2,FALSE) -> Trator sobre esteiras com lâmina - 127 kW | C38: =IFERROR(INDEX('Tabelas 2 e 3 mob'!A:K,MATCH(A38,'Tabelas 2 e 3 mob'!A:A,0),9),"ERRO") -> E9018 | D38: 0 | E38: 2 | F38: 0.5 | G38: =IF(C38="Veículo(s) da própria frota.",0,INDEX(Equipamentos!B:K,MATCH(C38,Equipamentos!A:A,0),9)) -> 521.0922 | H38: 0
A39: E9515 | B39: =VLOOKUP(A39,Equipamentos!$A:$K,2,FALSE) -> Escavadeira hidráulica sobre esteiras com caçamba com capacidade de 1,56 m³ - 118 kW | C39: =IFERROR(INDEX('Tabelas 2 e 3 mob'!A:K,MATCH(A39,'Tabelas 2 e 3 mob'!A:A,0),9),"ERRO") -> E9666 | D39: 0 | E39: 2 | F39: 1 | G39: =IF(C39="Veículo(s) da própria frota.",0,INDEX(Equipamentos!B:K,MATCH(C39,Equipamentos!A:A,0),9)) -> 412.2525 | H39: 0
A40: E9506 | B40: =VLOOKUP(A40,Equipamentos!$A:$K,2,FALSE) -> Caminhão basculante com capacidade de 6 m³ - 136 kW | C40: =IFERROR(INDEX('Tabelas 2 e 3 mob'!A:K,MATCH(A40,'Tabelas 2 e 3 mob'!A:A,0),9),"ERRO") -> E9506 | D40: 1 | E40: 1 | F40: 1 | G40: =IF(C40="Veículo(s) da própria frota.",0,INDEX(Equipamentos!B:K,MATCH(C40,Equipamentos!A:A,0),9)) -> 181.1823 | H40: 3.019705
A41: E9256 | B41: =VLOOKUP(A41,Equipamentos!$A:$K,2,FALSE) -> Equipamento para pintura com cal rebocável com dois bicos aplicadores e capacidade de 2.200 l | C41: =IFERROR(INDEX('Tabelas 2 e 3 mob'!A:K,MATCH(A41,'Tabelas 2 e 3 mob'!A:A,0),9),"ERRO") -> Veículo(s) da própria frota. | D41: 1 | E41: 2 | F41: 0 | G41: =IF(C41="Veículo(s) da própria frota.",0,INDEX(Equipamentos!B:K,MATCH(C41,Equipamentos!A:A,0),9)) -> 0 | H41: 0
A42: E9156 | B42: =VLOOKUP(A42,Equipamentos!$A:$K,2,FALSE) -> Soprador de ar costal - 2,6 kW | C42: =IFERROR(INDEX('Tabelas 2 e 3 mob'!A:K,MATCH(A42,'Tabelas 2 e 3 mob'!A:A,0),9),"ERRO") -> Veículo(s) da própria frota. | D42: 1 | E42: 2 | F42: 0 | G42: =IF(C42="Veículo(s) da própria frota.",0,INDEX(Equipamentos!B:K,MATCH(C42,Equipamentos!A:A,0),9)) -> 0 | H42: 0
A43: E9146 | B43: =VLOOKUP(A43,Equipamentos!$A:$K,2,FALSE) -> Caminhão silo com capacidade de 30 m³ - 265 kW | C43: =IFERROR(INDEX('Tabelas 2 e 3 mob'!A:K,MATCH(A43,'Tabelas 2 e 3 mob'!A:A,0),9),"ERRO") -> E9146 | D43: 1 | E43: 1 | F43: 1 | G43: =IF(C43="Veículo(s) da própria frota.",0,INDEX(Equipamentos!B:K,MATCH(C43,Equipamentos!A:A,0),9)) -> 454.0353 | H43: 7.567255
A44: E9599 | B44: =VLOOKUP(A44,Equipamentos!$A:$K,2,FALSE) -> Central de concreto com capacidade de 30 m³/h - dosadora RS | C44: =IFERROR(INDEX('Tabelas 2 e 3 mob'!A:K,MATCH(A44,'Tabelas 2 e 3 mob'!A:A,0),9),"ERRO") -> E9018 | D44: 0 | E44: 2 | F44: 1 | G44: =IF(C44="Veículo(s) da própria frota.",0,INDEX(Equipamentos!B:K,MATCH(C44,Equipamentos!A:A,0),9)) -> 521.0922 | H44: 0
A45: E9103 | B45: =VLOOKUP(A45,Equipamentos!$A:$K,2,FALSE) -> Extrusora para meio-fio de concreto - 10,44 kW | C45: =IFERROR(INDEX('Tabelas 2 e 3 mob'!A:K,MATCH(A45,'Tabelas 2 e 3 mob'!A:A,0),9),"ERRO") -> Veículo(s) da própria frota. | D45: 0 | E45: 2 | F45: 0 | G45: =IF(C45="Veículo(s) da própria frota.",0,INDEX(Equipamentos!B:K,MATCH(C45,Equipamentos!A:A,0),9)) -> 0 | H45: 0
A46: E9071 | B46: =VLOOKUP(A46,Equipamentos!$A:$K,2,FALSE) -> Transportador manual carrinho de mão com capacidade de 80 l | C46: =IFERROR(INDEX('Tabelas 2 e 3 mob'!A:K,MATCH(A46,'Tabelas 2 e 3 mob'!A:A,0),9),"ERRO") -> Veículo(s) da própria frota. | D46: 0 | E46: 2 | F46: 0 | G46: =IF(C46="Veículo(s) da própria frota.",0,INDEX(Equipamentos!B:K,MATCH(C46,Equipamentos!A:A,0),9)) -> 0 | H46: 0
A47: E9064 | B47: =VLOOKUP(A47,Equipamentos!$A:$K,2,FALSE) -> Transportador manual gerica com capacidade de 180 l | C47: =IFERROR(INDEX('Tabelas 2 e 3 mob'!A:K,MATCH(A47,'Tabelas 2 e 3 mob'!A:A,0),9),"ERRO") -> Veículo(s) da própria frota. | D47: 0 | E47: 2 | F47: 0 | G47: =IF(C47="Veículo(s) da própria frota.",0,INDEX(Equipamentos!B:K,MATCH(C47,Equipamentos!A:A,0),9)) -> 0 | H47: 0
A48: E9066 | B48: =VLOOKUP(A48,Equipamentos!$A:$K,2,FALSE) -> Grupo gerador - 14 kVA | C48: =IFERROR(INDEX('Tabelas 2 e 3 mob'!A:K,MATCH(A48,'Tabelas 2 e 3 mob'!A:A,0),9),"ERRO") -> Veículo(s) da própria frota. | D48: 0 | E48: 2 | F48: 0 | G48: =IF(C48="Veículo(s) da própria frota.",0,INDEX(Equipamentos!B:K,MATCH(C48,Equipamentos!A:A,0),9)) -> 0 | H48: 0
A49: E9535 | B49: =VLOOKUP(A49,Equipamentos!$A:$K,2,FALSE) -> Serra circular com bancada - D = 30 cm - 4 kW | C49: =IFERROR(INDEX('Tabelas 2 e 3 mob'!A:K,MATCH(A49,'Tabelas 2 e 3 mob'!A:A,0),9),"ERRO") -> Veículo(s) da própria frota. | D49: 0 | E49: 2 | F49: 0 | G49: =IF(C49="Veículo(s) da própria frota.",0,INDEX(Equipamentos!B:K,MATCH(C49,Equipamentos!A:A,0),9)) -> 0 | H49: 0
A50: E9507 | B50: =VLOOKUP(A50,Equipamentos!$A:$K,2,FALSE) -> Plotadora de recorte com computador e programa computacional | C50: =IFERROR(INDEX('Tabelas 2 e 3 mob'!A:K,MATCH(A50,'Tabelas 2 e 3 mob'!A:A,0),9),"ERRO") -> Veículo(s) da própria frota. | D50: 0 | E50: 2 | F50: 0 | G50: =IF(C50="Veículo(s) da própria frota.",0,INDEX(Equipamentos!B:K,MATCH(C50,Equipamentos!A:A,0),9)) -> 0 | H50: 0
A51: E9568 | B51: =VLOOKUP(A51,Equipamentos!$A:$K,2,FALSE) -> Furadeira de impacto de 12,5 mm - 0,80 kW | C51: =IFERROR(INDEX('Tabelas 2 e 3 mob'!A:K,MATCH(A51,'Tabelas 2 e 3 mob'!A:A,0),9),"ERRO") -> Veículo(s) da própria frota. | D51: 0 | E51: 2 | F51: 0 | G51: =IF(C51="Veículo(s) da própria frota.",0,INDEX(Equipamentos!B:K,MATCH(C51,Equipamentos!A:A,0),9)) -> 0 | H51: 0
A52: E9753 | B52: =VLOOKUP(A52,Equipamentos!$A:$K,2,FALSE) -> Grupo gerador - 23 kVA | C52: =IFERROR(INDEX('Tabelas 2 e 3 mob'!A:K,MATCH(A52,'Tabelas 2 e 3 mob'!A:A,0),9),"ERRO") -> Veículo(s) da própria frota. | D52: 0 | E52: 2 | F52: 0 | G52: =IF(C52="Veículo(s) da própria frota.",0,INDEX(Equipamentos!B:K,MATCH(C52,Equipamentos!A:A,0),9)) -> 0 | H52: 0
A53: E9623 | B53: =VLOOKUP(A53,Equipamentos!$A:$K,2,FALSE) -> Máquina de bancada guilhotina - 4,00 kW | C53: =IFERROR(INDEX('Tabelas 2 e 3 mob'!A:K,MATCH(A53,'Tabelas 2 e 3 mob'!A:A,0),9),"ERRO") -> Veículo(s) da própria frota. | D53: 0 | E53: 2 | F53: 0 | G53: =IF(C53="Veículo(s) da própria frota.",0,INDEX(Equipamentos!B:K,MATCH(C53,Equipamentos!A:A,0),9)) -> 0 | H53: 0
A54: E9622 | B54: =VLOOKUP(A54,Equipamentos!$A:$K,2,FALSE) -> Máquina de bancada universal para corte de chapa - 1,50 kW | C54: =IFERROR(INDEX('Tabelas 2 e 3 mob'!A:K,MATCH(A54,'Tabelas 2 e 3 mob'!A:A,0),9),"ERRO") -> Veículo(s) da própria frota. | D54: 0 | E54: 2 | F54: 0 | G54: =IF(C54="Veículo(s) da própria frota.",0,INDEX(Equipamentos!B:K,MATCH(C54,Equipamentos!A:A,0),9)) -> 0 | H54: 0
A55: E9678 | B55: =VLOOKUP(A55,Equipamentos!$A:$K,2,FALSE) -> Fresadora a frio - 455 kW | C55: =IFERROR(INDEX('Tabelas 2 e 3 mob'!A:K,MATCH(A55,'Tabelas 2 e 3 mob'!A:A,0),9),"ERRO") -> E9666 | D55: 1 | E55: 2 | F55: 1 | G55: =IF(C55="Veículo(s) da própria frota.",0,INDEX(Equipamentos!B:K,MATCH(C55,Equipamentos!A:A,0),9)) -> 412.2525 | H55: 13.74175
G56: TOTAL | H56: =SUM(H13:H55) -> 107.6269733
A59: CUSTO TOTAL MOBILIZAÇÃO E DESMOBILIZAÇÃO
A60: DESCRIÇÃO | B60: VALOR
A61: Custo Mobilização (km) | B61: =H56 -> 107.6269733
A62: BDI (%) | B62: =BDI!C16 -> 0.2339
A63: Custo Mobilização (R$/km) com BDI | B63: =B61+(B61*B62) -> 132.8009224
A64: Total de Frentes | B64: ='MC MODULO'!G1 -> 16
A65: Custo Mobilização (frentes x distancia) | B65: =B63*H6*B64 -> 1062407.379

Sheet Canteiro
A4: CANTEIRO DE OBRAS PARA CONSTRUÇAO RODOVIÁRIA
A5: Descrição dos serviços | B5: Tipo de container | C5: Unidade | D5: Quantidade | E5: Preço unitário (R$) | F5: Total (R$)
A6: Escritório e seção técnica
A7: =VLOOKUP(B7,'INSUMOS SINAPI'!A:E,2,0) -> LOCACAO DE CONTAINER 2,30 X 6,00 M, ALT. 2,50 M, PARA ESCRITORIO, SEM DIVISORIAS INTERNAS E SEM SANITARIO (NAO INCLUI MOBILIZACAO/DESMOBILIZACAO) | B7: 10776 | C7: und | D7: 1 | E7: =VLOOKUP(B7,'INSUMOS SINAPI'!A:E,5,0) -> 753.9 | F7: =TRUNC(D7*E7,2) -> 753.9
A8: Banheiro e vestiário
A9: =VLOOKUP(B9,'INSUMOS SINAPI'!A:E,2,0) -> LOCACAO DE CONTAINER 2,30 X 4,30 M, ALT. 2,50 M, PARA SANITARIO, COM 3 BACIAS, 4 CHUVEIROS, 1 LAVATORIO E 1 MICTORIO (NAO INCLUI MOBILIZACAO/DESMOBILIZACAO) | B9: 10777 | C9: und | D9: 1 | E9: =VLOOKUP(B9,'INSUMOS SINAPI'!A:E,5,0) -> 1095.67 | F9: =TRUNC(D9*E9,2) -> 1095.67
D10: TOTAL DO CANTEIRO | F10: =SUM(F7:F9) -> 1849.57
D11: DURAÇÃO (MESES) | E11: 12 | F11: =F10*E11 -> 22194.84
D12: BDI | F12: =BDI!C16 -> 0.2339
D13: TOTAL DO CANTEIRO (com BDI) | F13: =F11+(F11*F12) -> 27386.21308

Sheet Adm Local
A4: parcela fixa da administração local (mão de obra)
A5: Código | B5: Discriminação | C5: Unidade | D5: Quantidade | F5: Custo Unitário (R$) | H5: Custo Total (R$)
B6: Mão de Obra
B7: Gerência Técnica
B8: Geral
A9: P9955 | B9: Engenheiro chefe | C9: mês | D9: 0.5 | F9: =VLOOKUP(A9,'Pessoal Sicro'!$A$6:$G$118,6,0) -> 32610.4153 | H9: =F9*D9 -> 16305.20765
A10: P9840 | B10: Encarregado geral | C10: mês | D10: 0.5 | F10: =VLOOKUP(A10,'Pessoal Sicro'!$A$6:$G$118,6,0) -> 12668.9135 | H10: =F10*D10 -> 6334.45675
A11: P9897 | B11: Técnico de meio ambiente | C11: mês | D11: 0 | F11: =VLOOKUP(A11,'Pessoal Sicro'!$A$6:$G$118,6,0) -> 7486.1464 | H11: =F11*D11 -> 0
A12: P9948 | B12: Motorista | C12: mês | D12: 0 | F12: =VLOOKUP(A12,'Pessoal Sicro'!$A$6:$G$118,6,0) -> 4991.2365 | H12: =F12*D12 -> 0
A13: P9878 | B13: Secretária | C13: mês | D13: 0 | F13: =VLOOKUP(A13,'Pessoal Sicro'!$A$6:$G$118,6,0) -> 6062.3164 | H13: =F13*D13 -> 0
F14: Subtotal do Item 1.1 | H14: =SUM(H9:I13) -> 22639.6644
B15: Auxiliar
A16: P9946 | B16: Engenheiro auxiliar | C16: mês | D16: 1 | F16: =VLOOKUP(A16,'Pessoal Sicro'!$A$6:$G$118,6,0) -> 22294.279 | H16: =D16*F16 -> 22294.279
A17: P9903 | B17: Auxiliar técnico | C17: mês | D17: 0 | F17: =VLOOKUP(A17,'Pessoal Sicro'!$A$6:$G$118,6,0) -> 4905.9523 | H17: =D17*F17 -> 0
F18: Subtotal do Item 1.2 | H18: =SUM(H16:I17) -> 22294.279
B19: Gerência Administrativa
B20: Geral
A21: P9883 | B21: Chefe do setor administrativo | C21: mês | D21: 1 | F21: =VLOOKUP(A21,'Pessoal Sicro'!$A$6:$G$118,6,0) -> 9221.9077 | H21: =F21*D21 -> 9221.9077
A22: P9809 | B22: Encarregado administrativo | C22: mês | D22: 1 | F22: =VLOOKUP(A22,'Pessoal Sicro'!$A$6:$G$118,6,0) -> 9221.6294 | H22: =F22*D22 -> 9221.6294
A23: P9896 | B23: Porteiro | C23: mês | D23: 0 | F23: =VLOOKUP(A23,'Pessoal Sicro'!$A$6:$G$118,6,0) -> 4871.7863 | H23: =F23*D23 -> 0
A24: P9827 | B24: Vigia | C24: mês | D24: 0 | F24: =VLOOKUP(A24,'Pessoal Sicro'!$A$6:$G$118,6,0) -> 4558.0292 | H24: =F24*D24 -> 0
A25: P9948 | B25: Motorista | C25: mês | D25: 0 | F25: =VLOOKUP(A25,'Pessoal Sicro'!$A$6:$G$118,6,0) -> 4991.2365 | H25: =F25*D25 -> 0
F26: Subtotal do Item 1.3 | H26: =SUM(H21:I25) -> 18443.5371
B27: Auxiliar
A28: P9806 | B28: Auxiliar administrativo | C28: mês | D28: 1 | F28: =VLOOKUP(A28,'Pessoal Sicro'!$A$6:$G$118,6,0) -> 4303.2636 | H28: =F28*D28 -> 4303.2636
A29: P9842 | B29: Faxineiro | C29: mês | D29: 0 | F29: =VLOOKUP(A29,'Pessoal Sicro'!$A$6:$G$118,6,0) -> 4881.5743 | H29: =F29*D29 -> 0
F30: Subtotal do Item 1.4 | H30: =SUM(H28:I29) -> 4303.2636
H31: Total da Mão de Obra da Parcela Fixa | I31: =H30+H26+H18+H14 -> 67680.7441
A33: parcela fixa da administração local (veículos)
A34: Código | B34: Discriminação | C34: Unidade | D34: Quantidade | E34: Utilização Produtiva | F34: Utilização Improdutiva | G34: Custo Horário Produtivo (R$) | H34: Custo Horário Improdutivo (R$) | I34: Custo Total (R$)
A35: 2 | B35: Veículos
B36: Gerência Técnica
A37: 2.1 | B37: Geral
A38: E9093 | B38: Veículo Leve 53 kw | C38: mês | D38: 1 | E38: 44 | F38: 176 | G38: =VLOOKUP(A38,Equipamentos!$A$4:$K$541,10,0) -> 33.9097 | H38: =VLOOKUP(A38,Equipamentos!$A$4:$K$541,11,0) -> 6.0571 | I38: =((E38*G38)+(F38*H38))*D38 -> 2558.0764
A39: E9560 | B39: Ônibus coletivo - 175 kw | C39: mês | D39: 0 | E39: 44 | F39: 176 | G39: =VLOOKUP(A39,Equipamentos!$A$4:$K$541,10,0) -> 345.303 | H39: =VLOOKUP(A39,Equipamentos!$A$4:$K$541,11,0) -> 99.5778 | I39: =((E39*G39)+(F39*H39))*D39 -> 0
H40: Subtotal do Item 2 | I40: =SUM(I38:I39) -> 2558.0764
A41: 2.2 | B41: Auxiliar
A42: E9093 | B42: Veículo Leve 53 kw | C42: mês | D42: 0 | E42: 44 | F42: 176 | G42: =G38 -> 33.9097 | H42: =H38 -> 6.0571 | I42: =((E42*G42)+(F42*H42))*D42 -> 0
H43: Subtotal do Item 2 | I43: =SUM(I42) -> 0
A44: 2.3 | B44: Gerência Administrativa
A45: E9093 | B45: Veículo Leve 53 kw | C45: mês | D45: 0 | E45: 44 | F45: 176 | G45: =G38 -> 33.9097 | H45: =H38 -> 6.0571 | I45: =((E45*G45)+(F45*H45))*D45 -> 0
H46: Subtotal do Item 2 | I46: =I45 -> 0
H47: Total dos Veículos da Parcela Fixa | I47: =I46+I43+I40 -> 2558.0764
A49: Composição de custo da equipe de produção de terraplenagem
A50: Código | B50: Discriminação | C50: Unidade | D50: Quantidade | F50: Custo Unitário (R$) | H50: Custo Total (R$)
B51: Equipe de Produção de Terraplenagem
A52: 3.1 | B52: Mão de Obra
A53: ='Pessoal Sicro'!A65 -> P9892 | B53: Encarregado de produção | C53: mês | D53: 0 | F53: =VLOOKUP(A53,'Pessoal Sicro'!$A$6:$G$118,6,0) -> 33.0907 | H53: =F53*D53 -> 0
F54: Subtotal do Item 3.1 | H54: =SUM(H53:H53) -> 0
A55: Código | B55: Discriminação | C55: Unidade | D55: Quantidade | E55: Utilização Produtiva | F55: Utilização Improdutiva | G55: Custo Horário Produtivo (R$) | H55: Custo Horário Improdutivo (R$) | I55: Custo Total (R$)
A56: 3.2 | B56: Veículos
B57: Veículo Leve 53 kw | C57: mês | D57: 0 | E57: 44 | F57: 176 | G57: =G38 -> 33.9097 | H57: =H38 -> 6.0571 | I57: =((E57*G57)+(F57*H57))*D57 -> 0
H58: Subtotal do Item 3.2 | I58: =SUM(I57:I57) -> 0
H59: Total da Equipe de Produção de Terraplenagem | I59: =I58+H54 -> 0
A61: Composição de custo da equipe de produção de pavimentação
A62: Código | B62: Discriminação | C62: Unidade | D62: Quantidade | F62: Custo Unitário (R$) | H62: Custo Total (R$)
B63: Equipe de Produção de Pavimentação
A64: 3.1 | B64: Mão de Obra
A65: ='Pessoal Sicro'!A70 -> P9901 | B65: Encarregado de produção | C65: mês | D65: 1 | F65: =VLOOKUP(A65,'Pessoal Sicro'!$A$6:$G$118,6,0) -> 8817.5745 | H65: =F65*D65 -> 8817.5745
F66: Subtotal do Item 3.1 | H66: =SUM(H65:H65) -> 8817.5745
A67: Código | B67: Discriminação | C67: Unidade | D67: Quantidade | E67: Utilização Produtiva | F67: Utilização Improdutiva | G67: Custo Horário Produtivo (R$) | H67: Custo Horário Improdutivo (R$) | I67: Custo Total (R$)
A68: 3.2 | B68: Veículos
B69: Veículo Leve 53 kw | C69: mês | D69: 1 | E69: 44 | F69: 176 | G69: =$G$38 -> 33.9097 | H69: =$H$38 -> 6.0571 | I69: =((E69*G69)+(F69*H69))*D69 -> 2558.0764
H70: Subtotal do Item 3.2 | I70: =SUM(I69:I69) -> 2558.0764
H71: Total da Equipe de Produção de Pavimentação | I71: =I70+H66 -> 11375.6509
A73: Composição de custo da equipe de produção de drenagem
A74: Código | B74: Discriminação | C74: Unidade | D74: Quantidade | F74: Custo Unitário (R$) | H74: Custo Total (R$)
B75: Equipe de Produção de Pavimentação
A76: 3.1 | B76: Mão de Obra
A77: ='Pessoal Sicro'!$A$70 -> P9901 | B77: Encarregado de produção | C77: mês | D77: 1 | F77: =VLOOKUP(A77,'Pessoal Sicro'!$A$6:$G$118,6,0) -> 8817.5745 | H77: =F77*D77 -> 8817.5745
F78: Subtotal do Item 3.1 | H78: =SUM(H77:H77) -> 8817.5745
A79: Código | B79: Discriminação | C79: Unidade | D79: Quantidade | E79: Utilização Produtiva | F79: Utilização Improdutiva | G79: Custo Horário Produtivo (R$) | H79: Custo Horário Improdutivo (R$) | I79: Custo Total (R$)
A80: 3.2 | B80: Veículos
B81: Veículo Leve 53 kw | C81: mês | D81: 1 | E81: 44 | F81: 176 | G81: =$G$38 -> 33.9097 | H81: =$H$38 -> 6.0571 | I81: =((E81*G81)+(F81*H81))*D81 -> 2558.0764
H82: Subtotal do Item 3.2 | I82: =SUM(I81:I81) -> 2558.0764
H83: Total da Equipe de Produção de Pavimentação | I83: =I82+H78 -> 11375.6509
A85: Composição de custo da equipe de produção de sinalização
A86: Código | B86: Discriminação | C86: Unidade | D86: Quantidade | F86: Custo Unitário (R$) | H86: Custo Total (R$)
B87: Equipe de Produção de Pavimentação
A88: 3.1 | B88: Mão de Obra
A89: ='Pessoal Sicro'!$A$70 -> P9901 | B89: Encarregado de produção | C89: mês | D89: 1 | F89: =VLOOKUP(A89,'Pessoal Sicro'!$A$6:$G$118,6,0) -> 8817.5745 | H89: =F89*D89 -> 8817.5745
F90: Subtotal do Item 3.1 | H90: =SUM(H89:H89) -> 8817.5745
A91: Código | B91: Discriminação | C91: Unidade | D91: Quantidade | E91: Utilização Produtiva | F91: Utilização Improdutiva | G91: Custo Horário Produtivo (R$) | H91: Custo Horário Improdutivo (R$) | I91: Custo Total (R$)
A92: 3.2 | B92: Veículos
B93: Veículo Leve 53 kw | C93: mês | D93: 1 | E93: 44 | F93: 176 | G93: =$G$38 -> 33.9097 | H93: =$H$38 -> 6.0571 | I93: =((E93*G93)+(F93*H93))*D93 -> 2558.0764
H94: Subtotal do Item 3.2 | I94: =SUM(I93:I93) -> 2558.0764
H95: Total da Equipe de Produção de Pavimentação | I95: =I94+H90 -> 11375.6509
A97: Composição de custo da equipe topografia
A98: Código | B98: Discriminação | C98: Unidade | D98: Quantidade | F98: Custo Unitário (R$) | H98: Custo Total (R$)
B99: Equipe de Topografia
A100: 3.1 | B100: Mão de Obra
A101: P9949 | B101: Topográfo | C101: mês | D101: 1 | F101: =VLOOKUP(A101,'Pessoal Sicro'!$A:$G,6,0) -> 6588.6316 | H101: =F101*D101 -> 6588.6316
A102: P9950 | B102: Auxiliar de topografia | C102: mês | D102: 1 | F102: =VLOOKUP(A102,'Pessoal Sicro'!$A$6:$G$118,6,0) -> 5925.5096 | H102: =F102*D102 -> 5925.5096
F103: Subtotal do Item 3.1 | H103: =SUM(H101:I102) -> 12514.1412
A104: Código | B104: Discriminação | C104: Unidade | D104: Quantidade | E104: Utilização Produtiva | F104: Utilização Improdutiva | G104: Custo Horário Produtivo (R$) | H104: Custo Horário Improdutivo (R$) | I104: Custo Total (R$)
A105: 3.2 | B105: Veículos
B106: Veículo Leve 53 kw | C106: mês | D106: 1 | E106: 44 | F106: 176 | G106: =G38 -> 33.9097 | H106: =H38 -> 6.0571 | I106: =((E106*G106)+(F106*H106))*D106 -> 2558.0764
H107: Subtotal do Item 3.2 | I107: =SUM(I106:I106) -> 2558.0764
H108: Total da Equipe de Produção de Topografia | I108: =I107+H103 -> 15072.2176
A110: Composição de custo do setor de medicina e segurança do trabalho
A111: Código | B111: Discriminação | C111: Unidade | D111: Quantidade | F111: Custo Unitário (R$) | H111: Custo Total (R$)
A112: 4 | B112: Setor de Medicina e Segurança do Trabalho
A113: P9876 | B113: Técnico de segurança do trabalho | C113: mês | D113: 1 | F113: =VLOOKUP(A113,'Pessoal Sicro'!$A$6:$G$118,6,0) -> 7454.1465 | H113: =F113*D113 -> 7454.1465
A114: P9864 | B114: Engenheiro de segurança do trabalho | C114: mês | D114: 0 | F114: =VLOOKUP(A114,'Pessoal Sicro'!$A$6:$G$118,6,0) -> 22722.0709 | H114: =F114*D114 -> 0
A115: P9851 | B115: Médico do trabalho | C115: mês | D115: 0 | F115: =VLOOKUP(A115,'Pessoal Sicro'!$A$6:$G$118,6,0) -> 18141.2209 | H115: =F115*D115 -> 0
A116: P9951 | B116: Médico de câmara hiperbárica | C116: mês | D116: 0 | F116: =VLOOKUP(A116,'Pessoal Sicro'!$A$6:$G$118,6,0) -> 20089.9383 | H116: =F116*D116 -> 0
F117: Subtotal do Item 4 | H117: =SUM(H113:I116) -> 7454.1465
A119: Parcela Variável - Composição de custo da equipe de frente de serviço
A120: Código | B120: Discriminação | C120: Unidade | D120: Quantidade | F120: Custo Unitário (R$) | H120: Custo Total (R$)
A121: 5 | B121: Equipe de Frente de Serviço | C121: equipexmês
A122: P9875 | B122: Encarregado de Turma | C122: mês | D122: 1 | F122: =VLOOKUP(A122,'Pessoal Sicro'!$A$6:$G$118,6,0) -> 5746.4645 | H122: =F122*D122 -> 5746.4645
A123: P9804 | B123: Apontador | C123: mês | D123: 0.5 | F123: =VLOOKUP(A123,'Pessoal Sicro'!$A$6:$G$118,6,0) -> 4223.8628 | H123: =F123*D123 -> 2111.9314
F124: Subtotal do Item 5 | H124: =SUM(H122:I123) -> 7858.3959
A126: Parcela Variável - Composição de custo da equipe de frente de serviço (Terraplenagem) - Somente Compactação
A127: Código | B127: Discriminação | C127: Unidade | D127: Quantidade | F127: Produção Horária (und/h) | H127: Efs
A128: 5.1 | B128: Equipe de Frente de Serviço | C128: equipexmês
C129: mês | H129: =(D129)/(F129*182.49) -> 
C130: mês | H130: =(D130)/(F130*182.49) -> 
C131: mês | H131: =(D131)/(F131*182.49) -> 
F132: Total de Equipes para Terraplenagem | H132: =SUM(H131:I131) -> 
A134: Parcela Variável - Composição de custo da acompanhamento das frentes de serviço de pavimentação
A135: Código | B135: Discriminação | C135: Unidade | D135: Quantidade | F135: Produção Horária (und/h) | H135: Efs
A136: 5.2 | B136: Equipe de Frente de Serviço | C136: equipe x mês
A137: 4011463 | B137: =VLOOKUP(A137,'SINTÉTICO SICRO'!$A$4:$D$6373,2,0) -> Concreto asfáltico - faixa C - areia e brita comerciais | C137: m² | D137: ='RESUMO MODULO TOTAL'!J19 -> 26880 | F137: 99.6 | H137: =(D137)/(F137*182.49) -> 1.478872914
A138: 4011353 | B138: =VLOOKUP(A138,'SINTÉTICO SICRO'!$A$4:$D$6373,2,0) -> Pintura de ligação | C138: m² | D138: ='RESUMO MODULO TOTAL'!J20 -> 224000 | F138: 1125 | H138: 1.091079572
A139: 4915663 | B139: =VLOOKUP(A139,'SINTÉTICO SICRO'!$A$4:$D$6373,2,0) -> Fresagem descontínua de revestimento asfáltico - espessura de 5 cm | C139: m² | D139: ='RESUMO MODULO TOTAL'!J21 -> 1120 | F139: 1500 | H139: 0.004091548395
A140: 4915618 | B140: =VLOOKUP(A140,'SINTÉTICO SICRO'!$A$4:$D$6373,2,0) -> Recomposição de camada granular do pavimento com material de jazida | C140: m³ | D140: ='RESUMO MODULO TOTAL'!J22 -> 22400 | F140: 120.7 | H140: 1.016954862
F141: Total de Equipes para Pavimentação | H141: =SUM(H137:I140) -> 3.590998897
A143: Parcela Variável - Composição de custo da acompanhamento das frentes de serviço de drenagem
A144: Código | B144: Discriminação | C144: Unidade | D144: Quantidade | F144: Efsdu | H144: Efs
A145: 5.3 | B145: Frentes de Serviço para Drenagem | C145: equipe x mês
A146: 4915777 | B146: =VLOOKUP(A146,'SINTÉTICO SICRO'!$A$4:$D$6373,2,0) -> Reassentamento manual de meio-fio com material arrancado da pista | C146: m | D146: ='RESUMO MODULO TOTAL'!J34 -> 6400 | F146: 0.00021 | H146: =D146*F146 -> 1.344
A147: 4915708 | B147: =VLOOKUP(A147,'SINTÉTICO SICRO'!$A$4:$D$6373,2,0) -> Limpeza de sarjeta e meio-fio | C147: m | D147: ='RESUMO MODULO TOTAL'!J35 -> 64000 | F147: 0.00021 | H147: =D147*F147 -> 13.44
A148: 4915724 | B148: =VLOOKUP(A148,'SINTÉTICO SICRO'!$A$4:$D$6373,2,0) -> Caiação mecanizada com fixador de cal | C148: m | D148: ='RESUMO MODULO TOTAL'!J36 -> 7680 | F148: 0.00021 | H148: =D148*F148 -> 1.6128
F149: Total de Equipes para Drenagem | H149: =H148 -> 1.6128
A151: Parcela Variável - Composição de custo da acompanhamento das frentes de serviço de sinalização
A152: Código | B152: Discriminação | C152: Unidade | D152: Quantidade | F152: Produção Horária (und/h) | H152: Efs
A153: 5.4 | B153: Frentes de Serviço para Sinalização | C153: equipe x mês
A154: 5213440 | B154: =VLOOKUP(A154,'SINTÉTICO SICRO'!$A$4:$D$6373,2,0) -> Placa de regulamentação em aço D = 0,60 m - película retrorrefletiva tipo I + SI - fornecimento e implantação | C154: Unidade | D154: ='RESUMO MODULO TOTAL'!J29 -> 96 | F154: 3 | H154: =0.2*((D154)/(F154*182.49)) -> 0.03507041482
A155: 5213464 | B155: =VLOOKUP(A155,'SINTÉTICO SICRO'!$A$4:$D$6373,2,0) -> Placa de advertência em aço, lado de 0,60 m - película retrorrefletiva tipo I + SI - fornecimento e implantação | C155: Unidade | D155: ='RESUMO MODULO TOTAL'!J30 -> 96 | F155: 4.1 | H155: =0.2*((D155)/(F155*182.49)) -> 0.02566127913
A156: 5213863 | B156: =VLOOKUP(A156,'SINTÉTICO SICRO'!$A$4:$D$6373,2,0) -> Suporte metálico galvanizado para placa de advertência ou regulamentação - lado ou diâmetro de 0,60 m - fornecimento e implantação | C156: Unidade | D156: ='RESUMO MODULO TOTAL'!J31 -> 192 | F156: 4.1 | H156: =0.2*((D156)/(F156*182.49)) -> 0.05132255827
A157: 5213400 | B157: =VLOOKUP(A157,'SINTÉTICO SICRO'!$A$4:$D$6373,2,0) -> Pintura de faixa com tinta acrílica - espessura de 0,4 mm | C157: m² | D157: ='RESUMO MODULO TOTAL'!J32 -> 7680 | F157: 177.07 | H157: 0.04753430596
F158: Total de Equipes para Sinalização | H158: =SUM(H154:I157) -> 0.1595885582 | J158: =H158+H149 -> 1.772388558
A160: 3. PARCELA VARIÁVEL - EQUIPE DE CONTROLE TECNOLÓGICO
A161: LABORATÓRIO DE SOLOS
A162: Item | B162: Discriminação | F162: Unidade | G162: Quantidade | H162: Custo Unitário (R$) | I162: Custo Total (R$)
B163: Laboratório de Solos (equipe x mês)
B164: Mão de Obra
A165: P9858 | B165: Laboratorista | F165: func./mês | G165: 1 | H165: =VLOOKUP(A165,'Pessoal Sicro'!$A$6:$G$118,6,0) -> 6184.3859 | I165: =TRUNC(G165*H165,2) -> 6184.38
A166: P9833 | B166: Auxiliar de laboratório | F166: func./mês | G166: 1 | H166: =VLOOKUP(A166,'Pessoal Sicro'!$A$6:$G$118,6,0) -> 5893.9266 | I166: =TRUNC(G166*H166,2) -> 5893.92
H167: Subtotal do Item | I167: =SUM(I165:I166) -> 12078.3
A168: Item | B168: Discriminação | C168: Und | D168: Quant | E168: Utilização Produtiva | F168: Utilização Improdutiva | G168: Horário Produtivo (R$) | H168: Horário Improdutivo (R$) | I168: Total (R$)
B169: Equipe de Controle Tecnológico
B170: Veículos
A171: E9125 | B171: Van furgão a diesel - 93 kW | C171: veic./mês | D171: 0.5 | E171: 44 | F171: 176 | G171: =VLOOKUP(A171,Equipamentos!$A$4:$K$533,10,0) -> 81.0567 | H171: =VLOOKUP(A171,Equipamentos!$A$4:$K$533,11,0) -> 44.5745 | I171: =D171*((E171*G171)+(F171*H171)) -> 5705.8034
H172: Subtotal do Item | I172: =SUM(I171:I171) -> 5705.8034
H173: Total da Equipe do Laboratório de Solos | I173: =I167+I172 -> 17784.1034
A175: 3. PARCELA VARIÁVEL - EQUIPE DE CONTROLE TECNOLÓGICO
A176: LABORATÓRIO DE ASFALTOS
A177: Item | B177: Discriminação | F177: Unidade | G177: Quantidade | H177: Custo Unitário (R$) | I177: Custo Total (R$)
B178: Laboratório de Solos (equipe x mês)
B179: Mão de Obra
A180: P9858 | B180: Laboratorista | F180: func./mês | G180: 1 | H180: =VLOOKUP(A180,'Pessoal Sicro'!$A$6:$G$118,6,0) -> 6184.3859 | I180: =TRUNC(G180*H180,2) -> 6184.38
A181: P9833 | B181: Auxiliar de laboratório | F181: func./mês | G181: 1 | H181: =VLOOKUP(A181,'Pessoal Sicro'!$A$6:$G$118,6,0) -> 5893.9266 | I181: =TRUNC(G181*H181,2) -> 5893.92
H182: Subtotal do Item | I182: =SUM(I180:I181) -> 12078.3
A183: Item | B183: Discriminação | C183: Und | D183: Quant | E183: Utilização Produtiva | F183: Utilização Improdutiva | G183: Horário Produtivo (R$) | H183: Horário Improdutivo (R$) | I183: Total (R$)
B184: Equipe de Controle Tecnológico
B185: Veículos
A186: E9125 | B186: Van furgão a diesel - 93 kW | C186: veic./mês | D186: 0.5 | E186: 44 | F186: 176 | G186: =VLOOKUP(A186,Equipamentos!$A$4:$K$533,10,0) -> 81.0567 | H186: =VLOOKUP(A186,Equipamentos!$A$4:$K$533,11,0) -> 44.5745 | I186: =D186*((E186*G186)+(F186*H186)) -> 5705.8034
H187: Subtotal do Item | I187: =SUM(I186:I186) -> 5705.8034
H188: Total da Equipe do Laboratório de Asfaltos | I188: =I182+I187 -> 17784.1034
A190: Equipes de laboratório de solos para pavimentação
A191: Item | B191: Discriminação | F191: Und | G191: Quant | H191: QE | I191: Els
A192: - | B192: - | F192: - | G192: - | H192: - | I192: -
A193: - | B193: - | F193: - | G193: - | H193: - | I193: -
H194: Total de equipes de Laboratório de Solos para Pavimentação | I194: -
A196: Equipes de laboratório de Asfalto
A197: Item | B197: Discriminação | F197: Und | G197: Quant | H197: QE | I197: Ela
A198: 4011463 | B198: =VLOOKUP(A198,'SINTÉTICO SICRO'!A:D,2,0) -> Concreto asfáltico - faixa C - areia e brita comerciais | F198: =VLOOKUP(A198,'SINTÉTICO SICRO'!A:D,3,0) -> t | G198: =VLOOKUP(A198,'RESUMO MODULO TOTAL'!D:J,7,FALSE) -> 26880 | H198: 9000 | I198: =G198/H198 -> 2.986666667
A199: 4011353 | B199: =VLOOKUP(A199,'SINTÉTICO SICRO'!A:D,2,0) -> Pintura de ligação | F199: =VLOOKUP(A199,'SINTÉTICO SICRO'!A:D,3,0) -> m² | G199: =VLOOKUP(A199,'RESUMO MODULO TOTAL'!D:J,7,FALSE) -> 224000 | H199: 1610000 | I199: =G199/H199 -> 0.1391304348
H200: Total de equipes de Laboratório de Asfaltos | I200: =SUM(I198:I199) -> 3.125797101
A202: manutenção do canteiro de obras e acampamentos
A203: Código | B203: Discriminação | C203: Unidade | D203: Quantidade | F203: Custo Unitário (R$) | H203: Custo Total (R$)
B204: Manutenção do Canteiro de Obras e Acampamentos
A205: 6.1 | B205: Mão de Obra
A206: P9952 | B206: Pedreiro | C206: mês | D206: 0 | F206: =VLOOKUP(A206,'Pessoal Sicro'!$A$6:$G$118,6,0) -> 4744.9333 | H206: =F206*D206 -> 0
A207: P9954 | B207: Servente | C207: mês | D207: 0 | F207: =VLOOKUP(A207,'Pessoal Sicro'!$A$6:$G$118,6,0) -> 3812.1954 | H207: =F207*D207 -> 0
A208: P9953 | B208: Eletricista | C208: mês | D208: 0 | F208: =VLOOKUP(A208,'Pessoal Sicro'!$A$6:$G$118,6,0) -> 5185.6703 | H208: =F208*D208 -> 0
F209: Subtotal do Item 6.1 | H209: =SUM(H206:I208) -> 0
A211: Código | B211: Discriminação | C211: Unidade | D211: Quantidade | F211: Custo Produtivo (R$) | H211: Custo Total (R$)
A212: 6.2 | B212: Equipamentos
B213: Caminhão guindauto de 6 toneladas | C213: h/mês | D213: 0 | H213: =F213*D213 -> 0
B214: Caminhão tanque de 8.000 litros | C214: h/mês | D214: 0 | H214: =F214*D214 -> 0
A215: E9524 | B215: Motoniveladora | C215: h/mês | D215: 0 | F215: =VLOOKUP(A215,Equipamentos!$A$4:$K$541,10,0) -> 284.811 | H215: =F215*D215 -> 0
F216: Subtotal do Item 6.2 | H216: =SUM(H213:I215) -> 0
G217: Total da Manutenção do Canteiro de Obras e Acampamentos | H217: =H216+H209 -> 0
A221: Resumo das parcelas de administração local
A222: Código | B222: Discriminação | C222: Unidade | D222: Quantidade | F222: Custo Unitário (R$) | H222: Custo Total (R$)
B223: Parcela Fixa
B224: Mão de Obra | C224: mês | D224: 5 | F224: =H14+H18+H26+H30 -> 67680.7441 | H224: =F224*D224 -> 338403.7205
... 27 more rows

Sheet Projeto Executivo
A4: COMPOSIÇAO PREÇO PROJETO EXECUTIVO
A6: DISCRIMINAÇAO | F6: Pr. Unit. | G6: Pr. Total
A8: A· EOUIPE TECNICA | G8: =G9+G12 -> 14502.07718
B9: A. 1 - Pessoal de Nível Superior | C9: Unidade | D9: Quantitativo | E9: SICRO e Rel.Custos Gerais | G9: =G10+G11 -> 11338.03988
B10: Engenheiro | C10: mês | D10: 0.4 | E10: P9812 | F10: =VLOOKUP(E10,'Pessoal Sicro'!A:G,6,0) -> 25050.7839 | G10: =F10*D10 -> 10020.31356
B11: Topógrafo | C11: mês | D11: 0.2 | E11: P9949 | F11: =VLOOKUP(E11,'Pessoal Sicro'!A:G,6,0) -> 6588.6316 | G11: =F11*D11 -> 1317.72632
B12: A.2 - Pessoal de Nível Técnico e Aux. | G12: =G13+G14 -> 3164.037302
B13: Auxiliar de topógrafo | C13: mês | D13: 0.12 | E13: P9950 | F13: =VLOOKUP(E13,'Pessoal Sicro'!A:G,6,0) -> 5925.5096 | G13: =F13*D13 -> 711.061152
B14: Auxiliar Técnico/Assistente de Engenharia | C14: mês | D14: 0.5 | E14: P9903 | F14: =VLOOKUP(E14,'Pessoal Sicro'!A:G,6,0) -> 4905.9523 | G14: =F14*D14 -> 2452.97615
A15: B - ENCARGOS SOCIAIS | G15: =G16 -> 0
B16: =CONCATENATE("Taxas ",'ENC. SOCIAIS'!E51,"%") -> Taxas % | C16: JÁ INCLUSAS EM "A"
A17: C - DESPESAS GERAIS | G17: =G18+G20+G19 -> 4884.029356
B18: C.1 - MATERIAIS DE CONSUMO | C18: Estimativa % como referência de equipe técnica com encargos sociais | D18: 0.03 | F18: =G8+G16 -> 14502.07718 | G18: =F18*D18 -> 435.0623155
B19: C.2 - VEÍCULOS (Veículo leve picape 4 x 4 com capacidade de 1,10 t - 147 kW) | C19: h | D19: 40 | E19: E9684 | F19: =VLOOKUP(E19,Equipamentos!A:K,10,0) -> 106.1085 | G19: =F19*D19 -> 4244.34
B20: C.3 - Estação total eletrônica com alcance máximo de 3.000 m | C20: h | D20: 40.34444801 | E20: E9553 | F20: =VLOOKUP(E20,Equipamentos!A:K,10,0) -> 5.072 | G20: =F20*D20 -> 204.6270403
A21: D - ENSAIOS | G21: =SUM(G22:G25) -> 3057.595972
B22: Laboratorista | C22: mês | D22: 0.2 | E22: P9858 | F22: =VLOOKUP(E22,'Pessoal Sicro'!A:G,6,0) -> 6184.3859 | G22: =F22*D22 -> 1236.87718
B23: Auxiliar de Laboratório | C23: mês | D23: 0.12 | E23: P9833 | F23: =VLOOKUP(E23,'Pessoal Sicro'!A:G,6,0) -> 5893.9266 | G23: =F23*D23 -> 707.271192
B24: Laboratório de solos | C24: mês | D24: 0.12 | E24: B8957 | F24: =VLOOKUP(E24,'Tabelas 1 e 2'!C14:G23,5,0) -> 4073.25 | G24: =F24*D24 -> 488.79
B25: Laboratório de asfalto | C25: mês | D25: 0.12 | E25: B8955 | F25: =VLOOKUP(E25,'Tabelas 1 e 2'!C15:G24,5,0) -> 5205.48 | G25: =F25*D25 -> 624.6576
A26: I - SOMA (A+B+C+D) | G26: =G8+G15+G17+G21 -> 22443.70251
A27: II - CUSTOS ADMINISTRATIVOS | D27: =BDI!C17 -> 0 | G27: =D27*G26 -> 0
A28: TOTAL | G28: =G26+G27 -> 22443.70251
F29: Por m²: | G29: =G28/('MC MODULO'!C1*'MC MODULO'!C2) -> 1.603121608

Sheet CONSUMO DE MAT. B TOTAL
A6: CONSUMO DO MATERIAL BETUMINOSO TOTAL
A8: TRECHO | C8: QUANTIDADES | L8: MAT. BETUMINOSO
A9: Inicio (km) | B9: Fim (km) | C9: Extensão (m) | D9: Largura (m) | E9: Espess. (m) | F9: Área (m2) | G9: Volume (m3) | H9: Densidade (t/m3) | I9: Massa (t) | J9: Unid | K9: Quant. | L9: Tipo | M9: Consumo Taxa de Aplicação | N9: Unid. | O9: Quant.
E11: 1 | O11: =ROUND((F11*1.3)/1000,2) -> 0
E12: 1 | G12: =F12*E12 -> 0 | O12: =ROUND((F12*1.2)/1000,2) -> 0
A13: PINTURA DE LIGAÇÃO
E14: 1 | F14: ='MC MODULO'!H39 -> 224000 | G14: =F14*E14 -> 224000 | L14: RR-1C | M14: 0,4 l/m2 | N14: t | O14: =ROUND((F14*0.45)/1000,2) -> 100.8
A15: CBUQ FAIXA "C"
G16: =F16*E16 -> 0 | I16: ='MC MODULO'!H33 -> 26880 | L16: CAP-50/70 | M16: 0.06449 | N16: t | O16: =ROUND((I16*64.49)/1000,2) -> 1733.49
G18: =F18*E18 -> 0

Sheet CPU CODEVASF
A4: =#REF! -> 
F5: BDI %: | G5: =BDI!C16 -> 0.2339
E6: Encargos Sociais: | G6: Horista | H6: Mensalista
G7: ='ENC. SOCIAIS'!E47/100 -> 1.089 | H7: ='ENC. SOCIAIS'!F47/100 -> 0.6779
A8: COMPOSIÇÕES DE CUSTO UNITARIO
A9: CPU-13 | B9: CODEVASF | D9: AQUISIÇÃO DE CIMENTO ASFALTICO CAP 50/70 | E9: t | F9: COEF. | G9: PRECO UNITÁRIO (R$) | H9: TOTAL (R$)
D11: CIMENTO ASFALTICO 50/70 | E11: t | F11: 1 | G11: =RESUMO_Transp!V14 -> 4221.863193 | H11: =F11*G11 -> 4221.863193
E12: Sub total: | H12: =SUM(H11) -> 4221.863193
F13: BDI | G13: 0.15 | H13: =H12*G13 -> 633.2794789
G14: Total Serviços: | H14: =H12+H13 -> 4855.142672
E15: =A9 -> CPU-13 | F15: PREÇO UNITÁRIO TOTAL: | H15: =H14 -> 4855.142672 | I15: =H12 -> 4221.863193
A18: CPU-15 | B18: CODEVASF | D18: AQUISIÇÃO DE EMULSÃO ASFÁLTICA RR-1C | E18: t | F18: COEF. | G18: PRECO UNITÁRIO (R$) | H18: TOTAL (R$)
D20: EMULSÃO ASFÁLTICA RR-1C | E20: t | F20: 1 | G20: =RESUMO_Transp!V33 -> 3081.851513 | H20: =F20*G20 -> 3081.851513
E21: Sub total: | H21: =SUM(H20) -> 3081.851513
F22: BDI | G22: 0.15 | H22: =H21*G22 -> 462.277727
G23: Total Serviços: | H23: =H21+H22 -> 3544.12924
E24: =A18 -> CPU-15 | F24: PREÇO UNITÁRIO TOTAL: | H24: =H23 -> 3544.12924 | I24: =H21 -> 3081.851513
A27: CPU-17 | B27: CODEVASF | D27: TRANSPORTE DE CIMENTO ASFALTICO CAP 50/70 | E27: t | F27: COEF. | G27: PRECO UNITÁRIO (R$) | H27: TOTAL (R$)
D29: TRANSPORTE DE CIMENTO ASFALTICO 50/70 | E29: t | F29: 1 | G29: =RESUMO_Transp!U14 -> 404.17 | H29: =F29*G29 -> 404.17
E30: Sub total: | H30: =SUM(H29) -> 404.17
F31: BDI | G31: 0.15 | H31: =ROUND(H30*G31,2) -> 60.63
G32: Total Serviços: | H32: =H30+H31 -> 464.8
E33: =A27 -> CPU-17 | F33: PREÇO UNITÁRIO TOTAL: | H33: =H32 -> 464.8 | I33: =H30 -> 404.17
A36: CPU-19 | B36: CODEVASF | D36: TRANSPORTE DE EMULSÃO ASFÁLTICA RR-1C | E36: UNID | F36: COEF. | G36: PRECO UNITÁRIO (R$) | H36: TOTAL (R$)
D38: TRANSPORTE DE EMULSÃO ASFÁLTICA RR-1C | E38: t | F38: 1 | G38: =RESUMO_Transp!$U$33 -> 305.4952381 | H38: =F38*G38 -> 305.4952381
E39: Sub total: | H39: =SUM(H38) -> 305.4952381
F40: BDI | G40: 0.15 | H40: =H39*G40 -> 45.82428571
G41: Total Serviços: | H41: =H39+H40 -> 351.3195238
E42: =A36 -> CPU-19 | F42: PREÇO UNITÁRIO TOTAL: | H42: =H41 -> 351.3195238 | I42: =H39 -> 305.4952381
A44: CPU-20 | B44: CODEVASF | D44: CONTROLE TECNOLÓGICO - PROJETO | E44: m² | F44: COEF. | G44: PRECO UNITÁRIO (R$) | H44: TOTAL (R$)
A46: Insumo | B46: SICRO | C46: P9858 | D46: Laboratorista | E46: mês | F46: 1.071428571e-05 | G46: 7199.4 | H46: =F46*G46 -> 0.07713642857
A47: Composição | B47: SICRO | C47: P9833 | D47: Auxiliar de Laboratório | E47: mês | F47: 1.071428571e-05 | G47: 4988 | H47: 0.05344285714
A48: Composição | B48: SICRO | C48: *B8957 | D48: Laboratório de Solos | E48: mês | F48: 1.071428571e-05 | G48: 4073.25 | H48: 0.04364196429
A49: Composição | B49: SICRO | C49: *B8955 | D49: Laboratório de Asfalto | E49: mês | F49: 1.071428571e-05 | G49: 5205.48 | H49: 0.055773
B50: *Relatório de Custos Gerais do DNIT, página 1 | E50: Sub total: | H50: =SUM(H46:H49) -> 0.22999425
F51: BDI | G51: =BDI!$C$16 -> 0.2339 | H51: =G51*H50 -> 0.05379565507
E52: CPU-20 | F52: PREÇO UNITÁRIO TOTAL: | H52: =H50+H51 -> 0.2837899051 | I52: =H50 -> 0.22999425

Sheet BDI
A4: DETALHAMENTO DO BDI - SEM DESONERAÇÃO
A5: =#REF! -> 
A6: Descrição dos serviços | B6: Preço de Venda (%) | C6: Custo Direto (%)
A7: ADMINISTRAÇÃO CENTRAL | C7: 0.06
A8: CUSTOS FINANCEIROS | B8: 0.0102
A9: RISCOS | B9: 0.0025
A10: SEGUROS E GARANTIAS CONTRATUAIS | B10: 0.005
A11: LUCRO OPERACIONAL | C11: 0.07
A12: PIS | B12: 0.0065
A13: COFINS | B13: 0.03
A14: ISSQN | B14: 0.03
A15: Contribuição Previdenciaria | B15: 0
B16: BDI | C16: =ROUND(((1+(C7+C11))/(1-(B8+B9+B10+B12+B13+B14+B15))-1),4) -> 0.2339
A17: Observação: | B17: O percentual de ISSQN aqui utilizado consiste apenas em um referencial médio.
B18: O valor real do ISSQN a ser adotado deve ser aquele proveniente das alíquotas dos municípios situados na área de influência das obras.
A54: DETALHAMENTO DO BDI DIFERENCIADO - SEM DESONERAÇÃO
A55: EXECUÇÃO DE SERVIÇOS DE PAVIMENTAÇÃO COM CONCRETO BETUMINOSO USINADO A QUENTE (CBUQ), EM VIAS DE MUNICÍPIOS DIVERSOS INSERIDOS NA ÁREA DE ATUAÇÃO DA CIDEVASF, NO ESTADO DO RIO GRANDE DO NORTE - LOTE 1
A56: DESCRIÇÃO DOS SERVIÇOS | B56: PREÇO DE VENDA (%) | C56: CUSTO DIRETO (%)
A57: ADMINISTRAÇÃO CENTRAL | C57: 0.0377
A58: DESPESA FINANCEIRAS | B58: 0.0102
A59: SEGUROS E GARANTIAS CONTRATUAIS | B59: 0.0025
A60: RISCOS | B60: 0.005
A61: LUCRO OPERACIONAL | C61: 0.05
A62: PIS | B62: 0.0065
A63: COFINS | B63: 0.03
A64: ISSQN | B64: 0
A65: Contribuição Previdenciaria | B65: 0
B66: BDI | C66: =ROUND((1+(C57+C61))/(1-(B58+B59+B60+B62+B63+B64+B65))-1,4) -> 0.15
A67: Fonte da composição, valores de referência e fórmula do BDI: Instrução Normativa N° 62/DNIT SEDE

Sheet ENC. SOCIAIS
A5: ='RESUMO MODULO TOTAL'!B1 -> CONTRATAÇÃO DE SERVIÇOS DE EXECUÇÃO DE CAPA ASFÁLTICA COM CONCRETO BETUMINOSO USINADO A QUENTE (CBUQ) EM VIAS DE DIVERSOS MUNICÍPIOS INSERIDOS NA ÁREA DE ATUAÇÃO DA 16ª SUPERINTENDÊNCIA REGIONAL DA CODEVASF, NO ESTADO DE MINAS GERAIS - REGIÃO NOROESTE
A7: DETALHAMENTO DOS ENCARGOS SOCIAIS (%)
A8: VIGÊNCIA A PARTIR DE 12/2022 | C8: COM DESONERAÇÃO | E8: SEM DESONERAÇÃO
C10: HORISTA | D10: MENSALISTA | E10: HORISTA | F10: MENSALISTA
A12: GRUPO A
A13: A1 | B13: INSS | C13: 0 | D13: 0 | E13: 20 | F13: 20
A14: A2 | B14: SESI | C14: 1.5 | D14: 1.5 | E14: 1.5 | F14: 1.5
A15: A3 | B15: SENAI | C15: 1 | D15: 1 | E15: 1 | F15: 1
A16: A4 | B16: INCRA | C16: 0.2 | D16: 0.2 | E16: 0.2 | F16: 0.2
A17: A5 | B17: SEBRAE | C17: 0.6 | D17: 0.6 | E17: 0.6 | F17: 0.6
A18: A6 | B18: Salário Educação | C18: 2.5 | D18: 2.5 | E18: 2.5 | F18: 2.5
A19: A7 | B19: Seguro Contra Acidentes de Trabalho | C19: 3 | D19: 3 | E19: 3 | F19: 3
A20: A8 | B20: FGTS | C20: 8 | D20: 8 | E20: 8 | F20: 8
A21: A9 | B21: SECONCI | C21: 1 | D21: 1 | E21: 1.2 | F21: 1.2
A22: A | B22: Total | C22: =SUM(C13:C21) -> 17.8 | D22: =SUM(D13:D21) -> 17.8 | E22: =SUM(E13:E21) -> 38 | F22: =SUM(F13:F21) -> 38
A23: GRUPO B
A24: B1 | B24: Repouso Semanal Remunerado | C24: 17.88 | D24: - | E24: 17.76 | F24: -
A25: B2 | B25: Feriados | C25: 3.94 | D25: - | E25: 3.68 | F25: -
A26: B3 | B26: Auxílio-enfermidade | C26: 0.91 | D26: 0.69 | E26: 0.86 | F26: 0.64
A27: B4 | B27: 13° salário | C27: 10.98 | D27: 8.33 | E27: 11.14 | F27: 8.33
A28: B5 | B28: Licença-paternidade | C28: 0.07 | D28: 0.06 | E28: 0.06 | F28: 0.04
A29: B6 | B29: Faltas Justificadas | C29: 0.73 | D29: 0.56 | E29: 0.74 | F29: 0.56
A30: B7 | B30: Dias de chuva | C30: 1.45 | D30: - | E30: 1.1 | F30: -
A31: B8 | B31: Auxílio Acidente de Trabalho | C31: 0.11 | D31: 0.09 | E31: 0.1 | F31: 0.08
A32: B9 | B32: Férias Gozadas | C32: 11.35 | D32: 8.62 | E32: 0 | F32: 0
A33: B10 | B33: Salário Maternidade | C33: 0.03 | D33: 0.03 | E33: 0.04 | F33: 0.03 | L33: =(#REF!)/(1+#REF!) ->  | M33: =(#REF!) -> 
A34: B | B34: Total | C34: =SUM(C24:C33) -> 47.45 | D34: =SUM(D24:D33) -> 18.38 | E34: =SUM(E24:E33) -> 35.48 | F34: =SUM(F24:F33) -> 9.68
A35: GRUPO C
A36: C1 | B36: Aviso Prévio Indenizado | C36: 6.76 | D36: 5.14 | E36: 6.01 | F36: 4.5
A37: C2 | B37: Aviso Prévio Trabalhado | C37: 0.16 | D37: 0.12 | E37: 0.14 | F37: 0.11
A38: C3 | B38: Férias Indenizadas | C38: 2.28 | D38: 1.73 | E38: 12.16 | F38: 9.1
A39: C4 | B39: Depósito Rescisão Sem Justa Causa | C39: 3.81 | D39: 2.89 | E39: 2.59 | F39: 1.94
A40: C5 | B40: Indenização Adicional | C40: 0.57 | D40: 0.43 | E40: 0.51 | F40: 0.38
A41: C | B41: Total | C41: =SUM(C36:C40) -> 13.58 | D41: =SUM(D36:D40) -> 10.31 | E41: =SUM(E36:E40) -> 21.41 | F41: =SUM(F36:F40) -> 16.03
A42: GRUPO D
A43: D1 | B43: Reincidência de A sobre B | C43: 8.45 | D43: 3.27 | E43: 13.48 | F43: 3.68
A44: D2 | B44: Reincidência de Grupo A sobre Aviso Prévio Trabalhado e Reincidência do FGTS sobre Aviso Prévio Indenizado | C44: 0.57 | D44: 0.43 | E44: 0.53 | F44: 0.4
A45: D | B45: Total | C45: =SUM(C43:C44) -> 9.02 | D45: =SUM(D43:D44) -> 3.7 | E45: =SUM(E43:E44) -> 14.01 | F45: =SUM(F43:F44) -> 4.08
A47: T O T A L (%) | C47: =C22+C34+C41+C45 -> 87.85 | D47: =D22+D34+D41+D45 -> 50.19 | E47: =E22+E34+E41+E45 -> 108.9 | F47: =F22+F34+F41+F45 -> 67.79
H51: Fonte: Sinapi Cálculos e Parâmetros 5ª Edição - Atualizada em Agosto 2023

Sheet Transporte Cap 50-70
C5: MEMÓRIA DE CÁLCULO
C10: REAJUSTE | F10: TIPOLOGIA DO MATERIAL | I10: CIMENTOS ASFÁLTICOS CAP-50-70 | M10: IMPOSTOS | N10: COFINS | O10: 0.0065 | P10: 0.0065
G11: ÍNDICE DE PAVIMENTAÇÃO DNIT | H11: 2014-07-01 | I11: ÍNDICE INICIAL | J11: 270.237 | N11: PIS | O11: 0.03 | P11: 0.03 | T11: LEGENDA | AC11: As empresas tributadas pelo Lucro Presumido pagam 0,65% de PIS e 3% de COFINS
H12: 2024-07-01 | I12: ÍNDICE FINAL | J12: 574.257 | N12: ICMS | O12: 0.18 | P12: 0.18 | Q12: =1-(O12/1) -> 0.82 | R12: =1-(P12/1) -> 0.82 | S12: =1-(Q12/1) -> 0.18 | T12: ENTRADA DE DADOS | AC12: As empresas tributadas pelo Lucro Real pagam 1,65% de PIS e 7,60% de COFINS
G13: Data ANP | H13: ='ANP ESTADO'!A99611 -> 2024-07-01
C14: DATA-BASE | D14: PRODUTOS | E14: LOCALIDADES | J14: CUSTO ANP (R$/Kg) | L14: CUSTO ANP | M14: IMPOSTOS DO PRODUTO | N14: CUSTO DO PRODUTO COM IMPOSTOS | O14: DMT's | P14: DMT's FLUVIAL | Q14: CUSTO DO TRANSPORTE RODOVIA PAVIMENTADA | R14: CUSTO DO TRANSPORTE FLUVIAL | S14: CUSTO DO TRANSPORTE TOTAL | T14: ICMS | U14: ATUALIZAÇÃO DO CUSTO DE TRANSPORTE | V14: CUSTO DO TRANSPORTE RODOVIA PAVIMENTADA COM IMPOSTOS E ATUALIZAÇÃO MONETÁRIA | W14: PEDÁGIO | Y14: TOTAL TRANSPORTE | Z14: AQUISIÇÃO DO PRODUTO | AA14: TOTAL GERAL ( TRANSP + AQUISIÇÃO) | AC14: 1 | AD14: 2 | AE14: 3
C15: =H12 -> 2024-07-01 | E15: REFINARIAS | F15: ENDEREÇO | G15: ESTADO | H15: CIDADE | I15: DESTINO | J15: ESTADO | K15: REGIÃO | L15: R$/t | M15: R$/t | N15: R$/t | O15: KM | P15: KM | Q15: R$/t | R15: R$/t | S15: R$/t | T15: R$/t | U15: R$/t | V15: R$/t | W15: CUSTO | X15: R$/t | Y15: R$/t | Z15: R$/t | AA15: R$/t | AC15: TOTAL GERAL ( TRANSP + AQUISIÇÃO) | AD15: TOTAL TRANSPORTE | AE15: AQUISIÇÃO DO PRODUTO
B16: =AA16 -> 6340.983161 | C16: 1 | D16: =I10 -> CIMENTOS ASFÁLTICOS CAP-50-70 | E16: Refinaria Abreu e Lima | F16: Rodovia PE 60, Km 10 - Ipojuca - PE CEP:55590-000 | G16: Pernambuco | H16: IPOJUCA - PE | I16: Paracatu - MG | J16: =VLOOKUP('Transporte Cap 50-70'!G16,OFFSET('ANP ESTADO'!$A$1,MATCH('Transporte Cap 50-70'!$I$10,'ANP ESTADO'!B:B,0)+MATCH('Transporte Cap 50-70'!$H$13,OFFSET('ANP ESTADO'!$A$1,MATCH('Transporte Cap 50-70'!$I$10,'ANP ESTADO'!B:B,0),0,100000,1),0),2,100000,2),2,FALSE) -> - | K16: =VLOOKUP($H$13,OFFSET('ANP REGIÃO'!$A$9,MATCH('Transporte Cap 50-70'!$I$10,'ANP REGIÃO'!A:A,0),1,10000,10000),MATCH('Transporte Cap 50-70'!AH16,'ANP REGIÃO'!$B$8:$G$8,0),FALSE) -> 3.823804987 | L16: =IF(AND(J16="-",K16="-"),"",IF(AND(J16<>0,K16="-"),J16*1000,IF(AND(J16="-",K16<>0),K16*1000,IF(AND(J16<>0,K16<>0),J16*1000,"")))) -> 3823.804987 | M16: =ROUND(((L16/(1-$O$10-$O$11-$O$12))-L16),2) -> 1056.61 | N16: =L16+M16 -> 4880.414987 | O16: 2093 | P16: 0 | Q16: =ROUND((26.939+0.253*O16),2) -> 556.47 | S16: =Q16+R16 -> 556.47 | T16: =TRUNC(S16*($O$12/(1-$O$12)),2) -> 122.15 | U16: =TRUNC(IF($J$11="","",(($J$12-$J$11)/$J$11)*(S16+T16)),2) -> 763.45 | V16: =S16+T16+U16 -> 1442.07 | W16: 258.6 | X16: =EVEN((' CONSUMO DE MAT. B TOTAL'!$O$16)*2/28)*W16/(' CONSUMO DE MAT. B TOTAL'!$O$16) -> 18.4981742 | Y16: =IF(AND(S16="",T16=""),"",V16+X16) -> 1460.568174 | Z16: =IF(OR(L16="",M16=""),"",L16+M16) -> 4880.414987 | AA16: =IF(OR(Y16="",Z16=""),"",Y16+Z16) -> 6340.983161 | AC16: =AA16 -> 6340.983161 | AD16: =Y16 -> 1460.568174 | AE16: =Z16 -> 4880.414987 | AH16: =IF(OR(G16=$D$54,G16=$D$55,G16=$D$57,G16=$D$63,G16=$D$47,G16=$D$43,G16=$D$39,G16=$D$52,G16=$D$42),"NORDESTE",IF(OR(G16=$D$38,G16=$D$40,G16=$D$41,G16=$D$51,G16=$D$59,G16=$D$60,G16=$D$64),"NORTE",IF(OR(G16=$D$44,G16=$D$46,G16=$D$48,G16=$D$49),"CENTRO-OESTE",IF(OR(G16=$D$62,G16=$D$56,G16=$D$50,G16=$D$45),"SUDESTE",IF(OR(G16=$D$61,G16=$D$53,G16=$D$58),"SUL",""))))) -> NORDESTE
B17: =AA17 -> 6577.663161 | C17: 3 | E17: Refinaria Potiguar Clara Camarão | F17: Rodovia RN 221, KM 25 - Guamaré - RN CEP:59598-000 | G17: Rio Grande do Norte | H17: GUAMARÉ - RN | I17: Paracatu - MG | J17: =VLOOKUP('Transporte Cap 50-70'!G17,OFFSET('ANP ESTADO'!$A$1,MATCH('Transporte Cap 50-70'!$I$10,'ANP ESTADO'!B:B,0)+MATCH('Transporte Cap 50-70'!$H$13,OFFSET('ANP ESTADO'!$A$1,MATCH('Transporte Cap 50-70'!$I$10,'ANP ESTADO'!B:B,0),0,100000,1),0),2,100000,2),2,FALSE) -> - | K17: =VLOOKUP($H$13,OFFSET('ANP REGIÃO'!$A$9,MATCH('Transporte Cap 50-70'!$I$10,'ANP REGIÃO'!A:A,0),1,10000,10000),MATCH('Transporte Cap 50-70'!AH17,'ANP REGIÃO'!$B$8:$G$8,0),FALSE) -> 3.823804987 | L17: =IF(AND(J17="-",K17=""),"",IF(AND(J17<>0,K17=""),J17*1000,IF(AND(J17="-",K17<>0),K17*1000,IF(AND(J17<>0,K17<>0),J17*1000,"")))) -> 3823.804987 | M17: =ROUND(((L17/(1-$O$10-$O$11-$O$12))-L17),2) -> 1056.61 | N17: =L17+M17 -> 4880.414987 | O17: 2454 | P17: 0 | Q17: 647.8 | S17: =Q17+R17 -> 647.8 | T17: =TRUNC(S17*($O$12/(1-$O$12)),2) -> 142.2 | U17: =TRUNC(IF($J$11="","",(($J$12-$J$11)/$J$11)*(S17+T17)),2) -> 888.75 | V17: =S17+T17+U17 -> 1678.75 | W17: 258.6 | X17: =EVEN((' CONSUMO DE MAT. B TOTAL'!$O$16)*2/28)*W17/(' CONSUMO DE MAT. B TOTAL'!$O$16) -> 18.4981742 | Y17: =IF(AND(S17="",T17=""),"",V17+X17) -> 1697.248174 | Z17: 4880.414987 | AA17: =IF(OR(Y17="",Z17=""),"",Y17+Z17) -> 6577.663161 | AC17: =AA17 -> 6577.663161 | AD17: =Y17 -> 1697.248174 | AE17: =Z17 -> 4880.414987 | AH17: =IF(OR(G17=$D$54,G17=$D$55,G17=$D$57,G17=$D$63,G17=$D$47,G17=$D$43,G17=$D$39,G17=$D$52,G17=$D$42),"NORDESTE",IF(OR(G17=$D$38,G17=$D$40,G17=$D$41,G17=$D$51,G17=$D$59,G17=$D$60,G17=$D$64),"NORTE",IF(OR(G17=$D$44,G17=$D$46,G17=$D$48,G17=$D$49),"CENTRO-OESTE",IF(OR(G17=$D$62,G17=$D$56,G17=$D$50,G17=$D$45),"SUDESTE",IF(OR(G17=$D$61,G17=$D$53,G17=$D$58),"SUL",""))))) -> NORDESTE
B18: 6031.960836 | C18: 4 | E18: Refinaria Landulpho Alves (RLAM) | F18: Rodovia BA 523, KM 4 – Mataripe São Francisco do Conde - BA CEP:43900-000 | G18: Bahia | H18: SÃO FRANCISCO DO CONDE - BA | I18: Paracatu - MG | J18: =VLOOKUP('Transporte Cap 50-70'!G18,OFFSET('ANP ESTADO'!$A$1,MATCH('Transporte Cap 50-70'!$I$10,'ANP ESTADO'!B:B,0)+MATCH('Transporte Cap 50-70'!$H$13,OFFSET('ANP ESTADO'!$A$1,MATCH('Transporte Cap 50-70'!$I$10,'ANP ESTADO'!B:B,0),0,100000,1),0),2,100000,2),2,FALSE) -> 3.93496049 | K18: =VLOOKUP($H$13,OFFSET('ANP REGIÃO'!$A$9,MATCH('Transporte Cap 50-70'!$I$10,'ANP REGIÃO'!A:A,0),1,10000,10000),MATCH('Transporte Cap 50-70'!AH18,'ANP REGIÃO'!$B$8:$G$8,0),FALSE) -> 3.823804987 | L18: 3934.96049 | M18: 1087.32 | N18: 5022.28049 | O18: 1403 | P18: 0 | Q18: 381.9 | S18: 381.9 | T18: 83.83 | U18: 523.95 | V18: 989.68 | W18: 279.6 | X18: =EVEN((' CONSUMO DE MAT. B TOTAL'!$O$16)*2/28)*W18/(' CONSUMO DE MAT. B TOTAL'!$O$16) -> 20.00034612 | Y18: 1009.680346 | Z18: 5022.28049 | AA18: 6031.960836 | AC18: 6031.960836 | AD18: 1009.680346 | AE18: 5022.28049 | AH18: NORDESTE
B19: 6153.659237 | C19: 5 | E19: Refinaria Lubrificantes e Derivados do Nordeste (Lubnor) | F19: Av. Leite Barbosa, s/nº - Mucuripe Fortaleza - Ceará CEP:60180-420 | G19: Ceará | H19: FORTALEZA - CE | I19: Paracatu - MG | J19: =VLOOKUP('Transporte Cap 50-70'!G19,OFFSET('ANP ESTADO'!$A$1,MATCH('Transporte Cap 50-70'!$I$10,'ANP ESTADO'!B:B,0)+MATCH('Transporte Cap 50-70'!$H$13,OFFSET('ANP ESTADO'!$A$1,MATCH('Transporte Cap 50-70'!$I$10,'ANP ESTADO'!B:B,0),0,100000,1),0),2,100000,2),2,FALSE) -> 3.601011062 | K19: =VLOOKUP($H$13,OFFSET('ANP REGIÃO'!$A$9,MATCH('Transporte Cap 50-70'!$I$10,'ANP REGIÃO'!A:A,0),1,10000,10000),MATCH('Transporte Cap 50-70'!AH19,'ANP REGIÃO'!$B$8:$G$8,0),FALSE) -> 3.823804987 | L19: 3601.011062 | M19: 995.05 | N19: 4596.061062 | O19: 2241 | P19: 0 | Q19: 593.91 | S19: 593.91 | T19: 130.37 | U19: 814.82 | V19: 1539.1 | W19: 258.6 | X19: =EVEN((' CONSUMO DE MAT. B TOTAL'!$O$16)*2/28)*W19/(' CONSUMO DE MAT. B TOTAL'!$O$16) -> 18.4981742 | Y19: 1557.598174 | Z19: 4596.061062 | AA19: 6153.659237 | AC19: 6153.659237 | AD19: 1557.598174 | AE19: 4596.061062 | AH19: NORDESTE
B20: 5008.394091 | C20: 6 | E20: Refinaria Capuava (Recap) | F20: Av. Alberto Soares Sampaio, 2122-A Capuava – Mauá - SP | G20: São Paulo | H20: MAUÁ - SP | I20: Paracatu - MG | J20: =VLOOKUP('Transporte Cap 50-70'!G20,OFFSET('ANP ESTADO'!$A$1,MATCH('Transporte Cap 50-70'!$I$10,'ANP ESTADO'!B:B,0)+MATCH('Transporte Cap 50-70'!$H$13,OFFSET('ANP ESTADO'!$A$1,MATCH('Transporte Cap 50-70'!$I$10,'ANP ESTADO'!B:B,0),0,100000,1),0),2,100000,2),2,FALSE) -> 3.341281628 | K20: =VLOOKUP($H$13,OFFSET('ANP REGIÃO'!$A$9,MATCH('Transporte Cap 50-70'!$I$10,'ANP REGIÃO'!A:A,0),1,10000,10000),MATCH('Transporte Cap 50-70'!AH20,'ANP REGIÃO'!$B$8:$G$8,0),FALSE) -> 3.343745889 | L20: 3341.281628 | M20: 923.28 | N20: 4264.561628 | O20: 932 | P20: 0 | Q20: 262.74 | S20: 262.74 | T20: 57.67 | U20: 360.46 | V20: 680.87 | W20: 880.2 | X20: =EVEN((' CONSUMO DE MAT. B TOTAL'!$O$16)*2/28)*W20/(' CONSUMO DE MAT. B TOTAL'!$O$16) -> 62.96246301 | Y20: 743.832463 | Z20: 4264.561628 | AA20: 5008.394091 | AC20: 5008.394091 | AD20: 743.832463 | AE20: 4264.561628 | AH20: SUDESTE
B21: 4831.672274 | C21: 7 | E21: Refinaria Duque de Caxias (Reduc) | F21: Rodovia Washington Luiz, km 113,7 Campos Elíseos – Duque de Caxias - RJ CEP:25213-005 | G21: Rio de Janeiro | H21: DUQUE DE CAXIAS - RJ | I21: Paracatu - MG | J21: =VLOOKUP('Transporte Cap 50-70'!G21,OFFSET('ANP ESTADO'!$A$1,MATCH('Transporte Cap 50-70'!$I$10,'ANP ESTADO'!B:B,0)+MATCH('Transporte Cap 50-70'!$H$13,OFFSET('ANP ESTADO'!$A$1,MATCH('Transporte Cap 50-70'!$I$10,'ANP ESTADO'!B:B,0),0,100000,1),0),2,100000,2),2,FALSE) -> 3.225667238 | K21: =VLOOKUP($H$13,OFFSET('ANP REGIÃO'!$A$9,MATCH('Transporte Cap 50-70'!$I$10,'ANP REGIÃO'!A:A,0),1,10000,10000),MATCH('Transporte Cap 50-70'!AH21,'ANP REGIÃO'!$B$8:$G$8,0),FALSE) -> 3.343745889 | L21: 3225.667238 | M21: 891.33 | N21: 4116.997238 | O21: 918 | P21: 0 | Q21: 259.19 | S21: 259.19 | T21: 56.89 | U21: 355.59 | V21: 671.67 | W21: 601.2 | X21: =EVEN((' CONSUMO DE MAT. B TOTAL'!$O$16)*2/28)*W21/(' CONSUMO DE MAT. B TOTAL'!$O$16) -> 43.00503608 | Y21: 714.6750361 | Z21: 4116.997238 | AA21: 4831.672274 | AC21: 4831.672274 | AD21: 714.6750361 | AE21: 4116.997238 | AH21: SUDESTE
B22: 5830.317925 | C22: 8 | E22: Refinaria Alberto Pasqualini (Refap) | F22: Avenida Getúlio Vargas, 11001 - Bairro Brigadeira Canoas - RS - Brasil CEP:92420-221 | G22: Rio Grande do Sul | H22: CANOAS - RS | I22: Paracatu - MG | J22: =VLOOKUP('Transporte Cap 50-70'!G22,OFFSET('ANP ESTADO'!$A$1,MATCH('Transporte Cap 50-70'!$I$10,'ANP ESTADO'!B:B,0)+MATCH('Transporte Cap 50-70'!$H$13,OFFSET('ANP ESTADO'!$A$1,MATCH('Transporte Cap 50-70'!$I$10,'ANP ESTADO'!B:B,0),0,100000,1),0),2,100000,2),2,FALSE) -> 3.417243597 | K22: =VLOOKUP($H$13,OFFSET('ANP REGIÃO'!$A$9,MATCH('Transporte Cap 50-70'!$I$10,'ANP REGIÃO'!A:A,0),1,10000,10000),MATCH('Transporte Cap 50-70'!AH22,'ANP REGIÃO'!$B$8:$G$8,0),FALSE) -> 3.417322232 | L22: 3417.243597 | M22: 944.27 | N22: 4361.513597 | O22: 1968 | P22: 0 | Q22: 524.84 | S22: 524.84 | T22: 115.2 | U22: 720.05 | V22: 1360.09 | W22: 1519.8 | X22: =EVEN((' CONSUMO DE MAT. B TOTAL'!$O$16)*2/28)*W22/(' CONSUMO DE MAT. B TOTAL'!$O$16) -> 108.7143277 | Y22: 1468.804328 | Z22: 4361.513597 | AA22: 5830.317925 | AC22: 5830.317925 | AD22: 1468.804328 | AE22: 4361.513597 | AH22: SUL
B23: 5317.090496 | C23: 9 | E23: Unidade de Industrialização do Xisto (SIX) | F23: Rodovia do Xisto, BR 476, km 153 São Mateus do Sul – PR CEP 83900-000 | G23: Paraná | H23: SÃO MATEUS DO SUL - PR | I23: Paracatu - MG | J23: =VLOOKUP('Transporte Cap 50-70'!G23,OFFSET('ANP ESTADO'!$A$1,MATCH('Transporte Cap 50-70'!$I$10,'ANP ESTADO'!B:B,0)+MATCH('Transporte Cap 50-70'!$H$13,OFFSET('ANP ESTADO'!$A$1,MATCH('Transporte Cap 50-70'!$I$10,'ANP ESTADO'!B:B,0),0,100000,1),0),2,100000,2),2,FALSE) -> 3.417370179 | K23: =VLOOKUP($H$13,OFFSET('ANP REGIÃO'!$A$9,MATCH('Transporte Cap 50-70'!$I$10,'ANP REGIÃO'!A:A,0),1,10000,10000),MATCH('Transporte Cap 50-70'!AH23,'ANP REGIÃO'!$B$8:$G$8,0),FALSE) -> 3.417322232 | L23: 3417.370179 | M23: 944.3 | N23: 4361.670179 | O23: 1251 | P23: 0 | Q23: 343.44 | S23: 343.44 | T23: 75.38 | U23: 471.17 | V23: 889.99 | W23: 914.7 | X23: =EVEN((' CONSUMO DE MAT. B TOTAL'!$O$16)*2/28)*W23/(' CONSUMO DE MAT. B TOTAL'!$O$16) -> 65.43031688 | Y23: 955.4203169 | Z23: 4361.670179 | AA23: 5317.090496 | AC23: 5317.090496 | AD23: 955.4203169 | AE23: 4361.670179 | AH23: SUL
B24: 4626.033193 | C24: 10 | E24: Refinaria Gabriel Passos (Regap) | F24: Av. Refinaria Gabriel Passos, 690 Distrito Industrial Paulo Camilo Sul Betim - MG CEP:32669-205 | G24: Minas Gerais | H24: BETIM - MG | I24: Paracatu - MG | J24: =VLOOKUP('Transporte Cap 50-70'!G24,OFFSET('ANP ESTADO'!$A$1,MATCH('Transporte Cap 50-70'!$I$10,'ANP ESTADO'!B:B,0)+MATCH('Transporte Cap 50-70'!$H$13,OFFSET('ANP ESTADO'!$A$1,MATCH('Transporte Cap 50-70'!$I$10,'ANP ESTADO'!B:B,0),0,100000,1),0),2,100000,2),2,FALSE) -> 3.307833193 | K24: =VLOOKUP($H$13,OFFSET('ANP REGIÃO'!$A$9,MATCH('Transporte Cap 50-70'!$I$10,'ANP REGIÃO'!A:A,0),1,10000,10000),MATCH('Transporte Cap 50-70'!AH24,'ANP REGIÃO'!$B$8:$G$8,0),FALSE) -> 3.343745889 | L24: 3307.833193 | M24: 914.03 | N24: 4221.863193 | O24: 510 | P24: 0 | Q24: 155.97 | S24: 155.97 | T24: 34.23 | U24: 213.97 | V24: 404.17 | W24: 0 | X24: =EVEN((' CONSUMO DE MAT. B TOTAL'!$O$16)*2/28)*W24/(' CONSUMO DE MAT. B TOTAL'!$O$16) -> 0 | Y24: 404.17 | Z24: 4221.863193 | AA24: 4626.033193 | AC24: 4626.033193 | AD24: 404.17 | AE24: 4221.863193 | AH24: SUDESTE
B25: 5319.756664 | C25: 11 | E25: Refinaria Presidente Getúlio Vargas (Repar) | F25: Rodovia do Xisto, BR 476, km 16 Araucária - PR CEP:83707-440 | G25: Paraná | H25: ARAUCÁRIA - PR | I25: Paracatu - MG | J25: =VLOOKUP('Transporte Cap 50-70'!G25,OFFSET('ANP ESTADO'!$A$1,MATCH('Transporte Cap 50-70'!$I$10,'ANP ESTADO'!B:B,0)+MATCH('Transporte Cap 50-70'!$H$13,OFFSET('ANP ESTADO'!$A$1,MATCH('Transporte Cap 50-70'!$I$10,'ANP ESTADO'!B:B,0),0,100000,1),0),2,100000,2),2,FALSE) -> 3.417370179 | K25: =VLOOKUP($H$13,OFFSET('ANP REGIÃO'!$A$9,MATCH('Transporte Cap 50-70'!$I$10,'ANP REGIÃO'!A:A,0),1,10000,10000),MATCH('Transporte Cap 50-70'!AH25,'ANP REGIÃO'!$B$8:$G$8,0),FALSE) -> 3.417322232 | L25: 3417.370179 | M25: 944.3 | N25: 4361.670179 | O25: 1241 | P25: 0 | Q25: 340.91 | S25: 340.91 | T25: 74.83 | U25: 467.71 | V25: 883.45 | W25: 1043.4 | X25: =EVEN((' CONSUMO DE MAT. B TOTAL'!$O$16)*2/28)*W25/(' CONSUMO DE MAT. B TOTAL'!$O$16) -> 74.63648478 | Y25: 958.0864848 | Z25: 4361.670179 | AA25: 5319.756664 | AC25: 5319.756664 | AD25: 958.0864848 | AE25: 4361.670179 | AH25: SUL
B26: 5015.594091 | C26: 12 | E26: Refinaria Presidente Bernardes (RPBC) | F26: Av. 9 de abril, 777 - Jardim das Indústrias Cubatão - SP CEP:11505-000 | G26: São Paulo | H26: CUBATÃO - SP | I26: Paracatu - MG | J26: =VLOOKUP('Transporte Cap 50-70'!G26,OFFSET('ANP ESTADO'!$A$1,MATCH('Transporte Cap 50-70'!$I$10,'ANP ESTADO'!B:B,0)+MATCH('Transporte Cap 50-70'!$H$13,OFFSET('ANP ESTADO'!$A$1,MATCH('Transporte Cap 50-70'!$I$10,'ANP ESTADO'!B:B,0),0,100000,1),0),2,100000,2),2,FALSE) -> 3.341281628 | K26: =VLOOKUP($H$13,OFFSET('ANP REGIÃO'!$A$9,MATCH('Transporte Cap 50-70'!$I$10,'ANP REGIÃO'!A:A,0),1,10000,10000),MATCH('Transporte Cap 50-70'!AH26,'ANP REGIÃO'!$B$8:$G$8,0),FALSE) -> 3.343745889 | L26: 3341.281628 | M26: 923.28 | N26: 4264.561628 | O26: 943 | P26: 0 | Q26: 265.52 | S26: 265.52 | T26: 58.28 | U26: 364.27 | V26: 688.07 | W26: 880.2 | X26: =EVEN((' CONSUMO DE MAT. B TOTAL'!$O$16)*2/28)*W26/(' CONSUMO DE MAT. B TOTAL'!$O$16) -> 62.96246301 | Y26: 751.032463 | Z26: 4264.561628 | AA26: 5015.594091 | AC26: 5015.594091 | AD26: 751.032463 | AE26: 4264.561628 | AH26: SUDESTE
B27: 4879.300938 | C27: 13 | E27: Refinaria de Paulínia (Replan) | F27: Rodovia SP 332 - Km. 130 Bonfim - Paulínia – SP CEP:13140-000 | G27: São Paulo | H27: PAULÍNIA - SP | I27: Paracatu - MG | J27: =VLOOKUP('Transporte Cap 50-70'!G27,OFFSET('ANP ESTADO'!$A$1,MATCH('Transporte Cap 50-70'!$I$10,'ANP ESTADO'!B:B,0)+MATCH('Transporte Cap 50-70'!$H$13,OFFSET('ANP ESTADO'!$A$1,MATCH('Transporte Cap 50-70'!$I$10,'ANP ESTADO'!B:B,0),0,100000,1),0),2,100000,2),2,FALSE) -> 3.341281628 | K27: =VLOOKUP($H$13,OFFSET('ANP REGIÃO'!$A$9,MATCH('Transporte Cap 50-70'!$I$10,'ANP REGIÃO'!A:A,0),1,10000,10000),MATCH('Transporte Cap 50-70'!AH27,'ANP REGIÃO'!$B$8:$G$8,0),FALSE) -> 3.343745889 | L27: 3341.281628 | M27: 923.28 | N27: 4264.561628 | O27: 752 | P27: 0 | Q27: 217.2 | S27: 217.2 | T27: 47.67 | U27: 297.98 | V27: 562.85 | W27: 725.4 | X27: =EVEN((' CONSUMO DE MAT. B TOTAL'!$O$16)*2/28)*W27/(' CONSUMO DE MAT. B TOTAL'!$O$16) -> 51.88931 | Y27: 614.73931 | Z27: 4264.561628 | AA27: 4879.300938 | AC27: 4879.300938 | AD27: 614.73931 | AE27: 4264.561628 | AH27: SUDESTE
B28: 5007.256193 | C28: 14 | E28: Refinaria Henrique Lage (Revap) | F28: Rodovia Presidente Dutra, KM 143, S/N Bairro Jardim Diamante - São José dos Campos – SP CEP:12223-900 | G28: São Paulo | H28: SÃO JOSÉ DOS CAMPOS - SP | I28: Paracatu - MG | J28: =VLOOKUP('Transporte Cap 50-70'!G28,OFFSET('ANP ESTADO'!$A$1,MATCH('Transporte Cap 50-70'!$I$10,'ANP ESTADO'!B:B,0)+MATCH('Transporte Cap 50-70'!$H$13,OFFSET('ANP ESTADO'!$A$1,MATCH('Transporte Cap 50-70'!$I$10,'ANP ESTADO'!B:B,0),0,100000,1),0),2,100000,2),2,FALSE) -> 3.341281628 | K28: =VLOOKUP($H$13,OFFSET('ANP REGIÃO'!$A$9,MATCH('Transporte Cap 50-70'!$I$10,'ANP REGIÃO'!A:A,0),1,10000,10000),MATCH('Transporte Cap 50-70'!AH28,'ANP REGIÃO'!$B$8:$G$8,0),FALSE) -> 3.343745889 | L28: 3341.281628 | M28: 923.28 | N28: 4264.561628 | O28: 919 | P28: 0 | Q28: 259.45 | S28: 259.45 | T28: 56.95 | U28: 355.95 | V28: 672.35 | W28: 983.4 | X28: =EVEN((' CONSUMO DE MAT. B TOTAL'!$O$16)*2/28)*W28/(' CONSUMO DE MAT. B TOTAL'!$O$16) -> 70.34456501 | Y28: 742.694565 | Z28: 4264.561628 | AA28: 5007.256193 | AC28: 5007.256193 | AD28: 742.694565 | AE28: 4264.561628 | AH28: SUDESTE
D38: Acre
D39: Alagoas
D40: Amapá
D41: Amazonas
D42: Bahia
D43: Ceará
D44: Distrito Federal
D45: Espírito Santo
D46: Goiás
D47: Maranhão
D48: Mato Grosso
D49: Mato Grosso do Sul
D50: Minas Gerais
D51: Pará
D52: Paraíba
D53: Paraná
D54: Pernambuco
D55: Piauí
D56: Rio de Janeiro
D57: Rio Grande do Norte
D58: Rio Grande do Sul
D59: Rondônia
D60: Roraima
D61: Santa Catarina
D62: São Paulo
D63: Sergipe
D64: Tocantins
D68: ASFALTOS DILUÍDOS CM-30
D69: ASFALTOS DILUÍDOS CM-70
D70: ASFALTOS DILUÍDOS CR-250
D71: ASFALTOS DILUÍDOS CR-70
D72: CAP MODIFICADO POR BORRACHA DE PNEU AB22
D73: CAP MODIFICADO POR BORRACHA DE PNEU AB8
D74: CAP MODIFICADO POR POLÍMERO 55-75-E
D75: CAP MODIFICADO POR POLÍMERO 60-85-E
D76: CAP MODIFICADO POR POLÍMERO 65-90-E
D77: CIMENTOS ASFÁLTICOS CAP-150-200
D78: CIMENTOS ASFÁLTICOS CAP-30-45
D79: CIMENTOS ASFÁLTICOS CAP-50-70
D80: CIMENTOS ASFÁLTICOS CAP-85-100
D81: EMULSÃO ASFÁLTICA CATIÔNICA DE RUPTURA CONTROLADA PARA SERVIÇO DE LAMA ASFÁLTICA
D82: EMULSÃO ASFÁLTICA DE RUPTURA LENTA CATIÔNICA PARA SERVIÇO DE LAMA ASFÁLTICA
D83: EMULSÃO ASFÁLTICA DE RUPTURA LENTA DE CARGA NEUTRA PARA SERVIÇO DE LAMA ASFÁLTICA
D84: EMULSÃO ASFÁLTICA PARA SERVIÇO DE IMPRIMAÇÃO
D85: EMULSÕES ASF. MOD. POR POLÍMEROS RC1C-E
D86: EMULSÕES ASF. MOD. POR POLÍMEROS RL1C-E
D87: EMULSÕES ASF. MOD. POR POLÍMEROS RM1C-E
D88: EMULSÕES ASF. MOD. POR POLÍMEROS RR1C-E
D89: EMULSÕES ASF. MOD. POR POLÍMEROS RR2C-E
D90: EMULSÕES ASFÁLTICAS RL-1C
D91: EMULSÕES ASFÁLTICAS RM-1C
D92: EMULSÕES ASFÁLTICAS RM-2C
D93: EMULSÕES ASFÁLTICAS RR-1C
D94: EMULSÕES ASFÁLTICAS RR-2C

Sheet Transporte RR-1C
C5: MEMÓRIA DE CÁLCULO
C10: REAJUSTE | F10: TIPOLOGIA DO MATERIAL | I10: EMULSÕES ASFÁLTICAS RR-1C | M10: IMPOSTOS | N10: COFINS | O10: 0.0065 | P10: 0.0065
G11: ÍNDICE DE PAVIMENTAÇÃO DNIT | H11: 2014-07-01 | I11: ÍNDICE INICIAL | J11: 270.237 | N11: PIS | O11: 0.03 | P11: 0.03 | T11: LEGENDA | AC11: As empresas tributadas pelo Lucro Presumido pagam 0,65% de PIS e 3% de COFINS
H12: ='Transporte Cap 50-70'!H12 -> 2024-07-01 | I12: ÍNDICE FINAL | J12: ='Transporte Cap 50-70'!J12 -> 574.257 | N12: ICMS | O12: 0.18 | P12: 0.18 | Q12: =1-(O12/1) -> 0.82 | R12: =1-(P12/1) -> 0.82 | S12: =1-(Q12/1) -> 0.18 | T12: ENTRADA DE DADOS | AC12: As empresas tributadas pelo Lucro Real pagam 1,65% de PIS e 7,60% de COFINS
G13: Data ANP | H13: ='Transporte Cap 50-70'!H13 -> 2024-07-01
C14: DATA-BASE | D14: PRODUTOS | E14: LOCALIDADES | J14: CUSTO ANP (R$/Kg) | L14: CUSTO ANP | M14: IMPOSTOS DO PRODUTO | N14: CUSTO DO PRODUTO COM IMPOSTOS | O14: DMT's | P14: DMT'S FLUVIAL | Q14: CUSTO DO TRANSPORTE RODOVIA PAVIMENTADA | R14: CUSTO DO TRANSPORTE FLUVIAL | S14: CUSTO DO TRANSPORTE TOTAL | T14: ICMS | U14: ATUALIZAÇÃO DO CUSTO DE TRANSPORTE | V14: CUSTO DO TRANSPORTE RODOVIA PAVIMENTADA COM IMPOSTOS E ATUALIZAÇÃO MONETÁRIA | W14: PEDÁGIO | Y14: TOTAL TRANSPORTE | Z14: AQUISIÇÃO DO PRODUTO | AA14: TOTAL GERAL ( TRANSP + AQUISIÇÃO) | AC14: 1 | AD14: 2 | AE14: 3
C15: =H12 -> 2024-07-01 | E15: REFINARIAS | F15: ENDEREÇO | G15: ESTADO | H15: CIDADE | I15: DESTINO | J15: ESTADO | K15: REGIÃO | L15: R$/t | M15: R$/t | N15: R$/t | O15: KM | P15: KM | Q15: R$/t | R15: R$/t | S15: R$/t | T15: R$/t | U15: R$/t | V15: R$/t | W15: CUSTO | X15: R$/t | Y15: R$/t | Z15: R$/t | AA15: R$/t | AC15: TOTAL GERAL ( TRANSP + AQUISIÇÃO) | AD15: TOTAL TRANSPORTE | AE15: AQUISIÇÃO DO PRODUTO
B16: =AA16 -> 3774.539639 | C16: 1 | D16: =I10 -> EMULSÕES ASFÁLTICAS RR-1C | E16: 'CENTRO OESTE ASFALTOS LTDA. | F16: SETOR DE INFLAMÁVEIS, S/N TRECHO 02 - LOTE 1.100 - GUARÁ - CEP:71225-000 | G16: Distrito Federal | H16: BRASÍLIA - DF | I16: Paracatu - MG | J16: =VLOOKUP(G16,OFFSET('ANP ESTADO'!$A$1,MATCH($I$10,'ANP ESTADO'!B:B,0)+MATCH($H$13,OFFSET('ANP ESTADO'!$A$1,MATCH($I$10,'ANP ESTADO'!B:B,0),0,100000,1),0),2,100000,2),2,FALSE) -> - | K16: =VLOOKUP($H$13,OFFSET('ANP REGIÃO'!$A$9,MATCH('Transporte RR-1C'!$I$10,'ANP REGIÃO'!A:A,0),1,10000,10000),MATCH('Transporte RR-1C'!AH16,'ANP REGIÃO'!$B$8:$G$8,0),FALSE) -> 2.777249639 | L16: =IF(AND(J16="-",K16="-"),"",IF(AND(J16<>0,K16="-"),J16*1000,IF(AND(J16="-",K16<>0),K16*1000,IF(AND(J16<>0,K16<>0),J16*1000,"")))) -> 2777.249639 | M16: =ROUND(((L16/(1-$O$10-$O$11-$O$12))-L16),2) -> 767.42 | N16: =L16+M16 -> 3544.669639 | O16: 235 | P16: 0 | Q16: =ROUND((26.939+0.253*O16),2) -> 86.39 | S16: =R16+Q16 -> 86.39 | T16: =TRUNC(S16*($O$12/(1-$O$12)),2) -> 18.96 | U16: =TRUNC(IF($J$11="","",(($J$12-$J$11)/$J$11)*(Q16+T16)),2) -> 118.52 | V16: =S16+T16+U16 -> 223.87 | W16: 75.6 | X16: =EVEN(' CONSUMO DE MAT. B TOTAL'!$O$14*2/28)*W16/' CONSUMO DE MAT. B TOTAL'!$O$14 -> 6 | Y16: =IF(AND(Q16="",T16=""),"",V16+X16) -> 229.87 | Z16: =IF(OR(L16="",M16=""),"",L16+M16) -> 3544.669639 | AA16: =IF(OR(Y16="",Z16=""),"",Y16+Z16) -> 3774.539639 | AC16: =AA16 -> 3774.539639 | AD16: =Y16 -> 229.87 | AE16: =Z16 -> 3544.669639 | AH16: =IF(OR(G16=$D$61,G16=$D$62,G16=$D$64,G16=$D$70,G16=$D$54,G16=$D$50,G16=$D$46,G16=$D$59,G16=$D$49),"NORDESTE",IF(OR(G16=$D$45,G16=$D$47,G16=$D$48,G16=$D$58,G16=$D$66,G16=$D$67,G16=$D$71),"NORTE",IF(OR(G16=$D$51,G16=$D$53,G16=$D$55,G16=$D$56),"CENTRO-OESTE",IF(OR(G16=$D$69,G16=$D$63,G16=$D$57,G16=$D$52),"SUDESTE",IF(OR(G16=$D$68,G16=$D$60,G16=$D$65),"SUL",""))))) -> CENTRO-OESTE
B17: =AA17 -> 3572.345155 | C17: 3 | E17: STRATURA ASFALTOS S/A | F17: AVENIDA PRESIDENTE WILSON, 08 - JUNDIAÍ - CEP:75115-100 | G17: Goiás | H17: ANÁPOLIS - GO | I17: Paracatu - MG | J17: =VLOOKUP(G17,OFFSET('ANP ESTADO'!$A$1,MATCH($I$10,'ANP ESTADO'!B:B,0)+MATCH($H$13,OFFSET('ANP ESTADO'!$A$1,MATCH($I$10,'ANP ESTADO'!B:B,0),0,100000,1),0),2,100000,2),2,FALSE) -> 2.565909441 | K17: =VLOOKUP($H$13,OFFSET('ANP REGIÃO'!$A$9,MATCH('Transporte RR-1C'!$I$10,'ANP REGIÃO'!A:A,0),1,10000,10000),MATCH('Transporte RR-1C'!AH17,'ANP REGIÃO'!$B$8:$G$8,0),FALSE) -> 2.777249639 | L17: =IF(AND(J17="-",K17="-"),"",IF(AND(J17<>0,K17="-"),J17*1000,IF(AND(J17="-",K17<>0),K17*1000,IF(AND(J17<>0,K17<>0),J17*1000,"")))) -> 2565.909441 | M17: =ROUND(((L17/(1-$O$10-$O$11-$O$12))-L17),2) -> 709.02 | N17: =L17+M17 -> 3274.929441 | O17: 333 | P17: 0 | Q17: =ROUND((26.939+0.253*O17),2) -> 111.19 | S17: =R17+Q17 -> 111.19 | T17: =TRUNC(S17*($O$12/(1-$O$12)),2) -> 24.4 | U17: =TRUNC(IF($J$11="","",(($J$12-$J$11)/$J$11)*(Q17+T17)),2) -> 152.54 | V17: =S17+T17+U17 -> 288.13 | W17: 117 | X17: =EVEN(' CONSUMO DE MAT. B TOTAL'!$O$14*2/28)*W17/' CONSUMO DE MAT. B TOTAL'!$O$14 -> 9.285714286 | Y17: 297.4157143 | Z17: 3274.929441 | AA17: =IF(OR(Y17="",Z17=""),"",Y17+Z17) -> 3572.345155 | AC17: =AA17 -> 3572.345155 | AD17: =Y17 -> 297.4157143 | AE17: 3274.929441 | AH17: =IF(OR(G17=$D$61,G17=$D$62,G17=$D$64,G17=$D$70,G17=$D$54,G17=$D$50,G17=$D$46,G17=$D$59,G17=$D$49),"NORDESTE",IF(OR(G17=$D$45,G17=$D$47,G17=$D$48,G17=$D$58,G17=$D$66,G17=$D$67,G17=$D$71),"NORTE",IF(OR(G17=$D$51,G17=$D$53,G17=$D$55,G17=$D$56),"CENTRO-OESTE",IF(OR(G17=$D$69,G17=$D$63,G17=$D$57,G17=$D$52),"SUDESTE",IF(OR(G17=$D$68,G17=$D$60,G17=$D$65),"SUL",""))))) -> CENTRO-OESTE
B18: 3610.369441 | C18: 4 | E18: DISTRIBUIDORA BRASILEIRA DE ASFALTO SA - DISBRAL | F18: VIA PRIMARIA 8, S/N QD-18, MODS. 24/47 - DAIAG - CEP:74980-970 | G18: Goiás | H18: APARECIDA DE GOIANIA - GO | I18: Paracatu - MG | J18: =VLOOKUP(G18,OFFSET('ANP ESTADO'!$A$1,MATCH($I$10,'ANP ESTADO'!B:B,0)+MATCH($H$13,OFFSET('ANP ESTADO'!$A$1,MATCH($I$10,'ANP ESTADO'!B:B,0),0,100000,1),0),2,100000,2),2,FALSE) -> 2.565909441 | K18: =VLOOKUP($H$13,OFFSET('ANP REGIÃO'!$A$9,MATCH('Transporte RR-1C'!$I$10,'ANP REGIÃO'!A:A,0),1,10000,10000),MATCH('Transporte RR-1C'!AH18,'ANP REGIÃO'!$B$8:$G$8,0),FALSE) -> 2.777249639 | L18: 2565.909441 | M18: 709.02 | N18: 3274.929441 | O18: 396 | P18: 0 | Q18: 127.13 | S18: 127.13 | T18: 27.9 | U18: 174.41 | V18: 329.44 | W18: 75.6 | X18: =EVEN(' CONSUMO DE MAT. B TOTAL'!$O$14*2/28)*W18/' CONSUMO DE MAT. B TOTAL'!$O$14 -> 6 | Y18: 335.44 | Z18: 3274.929441 | AA18: 3610.369441 | AC18: 3610.369441 | AD18: 335.44 | AE18: 3274.929441 | AH18: CENTRO-OESTE
A19: 2403 | B19: 3624.139441 | C19: 5 | E19: INDÚSTRIA NACIONAL DE ASFALTOS LTDA. | F19: VIA PRIMEIRA E SEGUNDA 3, S/N.º LOTES 01 A 10 - DISTRITO AGROINDUSTRIAL - CEP:75370-000 | G19: Goiás | H19: GOIANIRA - GO | I19: Paracatu - MG | J19: =VLOOKUP(G19,OFFSET('ANP ESTADO'!$A$1,MATCH($I$10,'ANP ESTADO'!B:B,0)+MATCH($H$13,OFFSET('ANP ESTADO'!$A$1,MATCH($I$10,'ANP ESTADO'!B:B,0),0,100000,1),0),2,100000,2),2,FALSE) -> 2.565909441 | K19: =VLOOKUP($H$13,OFFSET('ANP REGIÃO'!$A$9,MATCH('Transporte RR-1C'!$I$10,'ANP REGIÃO'!A:A,0),1,10000,10000),MATCH('Transporte RR-1C'!AH19,'ANP REGIÃO'!$B$8:$G$8,0),FALSE) -> 2.777249639 | L19: 2565.909441 | M19: 709.02 | N19: 3274.929441 | O19: 417 | P19: 0 | Q19: 132.44 | S19: 132.44 | T19: 29.07 | U19: 181.7 | V19: 343.21 | W19: 75.6 | X19: =EVEN(' CONSUMO DE MAT. B TOTAL'!$O$14*2/28)*W19/' CONSUMO DE MAT. B TOTAL'!$O$14 -> 6 | Y19: 349.21 | Z19: 3274.929441 | AA19: 3624.139441 | AC19: 3624.139441 | AD19: 349.21 | AE19: 3274.929441 | AH19: CENTRO-OESTE
B20: 3387.346751 | C20: 6 | E20: STRATURA ASFALTOS S/A | F20: RUA VICTOR RODRIGUES RESENDE, 333 - DISTRITO IND. DE UBERLÂNDIA - CEP:38405-440 | G20: Minas Gerais | H20: UBERLANDIA - MG | I20: Paracatu - MG | J20: =VLOOKUP(G20,OFFSET('ANP ESTADO'!$A$1,MATCH($I$10,'ANP ESTADO'!B:B,0)+MATCH($H$13,OFFSET('ANP ESTADO'!$A$1,MATCH($I$10,'ANP ESTADO'!B:B,0),0,100000,1),0),2,100000,2),2,FALSE) -> 2.414631513 | K20: =VLOOKUP($H$13,OFFSET('ANP REGIÃO'!$A$9,MATCH('Transporte RR-1C'!$I$10,'ANP REGIÃO'!A:A,0),1,10000,10000),MATCH('Transporte RR-1C'!AH20,'ANP REGIÃO'!$B$8:$G$8,0),FALSE) -> 2.55680471 | L20: 2414.631513 | M20: 667.22 | N20: 3081.851513 | O20: 338 | P20: 0 | Q20: 112.45 | S20: 112.45 | T20: 24.68 | U20: 154.27 | V20: 291.4 | W20: 177.6 | X20: =EVEN(' CONSUMO DE MAT. B TOTAL'!$O$14*2/28)*W20/' CONSUMO DE MAT. B TOTAL'!$O$14 -> 14.0952381 | Y20: 305.4952381 | Z20: 3081.851513 | AA20: 3387.346751 | AC20: 3387.346751 | AD20: 305.4952381 | AE20: 3081.851513 | AH20: SUDESTE
B21: 3392.976751 | C21: 7 | E21: BETUNEL INDÚSTRIA E COMÉRCIO LTDA. | F21: RUA VICTOR RODRIGUES DE REZENDE, 185 - DISTRITO INDUSTRIAL - CEP:38402-334 | G21: Minas Gerais | H21: UBERLANDIA - MG | I21: Paracatu - MG | J21: =VLOOKUP(G21,OFFSET('ANP ESTADO'!$A$1,MATCH($I$10,'ANP ESTADO'!B:B,0)+MATCH($H$13,OFFSET('ANP ESTADO'!$A$1,MATCH($I$10,'ANP ESTADO'!B:B,0),0,100000,1),0),2,100000,2),2,FALSE) -> 2.414631513 | K21: =VLOOKUP($H$13,OFFSET('ANP REGIÃO'!$A$9,MATCH('Transporte RR-1C'!$I$10,'ANP REGIÃO'!A:A,0),1,10000,10000),MATCH('Transporte RR-1C'!AH21,'ANP REGIÃO'!$B$8:$G$8,0),FALSE) -> 2.55680471 | L21: 2414.631513 | M21: 667.22 | N21: 3081.851513 | O21: 342 | P21: 0 | Q21: 113.47 | S21: 113.47 | T21: 24.9 | U21: 155.66 | V21: 294.03 | W21: 215.4 | X21: =EVEN(' CONSUMO DE MAT. B TOTAL'!$O$14*2/28)*W21/' CONSUMO DE MAT. B TOTAL'!$O$14 -> 17.0952381 | Y21: 311.1252381 | Z21: 3081.851513 | AA21: 3392.976751 | AC21: 3392.976751 | AD21: 311.1252381 | AE21: 3081.851513 | AH21: SUDESTE
B22: 5873.558505 | C22: 8 | E22: ARAPETRO DISTRIBUIDORA DE PETRÓLEO LTDA. | F22: RUA 04, S/N° LOTES 17 A 20. - DISTRITO INDUSTRIAL 1/8 - CEP:78600-000 | G22: Mato grosso | H22: BARRA DO GARCAS - MT | I22: Paracatu - MG | J22: =VLOOKUP(G22,OFFSET('ANP ESTADO'!$A$1,MATCH($I$10,'ANP ESTADO'!B:B,0)+MATCH($H$13,OFFSET('ANP ESTADO'!$A$1,MATCH($I$10,'ANP ESTADO'!B:B,0),0,100000,1),0),2,100000,2),2,FALSE) -> 4.165498505 | K22: =VLOOKUP($H$13,OFFSET('ANP REGIÃO'!$A$9,MATCH('Transporte RR-1C'!$I$10,'ANP REGIÃO'!A:A,0),1,10000,10000),MATCH('Transporte RR-1C'!AH22,'ANP REGIÃO'!$B$8:$G$8,0),FALSE) -> 2.777249639 | L22: =IF(AND(J22="-",K22="-"),"",IF(AND(J22<>0,K22="-"),J22*1000,IF(AND(J22="-",K22<>0),K22*1000,IF(AND(J22<>0,K22<>0),J22*1000,"")))) -> 4165.498505 | M22: =ROUND(((L22/(1-$O$10-$O$11-$O$12))-L22),2) -> 1151.03 | N22: 5316.528505 | O22: 734 | P22: 0 | Q22: 212.64 | S22: 212.64 | T22: 46.67 | U22: 291.72 | V22: 551.03 | W22: 75.6 | X22: =EVEN(' CONSUMO DE MAT. B TOTAL'!$O$14*2/28)*W22/' CONSUMO DE MAT. B TOTAL'!$O$14 -> 6 | Y22: 557.03 | Z22: 5316.528505 | AA22: 5873.558505 | AH22: CENTRO-OESTE
B23: 3509.271513 | C23: 9 | E23: DISTRIBUIDORA BRASILEIRA DE ASFALTO SA - DISBRAL | F23: SÃO JUDAS TADEU, 288 - DISTRITO INDUSTRIAL - CEP:32450-000 | G23: Minas Gerais | H23: SARZEDO - MG | I23: Paracatu - MG | J23: =VLOOKUP(G23,OFFSET('ANP ESTADO'!$A$1,MATCH($I$10,'ANP ESTADO'!B:B,0)+MATCH($H$13,OFFSET('ANP ESTADO'!$A$1,MATCH($I$10,'ANP ESTADO'!B:B,0),0,100000,1),0),2,100000,2),2,FALSE) -> 2.414631513 | K23: =VLOOKUP($H$13,OFFSET('ANP REGIÃO'!$A$9,MATCH('Transporte RR-1C'!$I$10,'ANP REGIÃO'!A:A,0),1,10000,10000),MATCH('Transporte RR-1C'!AH23,'ANP REGIÃO'!$B$8:$G$8,0),FALSE) -> 2.55680471 | L23: 2414.631513 | M23: 667.22 | N23: 3081.851513 | O23: 518 | P23: 0 | Q23: 157.99 | S23: 157.99 | T23: 34.68 | U23: 216.75 | V23: 409.42 | W23: 226.8 | X23: =EVEN(' CONSUMO DE MAT. B TOTAL'!$O$14*2/28)*W23/' CONSUMO DE MAT. B TOTAL'!$O$14 -> 18 | Y23: 427.42 | Z23: 3081.851513 | AA23: 3509.271513 | AH23: SUDESTE
B24: 5388.12266 | C24: 10 | E24: 'INDÚSTRIA NACIONAL DE ASFALTOS LTDA. | F24: INDÚSTRIA NACIONAL DE ASFALTOS LTDA - CEP:77053-080 | G24: Tocantins | H24: PALMAS - TO | I24: Paracatu - MG | J24: =VLOOKUP(G24,OFFSET('ANP ESTADO'!$A$1,MATCH($I$10,'ANP ESTADO'!B:B,0)+MATCH($H$13,OFFSET('ANP ESTADO'!$A$1,MATCH($I$10,'ANP ESTADO'!B:B,0),0,100000,1),0),2,100000,2),2,FALSE) -> - | K24: =VLOOKUP($H$13,OFFSET('ANP REGIÃO'!$A$9,MATCH('Transporte RR-1C'!$I$10,'ANP REGIÃO'!A:A,0),1,10000,10000),MATCH('Transporte RR-1C'!AH24,'ANP REGIÃO'!$B$8:$G$8,0),FALSE) -> 3.601339327 | L24: 3601.339327 | M24: 995.14 | N24: 4596.479327 | O24: 1041 | P24: 0 | Q24: 290.31 | S24: 290.31 | T24: 63.72 | U24: =TRUNC(IF($J$11="","",(($J$12-$J$11)/$J$11)*(Q24+T24)),2) -> 398.28 | V24: 752.31 | W24: 495.6 | X24: =EVEN(' CONSUMO DE MAT. B TOTAL'!$O$14*2/28)*W24/' CONSUMO DE MAT. B TOTAL'!$O$14 -> 39.33333333 | Y24: 791.6433333 | Z24: 4596.479327 | AA24: 5388.12266 | AH24: NORTE
B25: 4221.03973 | C25: 11 | E25: 'NTA - NOVAS TÉCNICAS DE ASFALTOS S/A | F25: RUA SOFIA ATAURI FADIN, 150 SALA A - B. SANTA TEREZINHA - CEP:13140-000 | G25: São Paulo | H25: PAULINIA - SP | I25: Paracatu - MG | J25: =VLOOKUP(G25,OFFSET('ANP ESTADO'!$A$1,MATCH($I$10,'ANP ESTADO'!B:B,0)+MATCH($H$13,OFFSET('ANP ESTADO'!$A$1,MATCH($I$10,'ANP ESTADO'!B:B,0),0,100000,1),0),2,100000,2),2,FALSE) -> 2.821088302 | K25: =VLOOKUP($H$13,OFFSET('ANP REGIÃO'!$A$9,MATCH('Transporte RR-1C'!$I$10,'ANP REGIÃO'!A:A,0),1,10000,10000),MATCH('Transporte RR-1C'!AH25,'ANP REGIÃO'!$B$8:$G$8,0),FALSE) -> 2.55680471 | L25: 2821.088302 | M25: =ROUND(((L25/(1-$O$10-$O$11-$O$12))-L25),2) -> 779.53 | N25: 3600.618302 | O25: 752 | P25: 0 | Q25: 217.2 | S25: 217.2 | T25: 47.67 | U25: 297.98 | V25: 562.85 | W25: 725.4 | X25: =EVEN(' CONSUMO DE MAT. B TOTAL'!$O$14*2/28)*W25/' CONSUMO DE MAT. B TOTAL'!$O$14 -> 57.57142857 | Y25: 620.4214286 | Z25: 3600.618302 | AA25: 4221.03973 | AC25: 4221.03973 | AD25: 620.4214286 | AE25: 3600.618302 | AH25: SUDESTE
B26: 4299.739254 | C26: 12 | E26: COMPANHIA BRASILEIRA DE ASFALTOS DA AMAZÔNIA - IMPORTAÇÃO E EXPORTAÇÃO | F26: Avenida Doutor Olindo Dártora 2451, Galpão 02, Morro Grande - CEP:07726-555 | G26: São Paulo | H26: CAIEIRAS - SP | I26: Paracatu - MG | J26: =VLOOKUP(G26,OFFSET('ANP ESTADO'!$A$1,MATCH($I$10,'ANP ESTADO'!B:B,0)+MATCH($H$13,OFFSET('ANP ESTADO'!$A$1,MATCH($I$10,'ANP ESTADO'!B:B,0),0,100000,1),0),2,100000,2),2,FALSE) -> 2.821088302 | K26: =VLOOKUP($H$13,OFFSET('ANP REGIÃO'!$A$9,MATCH('Transporte RR-1C'!$I$10,'ANP REGIÃO'!A:A,0),1,10000,10000),MATCH('Transporte RR-1C'!AH26,'ANP REGIÃO'!$B$8:$G$8,0),FALSE) -> 2.55680471 | L26: 2821.088302 | M26: =ROUND(((L26/(1-$O$10-$O$11-$O$12))-L26),2) -> 779.53 | N26: 3600.618302 | O26: 851 | P26: 0 | Q26: 242.24 | S26: 242.24 | T26: 53.17 | U26: 332.33 | V26: 627.74 | W26: 899.4 | X26: =EVEN(' CONSUMO DE MAT. B TOTAL'!$O$14*2/28)*W26/' CONSUMO DE MAT. B TOTAL'!$O$14 -> 71.38095238 | Y26: 699.1209524 | Z26: 3600.618302 | AA26: 4299.739254 | AH26: SUDESTE
B27: 4333.368713 | C27: 13 | E27: BETUNEL INDÚSTRIA E COMÉRCIO LTDA. | F27: R 16 , 82, Vila Nova Campo Grande - CEP:79.103-834 | G27: Mato Grosso do Sul | H27: CAMPO GRANDE - MS | I27: Paracatu - MG | J27: =VLOOKUP(G27,OFFSET('ANP ESTADO'!$A$1,MATCH($I$10,'ANP ESTADO'!B:B,0)+MATCH($H$13,OFFSET('ANP ESTADO'!$A$1,MATCH($I$10,'ANP ESTADO'!B:B,0),0,100000,1),0),2,100000,2),2,FALSE) -> 2.761013475 | K27: =VLOOKUP($H$13,OFFSET('ANP REGIÃO'!$A$9,MATCH('Transporte RR-1C'!$I$10,'ANP REGIÃO'!A:A,0),1,10000,10000),MATCH('Transporte RR-1C'!AH27,'ANP REGIÃO'!$B$8:$G$8,0),FALSE) -> 2.777249639 | L27: 2761.013475 | M27: =ROUND(((L27/(1-$O$10-$O$11-$O$12))-L27),2) -> 762.93 | N27: 3523.943475 | O27: 1102 | P27: 0 | Q27: 305.75 | S27: 305.75 | T27: 67.11 | U27: 419.47 | V27: 792.33 | W27: 215.4 | X27: =EVEN(' CONSUMO DE MAT. B TOTAL'!$O$14*2/28)*W27/' CONSUMO DE MAT. B TOTAL'!$O$14 -> 17.0952381 | Y27: 809.4252381 | Z27: 3523.943475 | AA27: 4333.368713 | AH27: CENTRO-OESTE
B28: 6241.735648 | C28: 14 | E28: CENTRO OESTE ASFALTOS LTDA. | F28: RUA N, S/N.º LOTES 39/43 E LOTES 129/133 - DISTRITO INDUSTRIAL - CEP:78098-400 | G28: Mato Grosso | H28: CUIABA - MT | I28: Paracatu - MG | J28: =VLOOKUP(G28,OFFSET('ANP ESTADO'!$A$1,MATCH($I$10,'ANP ESTADO'!B:B,0)+MATCH($H$13,OFFSET('ANP ESTADO'!$A$1,MATCH($I$10,'ANP ESTADO'!B:B,0),0,100000,1),0),2,100000,2),2,FALSE) -> 4.165498505 | K28: =VLOOKUP($H$13,OFFSET('ANP REGIÃO'!$A$9,MATCH('Transporte RR-1C'!$I$10,'ANP REGIÃO'!A:A,0),1,10000,10000),MATCH('Transporte RR-1C'!AH28,'ANP REGIÃO'!$B$8:$G$8,0),FALSE) -> 2.777249639 | L28: 4165.498505 | M28: 1151.03 | N28: 5316.528505 | O28: 1282 | P28: 0 | Q28: 351.29 | S28: 351.29 | T28: 77.11 | U28: 481.95 | V28: 910.35 | W28: 187.2 | X28: =EVEN(' CONSUMO DE MAT. B TOTAL'!$O$14*2/28)*W28/' CONSUMO DE MAT. B TOTAL'!$O$14 -> 14.85714286 | Y28: 925.2071429 | Z28: 5316.528505 | AA28: 6241.735648 | AH28: CENTRO-OESTE
B29: 6237.109775 | C29: 15 | E29: BETUNEL INDÚSTRIA E COMÉRCIO LTDA. | F29: RUA N ESQUINA COM RUA X, S/N QD. IND. 7 L 01/08 - DIST. IND. - CEP:78015-285 | G29: Mato Grosso | H29: CUIABA - MT | I29: Paracatu - MG | J29: =VLOOKUP(G29,OFFSET('ANP ESTADO'!$A$1,MATCH($I$10,'ANP ESTADO'!B:B,0)+MATCH($H$13,OFFSET('ANP ESTADO'!$A$1,MATCH($I$10,'ANP ESTADO'!B:B,0),0,100000,1),0),2,100000,2),2,FALSE) -> 4.165498505 | K29: =VLOOKUP($H$13,OFFSET('ANP REGIÃO'!$A$9,MATCH('Transporte RR-1C'!$I$10,'ANP REGIÃO'!A:A,0),1,10000,10000),MATCH('Transporte RR-1C'!AH29,'ANP REGIÃO'!$B$8:$G$8,0),FALSE) -> 2.777249639 | L29: 4165.498505 | M29: 1151.03 | N29: 5316.528505 | O29: 1275 | P29: 0 | Q29: 349.51 | S29: 349.51 | T29: 76.72 | U29: 479.51 | V29: 905.74 | W29: 187 | X29: =EVEN(' CONSUMO DE MAT. B TOTAL'!$O$14*2/28)*W29/' CONSUMO DE MAT. B TOTAL'!$O$14 -> 14.84126984 | Y29: 920.5812698 | Z29: 5316.528505 | AA29: 6237.109775 | AH29: CENTRO-OESTE
B30: 6242.375648 | C30: 16 | E30: EMAM - EMULSÕES E TRANSPORTES LTDA. | F30: RODOVIA DOS IMIGRANTES, S/Nº KM 8,6 - - CEP:60035-351 | G30: Mato Grosso | H30: VARZEA GRANDE - MT | I30: Paracatu - MG | J30: =VLOOKUP(G30,OFFSET('ANP ESTADO'!$A$1,MATCH($I$10,'ANP ESTADO'!B:B,0)+MATCH($H$13,OFFSET('ANP ESTADO'!$A$1,MATCH($I$10,'ANP ESTADO'!B:B,0),0,100000,1),0),2,100000,2),2,FALSE) -> 4.165498505 | K30: =VLOOKUP($H$13,OFFSET('ANP REGIÃO'!$A$9,MATCH('Transporte RR-1C'!$I$10,'ANP REGIÃO'!A:A,0),1,10000,10000),MATCH('Transporte RR-1C'!AH30,'ANP REGIÃO'!$B$8:$G$8,0),FALSE) -> 2.777249639 | L30: 4165.498505 | M30: =ROUND(((L30/(1-$O$10-$O$11-$O$12))-L30),2) -> 1151.03 | N30: 5316.528505 | O30: 1283 | P30: 0 | Q30: 351.54 | S30: 351.54 | T30: 77.16 | U30: 482.29 | V30: 910.99 | W30: 187.2 | X30: =EVEN(' CONSUMO DE MAT. B TOTAL'!$O$14*2/28)*W30/' CONSUMO DE MAT. B TOTAL'!$O$14 -> 14.85714286 | Y30: 925.8471429 | Z30: 5316.528505 | AA30: 6242.375648 | AC30: 6242.375648 | AD30: 925.8471429 | AE30: 5316.528505 | AH30: CENTRO-OESTE
B31: 4365.425921 | C31: 17 | E31: VIAPOL LTDA. | F31: VITO ARDITO, 6401 KM 118,5 - JARDIM CAMPO GRANDE - CEP:12282-535 | G31: São Paulo | H31: CACAPAVA - SP | I31: Paracatu - MG | J31: =VLOOKUP(G31,OFFSET('ANP ESTADO'!$A$1,MATCH($I$10,'ANP ESTADO'!B:B,0)+MATCH($H$13,OFFSET('ANP ESTADO'!$A$1,MATCH($I$10,'ANP ESTADO'!B:B,0),0,100000,1),0),2,100000,2),2,FALSE) -> 2.821088302 | K31: =VLOOKUP($H$13,OFFSET('ANP REGIÃO'!$A$9,MATCH('Transporte RR-1C'!$I$10,'ANP REGIÃO'!A:A,0),1,10000,10000),MATCH('Transporte RR-1C'!AH31,'ANP REGIÃO'!$B$8:$G$8,0),FALSE) -> 2.55680471 | L31: 2821.088302 | M31: 779.53 | N31: 3600.618302 | O31: 941 | P31: 0 | Q31: 265.01 | S31: 265.01 | T31: 58.17 | U31: 363.58 | V31: 686.76 | W31: 983.4 | X31: =EVEN(' CONSUMO DE MAT. B TOTAL'!$O$14*2/28)*W31/' CONSUMO DE MAT. B TOTAL'!$O$14 -> 78.04761905 | Y31: 764.807619 | Z31: 3600.618302 | AA31: 4365.425921 | AC31: 4365.425921 | AD31: 764.807619 | AE31: 3600.618302 | AH31: SUDESTE
B32: 3982.698995 | C32: 18 | E32: STRATURA ASFALTOS S/A | F32: RUA LUIS DE CAMÕES, 26 - CAMPOS ELÍSEOS - CEP:25225-030 | G32: Rio de Janeiro | H32: DUQUE DE CAXIAS - RJ | I32: Paracatu - MG | J32: =VLOOKUP(G32,OFFSET('ANP ESTADO'!$A$1,MATCH($I$10,'ANP ESTADO'!B:B,0)+MATCH($H$13,OFFSET('ANP ESTADO'!$A$1,MATCH($I$10,'ANP ESTADO'!B:B,0),0,100000,1),0),2,100000,2),2,FALSE) -> - | K32: =VLOOKUP($H$13,OFFSET('ANP REGIÃO'!$A$9,MATCH('Transporte RR-1C'!$I$10,'ANP REGIÃO'!A:A,0),1,10000,10000),MATCH('Transporte RR-1C'!AH32,'ANP REGIÃO'!$B$8:$G$8,0),FALSE) -> 2.55680471 | L32: 2556.80471 | M32: 706.51 | N32: 3263.31471 | O32: 918 | P32: 0 | Q32: 259.19 | S32: 259.19 | T32: 56.89 | U32: 355.59 | V32: 671.67 | W32: 601.2 | X32: =EVEN(' CONSUMO DE MAT. B TOTAL'!$O$14*2/28)*W32/' CONSUMO DE MAT. B TOTAL'!$O$14 -> 47.71428571 | Y32: 719.3842857 | Z32: 3263.31471 | AA32: 3982.698995 | AC32: 3982.698995 | AD32: 719.3842857 | AE32: 3263.31471 | AH32: SUDESTE
B33: 3992.538995 | C33: 19 | E33: PROBITEC - PRODUTOS BETUMINOSOS E TECNOLOGIA DE APLICAÇÃO LTDA. | F33: AVENIDA CANAL DA PAVUNA, 620 - PAVUNA - CEP:21535-630 | G33: Rio de Janeiro | H33: RIO DE JANEIRO - RJ | I33: Paracatu - MG | J33: =VLOOKUP(G33,OFFSET('ANP ESTADO'!$A$1,MATCH($I$10,'ANP ESTADO'!B:B,0)+MATCH($H$13,OFFSET('ANP ESTADO'!$A$1,MATCH($I$10,'ANP ESTADO'!B:B,0),0,100000,1),0),2,100000,2),2,FALSE) -> - | K33: =VLOOKUP($H$13,OFFSET('ANP REGIÃO'!$A$9,MATCH('Transporte RR-1C'!$I$10,'ANP REGIÃO'!A:A,0),1,10000,10000),MATCH('Transporte RR-1C'!AH33,'ANP REGIÃO'!$B$8:$G$8,0),FALSE) -> 2.55680471 | L33: 2556.80471 | M33: 706.51 | N33: 3263.31471 | O33: 933 | P33: 0 | Q33: 262.99 | S33: 262.99 | T33: 57.72 | U33: 360.8 | V33: 681.51 | W33: 601.2 | X33: =EVEN(' CONSUMO DE MAT. B TOTAL'!$O$14*2/28)*W33/' CONSUMO DE MAT. B TOTAL'!$O$14 -> 47.71428571 | Y33: 729.2242857 | Z33: 3263.31471 | AA33: 3992.538995 | AC33: 3992.538995 | AD33: 729.2242857 | AE33: 3263.31471 | AH33: SUDESTE
B34: 3986.913989 | C34: 20 | E34: CASA DO ASFALTO DISTRIBUIDORA, INDÚSTRIA E COMÉRCIO DE ASFALTO LTDA. | F34: BR 376, PARQUE INDUSTRIAL, S/N LOTE 6/7/7-A-3-1 - GL.PATR.MARIALVA - CEP:86990-000 | G34: Paraná | H34: MARIALVA - PR | I34: Paracatu - MG | J34: =VLOOKUP(G34,OFFSET('ANP ESTADO'!$A$1,MATCH($I$10,'ANP ESTADO'!B:B,0)+MATCH($H$13,OFFSET('ANP ESTADO'!$A$1,MATCH($I$10,'ANP ESTADO'!B:B,0),0,100000,1),0),2,100000,2),2,FALSE) -> 2.466405894 | K34: =VLOOKUP($H$13,OFFSET('ANP REGIÃO'!$A$9,MATCH('Transporte RR-1C'!$I$10,'ANP REGIÃO'!A:A,0),1,10000,10000),MATCH('Transporte RR-1C'!AH34,'ANP REGIÃO'!$B$8:$G$8,0),FALSE) -> 2.468814007 | L34: 2466.405894 | M34: 681.53 | N34: 3147.935894 | O34: 1079 | P34: 0 | Q34: 299.93 | S34: 299.93 | T34: 65.83 | U34: 411.48 | V34: 777.24 | W34: 777.9 | X34: =EVEN(' CONSUMO DE MAT. B TOTAL'!$O$14*2/28)*W34/' CONSUMO DE MAT. B TOTAL'!$O$14 -> 61.73809524 | Y34: 838.9780952 | Z34: 3147.935894 | AA34: 3986.913989 | AC34: 3986.913989 | AD34: 838.9780952 | AE34: 3147.935894 | AH34: SUL
B35: 4030.561132 | C35: 21 | E35: PETROBRAS DISTRIBUIDORA S.A. | F35: RUA MAQUINISTA ELEODORO JACINTO, 100 - OFICINAS - CEP:84045-170 | G35: Paraná | H35: PONTA GROSSA - PR | I35: Paracatu - MG | J35: =VLOOKUP(G35,OFFSET('ANP ESTADO'!$A$1,MATCH($I$10,'ANP ESTADO'!B:B,0)+MATCH($H$13,OFFSET('ANP ESTADO'!$A$1,MATCH($I$10,'ANP ESTADO'!B:B,0),0,100000,1),0),2,100000,2),2,FALSE) -> 2.466405894 | K35: =VLOOKUP($H$13,OFFSET('ANP REGIÃO'!$A$9,MATCH('Transporte RR-1C'!$I$10,'ANP REGIÃO'!A:A,0),1,10000,10000),MATCH('Transporte RR-1C'!AH35,'ANP REGIÃO'!$B$8:$G$8,0),FALSE) -> 2.468814007 | L35: 2466.405894 | M35: 681.53 | N35: 3147.935894 | O35: 1129 | P35: 0 | Q35: 312.58 | S35: 312.58 | T35: 68.61 | U35: 428.84 | V35: 810.03 | W35: 914.7 | X35: =EVEN(' CONSUMO DE MAT. B TOTAL'!$O$14*2/28)*W35/' CONSUMO DE MAT. B TOTAL'!$O$14 -> 72.5952381 | Y35: 882.6252381 | Z35: 3147.935894 | AA35: 4030.561132 | AC35: 4030.561132 | AD35: 882.6252381 | AE35: 3147.935894 | AH35: SUL
D45: Acre
D46: Alagoas
D47: Amapá
D48: Amazonas
D49: Bahia
D50: Ceará
D51: Distrito Federal
D52: Espírito Santo
D53: Goiás
D54: Maranhão
D55: Mato Grosso
D56: Mato Grosso do Sul
D57: Minas Gerais
D58: Pará
D59: Paraíba
D60: Paraná
D61: Pernambuco
D62: Piauí
D63: Rio de Janeiro
D64: Rio Grande do Norte
D65: Rio Grande do Sul
D66: Rondônia
D67: Roraima
D68: Santa Catarina
D69: São Paulo
D70: Sergipe
D71: Tocantins
D75: ASFALTOS DILUÍDOS CM-30
D76: ASFALTOS DILUÍDOS CM-70
D77: ASFALTOS DILUÍDOS CR-250
D78: ASFALTOS DILUÍDOS CR-70
D79: CAP MODIFICADO POR BORRACHA DE PNEU AB22
D80: CAP MODIFICADO POR BORRACHA DE PNEU AB8
D81: CAP MODIFICADO POR POLÍMERO 55-75-E
D82: CAP MODIFICADO POR POLÍMERO 60-85-E
D83: CAP MODIFICADO POR POLÍMERO 65-90-E
D84: CIMENTOS ASFÁLTICOS CAP-150-200
D85: CIMENTOS ASFÁLTICOS CAP-30-45
D86: CIMENTOS ASFÁLTICOS CAP-50-70
D87: CIMENTOS ASFÁLTICOS CAP-85-100
D88: EMULSÃO ASFÁLTICA CATIÔNICA DE RUPTURA CONTROLADA PARA SERVIÇO DE LAMA ASFÁLTICA
D89: EMULSÃO ASFÁLTICA DE RUPTURA LENTA CATIÔNICA PARA SERVIÇO DE LAMA ASFÁLTICA
D90: EMULSÃO ASFÁLTICA DE RUPTURA LENTA DE CARGA NEUTRA PARA SERVIÇO DE LAMA ASFÁLTICA
D91: EMULSÃO ASFÁLTICA PARA SERVIÇO DE IMPRIMAÇÃO
D92: EMULSÕES ASF. MOD. POR POLÍMEROS RC1C-E
D93: EMULSÕES ASF. MOD. POR POLÍMEROS RL1C-E
D94: EMULSÕES ASF. MOD. POR POLÍMEROS RM1C-E
D95: EMULSÕES ASF. MOD. POR POLÍMEROS RR1C-E
D96: EMULSÕES ASF. MOD. POR POLÍMEROS RR2C-E
D97: EMULSÕES ASFÁLTICAS RL-1C
D98: EMULSÕES ASFÁLTICAS RM-1C
D99: EMULSÕES ASFÁLTICAS RM-2C
D100: EMULSÕES ASFÁLTICAS RR-1C
D101: EMULSÕES ASFÁLTICAS RR-2C

Sheet RESUMO_Transp
B8: REAJUSTE | E8: TIPOLOGIA DO MATERIAL | G8: LIGANTE BETUMINOSO | K8: IMPOSTOS | L8: COFINS | M8: ='Transporte Cap 50-70'!O10 -> 0.0065
C9: DATA INICIAL | F9: 2014-07-01 | G9: ÍNDICE INICIAL | H9: ='Transporte Cap 50-70'!J11 -> 270.237 | L9: PIS | M9: ='Transporte Cap 50-70'!O11 -> 0.03 | P9: LEGENDA
C10: DATA FINAL | F10: ='Transporte Cap 50-70'!H12 -> 2024-07-01 | G10: ÍNDICE FINAL | H10: ='Transporte Cap 50-70'!J12 -> 574.257 | L10: ICMS | M10: ='Transporte Cap 50-70'!O12 -> 0.18 | P10: ENTRADA DE DADOS
B12: DATA-BASE | C12: PRODUTOS | D12: LOCALIDADES | H12: CUSTO ANP (R$/Kg) | J12: CUSTO ANP | K12: IMPOSTOS DO PRODUTO | L12: CUSTO DO PRODUTO COM IMPOSTOS | M12: DMT's | N12: DMT's FLUVIAL | O12: CUSTO DO TRANSPORTE TOTAL | P12: ICMS | Q12: ATUALIZAÇÃO DO CUSTO DE TRANSPORTE | R12: CUSTO DO TRANSPORTE RODOVIA PAVIMENTADA COM IMPOSTOS E ATUALIZAÇÃO MONETÁRIA | S12: PEDÁGIO | U12: TOTAL TRANSPORTE | V12: TOTAL PRODUTO | W12: TOTAL GERAL
B13: =F10 -> 2024-07-01 | D13: REFINARIAS | E13: ENDEREÇO | F13: ORIGEM REFINARIAS / DISTRIBUIDORAS | G13: DESTINO | H13: ESTADO | I13: REGIÃO | J13: R$/t | K13: R$/t | L13: R$/t | M13: KM | N13: KM | O13: R$/t | P13: R$/t | Q13: R$/t | R13: R$/t | S13: CUSTO POR EIXO | T13: R$/t | U13: R$/t | V13: R$/t | W13: R$/t
B14: 1 | C14: CAP 50/70 | D14: Refinaria Abreu e Lima | E14: Rodovia PE 60, Km 10 - Ipojuca - PE CEP:55590-000 | F14: =VLOOKUP($W14,'Transporte Cap 50-70'!$B:$AA,7,FALSE) -> BETIM - MG | G14: =VLOOKUP($W14,'Transporte Cap 50-70'!$B:$AA,8,FALSE) -> Paracatu - MG | H14: =VLOOKUP($W14,'Transporte Cap 50-70'!$B:$AA,9,FALSE) -> 3.307833193 | I14: =VLOOKUP($W14,'Transporte Cap 50-70'!$B:$AA,10,FALSE) -> 3.343745889 | J14: =VLOOKUP($W14,'Transporte Cap 50-70'!$B:$AA,11,FALSE) -> 3307.833193 | K14: =VLOOKUP($W14,'Transporte Cap 50-70'!$B:$AA,12,FALSE) -> 914.03 | L14: =VLOOKUP($W14,'Transporte Cap 50-70'!$B:$AA,13,FALSE) -> 4221.863193 | M14: =VLOOKUP($W14,'Transporte Cap 50-70'!$B:$AA,14,FALSE) -> 510 | N14: =VLOOKUP($W14,'Transporte Cap 50-70'!$B:$AA,15,FALSE) -> 0 | O14: =VLOOKUP(W14,'Transporte Cap 50-70'!$B$16:$AA$28,18,0) -> 155.97 | P14: =VLOOKUP(W14,'Transporte Cap 50-70'!$B$16:$AA$28,19,0) -> 34.23 | Q14: =VLOOKUP(W14,'Transporte Cap 50-70'!$B$16:$AA$28,20,0) -> 213.97 | R14: =VLOOKUP(W14,'Transporte Cap 50-70'!$B$16:$AA$28,21,0) -> 404.17 | S14: =VLOOKUP(W14,'Transporte Cap 50-70'!$B$16:$AA$28,22,0) -> 0 | T14: =VLOOKUP(W14,'Transporte Cap 50-70'!$B$16:$AA$28,23,0) -> 0 | U14: =VLOOKUP(W14,'Transporte Cap 50-70'!$B$16:$AA$28,24,0) -> 404.17 | V14: =VLOOKUP(W14,'Transporte Cap 50-70'!$B$16:$AA$28,25,0) -> 4221.863193 | W14: =SMALL('Transporte Cap 50-70'!$AA:$AA,1) -> 4626.033193
B15: 2 | D15: Refinaria Potiguar Clara Camarão | E15: Rodovia RN 221, KM 25 - Guamaré - RN CEP:59598-000 | F15: =VLOOKUP($W15,'Transporte Cap 50-70'!$B:$AA,7,FALSE) -> DUQUE DE CAXIAS - RJ | G15: =VLOOKUP($W15,'Transporte Cap 50-70'!$B:$AA,8,FALSE) -> Paracatu - MG | H15: =VLOOKUP($W15,'Transporte Cap 50-70'!$B:$AA,9,FALSE) -> 3.225667238 | I15: =VLOOKUP($W15,'Transporte Cap 50-70'!$B:$AA,10,FALSE) -> 3.343745889 | J15: =VLOOKUP($W15,'Transporte Cap 50-70'!$B:$AA,11,FALSE) -> 3225.667238 | K15: =VLOOKUP($W15,'Transporte Cap 50-70'!$B:$AA,12,FALSE) -> 891.33 | L15: =VLOOKUP($W15,'Transporte Cap 50-70'!$B:$AA,13,FALSE) -> 4116.997238 | M15: =VLOOKUP($W15,'Transporte Cap 50-70'!$B:$AA,14,FALSE) -> 918 | N15: =VLOOKUP($W15,'Transporte Cap 50-70'!$B:$AA,15,FALSE) -> 0 | O15: =VLOOKUP(W15,'Transporte Cap 50-70'!$B$16:$AA$28,18,0) -> 259.19 | P15: =VLOOKUP(W15,'Transporte Cap 50-70'!$B$16:$AA$28,19,0) -> 56.89 | Q15: =VLOOKUP(W15,'Transporte Cap 50-70'!$B$16:$AA$28,20,0) -> 355.59 | R15: =VLOOKUP(W15,'Transporte Cap 50-70'!$B$16:$AA$28,21,0) -> 671.67 | S15: =VLOOKUP(W15,'Transporte Cap 50-70'!$B$16:$AA$28,22,0) -> 601.2 | T15: =VLOOKUP(W15,'Transporte Cap 50-70'!$B$16:$AA$28,23,0) -> 43.00503608 | U15: =VLOOKUP(W15,'Transporte Cap 50-70'!$B$16:$AA$28,24,0) -> 714.6750361 | V15: =VLOOKUP(W15,'Transporte Cap 50-70'!$B$16:$AA$28,25,0) -> 4116.997238 | W15: =SMALL('Transporte Cap 50-70'!$AA:$AA,2) -> 4831.672274
B16: 3 | D16: Complexo Petroquímico do Rio de Janeiro (Comperj) | E16: Rodovia Estadual RJ-116 - Km 5,2 - Acesso A-1, s/n, Complemento Sambaetiba - Zona Urbana do 4º Distrito de Itaboraí - RJ CEP:24841-203 | F16: =VLOOKUP($W16,'Transporte Cap 50-70'!$B:$AA,7,FALSE) -> PAULÍNIA - SP | G16: =VLOOKUP($W16,'Transporte Cap 50-70'!$B:$AA,8,FALSE) -> Paracatu - MG | H16: =VLOOKUP($W16,'Transporte Cap 50-70'!$B:$AA,9,FALSE) -> 3.341281628 | I16: =VLOOKUP($W16,'Transporte Cap 50-70'!$B:$AA,10,FALSE) -> 3.343745889 | J16: =VLOOKUP($W16,'Transporte Cap 50-70'!$B:$AA,11,FALSE) -> 3341.281628 | K16: =VLOOKUP($W16,'Transporte Cap 50-70'!$B:$AA,12,FALSE) -> 923.28 | L16: =VLOOKUP($W16,'Transporte Cap 50-70'!$B:$AA,13,FALSE) -> 4264.561628 | M16: =VLOOKUP($W16,'Transporte Cap 50-70'!$B:$AA,14,FALSE) -> 752 | N16: =VLOOKUP($W16,'Transporte Cap 50-70'!$B:$AA,15,FALSE) -> 0 | O16: =VLOOKUP(W16,'Transporte Cap 50-70'!$B$16:$AA$28,18,0) -> 217.2 | P16: =VLOOKUP(W16,'Transporte Cap 50-70'!$B$16:$AA$28,19,0) -> 47.67 | Q16: =VLOOKUP(W16,'Transporte Cap 50-70'!$B$16:$AA$28,20,0) -> 297.98 | R16: =VLOOKUP(W16,'Transporte Cap 50-70'!$B$16:$AA$28,21,0) -> 562.85 | S16: =VLOOKUP(W16,'Transporte Cap 50-70'!$B$16:$AA$28,22,0) -> 725.4 | T16: =VLOOKUP(W16,'Transporte Cap 50-70'!$B$16:$AA$28,23,0) -> 51.88931 | U16: =VLOOKUP(W16,'Transporte Cap 50-70'!$B$16:$AA$28,24,0) -> 614.73931 | V16: =VLOOKUP(W16,'Transporte Cap 50-70'!$B$16:$AA$28,25,0) -> 4264.561628 | W16: =SMALL('Transporte Cap 50-70'!$AA:$AA,3) -> 4879.300938
B17: 4 | F17: =VLOOKUP($W17,'Transporte Cap 50-70'!$B:$AA,7,FALSE) -> SÃO JOSÉ DOS CAMPOS - SP | G17: =VLOOKUP($W17,'Transporte Cap 50-70'!$B:$AA,8,FALSE) -> Paracatu - MG | H17: =VLOOKUP($W17,'Transporte Cap 50-70'!$B:$AA,9,FALSE) -> 3.341281628 | I17: =VLOOKUP($W17,'Transporte Cap 50-70'!$B:$AA,10,FALSE) -> 3.343745889 | J17: =VLOOKUP($W17,'Transporte Cap 50-70'!$B:$AA,11,FALSE) -> 3341.281628 | K17: =VLOOKUP($W17,'Transporte Cap 50-70'!$B:$AA,12,FALSE) -> 923.28 | L17: =VLOOKUP($W17,'Transporte Cap 50-70'!$B:$AA,13,FALSE) -> 4264.561628 | M17: =VLOOKUP($W17,'Transporte Cap 50-70'!$B:$AA,14,FALSE) -> 919 | N17: =VLOOKUP($W17,'Transporte Cap 50-70'!$B:$AA,15,FALSE) -> 0 | O17: =VLOOKUP(W17,'Transporte Cap 50-70'!$B$16:$AA$28,18,0) -> 259.45 | P17: =VLOOKUP(W17,'Transporte Cap 50-70'!$B$16:$AA$28,19,0) -> 56.95 | Q17: =VLOOKUP(W17,'Transporte Cap 50-70'!$B$16:$AA$28,20,0) -> 355.95 | R17: =VLOOKUP(W17,'Transporte Cap 50-70'!$B$16:$AA$28,21,0) -> 672.35 | S17: =VLOOKUP(W17,'Transporte Cap 50-70'!$B$16:$AA$28,22,0) -> 983.4 | T17: =VLOOKUP(W17,'Transporte Cap 50-70'!$B$16:$AA$28,23,0) -> 70.34456501 | U17: =VLOOKUP(W17,'Transporte Cap 50-70'!$B$16:$AA$28,24,0) -> 742.694565 | V17: =VLOOKUP(W17,'Transporte Cap 50-70'!$B$16:$AA$28,25,0) -> 4264.561628 | W17: =SMALL('Transporte Cap 50-70'!$AA:$AA,4) -> 5007.256193
B18: 5 | F18: =VLOOKUP($W18,'Transporte Cap 50-70'!$B:$AA,7,FALSE) -> MAUÁ - SP | G18: =VLOOKUP($W18,'Transporte Cap 50-70'!$B:$AA,8,FALSE) -> Paracatu - MG | H18: =VLOOKUP($W18,'Transporte Cap 50-70'!$B:$AA,9,FALSE) -> 3.341281628 | I18: =VLOOKUP($W18,'Transporte Cap 50-70'!$B:$AA,10,FALSE) -> 3.343745889 | J18: =VLOOKUP($W18,'Transporte Cap 50-70'!$B:$AA,11,FALSE) -> 3341.281628 | K18: =VLOOKUP($W18,'Transporte Cap 50-70'!$B:$AA,12,FALSE) -> 923.28 | L18: =VLOOKUP($W18,'Transporte Cap 50-70'!$B:$AA,13,FALSE) -> 4264.561628 | M18: =VLOOKUP($W18,'Transporte Cap 50-70'!$B:$AA,14,FALSE) -> 932 | N18: =VLOOKUP($W18,'Transporte Cap 50-70'!$B:$AA,15,FALSE) -> 0 | O18: =VLOOKUP(W18,'Transporte Cap 50-70'!$B$16:$AA$28,18,0) -> 262.74 | P18: =VLOOKUP(W18,'Transporte Cap 50-70'!$B$16:$AA$28,19,0) -> 57.67 | Q18: =VLOOKUP(W18,'Transporte Cap 50-70'!$B$16:$AA$28,20,0) -> 360.46 | R18: =VLOOKUP(W18,'Transporte Cap 50-70'!$B$16:$AA$28,21,0) -> 680.87 | S18: =VLOOKUP(W18,'Transporte Cap 50-70'!$B$16:$AA$28,22,0) -> 880.2 | T18: =VLOOKUP(W18,'Transporte Cap 50-70'!$B$16:$AA$28,23,0) -> 62.96246301 | U18: =VLOOKUP(W18,'Transporte Cap 50-70'!$B$16:$AA$28,24,0) -> 743.832463 | V18: =VLOOKUP(W18,'Transporte Cap 50-70'!$B$16:$AA$28,25,0) -> 4264.561628 | W18: =SMALL('Transporte Cap 50-70'!$AA:$AA,5) -> 5008.394091
B19: 6 | F19: =VLOOKUP($W19,'Transporte Cap 50-70'!$B:$AA,7,FALSE) -> CUBATÃO - SP | G19: =VLOOKUP($W19,'Transporte Cap 50-70'!$B:$AA,8,FALSE) -> Paracatu - MG | H19: =VLOOKUP($W19,'Transporte Cap 50-70'!$B:$AA,9,FALSE) -> 3.341281628 | I19: =VLOOKUP($W19,'Transporte Cap 50-70'!$B:$AA,10,FALSE) -> 3.343745889 | J19: =VLOOKUP($W19,'Transporte Cap 50-70'!$B:$AA,11,FALSE) -> 3341.281628 | K19: =VLOOKUP($W19,'Transporte Cap 50-70'!$B:$AA,12,FALSE) -> 923.28 | L19: =VLOOKUP($W19,'Transporte Cap 50-70'!$B:$AA,13,FALSE) -> 4264.561628 | M19: =VLOOKUP($W19,'Transporte Cap 50-70'!$B:$AA,14,FALSE) -> 943 | N19: =VLOOKUP($W19,'Transporte Cap 50-70'!$B:$AA,15,FALSE) -> 0 | O19: =VLOOKUP(W19,'Transporte Cap 50-70'!$B$16:$AA$28,18,0) -> 265.52 | P19: =VLOOKUP(W19,'Transporte Cap 50-70'!$B$16:$AA$28,19,0) -> 58.28 | Q19: =VLOOKUP(W19,'Transporte Cap 50-70'!$B$16:$AA$28,20,0) -> 364.27 | R19: =VLOOKUP(W19,'Transporte Cap 50-70'!$B$16:$AA$28,21,0) -> 688.07 | S19: =VLOOKUP(W19,'Transporte Cap 50-70'!$B$16:$AA$28,22,0) -> 880.2 | T19: =VLOOKUP(W19,'Transporte Cap 50-70'!$B$16:$AA$28,23,0) -> 62.96246301 | U19: =VLOOKUP(W19,'Transporte Cap 50-70'!$B$16:$AA$28,24,0) -> 751.032463 | V19: =VLOOKUP(W19,'Transporte Cap 50-70'!$B$16:$AA$28,25,0) -> 4264.561628 | W19: =SMALL('Transporte Cap 50-70'!$AA:$AA,6) -> 5015.594091
R20: =VLOOKUP(W20,'Transporte Cap 50-70'!$B$16:$AA$28,21,0) ->  | U20: =VLOOKUP(W20,'Transporte Cap 50-70'!$B$16:$AA$28,24,0) -> 
R21: =VLOOKUP(W21,'Transporte Cap 50-70'!$B$16:$AA$28,21,0) ->  | U21: =VLOOKUP(W21,'Transporte Cap 50-70'!$B$16:$AA$28,24,0) -> 
R22: =VLOOKUP(W22,'Transporte Cap 50-70'!$B$16:$AA$28,21,0) ->  | U22: =VLOOKUP(W22,'Transporte Cap 50-70'!$B$16:$AA$28,24,0) -> 
R23: =VLOOKUP(W23,'Transporte Cap 50-70'!$B$16:$AA$28,21,0) ->  | U23: =VLOOKUP(W23,'Transporte Cap 50-70'!$B$16:$AA$28,24,0) -> 
R24: =VLOOKUP(W24,'Transporte Cap 50-70'!$B$16:$AA$28,21,0) ->  | U24: =VLOOKUP(W24,'Transporte Cap 50-70'!$B$16:$AA$28,24,0) -> 
B25: 1 | C25: CAP MODIF. C/ POLÍMERO 60/85 | D25: Refinaria Abreu e Lima | E25: Rodovia PE 60, Km 10 - Ipojuca - PE CEP:55590-000 | G25: Palmas - TO | H25: 2.261894948 | I25: 2.353413905 | J25: 2261.894948 | K25: 393.19 | L25: 2655.084948 | M25: 1181 | N25: 1181 | O25: 325.73 | P25: 44.41 | Q25: 202.55 | R25: =VLOOKUP(W25,'Transporte Cap 50-70'!$B$16:$AA$28,21,0) ->  | S25: 102 | T25: 102 | U25: =VLOOKUP(W25,'Transporte Cap 50-70'!$B$16:$AA$28,24,0) ->  | V25: 2655.084948 | W25: 3329.774948
B26: 2 | D26: Refinaria Potiguar Clara Camarão | E26: Rodovia RN 221, KM 25 - Guamaré - RN CEP:59598-000 | F26: UBERLANDIA - MG | G26: Palmas - TO | H26: 2.261894948 | I26: 2.353413905 | J26: 2261.894948 | K26: 393.19 | L26: 2655.084948 | M26: 1182 | N26: 1182 | O26: 325.98 | P26: 44.45 | Q26: 202.71 | R26: =VLOOKUP(W26,'Transporte Cap 50-70'!$B$16:$AA$28,21,0) ->  | S26: 102 | T26: 102 | U26: =VLOOKUP(W26,'Transporte Cap 50-70'!$B$16:$AA$28,24,0) ->  | V26: 2655.084948 | W26: 3330.224948
B27: 3 | D27: Complexo Petroquímico do Rio de Janeiro (Comperj) | E27: Rodovia Estadual RJ-116 - Km 5,2 - Acesso A-1, s/n, Complemento Sambaetiba - Zona Urbana do 4º Distrito de Itaboraí - RJ CEP:24841-203 | F27: GOIANIRA - GO | G27: Palmas - TO | I27: 2.555206955 | J27: 2555.206955 | K27: 444.18 | L27: 2999.386955 | M27: 814 | N27: 814 | O27: 232.88 | P27: 31.75 | Q27: 144.81 | R27: =VLOOKUP(W27,'Transporte Cap 50-70'!$B$16:$AA$28,21,0) ->  | S27: 0 | T27: 0 | U27: =VLOOKUP(W27,'Transporte Cap 50-70'!$B$16:$AA$28,24,0) ->  | V27: 2999.386955 | W27: 3408.826955
B28: 4 | F28: BRASÍLIA - DF | G28: Palmas - TO | I28: 2.555206955 | J28: 2555.206955 | K28: 444.18 | L28: 2999.386955 | M28: 822 | N28: 822 | O28: 234.9 | P28: 32.03 | Q28: 146.07 | R28: =VLOOKUP(W28,'Transporte Cap 50-70'!$B$16:$AA$28,21,0) ->  | S28: 0 | T28: 0 | U28: =VLOOKUP(W28,'Transporte Cap 50-70'!$B$16:$AA$28,24,0) ->  | V28: 2999.386955 | W28: 3412.386955
B29: 5 | F29: APARECIDA DE GOIANIA - GO | G29: Palmas - TO | I29: 2.555206955 | J29: 2555.206955 | K29: 444.18 | L29: 2999.386955 | M29: 842 | N29: 842 | O29: 239.96 | P29: 32.72 | Q29: 149.22 | R29: =VLOOKUP(W29,'Transporte Cap 50-70'!$B$16:$AA$28,21,0) ->  | S29: 0 | T29: 0 | U29: =VLOOKUP(W29,'Transporte Cap 50-70'!$B$16:$AA$28,24,0) ->  | V29: 2999.386955 | W29: 3421.286955
B30: 6 | F30: ANÁPOLIS - GO | G30: Palmas - TO | I30: 2.555206955 | J30: 2555.206955 | K30: 444.18 | L30: 2999.386955 | M30: 950 | N30: 950 | O30: 267.28 | P30: 36.44 | Q30: 166.21 | R30: =VLOOKUP(W30,'Transporte Cap 50-70'!$B$16:$AA$28,21,0) ->  | S30: 0 | T30: 0 | U30: =VLOOKUP(W30,'Transporte Cap 50-70'!$B$16:$AA$28,24,0) ->  | V30: 2999.386955 | W30: 3469.316955
B33: 1 | C33: RR1-C | D33: Refinaria Abreu e Lima | E33: Rodovia PE 60, Km 10 - Ipojuca - PE CEP:55590-000 | F33: =VLOOKUP($W33,'Transporte RR-1C'!$B:$AA,7,FALSE) -> UBERLANDIA - MG | G33: =VLOOKUP($W33,'Transporte RR-1C'!$B:$AA,8,FALSE) -> Paracatu - MG | H33: =VLOOKUP($W33,'Transporte RR-1C'!$B:$AA,9,FALSE) -> 2.414631513 | I33: =VLOOKUP($W33,'Transporte RR-1C'!$B:$AA,10,FALSE) -> 2.55680471 | J33: =VLOOKUP($W33,'Transporte RR-1C'!$B:$AA,11,FALSE) -> 2414.631513 | K33: =VLOOKUP($W33,'Transporte RR-1C'!$B:$AA,12,FALSE) -> 667.22 | L33: =VLOOKUP($W33,'Transporte RR-1C'!$B:$AA,13,FALSE) -> 3081.851513 | M33: =VLOOKUP($W33,'Transporte RR-1C'!$B:$AA,14,FALSE) -> 338 | N33: =VLOOKUP($W33,'Transporte RR-1C'!$B:$AA,15,FALSE) -> 0 | O33: =VLOOKUP($W33,'Transporte RR-1C'!$B:$AA,18,FALSE) -> 112.45 | P33: =VLOOKUP($W33,'Transporte RR-1C'!$B:$AA,19,FALSE) -> 24.68 | Q33: =VLOOKUP($W33,'Transporte RR-1C'!$B:$AA,20,FALSE) -> 154.27 | R33: =VLOOKUP($W33,'Transporte RR-1C'!$B:$AA,21,FALSE) -> 291.4 | S33: =VLOOKUP($W33,'Transporte RR-1C'!$B:$AA,22,FALSE) -> 177.6 | T33: =VLOOKUP($W33,'Transporte RR-1C'!$B:$AA,23,FALSE) -> 14.0952381 | U33: =VLOOKUP($W$33,'Transporte RR-1C'!$B$16:$AA$35,24,0) -> 305.4952381 | V33: =VLOOKUP(W33,'Transporte RR-1C'!$B$16:$AA$35,25,0) -> 3081.851513 | W33: =SMALL('Transporte RR-1C'!$AA:$AA,1) -> 3387.346751
B34: 2 | D34: Refinaria Potiguar Clara Camarão | E34: Rodovia RN 221, KM 25 - Guamaré - RN CEP:59598-000 | F34: =VLOOKUP($W34,'Transporte RR-1C'!$B:$AA,7,FALSE) -> UBERLANDIA - MG | G34: =VLOOKUP($W34,'Transporte RR-1C'!$B:$AA,8,FALSE) -> Paracatu - MG | H34: =VLOOKUP($W34,'Transporte RR-1C'!$B:$AA,9,FALSE) -> 2.414631513 | I34: =VLOOKUP($W34,'Transporte RR-1C'!$B:$AA,10,FALSE) -> 2.55680471 | J34: =VLOOKUP($W34,'Transporte RR-1C'!$B:$AA,11,FALSE) -> 2414.631513 | K34: =VLOOKUP($W34,'Transporte RR-1C'!$B:$AA,12,FALSE) -> 667.22 | L34: =VLOOKUP($W34,'Transporte RR-1C'!$B:$AA,13,FALSE) -> 3081.851513 | M34: =VLOOKUP($W34,'Transporte RR-1C'!$B:$AA,14,FALSE) -> 342 | N34: =VLOOKUP($W34,'Transporte RR-1C'!$B:$AA,15,FALSE) -> 0 | O34: =VLOOKUP($W34,'Transporte RR-1C'!$B:$AA,18,FALSE) -> 113.47 | P34: =VLOOKUP($W34,'Transporte RR-1C'!$B:$AA,19,FALSE) -> 24.9 | Q34: =VLOOKUP($W34,'Transporte RR-1C'!$B:$AA,20,FALSE) -> 155.66 | R34: =VLOOKUP($W34,'Transporte RR-1C'!$B:$AA,21,FALSE) -> 294.03 | S34: =VLOOKUP($W34,'Transporte RR-1C'!$B:$AA,22,FALSE) -> 215.4 | T34: =VLOOKUP($W34,'Transporte RR-1C'!$B:$AA,23,FALSE) -> 17.0952381 | U34: =VLOOKUP($W$33,'Transporte RR-1C'!$B$16:$AA$35,24,0) -> 305.4952381 | V34: =VLOOKUP(W34,'Transporte RR-1C'!$B$16:$AA$35,25,0) -> 3081.851513 | W34: =SMALL('Transporte RR-1C'!$AA:$AA,2) -> 3392.976751
B35: 3 | D35: Complexo Petroquímico do Rio de Janeiro (Comperj) | E35: Rodovia Estadual RJ-116 - Km 5,2 - Acesso A-1, s/n, Complemento Sambaetiba - Zona Urbana do 4º Distrito de Itaboraí - RJ CEP:24841-203 | F35: =VLOOKUP($W35,'Transporte RR-1C'!$B:$AA,7,FALSE) -> SARZEDO - MG | G35: =VLOOKUP($W35,'Transporte RR-1C'!$B:$AA,8,FALSE) -> Paracatu - MG | H35: =VLOOKUP($W35,'Transporte RR-1C'!$B:$AA,9,FALSE) -> 2.414631513 | I35: =VLOOKUP($W35,'Transporte RR-1C'!$B:$AA,10,FALSE) -> 2.55680471 | J35: =VLOOKUP($W35,'Transporte RR-1C'!$B:$AA,11,FALSE) -> 2414.631513 | K35: =VLOOKUP($W35,'Transporte RR-1C'!$B:$AA,12,FALSE) -> 667.22 | L35: =VLOOKUP($W35,'Transporte RR-1C'!$B:$AA,13,FALSE) -> 3081.851513 | M35: =VLOOKUP($W35,'Transporte RR-1C'!$B:$AA,14,FALSE) -> 518 | N35: =VLOOKUP($W35,'Transporte RR-1C'!$B:$AA,15,FALSE) -> 0 | O35: =VLOOKUP($W35,'Transporte RR-1C'!$B:$AA,18,FALSE) -> 157.99 | P35: =VLOOKUP($W35,'Transporte RR-1C'!$B:$AA,19,FALSE) -> 34.68 | Q35: =VLOOKUP($W35,'Transporte RR-1C'!$B:$AA,20,FALSE) -> 216.75 | R35: =VLOOKUP($W35,'Transporte RR-1C'!$B:$AA,21,FALSE) -> 409.42 | S35: =VLOOKUP($W35,'Transporte RR-1C'!$B:$AA,22,FALSE) -> 226.8 | T35: =VLOOKUP($W35,'Transporte RR-1C'!$B:$AA,23,FALSE) -> 18 | U35: =VLOOKUP($W$33,'Transporte RR-1C'!$B$16:$AA$35,24,0) -> 305.4952381 | V35: =VLOOKUP(W35,'Transporte RR-1C'!$B$16:$AA$35,25,0) -> 3081.851513 | W35: =SMALL('Transporte RR-1C'!$AA:$AA,3) -> 3509.271513
B36: 4 | D36: Refinaria Abreu e Lima | E36: Rodovia PE 60, Km 10 - Ipojuca - PE CEP:55590-000 | F36: =VLOOKUP($W36,'Transporte RR-1C'!$B:$AA,7,FALSE) -> ANÁPOLIS - GO | G36: =VLOOKUP($W36,'Transporte RR-1C'!$B:$AA,8,FALSE) -> Paracatu - MG | H36: =VLOOKUP($W36,'Transporte RR-1C'!$B:$AA,9,FALSE) -> 2.565909441 | I36: =VLOOKUP($W36,'Transporte RR-1C'!$B:$AA,10,FALSE) -> 2.777249639 | J36: =VLOOKUP($W36,'Transporte RR-1C'!$B:$AA,11,FALSE) -> 2565.909441 | K36: =VLOOKUP($W36,'Transporte RR-1C'!$B:$AA,12,FALSE) -> 709.02 | L36: =VLOOKUP($W36,'Transporte RR-1C'!$B:$AA,13,FALSE) -> 3274.929441 | M36: =VLOOKUP($W36,'Transporte RR-1C'!$B:$AA,14,FALSE) -> 333 | N36: =VLOOKUP($W36,'Transporte RR-1C'!$B:$AA,15,FALSE) -> 0 | O36: =VLOOKUP($W36,'Transporte RR-1C'!$B:$AA,18,FALSE) -> 111.19 | P36: =VLOOKUP($W36,'Transporte RR-1C'!$B:$AA,19,FALSE) -> 24.4 | Q36: =VLOOKUP($W36,'Transporte RR-1C'!$B:$AA,20,FALSE) -> 152.54 | R36: =VLOOKUP($W36,'Transporte RR-1C'!$B:$AA,21,FALSE) -> 288.13 | S36: =VLOOKUP($W36,'Transporte RR-1C'!$B:$AA,22,FALSE) -> 117 | T36: =VLOOKUP($W36,'Transporte RR-1C'!$B:$AA,23,FALSE) -> 9.285714286 | U36: =VLOOKUP($W$33,'Transporte RR-1C'!$B$16:$AA$35,24,0) -> 305.4952381 | V36: =VLOOKUP(W36,'Transporte RR-1C'!$B$16:$AA$35,25,0) -> 3274.929441 | W36: =SMALL('Transporte RR-1C'!$AA:$AA,4) -> 3572.345155
B37: 5 | D37: Refinaria Potiguar Clara Camarão | E37: Rodovia RN 221, KM 25 - Guamaré - RN CEP:59598-000 | F37: =VLOOKUP($W37,'Transporte RR-1C'!$B:$AA,7,FALSE) -> APARECIDA DE GOIANIA - GO | G37: =VLOOKUP($W37,'Transporte RR-1C'!$B:$AA,8,FALSE) -> Paracatu - MG | H37: =VLOOKUP($W37,'Transporte RR-1C'!$B:$AA,9,FALSE) -> 2.565909441 | I37: =VLOOKUP($W37,'Transporte RR-1C'!$B:$AA,10,FALSE) -> 2.777249639 | J37: =VLOOKUP($W37,'Transporte RR-1C'!$B:$AA,11,FALSE) -> 2565.909441 | K37: =VLOOKUP($W37,'Transporte RR-1C'!$B:$AA,12,FALSE) -> 709.02 | L37: =VLOOKUP($W37,'Transporte RR-1C'!$B:$AA,13,FALSE) -> 3274.929441 | M37: =VLOOKUP($W37,'Transporte RR-1C'!$B:$AA,14,FALSE) -> 396 | N37: =VLOOKUP($W37,'Transporte RR-1C'!$B:$AA,15,FALSE) -> 0 | O37: =VLOOKUP($W37,'Transporte RR-1C'!$B:$AA,18,FALSE) -> 127.13 | P37: =VLOOKUP($W37,'Transporte RR-1C'!$B:$AA,19,FALSE) -> 27.9 | Q37: =VLOOKUP($W37,'Transporte RR-1C'!$B:$AA,20,FALSE) -> 174.41 | R37: =VLOOKUP($W37,'Transporte RR-1C'!$B:$AA,21,FALSE) -> 329.44 | S37: =VLOOKUP($W37,'Transporte RR-1C'!$B:$AA,22,FALSE) -> 75.6 | T37: =VLOOKUP($W37,'Transporte RR-1C'!$B:$AA,23,FALSE) -> 6 | U37: =VLOOKUP($W$33,'Transporte RR-1C'!$B$16:$AA$35,24,0) -> 305.4952381 | V37: =VLOOKUP(W37,'Transporte RR-1C'!$B$16:$AA$35,25,0) -> 3274.929441 | W37: =SMALL('Transporte RR-1C'!$AA:$AA,5) -> 3610.369441
B38: 6 | D38: Complexo Petroquímico do Rio de Janeiro (Comperj) | E38: Rodovia Estadual RJ-116 - Km 5,2 - Acesso A-1, s/n, Complemento Sambaetiba - Zona Urbana do 4º Distrito de Itaboraí - RJ CEP:24841-203 | F38: =VLOOKUP($W38,'Transporte RR-1C'!$B:$AA,7,FALSE) -> GOIANIRA - GO | G38: =VLOOKUP($W38,'Transporte RR-1C'!$B:$AA,8,FALSE) -> Paracatu - MG | H38: =VLOOKUP($W38,'Transporte RR-1C'!$B:$AA,9,FALSE) -> 2.565909441 | I38: =VLOOKUP($W38,'Transporte RR-1C'!$B:$AA,10,FALSE) -> 2.777249639 | J38: =VLOOKUP($W38,'Transporte RR-1C'!$B:$AA,11,FALSE) -> 2565.909441 | K38: =VLOOKUP($W38,'Transporte RR-1C'!$B:$AA,12,FALSE) -> 709.02 | L38: =VLOOKUP($W38,'Transporte RR-1C'!$B:$AA,13,FALSE) -> 3274.929441 | M38: =VLOOKUP($W38,'Transporte RR-1C'!$B:$AA,14,FALSE) -> 417 | N38: =VLOOKUP($W38,'Transporte RR-1C'!$B:$AA,15,FALSE) -> 0 | O38: =VLOOKUP($W38,'Transporte RR-1C'!$B:$AA,18,FALSE) -> 132.44 | P38: =VLOOKUP($W38,'Transporte RR-1C'!$B:$AA,19,FALSE) -> 29.07 | Q38: =VLOOKUP($W38,'Transporte RR-1C'!$B:$AA,20,FALSE) -> 181.7 | R38: =VLOOKUP($W38,'Transporte RR-1C'!$B:$AA,21,FALSE) -> 343.21 | S38: =VLOOKUP($W38,'Transporte RR-1C'!$B:$AA,22,FALSE) -> 75.6 | T38: =VLOOKUP($W38,'Transporte RR-1C'!$B:$AA,23,FALSE) -> 6 | U38: =VLOOKUP($W$33,'Transporte RR-1C'!$B$16:$AA$35,24,0) -> 305.4952381 | V38: =VLOOKUP(W38,'Transporte RR-1C'!$B$16:$AA$35,25,0) -> 3274.929441 | W38: =SMALL('Transporte RR-1C'!$AA:$AA,6) -> 3624.139441

Sheet MOMENTO DE TRANSPORTE - PRINC
B5: ='RESUMO MODULO TOTAL'!B1 -> CONTRATAÇÃO DE SERVIÇOS DE EXECUÇÃO DE CAPA ASFÁLTICA COM CONCRETO BETUMINOSO USINADO A QUENTE (CBUQ) EM VIAS DE DIVERSOS MUNICÍPIOS INSERIDOS NA ÁREA DE ATUAÇÃO DA 16ª SUPERINTENDÊNCIA REGIONAL DA CODEVASF, NO ESTADO DE MINAS GERAIS - REGIÃO NOROESTE
B6: ESTADO: | C6: ='RESUMO MODULO TOTAL'!N1 -> xxxxxxxxxxxx | D6: DATA BASE: | E6: ='RESUMO MODULO TOTAL'!N2 -> Minas Gerais - Abril/2024
C8: RESUMO DO TRANSPORTE PRINCIPAL
B9: CODIGO | C9: DESCRIÇÃO | D9: TKM
B10: 5914359 | C10: =VLOOKUP(B10,'SINTÉTICO SICRO'!$A:$D,2,0) -> Transporte com caminhão basculante de 10 m³ - rodovia em leito natural | D10: =ROUND(SUMIF('MOMENTO DE TRANSPORTE - PRINC'!A:A,B10,'MOMENTO DE TRANSPORTE - PRINC'!K:K),2) -> 334387.2
B11: 5914374 | C11: =VLOOKUP(B11,'SINTÉTICO SICRO'!$A:$D,2,0) -> Transporte com caminhão basculante de 10 m³ - rodovia em revestimento primário | D11: =ROUND(SUMIF('MOMENTO DE TRANSPORTE - PRINC'!A:A,B11,'MOMENTO DE TRANSPORTE - PRINC'!K:K),2) -> 334387.2
B12: 5914389 | C12: =VLOOKUP(B12,'SINTÉTICO SICRO'!$A:$D,2,0) -> Transporte com caminhão basculante de 10 m³ - rodovia pavimentada | D12: =ROUND(SUMIF('MOMENTO DE TRANSPORTE - PRINC'!A:A,B12,'MOMENTO DE TRANSPORTE - PRINC'!K:K),2) -> 2675097.6
B13: 5914314 | C13: =VLOOKUP(B13,'SINTÉTICO SICRO'!$A:$D,2,0) -> Transporte com caminhão basculante de 6 m³ - rodovia em leito natural | D13: =ROUND(SUMIF('MOMENTO DE TRANSPORTE - PRINC'!A:A,B13,'MOMENTO DE TRANSPORTE - PRINC'!K:K),2) -> 11090.42
B14: 5914329 | C14: =VLOOKUP(B14,'SINTÉTICO SICRO'!$A:$D,2,0) -> Transporte com caminhão basculante de 6 m³ - rodovia em revestimento primário | D14: =ROUND(SUMIF('MOMENTO DE TRANSPORTE - PRINC'!A:A,B14,'MOMENTO DE TRANSPORTE - PRINC'!K:K),2) -> 11090.42
B15: 5914344 | C15: =VLOOKUP(B15,'SINTÉTICO SICRO'!$A:$D,2,0) -> Transporte com caminhão basculante de 6 m³ - rodovia pavimentada | D15: =ROUND(SUMIF('MOMENTO DE TRANSPORTE - PRINC'!A:A,B15,'MOMENTO DE TRANSPORTE - PRINC'!K:K),2) -> 88723.35
B17: TIPO (P, RP ou LN) | C17: DMT ESTIMADA
B18: P
B20: COMPOSIÇÕES PRINCIPAIS
B21: SISTEMA DE CUSTOS REFERENCIAIS DE OBRAS - SICRO
B22: Custo Unitário de Referência | E22: =$E$6 -> Minas Gerais - Abril/2024 | I22: Quantitativo | K22: t
B23: 4011463 | C23: =VLOOKUP(B23,'SINTÉTICO SICRO'!$A:$D,2,0) -> Concreto asfáltico - faixa C - areia e brita comerciais | I23: =SUMIF('RESUMO MODULO TOTAL'!D:D,B23,'RESUMO MODULO TOTAL'!J:J)*0.8 -> 21504
B24: D - ATIVIDADES AUXILIARES | D24: Quantidade | E24: Unidade
B25: 6416078 | C25: =VLOOKUP(B25,'SINTÉTICO SICRO'!$A:$D,2,0) -> Usinagem de concreto asfáltico - faixa C - areia e brita comerciais | D25: 1.02 | E25: t
B27: F - MOMENTO DE TRANSPORTE | D27: Quantidade | E27: Unidade | F27: CÓDIGO TRANSPORTE
F28: LN | G28: RP | H28: P | I28: TIPO (P, RP ou LN) | J28: DMT ESTIMADA (km) | K28: QUANTITATIVO TOTAL DE TRANSPORTE (tkm)
A29: =IF(I29="P",H29,IF(I29="RP",G29,IF(I29="LN",F29,""))) -> 5914389 | B29: 6416078 | C29: =VLOOKUP(B29,'SINTÉTICO SICRO'!$A:$D,2,0) -> Usinagem de concreto asfáltico - faixa C - areia e brita comerciais | D29: 1.02 | E29: tkm | F29: 5914359 | G29: 5914374 | H29: 5914389 | I29: =$B$18 -> P | J29: 120 | K29: =IF(ISBLANK(J29),"",J29*D29)*I23 -> 2632089.6
A30: =IF(I30="P",H30,IF(I30="RP",G30,IF(I30="LN",F30,""))) -> 
B31: Obs.
B32: SISTEMA DE CUSTOS REFERENCIAIS DE OBRAS - SICRO
B33: Custo Unitário de Referência | E33: =$E$6 -> Minas Gerais - Abril/2024 | I33: Quantitativo | K33: m³
B34: 4915663 | C34: =VLOOKUP(B34,'SINTÉTICO SICRO'!$A:$D,2,0) -> Fresagem descontínua de revestimento asfáltico - espessura de 5 cm | I34: =SUMIF('RESUMO MODULO TOTAL'!D:D,B34,'RESUMO MODULO TOTAL'!J:J)*0.8 -> 896
B35: D - ATIVIDADES AUXILIARES | D35: Quantidade | E35: Unidade
B38: F - MOMENTO DE TRANSPORTE | D38: Quantidade | E38: Unidade | F38: CÓDIGO TRANSPORTE
F39: LN | G39: RP | H39: P | I39: TIPO (P, RP ou LN) | J39: DMT ESTIMADA (km) | K39: QUANTITATIVO TOTAL DE TRANSPORTE (tkm)
A40: =IF(I40="P",H40,IF(I40="RP",G40,IF(I40="LN",F40,""))) -> 5914389 | B40: M3507 | C40: Revestimento asfáltico - Caminhão basculante 10 m³ | D40: 2.4 | E40: tkm | F40: 5914359 | G40: 5914374 | H40: 5914389 | I40: =$B$18 -> P | J40: 20 | K40: =IF(ISBLANK(J40),"",J40*D40)*I34 -> 43008
A41: =IF(I41="P",H41,IF(I41="RP",G41,IF(I41="LN",F41,""))) -> 
B42: Obs.
B43: COMPOSIÇÕES PRINCIPAIS
B44: SISTEMA DE CUSTOS REFERENCIAIS DE OBRAS - SICRO
B45: Custo Unitário de Referência | E45: =$E$6 -> Minas Gerais - Abril/2024 | I45: Quantitativo | K45: m²
B46: 4915618 | C46: =VLOOKUP(B46,'SINTÉTICO SICRO'!$A:$D,2,0) -> Recomposição de camada granular do pavimento com material de jazida | I46: =SUMIF('RESUMO MODULO TOTAL'!D:D,B46,'RESUMO MODULO TOTAL'!J:J)*0.8 -> 17920
B47: D - ATIVIDADES AUXILIARES | D47: Quantidade | E47: Unidade
B48: 4016096 | C48: =VLOOKUP(B48,'SINTÉTICO SICRO'!$A:$D,2,0) -> Escavação e carga de material de jazida com escavadeira hidráulica de 1,56 m³ | D48: 0.22005 | E48: t
B50: F - MOMENTO DE TRANSPORTE | D50: Quantidade | E50: Unidade | F50: CÓDIGO TRANSPORTE
F51: LN | G51: RP | H51: P | I51: TIPO (P, RP ou LN) | J51: DMT ESTIMADA (km) | K51: QUANTITATIVO TOTAL DE TRANSPORTE (tkm)
A52: =IF(I52="P",H52,IF(I52="RP",G52,IF(I52="LN",F52,""))) -> 5914344 | B52: 4016096 | C52: =VLOOKUP(B52,'SINTÉTICO SICRO'!$A:$D,2,0) -> Escavação e carga de material de jazida com escavadeira hidráulica de 1,56 m³ | D52: 0.41259 | E52: tkm | F52: 5914314 | G52: 5914329 | H52: 5914344 | I52: =$B$18 -> P | J52: 12 | K52: =IF(ISBLANK(J52),"",J52*D52)*I46 -> 88723.3536
A53: =IF(I53="P",H53,IF(I53="RP",G53,IF(I53="LN",F53,""))) -> 
B54: Obs.
B55: TIPO (P, RP ou LN) | C55: DMT ESTIMADA
B56: LN | C56: 1
B58: COMPOSIÇÕES PRINCIPAIS
B59: SISTEMA DE CUSTOS REFERENCIAIS DE OBRAS - SICRO
B60: Custo Unitário de Referência | E60: =$E$6 -> Minas Gerais - Abril/2024 | I60: Quantitativo | K60: t
B61: 4011463 | C61: =VLOOKUP(B61,'SINTÉTICO SICRO'!$A:$D,2,0) -> Concreto asfáltico - faixa C - areia e brita comerciais | I61: =SUMIF('RESUMO MODULO TOTAL'!D:D,B61,'RESUMO MODULO TOTAL'!J:J)*0.1 -> 2688
B62: D - ATIVIDADES AUXILIARES | D62: Quantidade | E62: Unidade
B63: 6416078 | C63: =VLOOKUP(B63,'SINTÉTICO SICRO'!$A:$D,2,0) -> Usinagem de concreto asfáltico - faixa C - areia e brita comerciais | D63: 1.02 | E63: t
B65: F - MOMENTO DE TRANSPORTE | D65: Quantidade | E65: Unidade | F65: CÓDIGO TRANSPORTE
F66: LN | G66: RP | H66: P | I66: TIPO (P, RP ou LN) | J66: DMT ESTIMADA (km) | K66: QUANTITATIVO TOTAL DE TRANSPORTE (tkm)
A67: =IF(I67="P",H67,IF(I67="RP",G67,IF(I67="LN",F67,""))) -> 5914359 | B67: 6416078 | C67: =VLOOKUP(B67,'SINTÉTICO SICRO'!$A:$D,2,0) -> Usinagem de concreto asfáltico - faixa C - areia e brita comerciais | D67: 1.02 | E67: tkm | F67: 5914359 | G67: 5914374 | H67: 5914389 | I67: =$B$56 -> LN | J67: 120 | K67: =IF(ISBLANK(J67),"",J67*D67)*I61 -> 329011.2
A68: =IF(I68="P",H68,IF(I68="RP",G68,IF(I68="LN",F68,""))) -> 
B69: Obs.
B70: SISTEMA DE CUSTOS REFERENCIAIS DE OBRAS - SICRO
B71: Custo Unitário de Referência | E71: =$E$6 -> Minas Gerais - Abril/2024 | I71: Quantitativo | K71: m³
B72: 4915663 | C72: =VLOOKUP(B72,'SINTÉTICO SICRO'!$A:$D,2,0) -> Fresagem descontínua de revestimento asfáltico - espessura de 5 cm | I72: =SUMIF('RESUMO MODULO TOTAL'!D:D,B72,'RESUMO MODULO TOTAL'!J:J)*0.1 -> 112
B73: D - ATIVIDADES AUXILIARES | D73: Quantidade | E73: Unidade
B76: F - MOMENTO DE TRANSPORTE | D76: Quantidade | E76: Unidade | F76: CÓDIGO TRANSPORTE
F77: LN | G77: RP | H77: P | I77: TIPO (P, RP ou LN) | J77: DMT ESTIMADA (km) | K77: QUANTITATIVO TOTAL DE TRANSPORTE (tkm)
A78: =IF(I78="P",H78,IF(I78="RP",G78,IF(I78="LN",F78,""))) -> 5914359 | B78: M3507 | C78: Revestimento asfáltico - Caminhão basculante 10 m³ | D78: 2.4 | E78: tkm | F78: 5914359 | G78: 5914374 | H78: 5914389 | I78: =$B$56 -> LN | J78: 20 | K78: =IF(ISBLANK(J78),"",J78*D78)*I72 -> 5376
A79: =IF(I79="P",H79,IF(I79="RP",G79,IF(I79="LN",F79,""))) -> 
B80: Obs.
B81: COMPOSIÇÕES PRINCIPAIS
B82: SISTEMA DE CUSTOS REFERENCIAIS DE OBRAS - SICRO
B83: Custo Unitário de Referência | E83: =$E$6 -> Minas Gerais - Abril/2024 | I83: Quantitativo | K83: m²
B84: 4915618 | C84: =VLOOKUP(B84,'SINTÉTICO SICRO'!$A:$D,2,0) -> Recomposição de camada granular do pavimento com material de jazida | I84: =SUMIF('RESUMO MODULO TOTAL'!D:D,B84,'RESUMO MODULO TOTAL'!J:J)*0.1 -> 2240
B85: D - ATIVIDADES AUXILIARES | D85: Quantidade | E85: Unidade
B86: 4016096 | C86: =VLOOKUP(B86,'SINTÉTICO SICRO'!$A:$D,2,0) -> Escavação e carga de material de jazida com escavadeira hidráulica de 1,56 m³ | D86: 0.22005 | E86: t
B88: F - MOMENTO DE TRANSPORTE | D88: Quantidade | E88: Unidade | F88: CÓDIGO TRANSPORTE
F89: LN | G89: RP | H89: P | I89: TIPO (P, RP ou LN) | J89: DMT ESTIMADA (km) | K89: QUANTITATIVO TOTAL DE TRANSPORTE (tkm)
A90: =IF(I90="P",H90,IF(I90="RP",G90,IF(I90="LN",F90,""))) -> 5914314 | B90: 4016096 | C90: =VLOOKUP(B90,'SINTÉTICO SICRO'!$A:$D,2,0) -> Escavação e carga de material de jazida com escavadeira hidráulica de 1,56 m³ | D90: 0.41259 | E90: tkm | F90: 5914314 | G90: 5914329 | H90: 5914344 | I90: =$B$56 -> LN | J90: 12 | K90: =IF(ISBLANK(J90),"",J90*D90)*I84 -> 11090.4192
A91: =IF(I91="P",H91,IF(I91="RP",G91,IF(I91="LN",F91,""))) -> 
B92: Obs.
B93: TIPO (P, RP ou LN) | C93: DMT ESTIMADA
B94: RP | C94: 1
B96: COMPOSIÇÕES PRINCIPAIS
B97: SISTEMA DE CUSTOS REFERENCIAIS DE OBRAS - SICRO
B98: Custo Unitário de Referência | E98: =$E$6 -> Minas Gerais - Abril/2024 | I98: Quantitativo | K98: t
B99: 4011463 | C99: =VLOOKUP(B99,'SINTÉTICO SICRO'!$A:$D,2,0) -> Concreto asfáltico - faixa C - areia e brita comerciais | I99: =SUMIF('RESUMO MODULO TOTAL'!D:D,B99,'RESUMO MODULO TOTAL'!J:J)*0.1 -> 2688
B100: D - ATIVIDADES AUXILIARES | D100: Quantidade | E100: Unidade
B101: 6416078 | C101: =VLOOKUP(B101,'SINTÉTICO SICRO'!$A:$D,2,0) -> Usinagem de concreto asfáltico - faixa C - areia e brita comerciais | D101: 1.02 | E101: t
B103: F - MOMENTO DE TRANSPORTE | D103: Quantidade | E103: Unidade | F103: CÓDIGO TRANSPORTE
F104: LN | G104: RP | H104: P | I104: TIPO (P, RP ou LN) | J104: DMT ESTIMADA (km) | K104: QUANTITATIVO TOTAL DE TRANSPORTE (tkm)
A105: =IF(I105="P",H105,IF(I105="RP",G105,IF(I105="LN",F105,""))) -> 5914374 | B105: 6416078 | C105: =VLOOKUP(B105,'SINTÉTICO SICRO'!$A:$D,2,0) -> Usinagem de concreto asfáltico - faixa C - areia e brita comerciais | D105: 1.02 | E105: tkm | F105: 5914359 | G105: 5914374 | H105: 5914389 | I105: =$B$94 -> RP | J105: 120 | K105: =IF(ISBLANK(J105),"",J105*D105)*I99 -> 329011.2
A106: =IF(I106="P",H106,IF(I106="RP",G106,IF(I106="LN",F106,""))) -> 
B107: Obs.
B108: SISTEMA DE CUSTOS REFERENCIAIS DE OBRAS - SICRO
B109: Custo Unitário de Referência | E109: =$E$6 -> Minas Gerais - Abril/2024 | I109: Quantitativo | K109: m³
B110: 4915663 | C110: =VLOOKUP(B110,'SINTÉTICO SICRO'!$A:$D,2,0) -> Fresagem descontínua de revestimento asfáltico - espessura de 5 cm | I110: =SUMIF('RESUMO MODULO TOTAL'!D:D,B110,'RESUMO MODULO TOTAL'!J:J)*0.1 -> 112
B111: D - ATIVIDADES AUXILIARES | D111: Quantidade | E111: Unidade
B114: F - MOMENTO DE TRANSPORTE | D114: Quantidade | E114: Unidade | F114: CÓDIGO TRANSPORTE
F115: LN | G115: RP | H115: P | I115: TIPO (P, RP ou LN) | J115: DMT ESTIMADA (km) | K115: QUANTITATIVO TOTAL DE TRANSPORTE (tkm)
A116: =IF(I116="P",H116,IF(I116="RP",G116,IF(I116="LN",F116,""))) -> 5914374 | B116: M3507 | C116: Revestimento asfáltico - Caminhão basculante 10 m³ | D116: 2.4 | E116: tkm | F116: 5914359 | G116: 5914374 | H116: 5914389 | I116: =$B$94 -> RP | J116: 20 | K116: =IF(ISBLANK(J116),"",J116*D116)*I110 -> 5376
A117: =IF(I117="P",H117,IF(I117="RP",G117,IF(I117="LN",F117,""))) -> 
B118: Obs.
B119: COMPOSIÇÕES PRINCIPAIS
B120: SISTEMA DE CUSTOS REFERENCIAIS DE OBRAS - SICRO
B121: Custo Unitário de Referência | E121: =$E$6 -> Minas Gerais - Abril/2024 | I121: Quantitativo | K121: m²
B122: 4915618 | C122: =VLOOKUP(B122,'SINTÉTICO SICRO'!$A:$D,2,0) -> Recomposição de camada granular do pavimento com material de jazida | I122: =SUMIF('RESUMO MODULO TOTAL'!D:D,B122,'RESUMO MODULO TOTAL'!J:J)*0.1 -> 2240
B123: D - ATIVIDADES AUXILIARES | D123: Quantidade | E123: Unidade
B124: 4016096 | C124: =VLOOKUP(B124,'SINTÉTICO SICRO'!$A:$D,2,0) -> Escavação e carga de material de jazida com escavadeira hidráulica de 1,56 m³ | D124: 0.22005 | E124: t
B126: F - MOMENTO DE TRANSPORTE | D126: Quantidade | E126: Unidade | F126: CÓDIGO TRANSPORTE
F127: LN | G127: RP | H127: P | I127: TIPO (P, RP ou LN) | J127: DMT ESTIMADA (km) | K127: QUANTITATIVO TOTAL DE TRANSPORTE (tkm)
A128: =IF(I128="P",H128,IF(I128="RP",G128,IF(I128="LN",F128,""))) -> 5914329 | B128: 4016096 | C128: =VLOOKUP(B128,'SINTÉTICO SICRO'!$A:$D,2,0) -> Escavação e carga de material de jazida com escavadeira hidráulica de 1,56 m³ | D128: 0.41259 | E128: tkm | F128: 5914314 | G128: 5914329 | H128: 5914344 | I128: =$B$94 -> RP | J128: 12 | K128: =IF(ISBLANK(J128),"",J128*D128)*I122 -> 11090.4192
A129: =IF(I129="P",H129,IF(I129="RP",G129,IF(I129="LN",F129,""))) -> 
B130: Obs.

Sheet MOMENTO DE TRANSPORTE - AUX
B4: ='RESUMO MODULO TOTAL'!B1 -> CONTRATAÇÃO DE SERVIÇOS DE EXECUÇÃO DE CAPA ASFÁLTICA COM CONCRETO BETUMINOSO USINADO A QUENTE (CBUQ) EM VIAS DE DIVERSOS MUNICÍPIOS INSERIDOS NA ÁREA DE ATUAÇÃO DA 16ª SUPERINTENDÊNCIA REGIONAL DA CODEVASF, NO ESTADO DE MINAS GERAIS - REGIÃO NOROESTE
B5: ESTADO: | C5: ='RESUMO MODULO TOTAL'!N1 -> xxxxxxxxxxxx | D5: DATA BASE: | E5: ='MOMENTO DE TRANSPORTE - PRINC'!E6 -> Minas Gerais - Abril/2024
B7: RESUMO DO TRANSPORTE AUXILIAR
B8: CODIGO | C8: DESCRIÇÃO | D8: TKM
B9: 5914359 | C9: =VLOOKUP(B9,'SINTÉTICO SICRO'!$A:$D,2,0) -> Transporte com caminhão basculante de 10 m³ - rodovia em leito natural | D9: =ROUND(SUMIF(A:A,B9,K:K),2) -> 64724.73
B10: 5914374 | C10: =VLOOKUP(B10,'SINTÉTICO SICRO'!$A:$D,2,0) -> Transporte com caminhão basculante de 10 m³ - rodovia em revestimento primário | D10: 64724.73
B11: 5914389 | C11: =VLOOKUP(B11,'SINTÉTICO SICRO'!$A:$D,2,0) -> Transporte com caminhão basculante de 10 m³ - rodovia pavimentada | D11: 517797.83
B12: 5914364 | C12: =VLOOKUP(B12,'SINTÉTICO SICRO'!$A:$D,2,0) -> Transporte de cimento ou cal hidratada a granel com caminhão silo de 30 m³ - rodovia em leito natural | D12: 9245.21
B13: 5914365 | C13: =VLOOKUP(B13,'SINTÉTICO SICRO'!$A:$D,2,0) -> Transporte de cimento ou cal hidratada a granel com caminhão silo de 30 m³ - rodovia em revestimento primário | D13: 9245.21
B14: 5914366 | C14: =VLOOKUP(B14,'SINTÉTICO SICRO'!$A:$D,2,0) -> Transporte de cimento ou cal hidratada a granel com caminhão silo de 30 m³ - rodovia pavimentada | D14: 73961.72
B16: TIPO (P, RP ou LN) | C16: DMT ATÉ 50 KM NÃO DEVE SER PAGA | D16: SOMENTE DEVE SER ADICIONADO A DISTÂNCIA EXCEDENTE A 50 KM
B17: P
B19: SISTEMA DE CUSTOS REFERENCIAIS DE OBRAS - SICRO | I19: Quantitivo
B20: Custo Unitário de Referência | E20: =$E$5 -> Minas Gerais - Abril/2024 | I20: (Coeficiente na composição principal) x (quantidade da principal no orçamento) | K20: t
B21: 6416078 | C21: Usinagem de concreto asfáltico - faixa C - areia e brita comerciais | I21: =('MOMENTO DE TRANSPORTE - PRINC'!D25*VLOOKUP(C30,'RESUMO MODULO TOTAL'!D:O,7,FALSE))*0.8 -> 21934.08
B22: F - MOMENTO DE TRANSPORTE | D22: Quantidade | E22: Unidade | F22: DMT
F23: LN | G23: RP | H23: P | I23: TIPO (P, RP ou LN) | J23: DMT ESTIMADA (km) | K23: QUANTITATIVO TOTAL DE TRANSPORTE DE MATERIAL (tkm)
A24: =IF(I24="P",H24,IF(I24="RP",G24,IF(I24="LN",F24,""))) -> 5914389 | B24: M0028 | C24: Areia média - Caminhão basculante 10 m³ | D24: 0.48713 | E24: tkm | F24: 5914359 | G24: 5914374 | H24: 5914389 | I24: =$B$17 -> P | J24: 0 | K24: =IF(ISBLANK(J24),"",J24*(D24*$I$21)) -> 0
A25: =IF(I25="P",H25,IF(I25="RP",G25,IF(I25="LN",F25,""))) -> 5914389 | B25: M0005 | C25: Brita 0 - Caminhão basculante 10 m³ | D25: 0.09368 | E25: tkm | F25: 5914359 | G25: 5914374 | H25: 5914389 | I25: P | J25: 60 | K25: =IF(ISBLANK(J25),"",J25*(D25*$I$21)) -> 123287.0769
A26: 5914389 | B26: M0191 | C26: Brita 1 - Caminhão basculante 10 m³ | D26: 0.09368 | E26: tkm | F26: 5914359 | G26: 5914374 | H26: 5914389 | I26: P | J26: 60 | K26: 123287.0769
A27: 5914366 | B27: M0344 | C27: Cal hidratada - a granel - Caminhão silo 30 m³ | D27: 0.0562 | E27: tkm | F27: 5914364 | G27: 5914365 | H27: 5914366 | I27: P | J27: 60 | K27: 73961.71776
A28: 5914389 | B28: M1103 | C28: Pedrisco - Caminhão basculante 10 m³ | D28: 0.20609 | E28: tkm | F28: 5914359 | G28: 5914374 | H28: 5914389 | I28: P | J28: 60 | K28: 271223.6728
A30: =IF(I30="P",H30,IF(I30="RP",G30,IF(I30="LN",F30,""))) ->  | B30: PRINCIPAL: | C30: ='MOMENTO DE TRANSPORTE - PRINC'!B23 -> 4011463
B31: SISTEMA DE CUSTOS REFERENCIAIS DE OBRAS - SICRO | I31: Quantitivo
B32: Custo Unitário de Referência | E32: =$E$5 -> Minas Gerais - Abril/2024 | I32: (Coeficiente na composição principal) x (quantidade da principal no orçamento) | K32: m³
B33: 4016096 | C33: =VLOOKUP(B33,'SINTÉTICO SICRO'!$A:$D,2,0) -> Escavação e carga de material de jazida com escavadeira hidráulica de 1,56 m³
B34: F - MOMENTO DE TRANSPORTE | D34: '' | E34: Unidade | F34: DMT
F35: LN | G35: RP | H35: P | I35: TIPO (P, RP ou LN) | J35: DMT ESTIMADA (km) | K35: QUANTITATIVO TOTAL DE TRANSPORTE DE MATERIAL (tkm)
A36: =IF(I36="P",H36,IF(I36="RP",G36,IF(I36="LN",F36,""))) ->  | E36: tkm | K36: =IF(ISBLANK(J36),"",J36*(D36*#REF!)) -> 
B37: PRINCIPAL: | C37: ='MOMENTO DE TRANSPORTE - PRINC'!B46 -> 4915618
B38: TIPO (P, RP ou LN) | C38: DMT ATÉ 50 KM NÃO DEVE SER PAGA | D38: DMT ACIMA DE 50 KM
B39: LN | C39: 0
B41: SISTEMA DE CUSTOS REFERENCIAIS DE OBRAS - SICRO | I41: Quantitivo
B42: Custo Unitário de Referência | E42: =$E$5 -> Minas Gerais - Abril/2024 | I42: (Coeficiente na composição principal) x (quantidade da principal no orçamento) | K42: t
B43: 6416078 | C43: Usinagem de concreto asfáltico - faixa C - areia e brita comerciais | I43: =('MOMENTO DE TRANSPORTE - PRINC'!D25*VLOOKUP(C52,'RESUMO MODULO TOTAL'!D:O,7,FALSE))*0.1 -> 2741.76
B44: F - MOMENTO DE TRANSPORTE | D44: Quantidade | E44: Unidade | F44: DMT
F45: LN | G45: RP | H45: P | I45: TIPO (P, RP ou LN) | J45: DMT ESTIMADA (km) | K45: QUANTITATIVO TOTAL DE TRANSPORTE DE MATERIAL (tkm)
A46: =IF(I46="P",H46,IF(I46="RP",G46,IF(I46="LN",F46,""))) -> 5914359 | B46: M0028 | C46: Areia média - Caminhão basculante 10 m³ | D46: 0.48713 | E46: tkm | F46: 5914359 | G46: 5914374 | H46: 5914389 | I46: =$B$39 -> LN | J46: 0 | K46: =IF(ISBLANK(J46),"",J46*(D46*$I$43)) -> 0
A47: 5914359 | B47: M0005 | C47: Brita 0 - Caminhão basculante 10 m³ | D47: 0.09368 | E47: tkm | F47: 5914359 | G47: 5914374 | H47: 5914389 | I47: =$B$39 -> LN | J47: 60 | K47: =IF(ISBLANK(J47),"",J47*(D47*$I$43)) -> 15410.88461
A48: 5914359 | B48: M0191 | C48: Brita 1 - Caminhão basculante 10 m³ | D48: 0.09368 | E48: tkm | F48: 5914359 | G48: 5914374 | H48: 5914389 | I48: LN | J48: 60 | K48: 15410.88461
A49: 5914364 | B49: M0344 | C49: Cal hidratada - a granel - Caminhão silo 30 m³ | D49: 0.0562 | E49: tkm | F49: 5914364 | G49: 5914365 | H49: 5914366 | I49: LN | J49: 60 | K49: 9245.21472
A50: 5914359 | B50: M1103 | C50: Pedrisco - Caminhão basculante 10 m³ | D50: 0.20609 | E50: tkm | F50: 5914359 | G50: 5914374 | H50: 5914389 | I50: LN | J50: 60 | K50: 33902.9591
B52: PRINCIPAL: | C52: ='MOMENTO DE TRANSPORTE - PRINC'!B23 -> 4011463
B53: SISTEMA DE CUSTOS REFERENCIAIS DE OBRAS - SICRO | I53: Quantitivo
B54: Custo Unitário de Referência | E54: =$E$5 -> Minas Gerais - Abril/2024 | I54: (Coeficiente na composição principal) x (quantidade da principal no orçamento) | K54: m³
B55: 4016096 | C55: =VLOOKUP(B55,'SINTÉTICO SICRO'!$A:$D,2,0) -> Escavação e carga de material de jazida com escavadeira hidráulica de 1,56 m³
B56: F - MOMENTO DE TRANSPORTE | D56: '' | E56: Unidade | F56: DMT
F57: LN | G57: RP | H57: P | I57: TIPO (P, RP ou LN) | J57: DMT ESTIMADA (km) | K57: QUANTITATIVO TOTAL DE TRANSPORTE DE MATERIAL (tkm)
A58: =IF(I58="P",H58,IF(I58="RP",G58,IF(I58="LN",F58,""))) ->  | E58: tkm | K58: =IF(ISBLANK(J58),"",J58*(D58*#REF!)) -> 
B59: PRINCIPAL: | C59: ='MOMENTO DE TRANSPORTE - PRINC'!B46 -> 4915618
B60: TIPO (P, RP ou LN) | C60: DMT ATÉ 50 KM NÃO DEVE SER PAGA | D60: DMT ACIMA DE 50 KM
B61: RP | C61: 0 | D61: 1
B63: SISTEMA DE CUSTOS REFERENCIAIS DE OBRAS - SICRO | I63: Quantitivo
B64: Custo Unitário de Referência | E64: =$E$5 -> Minas Gerais - Abril/2024 | I64: (Coeficiente na composição principal) x (quantidade da principal no orçamento) | K64: t
B65: 6416078 | C65: Usinagem de concreto asfáltico - faixa C - areia e brita comerciais | I65: =('MOMENTO DE TRANSPORTE - PRINC'!D25*VLOOKUP(C74,'RESUMO MODULO TOTAL'!D:O,7,FALSE))*0.1 -> 2741.76
B66: F - MOMENTO DE TRANSPORTE | D66: Quantidade | E66: Unidade | F66: DMT
F67: LN | G67: RP | H67: P | I67: TIPO (P, RP ou LN) | J67: DMT ESTIMADA (km) | K67: QUANTITATIVO TOTAL DE TRANSPORTE DE MATERIAL (tkm)
A68: =IF(I68="P",H68,IF(I68="RP",G68,IF(I68="LN",F68,""))) -> 5914374 | B68: M0028 | C68: Areia média - Caminhão basculante 10 m³ | D68: 0.48713 | E68: tkm | F68: 5914359 | G68: 5914374 | H68: 5914389 | I68: =$B$61 -> RP | J68: 0 | K68: =IF(ISBLANK(J68),"",J68*(D68*$I$65)) -> 0
A69: 5914374 | B69: M0005 | C69: Brita 0 - Caminhão basculante 10 m³ | D69: 0.09368 | E69: tkm | F69: 5914359 | G69: 5914374 | H69: 5914389 | I69: =$B$61 -> RP | J69: 60 | K69: =IF(ISBLANK(J69),"",J69*(D69*$I$65)) -> 15410.88461
A70: 5914374 | B70: M0191 | C70: Brita 1 - Caminhão basculante 10 m³ | D70: 0.09368 | E70: tkm | F70: 5914359 | G70: 5914374 | H70: 5914389 | I70: RP | J70: 60 | K70: 15410.88461
A71: 5914365 | B71: M0344 | C71: Cal hidratada - a granel - Caminhão silo 30 m³ | D71: 0.0562 | E71: tkm | F71: 5914364 | G71: 5914365 | H71: 5914366 | I71: RP | J71: 60 | K71: 9245.21472
A72: 5914374 | B72: M1103 | C72: Pedrisco - Caminhão basculante 10 m³ | D72: 0.20609 | E72: tkm | F72: 5914359 | G72: 5914374 | H72: 5914389 | I72: RP | J72: 60 | K72: 33902.9591
B74: PRINCIPAL: | C74: ='MOMENTO DE TRANSPORTE - PRINC'!B23 -> 4011463
B75: SISTEMA DE CUSTOS REFERENCIAIS DE OBRAS - SICRO | I75: Quantitivo
B76: Custo Unitário de Referência | E76: =$E$5 -> Minas Gerais - Abril/2024 | I76: (Coeficiente na composição principal) x (quantidade da principal no orçamento) | K76: m³
B77: 4016096 | C77: =VLOOKUP(B77,'SINTÉTICO SICRO'!$A:$D,2,0) -> Escavação e carga de material de jazida com escavadeira hidráulica de 1,56 m³
B78: F - MOMENTO DE TRANSPORTE | D78: '' | E78: Unidade | F78: DMT
F79: LN | G79: RP | H79: P | I79: TIPO (P, RP ou LN) | J79: DMT ESTIMADA (km) | K79: QUANTITATIVO TOTAL DE TRANSPORTE DE MATERIAL (tkm)
A80: =IF(I80="P",H80,IF(I80="RP",G80,IF(I80="LN",F80,""))) ->  | E80: tkm | K80: =IF(ISBLANK(J80),"",J80*(D80*#REF!)) -> 
B81: PRINCIPAL: | C81: ='MOMENTO DE TRANSPORTE - PRINC'!B68 -> 0
A82: =IF(I82="P",H82,IF(I82="RP",G82,IF(I82="LN",F82,""))) -> 
M103: =(#REF!) -> 

Sheet MC MODULO
A1: Extensão | B1: = | C1: 2000 | D1: m | F1: QUANTIDADE DE MODULOS | G1: 16
A2: Largura | B2: = | C2: 7 | D2: m
A4: Extensão | B4: = | C4: 2 | D4: km
B6: MOBUILIZAÇÃO
A7: 1 | B7: Implantação da obra
B9: Módulos(un) | D9: Módulos(un)
B10: =G1 -> 16 | C10: = | D10: =B10 -> 16
A12: 2 | B12: Administração da obra
B14: Módulos(un) | D14: Módulos(un)
B15: =G1 -> 16 | C15: = | D15: =B15 -> 16
A17: 3 | B17: Canteiro de Obras e Almoxarifado
B19: Módulos(un) | D19: Módulos(un)
B20: =G1 -> 16 | C20: = | D20: =B20 -> 16
A22: 4 | B22: Placa de Obra em Chapa de Aço Galvanizado
B24: Módulos(un) | C24: Comprimento(m) | D24: Largura (m) | H24: Total de Area de placa (m²)
B25: =G1 -> 16 | C25: 2 | D25: 4 | H25: =C25*D25*B25*2 -> 256
B28: PAVIMENTAÇÃO
A30: 5 | B30: Concreto asfáltico - faixa C - areia e brita comerciais
B32: Extensão (m) | C32: Largura (m) | D32: Espessura (m) | E32: Densidade (t/m³) | F32: A | H32: Volume (t)
B33: =$C$1*G1 -> 32000 | C33: =$C$2 -> 7 | D33: 0.05 | E33: 2.4 | G33: = | H33: =B33*C33*D33*E33 -> 26880
A36: 7 | B36: Pintura de ligação
B38: Extensão (m) | D38: Largura (m) | H38: area (m2)
B39: =$C$1*G1 -> 32000 | C39: x | D39: =$C$2 -> 7 | G39: = | H39: =B39*D39 -> 224000
A42: 9 | B42: Fresagem descontínua de revestimento asfáltico - espessura de 5 cm
B44: Extensão (m) | D44: Largura (m) | E44: Espessura (m) | H44: Volume (m3)
B45: =$C$1*G1 -> 32000 | C45: x | D45: =$C$2 -> 7 | E45: 0.05 | F45: 0.1 | G45: = | H45: =B45*D45*E45*F45 -> 1120
A48: 9 | B48: Recomposição de camada granular do pavimento com material de jazida
B50: Extensão (m) | D50: Largura (m) | H50: area (m2)
B51: =$C$1*G1 -> 32000 | C51: x | D51: =$C$2 -> 7 | F51: =F45 -> 0.1 | G51: = | H51: =B51*D51*F51 -> 22400
B53: SINALIZAÇÃO
A55: 14 | B55: Fornecimento e implantação de placa de regulamentação em aço D = 0,60 m - película retrorrefletiva tipo I + SI
B57: Extensão (km) | D57: Quant. (un) | H57: Quant. (un)
B58: =$C$4*$G$1 -> 32 | C58: x | D58: 3 | G58: = | H58: =B58*D58 -> 96
A60: 14 | B60: Placa de advertência em aço, lado de 0,60 m - película retrorrefletiva tipo I + SI - fornecimento e implantação
B62: Extensão (km) | D62: Quant. (un) | H62: Quant. (un)
B63: =$C$4*$G$1 -> 32 | C63: x | D63: 3 | G63: = | H63: =B63*D63 -> 96
A66: 15 | B66: Fornecimento e implantação de suporte metálico galvanizado para placa de regulamentação - D = 0,60 m
B68: Extensão (km) | D68: Quant. (un) | H68: Quant. (un)
B69: =$C$4*$G$1 -> 32 | C69: x | G69: = | H69: =H58+H63 -> 192
A71: 16 | B71: Pintura de faixa com tinta acrílica - espessura de 0,4 mm (bordos)
B73: Extensão (m) | D73: Espessura (m) | H73: Quant. (m²)
B74: =C1*G1 -> 32000 | C74: x | D74: 0.1 | G74: = | H74: =B74*D74*2 -> 6400
A76: 16 | B76: Pintura de faixa com tinta acrílica - espessura de 0,4 mm (faixa central)
H78: Quant. (m²)
H79: =B74*D74*0.4 -> 1280
B82: DRENAGEM
A83: 17 | B83: Reassentamento manual de meio fio com material arrancado da pista
B85: Extensão (m) | D85: Quant. (un) | G85: 0.1 | H85: Extensão(m)
B86: =$C$1*$G$1 -> 32000 | C86: x | D86: 2 | G86: = | H86: =B86*D86*G85 -> 6400
A88: 18 | B88: Limpeza de sarjeta e meio-fio
B90: Extensão (m) | D90: Quant. (un) | H90: Extensão(m)
B91: =$C$1*$G$1 -> 32000 | C91: x | D91: 2 | G91: = | H91: =B91*D91 -> 64000
A93: 19 | B93: Caiação mecanizada com fixador de cal
B95: Extensão (m) | D95: Perimetro (m) | H95: Area (m²)
B96: =$C$1*$G$1 -> 32000 | C96: x | D96: =0.24 -> 0.24 | G96: = | H96: =B96*D96 -> 7680
B99: SERVIÇOS COMPLEMENTARES
A100: 20
B102: Extensão (m) | D102: Largura (m) | G102: 0.1 | H102: extensão (m)
B103: =$C$1*G1 -> 32000 | C103: x | D103: 1 | E103: x | G103: = | H103: =G102*B103 -> 3200
B106: PROJETO EXECUTIVO
A107: 21 | B107: Projeto Executivo
B109: Extensão (m) | D109: Largura (m) | F109: Quant. (un) | H109: Área (m²)
B110: =$C$1*G1 -> 32000 | C110: x | D110: =C2 -> 7 | E110: x | F110: 1 | G110: = | H110: =B110*D110 -> 224000
B112: CONTROLE TECNOLOGICO - OBRA
A113: 22 | B113: Projeto Executivo
B115: Extensão (m) | D115: Largura (m) | F115: Quant. (un) | H115: meses
G116: = | H116: =0.5*G1 -> 8
E132: Perímetro caiação = 0,09 + 0,15

Sheet ANP ESTADO
A1: Agência Nacional do Petróleo, Gás Natural e Biocombustíveis
A2: Superintendência de Defesa da Concorrência
A5: PREÇO MÉDIO MENSAL PONDERADO PRATICADO PELOS DISTRIBUIDORES DE PRODUTOS ASFÁLTICOS (R$/KG)
A7: Importante: | B7: Quando não houver declaração de venda do produto selecionado, ou quando a declaração de venda do produto ocorrer por menos de 03 (três) distribuidoras, a tabela indicará campo vazio.
A8: Mês | B8: Produto | C8: Estado | D8: Preço
A9: 2013-01-01 | B9: ASFALTOS DILUÍDOS CM-30 | C9: Acre | D9: -
A10: 2013-01-01 | B10: ASFALTOS DILUÍDOS CM-30 | C10: Alagoas | D10: -
A11: 2013-01-01 | B11: ASFALTOS DILUÍDOS CM-30 | C11: Amapá | D11: -
A12: 2013-01-01 | B12: ASFALTOS DILUÍDOS CM-30 | C12: Amazonas | D12: 1.453527021
A13: 2013-01-01 | B13: ASFALTOS DILUÍDOS CM-30 | C13: Bahia | D13: 1.464044142
A14: 2013-01-01 | B14: ASFALTOS DILUÍDOS CM-30 | C14: Ceará | D14: 1.447997934
A15: 2013-01-01 | B15: ASFALTOS DILUÍDOS CM-30 | C15: Distrito Federal | D15: -
A16: 2013-01-01 | B16: ASFALTOS DILUÍDOS CM-30 | C16: Espírito Santo | D16: -
A17: 2013-01-01 | B17: ASFALTOS DILUÍDOS CM-30 | C17: Goiás | D17: 1.686383065
A18: 2013-01-01 | B18: ASFALTOS DILUÍDOS CM-30 | C18: Maranhão | D18: -
A19: 2013-01-01 | B19: ASFALTOS DILUÍDOS CM-30 | C19: Mato Grosso | D19: -
A20: 2013-01-01 | B20: ASFALTOS DILUÍDOS CM-30 | C20: Mato Grosso do Sul | D20: -
A21: 2013-01-01 | B21: ASFALTOS DILUÍDOS CM-30 | C21: Minas Gerais | D21: 1.451106114
A22: 2013-01-01 | B22: ASFALTOS DILUÍDOS CM-30 | C22: Pará | D22: -
A23: 2013-01-01 | B23: ASFALTOS DILUÍDOS CM-30 | C23: Paraíba | D23: -
A24: 2013-01-01 | B24: ASFALTOS DILUÍDOS CM-30 | C24: Paraná | D24: 1.520125031
A25: 2013-01-01 | B25: ASFALTOS DILUÍDOS CM-30 | C25: Pernambuco | D25: -
A26: 2013-01-01 | B26: ASFALTOS DILUÍDOS CM-30 | C26: Piauí | D26: -
A27: 2013-01-01 | B27: ASFALTOS DILUÍDOS CM-30 | C27: Rio de Janeiro | D27: 1.330475106
A28: 2013-01-01 | B28: ASFALTOS DILUÍDOS CM-30 | C28: Rio Grande do Norte | D28: -
A29: 2013-01-01 | B29: ASFALTOS DILUÍDOS CM-30 | C29: Rio Grande do Sul | D29: 1.598611074
A30: 2013-01-01 | B30: ASFALTOS DILUÍDOS CM-30 | C30: Rondônia | D30: -
A31: 2013-01-01 | B31: ASFALTOS DILUÍDOS CM-30 | C31: Roraima | D31: -
A32: 2013-01-01 | B32: ASFALTOS DILUÍDOS CM-30 | C32: Santa Catarina | D32: -
A33: 2013-01-01 | B33: ASFALTOS DILUÍDOS CM-30 | C33: São Paulo | D33: 1.471008423
A34: 2013-01-01 | B34: ASFALTOS DILUÍDOS CM-30 | C34: Sergipe | D34: -
A35: 2013-01-01 | B35: ASFALTOS DILUÍDOS CM-30 | C35: Tocantins | D35: -
A36: 2013-02-01 | B36: ASFALTOS DILUÍDOS CM-30 | C36: Acre | D36: -
A37: 2013-02-01 | B37: ASFALTOS DILUÍDOS CM-30 | C37: Alagoas | D37: -
A38: 2013-02-01 | B38: ASFALTOS DILUÍDOS CM-30 | C38: Amapá | D38: -
A39: 2013-02-01 | B39: ASFALTOS DILUÍDOS CM-30 | C39: Amazonas | D39: 1.485578179
A40: 2013-02-01 | B40: ASFALTOS DILUÍDOS CM-30 | C40: Bahia | D40: 1.457014101
A41: 2013-02-01 | B41: ASFALTOS DILUÍDOS CM-30 | C41: Ceará | D41: 1.413192336
A42: 2013-02-01 | B42: ASFALTOS DILUÍDOS CM-30 | C42: Distrito Federal | D42: -
A43: 2013-02-01 | B43: ASFALTOS DILUÍDOS CM-30 | C43: Espírito Santo | D43: -
A44: 2013-02-01 | B44: ASFALTOS DILUÍDOS CM-30 | C44: Goiás | D44: 1.667459711
A45: 2013-02-01 | B45: ASFALTOS DILUÍDOS CM-30 | C45: Maranhão | D45: -
A46: 2013-02-01 | B46: ASFALTOS DILUÍDOS CM-30 | C46: Mato Grosso | D46: -
A47: 2013-02-01 | B47: ASFALTOS DILUÍDOS CM-30 | C47: Mato Grosso do Sul | D47: -
A48: 2013-02-01 | B48: ASFALTOS DILUÍDOS CM-30 | C48: Minas Gerais | D48: 1.452121117
A49: 2013-02-01 | B49: ASFALTOS DILUÍDOS CM-30 | C49: Pará | D49: -
A50: 2013-02-01 | B50: ASFALTOS DILUÍDOS CM-30 | C50: Paraíba | D50: -
A51: 2013-02-01 | B51: ASFALTOS DILUÍDOS CM-30 | C51: Paraná | D51: 1.493783173
A52: 2013-02-01 | B52: ASFALTOS DILUÍDOS CM-30 | C52: Pernambuco | D52: -
A53: 2013-02-01 | B53: ASFALTOS DILUÍDOS CM-30 | C53: Piauí | D53: -
A54: 2013-02-01 | B54: ASFALTOS DILUÍDOS CM-30 | C54: Rio de Janeiro | D54: 1.418234901
A55: 2013-02-01 | B55: ASFALTOS DILUÍDOS CM-30 | C55: Rio Grande do Norte | D55: -
A56: 2013-02-01 | B56: ASFALTOS DILUÍDOS CM-30 | C56: Rio Grande do Sul | D56: 1.435861782
A57: 2013-02-01 | B57: ASFALTOS DILUÍDOS CM-30 | C57: Rondônia | D57: -
A58: 2013-02-01 | B58: ASFALTOS DILUÍDOS CM-30 | C58: Roraima | D58: -
A59: 2013-02-01 | B59: ASFALTOS DILUÍDOS CM-30 | C59: Santa Catarina | D59: -
A60: 2013-02-01 | B60: ASFALTOS DILUÍDOS CM-30 | C60: São Paulo | D60: 1.434190204
A61: 2013-02-01 | B61: ASFALTOS DILUÍDOS CM-30 | C61: Sergipe | D61: -
A62: 2013-02-01 | B62: ASFALTOS DILUÍDOS CM-30 | C62: Tocantins | D62: -
A63: 2013-03-01 | B63: ASFALTOS DILUÍDOS CM-30 | C63: Acre | D63: -
A64: 2013-03-01 | B64: ASFALTOS DILUÍDOS CM-30 | C64: Alagoas | D64: -
A65: 2013-03-01 | B65: ASFALTOS DILUÍDOS CM-30 | C65: Amapá | D65: -
A66: 2013-03-01 | B66: ASFALTOS DILUÍDOS CM-30 | C66: Amazonas | D66: 1.507923921
A67: 2013-03-01 | B67: ASFALTOS DILUÍDOS CM-30 | C67: Bahia | D67: 1.449440325
A68: 2013-03-01 | B68: ASFALTOS DILUÍDOS CM-30 | C68: Ceará | D68: 1.401607485
A69: 2013-03-01 | B69: ASFALTOS DILUÍDOS CM-30 | C69: Distrito Federal | D69: -
A70: 2013-03-01 | B70: ASFALTOS DILUÍDOS CM-30 | C70: Espírito Santo | D70: -
A71: 2013-03-01 | B71: ASFALTOS DILUÍDOS CM-30 | C71: Goiás | D71: 1.661758701
A72: 2013-03-01 | B72: ASFALTOS DILUÍDOS CM-30 | C72: Maranhão | D72: -
A73: 2013-03-01 | B73: ASFALTOS DILUÍDOS CM-30 | C73: Mato Grosso | D73: -
A74: 2013-03-01 | B74: ASFALTOS DILUÍDOS CM-30 | C74: Mato Grosso do Sul | D74: -
A75: 2013-03-01 | B75: ASFALTOS DILUÍDOS CM-30 | C75: Minas Gerais | D75: 1.44324333
A76: 2013-03-01 | B76: ASFALTOS DILUÍDOS CM-30 | C76: Pará | D76: -
A77: 2013-03-01 | B77: ASFALTOS DILUÍDOS CM-30 | C77: Paraíba | D77: -
A78: 2013-03-01 | B78: ASFALTOS DILUÍDOS CM-30 | C78: Paraná | D78: 1.468995996
A79: 2013-03-01 | B79: ASFALTOS DILUÍDOS CM-30 | C79: Pernambuco | D79: -
A80: 2013-03-01 | B80: ASFALTOS DILUÍDOS CM-30 | C80: Piauí | D80: -
A81: 2013-03-01 | B81: ASFALTOS DILUÍDOS CM-30 | C81: Rio de Janeiro | D81: 1.438055574
A82: 2013-03-01 | B82: ASFALTOS DILUÍDOS CM-30 | C82: Rio Grande do Norte | D82: -
A83: 2013-03-01 | B83: ASFALTOS DILUÍDOS CM-30 | C83: Rio Grande do Sul | D83: 1.581425878
A84: 2013-03-01 | B84: ASFALTOS DILUÍDOS CM-30 | C84: Rondônia | D84: -
A85: 2013-03-01 | B85: ASFALTOS DILUÍDOS CM-30 | C85: Roraima | D85: -
A86: 2013-03-01 | B86: ASFALTOS DILUÍDOS CM-30 | C86: Santa Catarina | D86: -
A87: 2013-03-01 | B87: ASFALTOS DILUÍDOS CM-30 | C87: São Paulo | D87: 1.466061702
A88: 2013-03-01 | B88: ASFALTOS DILUÍDOS CM-30 | C88: Sergipe | D88: -
A89: 2013-03-01 | B89: ASFALTOS DILUÍDOS CM-30 | C89: Tocantins | D89: -
A90: 2013-04-01 | B90: ASFALTOS DILUÍDOS CM-30 | C90: Acre | D90: -
A91: 2013-04-01 | B91: ASFALTOS DILUÍDOS CM-30 | C91: Alagoas | D91: -
A92: 2013-04-01 | B92: ASFALTOS DILUÍDOS CM-30 | C92: Amapá | D92: -
A93: 2013-04-01 | B93: ASFALTOS DILUÍDOS CM-30 | C93: Amazonas | D93: 1.484796656
A94: 2013-04-01 | B94: ASFALTOS DILUÍDOS CM-30 | C94: Bahia | D94: 1.454836546
A95: 2013-04-01 | B95: ASFALTOS DILUÍDOS CM-30 | C95: Ceará | D95: 1.387073962
A96: 2013-04-01 | B96: ASFALTOS DILUÍDOS CM-30 | C96: Distrito Federal | D96: -
A97: 2013-04-01 | B97: ASFALTOS DILUÍDOS CM-30 | C97: Espírito Santo | D97: -
A98: 2013-04-01 | B98: ASFALTOS DILUÍDOS CM-30 | C98: Goiás | D98: 1.673481836
A99: 2013-04-01 | B99: ASFALTOS DILUÍDOS CM-30 | C99: Maranhão | D99: -
A100: 2013-04-01 | B100: ASFALTOS DILUÍDOS CM-30 | C100: Mato Grosso | D100: 1.921938422
A101: 2013-04-01 | B101: ASFALTOS DILUÍDOS CM-30 | C101: Mato Grosso do Sul | D101: -
A102: 2013-04-01 | B102: ASFALTOS DILUÍDOS CM-30 | C102: Minas Gerais | D102: 1.456556683
A103: 2013-04-01 | B103: ASFALTOS DILUÍDOS CM-30 | C103: Pará | D103: -
A104: 2013-04-01 | B104: ASFALTOS DILUÍDOS CM-30 | C104: Paraíba | D104: -
A105: 2013-04-01 | B105: ASFALTOS DILUÍDOS CM-30 | C105: Paraná | D105: 1.534419498
A106: 2013-04-01 | B106: ASFALTOS DILUÍDOS CM-30 | C106: Pernambuco | D106: -
A107: 2013-04-01 | B107: ASFALTOS DILUÍDOS CM-30 | C107: Piauí | D107: -
A108: 2013-04-01 | B108: ASFALTOS DILUÍDOS CM-30 | C108: Rio de Janeiro | D108: 1.418419516
A109: 2013-04-01 | B109: ASFALTOS DILUÍDOS CM-30 | C109: Rio Grande do Norte | D109: -
A110: 2013-04-01 | B110: ASFALTOS DILUÍDOS CM-30 | C110: Rio Grande do Sul | D110: 1.572582456
A111: 2013-04-01 | B111: ASFALTOS DILUÍDOS CM-30 | C111: Rondônia | D111: -
A112: 2013-04-01 | B112: ASFALTOS DILUÍDOS CM-30 | C112: Roraima | D112: -
A113: 2013-04-01 | B113: ASFALTOS DILUÍDOS CM-30 | C113: Santa Catarina | D113: -
A114: 2013-04-01 | B114: ASFALTOS DILUÍDOS CM-30 | C114: São Paulo | D114: 1.475764348
A115: 2013-04-01 | B115: ASFALTOS DILUÍDOS CM-30 | C115: Sergipe | D115: -
A116: 2013-04-01 | B116: ASFALTOS DILUÍDOS CM-30 | C116: Tocantins | D116: -
A117: 2013-05-01 | B117: ASFALTOS DILUÍDOS CM-30 | C117: Acre | D117: -
A118: 2013-05-01 | B118: ASFALTOS DILUÍDOS CM-30 | C118: Alagoas | D118: -
A119: 2013-05-01 | B119: ASFALTOS DILUÍDOS CM-30 | C119: Amapá | D119: -
A120: 2013-05-01 | B120: ASFALTOS DILUÍDOS CM-30 | C120: Amazonas | D120: -
A121: 2013-05-01 | B121: ASFALTOS DILUÍDOS CM-30 | C121: Bahia | D121: 1.492587424
A122: 2013-05-01 | B122: ASFALTOS DILUÍDOS CM-30 | C122: Ceará | D122: 1.376263021
A123: 2013-05-01 | B123: ASFALTOS DILUÍDOS CM-30 | C123: Distrito Federal | D123: -
A124: 2013-05-01 | B124: ASFALTOS DILUÍDOS CM-30 | C124: Espírito Santo | D124: -
A125: 2013-05-01 | B125: ASFALTOS DILUÍDOS CM-30 | C125: Goiás | D125: 1.668214819
A126: 2013-05-01 | B126: ASFALTOS DILUÍDOS CM-30 | C126: Maranhão | D126: -
A127: 2013-05-01 | B127: ASFALTOS DILUÍDOS CM-30 | C127: Mato Grosso | D127: 1.903098159
A128: 2013-05-01 | B128: ASFALTOS DILUÍDOS CM-30 | C128: Mato Grosso do Sul | D128: -
A129: 2013-05-01 | B129: ASFALTOS DILUÍDOS CM-30 | C129: Minas Gerais | D129: 1.464709716
A130: 2013-05-01 | B130: ASFALTOS DILUÍDOS CM-30 | C130: Pará | D130: -
A131: 2013-05-01 | B131: ASFALTOS DILUÍDOS CM-30 | C131: Paraíba | D131: -
A132: 2013-05-01 | B132: ASFALTOS DILUÍDOS CM-30 | C132: Paraná | D132: 1.489027849
A133: 2013-05-01 | B133: ASFALTOS DILUÍDOS CM-30 | C133: Pernambuco | D133: -
A134: 2013-05-01 | B134: ASFALTOS DILUÍDOS CM-30 | C134: Piauí | D134: -
A135: 2013-05-01 | B135: ASFALTOS DILUÍDOS CM-30 | C135: Rio de Janeiro | D135: 1.399256048
A136: 2013-05-01 | B136: ASFALTOS DILUÍDOS CM-30 | C136: Rio Grande do Norte | D136: -
A137: 2013-05-01 | B137: ASFALTOS DILUÍDOS CM-30 | C137: Rio Grande do Sul | D137: 1.539636961
A138: 2013-05-01 | B138: ASFALTOS DILUÍDOS CM-30 | C138: Rondônia | D138: -
A139: 2013-05-01 | B139: ASFALTOS DILUÍDOS CM-30 | C139: Roraima | D139: -
A140: 2013-05-01 | B140: ASFALTOS DILUÍDOS CM-30 | C140: Santa Catarina | D140: -
A141: 2013-05-01 | B141: ASFALTOS DILUÍDOS CM-30 | C141: São Paulo | D141: 1.451215936
A142: 2013-05-01 | B142: ASFALTOS DILUÍDOS CM-30 | C142: Sergipe | D142: -
A143: 2013-05-01 | B143: ASFALTOS DILUÍDOS CM-30 | C143: Tocantins | D143: -
A144: 2013-06-01 | B144: ASFALTOS DILUÍDOS CM-30 | C144: Acre | D144: -
A145: 2013-06-01 | B145: ASFALTOS DILUÍDOS CM-30 | C145: Alagoas | D145: -
A146: 2013-06-01 | B146: ASFALTOS DILUÍDOS CM-30 | C146: Amapá | D146: -
A147: 2013-06-01 | B147: ASFALTOS DILUÍDOS CM-30 | C147: Amazonas | D147: 1.586325818
A148: 2013-06-01 | B148: ASFALTOS DILUÍDOS CM-30 | C148: Bahia | D148: 1.44812907
A149: 2013-06-01 | B149: ASFALTOS DILUÍDOS CM-30 | C149: Ceará | D149: 1.382700989
A150: 2013-06-01 | B150: ASFALTOS DILUÍDOS CM-30 | C150: Distrito Federal | D150: -
A151: 2013-06-01 | B151: ASFALTOS DILUÍDOS CM-30 | C151: Espírito Santo | D151: -
A152: 2013-06-01 | B152: ASFALTOS DILUÍDOS CM-30 | C152: Goiás | D152: 1.699613867
A153: 2013-06-01 | B153: ASFALTOS DILUÍDOS CM-30 | C153: Maranhão | D153: -
A154: 2013-06-01 | B154: ASFALTOS DILUÍDOS CM-30 | C154: Mato Grosso | D154: 1.915975658
A155: 2013-06-01 | B155: ASFALTOS DILUÍDOS CM-30 | C155: Mato Grosso do Sul | D155: -
A156: 2013-06-01 | B156: ASFALTOS DILUÍDOS CM-30 | C156: Minas Gerais | D156: 1.475366896
A157: 2013-06-01 | B157: ASFALTOS DILUÍDOS CM-30 | C157: Pará | D157: -
A158: 2013-06-01 | B158: ASFALTOS DILUÍDOS CM-30 | C158: Paraíba | D158: -
A159: 2013-06-01 | B159: ASFALTOS DILUÍDOS CM-30 | C159: Paraná | D159: 1.432166974
A160: 2013-06-01 | B160: ASFALTOS DILUÍDOS CM-30 | C160: Pernambuco | D160: -
A161: 2013-06-01 | B161: ASFALTOS DILUÍDOS CM-30 | C161: Piauí | D161: -
A162: 2013-06-01 | B162: ASFALTOS DILUÍDOS CM-30 | C162: Rio de Janeiro | D162: 1.527420226
A163: 2013-06-01 | B163: ASFALTOS DILUÍDOS CM-30 | C163: Rio Grande do Norte | D163: -
A164: 2013-06-01 | B164: ASFALTOS DILUÍDOS CM-30 | C164: Rio Grande do Sul | D164: 1.59868349
A165: 2013-06-01 | B165: ASFALTOS DILUÍDOS CM-30 | C165: Rondônia | D165: -
A166: 2013-06-01 | B166: ASFALTOS DILUÍDOS CM-30 | C166: Roraima | D166: -
A167: 2013-06-01 | B167: ASFALTOS DILUÍDOS CM-30 | C167: Santa Catarina | D167: -
A168: 2013-06-01 | B168: ASFALTOS DILUÍDOS CM-30 | C168: São Paulo | D168: 1.432748187
A169: 2013-06-01 | B169: ASFALTOS DILUÍDOS CM-30 | C169: Sergipe | D169: -
A170: 2013-06-01 | B170: ASFALTOS DILUÍDOS CM-30 | C170: Tocantins | D170: -
A171: 2013-07-01 | B171: ASFALTOS DILUÍDOS CM-30 | C171: Acre | D171: -
A172: 2013-07-01 | B172: ASFALTOS DILUÍDOS CM-30 | C172: Alagoas | D172: -
A173: 2013-07-01 | B173: ASFALTOS DILUÍDOS CM-30 | C173: Amapá | D173: -
A174: 2013-07-01 | B174: ASFALTOS DILUÍDOS CM-30 | C174: Amazonas | D174: 1.509890931
A175: 2013-07-01 | B175: ASFALTOS DILUÍDOS CM-30 | C175: Bahia | D175: 1.436150016
A176: 2013-07-01 | B176: ASFALTOS DILUÍDOS CM-30 | C176: Ceará | D176: 1.424835845
A177: 2013-07-01 | B177: ASFALTOS DILUÍDOS CM-30 | C177: Distrito Federal | D177: -
A178: 2013-07-01 | B178: ASFALTOS DILUÍDOS CM-30 | C178: Espírito Santo | D178: -
A179: 2013-07-01 | B179: ASFALTOS DILUÍDOS CM-30 | C179: Goiás | D179: 1.663778454
A180: 2013-07-01 | B180: ASFALTOS DILUÍDOS CM-30 | C180: Maranhão | D180: -
A181: 2013-07-01 | B181: ASFALTOS DILUÍDOS CM-30 | C181: Mato Grosso | D181: 1.930589551
A182: 2013-07-01 | B182: ASFALTOS DILUÍDOS CM-30 | C182: Mato Grosso do Sul | D182: -
A183: 2013-07-01 | B183: ASFALTOS DILUÍDOS CM-30 | C183: Minas Gerais | D183: 1.476572352
A184: 2013-07-01 | B184: ASFALTOS DILUÍDOS CM-30 | C184: Pará | D184: -
A185: 2013-07-01 | B185: ASFALTOS DILUÍDOS CM-30 | C185: Paraíba | D185: -
A186: 2013-07-01 | B186: ASFALTOS DILUÍDOS CM-30 | C186: Paraná | D186: 1.477167274
A187: 2013-07-01 | B187: ASFALTOS DILUÍDOS CM-30 | C187: Pernambuco | D187: -
A188: 2013-07-01 | B188: ASFALTOS DILUÍDOS CM-30 | C188: Piauí | D188: -
A189: 2013-07-01 | B189: ASFALTOS DILUÍDOS CM-30 | C189: Rio de Janeiro | D189: 1.584464713
A190: 2013-07-01 | B190: ASFALTOS DILUÍDOS CM-30 | C190: Rio Grande do Norte | D190: -
A191: 2013-07-01 | B191: ASFALTOS DILUÍDOS CM-30 | C191: Rio Grande do Sul | D191: 1.612487925
A192: 2013-07-01 | B192: ASFALTOS DILUÍDOS CM-30 | C192: Rondônia | D192: -
A193: 2013-07-01 | B193: ASFALTOS DILUÍDOS CM-30 | C193: Roraima | D193: -
A194: 2013-07-01 | B194: ASFALTOS DILUÍDOS CM-30 | C194: Santa Catarina | D194: -
A195: 2013-07-01 | B195: ASFALTOS DILUÍDOS CM-30 | C195: São Paulo | D195: 1.507844909
A196: 2013-07-01 | B196: ASFALTOS DILUÍDOS CM-30 | C196: Sergipe | D196: -
A197: 2013-07-01 | B197: ASFALTOS DILUÍDOS CM-30 | C197: Tocantins | D197: -
A198: 2013-08-01 | B198: ASFALTOS DILUÍDOS CM-30 | C198: Acre | D198: -
A199: 2013-08-01 | B199: ASFALTOS DILUÍDOS CM-30 | C199: Alagoas | D199: -
A200: 2013-08-01 | B200: ASFALTOS DILUÍDOS CM-30 | C200: Amapá | D200: -
A201: 2013-08-01 | B201: ASFALTOS DILUÍDOS CM-30 | C201: Amazonas | D201: 1.509275641
A202: 2013-08-01 | B202: ASFALTOS DILUÍDOS CM-30 | C202: Bahia | D202: 1.416699323
A203: 2013-08-01 | B203: ASFALTOS DILUÍDOS CM-30 | C203: Ceará | D203: 1.447403364
... 4297 more rows

Sheet ANP REGIÃO
A1: Agência Nacional do Petróleo, Gás Natural e Biocombustíveis
A2: Superintendência de Defesa da Concorrência
A6: PREÇO MÉDIO MENSAL PONDERADO PRATICADO PELOS DISTRIBUIDORES DE PRODUTOS ASFÁLTICOS (R$/KG)
A8: Produto | B8: Mês | C8: Norte | D8: Nordeste | E8: Centro-Oeste | F8: Sudeste | G8: Sul | H8: Brasil
A9: ASFALTOS DILUÍDOS CM-30 | B9: 2008-11-01 | C9: 1.775468292 | D9: 1.55087853 | E9: 2.022143291 | F9: 1.55449367 | G9: 1.584532899 | H9: 1.64286837
A10: ASFALTOS DILUÍDOS CM-30 | B10: 2008-12-01 | C10: 1.806837667 | D10: 1.509118192 | E10: 2.013020124 | F10: 1.610902223 | G10: 1.607187591 | H10: 1.637581471
A11: ASFALTOS DILUÍDOS CM-30 | B11: 2009-01-01 | C11: 1.497052858 | D11: 1.504296346 | E11: 1.963097671 | F11: 1.524672247 | G11: 1.585137209 | H11: 1.564945876
A12: ASFALTOS DILUÍDOS CM-30 | B12: 2009-02-01 | C12: 1.42787112 | D12: 1.497693283 | E12: 1.981065098 | F12: 1.583490231 | G12: 1.595924062 | H12: 1.565451036
A13: ASFALTOS DILUÍDOS CM-30 | B13: 2009-03-01 | C13: 1.404941405 | D13: 1.497647987 | E13: 1.893430263 | F13: 1.52754782 | G13: 1.588720029 | H13: 1.532713147
A14: ASFALTOS DILUÍDOS CM-30 | B14: 2009-04-01 | C14: 1.410510748 | D14: 1.484826261 | E14: 1.909226429 | F14: 1.464149371 | G14: 1.553831928 | H14: 1.516717648
A15: ASFALTOS DILUÍDOS CM-30 | B15: 2009-05-01 | C15: 1.480355678 | D15: 1.466898928 | E15: 1.891590435 | F15: 1.435443718 | G15: 1.54161118 | H15: 1.537574371
A16: ASFALTOS DILUÍDOS CM-30 | B16: 2009-06-01 | C16: 1.580751039 | D16: 1.444888837 | E16: 1.842074119 | F16: 1.424264315 | G16: 1.501526696 | H16: 1.541315575
A17: ASFALTOS DILUÍDOS CM-30 | B17: 2009-07-01 | C17: 1.905432476 | D17: 1.482618211 | E17: 1.949046345 | F17: 1.584435299 | G17: 1.610310436 | H17: 1.651032523
A18: ASFALTOS DILUÍDOS CM-30 | B18: 2009-08-01 | C18: 1.716995184 | D18: 1.423854915 | E18: 1.712385478 | F18: 1.418000805 | G18: 1.520643497 | H18: 1.504911469
A19: ASFALTOS DILUÍDOS CM-30 | B19: 2009-09-01 | C19: 1.64329494 | D19: 1.445317761 | E19: 1.731518803 | F19: 1.419374251 | G19: 1.500735895 | H19: 1.50552312
A20: ASFALTOS DILUÍDOS CM-30 | B20: 2009-10-01 | C20: 1.588031924 | D20: 1.458932649 | E20: 1.762015056 | F20: 1.429024419 | G20: 1.513753831 | H20: 1.511681904
A21: ASFALTOS DILUÍDOS CM-30 | B21: 2009-11-01 | C21: 1.639348604 | D21: 1.449059777 | E21: 1.772650817 | F21: 1.434122677 | G21: 1.526043188 | H21: 1.499657392
A22: ASFALTOS DILUÍDOS CM-30 | B22: 2009-12-01 | C22: 1.664266853 | D22: 1.441966636 | E22: 1.890574802 | F22: 1.429077727 | G22: 1.520539334 | H22: 1.508864598
A23: ASFALTOS DILUÍDOS CM-30 | B23: 2010-01-01 | C23: 1.842506144 | D23: 1.454977129 | E23: 1.865022447 | F23: 1.414817608 | G23: 1.474450765 | H23: 1.497735227
A24: ASFALTOS DILUÍDOS CM-30 | B24: 2010-02-01 | C24: 1.709886915 | D24: 1.442956487 | E24: 1.919844741 | F24: 1.433146251 | G24: 1.500882448 | H24: 1.496542251
A25: ASFALTOS DILUÍDOS CM-30 | B25: 2010-03-01 | C25: 1.535743416 | D25: 1.448880499 | E25: 1.935062728 | F25: 1.435026116 | G25: 1.480618635 | H25: 1.486789802
A26: ASFALTOS DILUÍDOS CM-30 | B26: 2010-04-01 | C26: 1.710046479 | D26: 1.440300254 | E26: 1.911935961 | F26: 1.421102153 | G26: 1.481270937 | H26: 1.511086431
A27: ASFALTOS DILUÍDOS CM-30 | B27: 2010-05-01 | C27: 1.755610465 | D27: 1.435277221 | E27: 1.873293889 | F27: 1.406944432 | G27: 1.48177605 | H27: 1.537170565
A28: ASFALTOS DILUÍDOS CM-30 | B28: 2010-06-01 | C28: 1.602224314 | D28: 1.396004336 | E28: 1.731734721 | F28: 1.399996227 | G28: 1.49193962 | H28: 1.498073418
A29: ASFALTOS DILUÍDOS CM-30 | B29: 2010-07-01 | C29: 1.559901627 | D29: 1.381016708 | E29: 1.732688214 | F29: 1.402904856 | G29: 1.473854427 | H29: 1.490075269
A30: ASFALTOS DILUÍDOS CM-30 | B30: 2010-08-01 | C30: 1.526639389 | D30: 1.38817836 | E30: 1.738946087 | F30: 1.398751236 | G30: 1.455749849 | H30: 1.495828516
A31: ASFALTOS DILUÍDOS CM-30 | B31: 2010-09-01 | C31: 1.565378829 | D31: 1.408204664 | E31: 1.757027378 | F31: 1.411642875 | G31: 1.487257745 | H31: 1.512257128
A32: ASFALTOS DILUÍDOS CM-30 | B32: 2010-10-01 | C32: 1.481711294 | D32: 1.404357715 | E32: 1.751159947 | F32: 1.403489437 | G32: 1.469340847 | H32: 1.49988826
A33: ASFALTOS DILUÍDOS CM-30 | B33: 2010-11-01 | C33: 1.519267672 | D33: 1.410130904 | E33: 1.779405625 | F33: 1.421283822 | G33: 1.458559112 | H33: 1.481658635
A34: ASFALTOS DILUÍDOS CM-30 | B34: 2010-12-01 | C34: 1.559287556 | D34: 1.40982051 | E34: 1.825185618 | F34: 1.417673572 | G34: 1.473243884 | H34: 1.469113031
A35: ASFALTOS DILUÍDOS CM-30 | B35: 2011-01-01 | C35: 1.525923305 | D35: 1.445794092 | E35: 1.774600924 | F35: 1.403274235 | G35: 1.466002814 | H35: 1.457256066
A36: ASFALTOS DILUÍDOS CM-30 | B36: 2011-02-01 | C36: 1.552825112 | D36: 1.392094259 | E36: 1.763836123 | F36: 1.385194937 | G36: 1.44955884 | H36: 1.426250478
A37: ASFALTOS DILUÍDOS CM-30 | B37: 2011-03-01 | C37: 1.469219693 | D37: 1.369442916 | E37: 1.696017922 | F37: 1.353812804 | G37: 1.435170694 | H37: 1.400130249
A38: ASFALTOS DILUÍDOS CM-30 | B38: 2011-04-01 | C38: 1.470570262 | D38: 1.373220492 | E38: 1.650829394 | F38: 1.345928103 | G38: 1.42199894 | H38: 1.400493522
A39: ASFALTOS DILUÍDOS CM-30 | B39: 2011-05-01 | C39: 1.428528955 | D39: 1.322646267 | E39: 1.700380913 | F39: 1.345068163 | G39: 1.439361431 | H39: 1.428058019
A40: ASFALTOS DILUÍDOS CM-30 | B40: 2011-06-01 | C40: 1.407622163 | D40: 1.305708657 | E40: 1.741843669 | F40: 1.354620495 | G40: 1.399501693 | H40: 1.44029982
A41: ASFALTOS DILUÍDOS CM-30 | B41: 2011-07-01 | C41: 1.259234065 | D41: 1.312033305 | E41: 1.737489696 | F41: 1.33656388 | G41: 1.422474887 | H41: 1.420839252
A42: ASFALTOS DILUÍDOS CM-30 | B42: 2011-08-01 | C42: 1.470680061 | D42: 1.299778765 | E42: 1.727443485 | F42: 1.341477821 | G42: 1.353018352 | H42: 1.425675534
A43: ASFALTOS DILUÍDOS CM-30 | B43: 2011-09-01 | C43: 1.56132872 | D43: 1.321196084 | E43: 1.729821548 | F43: 1.357451483 | G43: 1.395684798 | H43: 1.455202413
A44: ASFALTOS DILUÍDOS CM-30 | B44: 2011-10-01 | C44: 1.520569722 | D44: 1.326218736 | E44: 1.71738046 | F44: 1.332691392 | G44: 1.3577774 | H44: 1.442295871
A45: ASFALTOS DILUÍDOS CM-30 | B45: 2011-11-01 | C45: 1.465886334 | D45: 1.337041154 | E45: 1.741004886 | F45: 1.345486103 | G45: 1.447580565 | H45: 1.445354137
A46: ASFALTOS DILUÍDOS CM-30 | B46: 2011-12-01 | C46: 1.470883899 | D46: 1.335587636 | E46: 1.778724141 | F46: 1.408293068 | G46: 1.428112306 | H46: 1.422418604
A47: ASFALTOS DILUÍDOS CM-30 | B47: 2012-01-01 | C47: 1.384955015 | D47: 1.350130156 | E47: 1.780783883 | F47: 1.421354107 | G47: 1.430352474 | H47: 1.394658167
A48: ASFALTOS DILUÍDOS CM-30 | B48: 2012-02-01 | C48: 1.332181678 | D48: 1.368143891 | E48: 1.741020394 | F48: 1.400200985 | G48: 1.425400986 | H48: 1.410605707
A49: ASFALTOS DILUÍDOS CM-30 | B49: 2012-03-01 | C49: 1.411621867 | D49: 1.349122214 | E49: 1.620096006 | F49: 1.393295764 | G49: 1.406130569 | H49: 1.409768786
A50: ASFALTOS DILUÍDOS CM-30 | B50: 2012-04-01 | C50: 1.549007912 | D50: 1.383976456 | E50: 1.640712752 | F50: 1.404716397 | G50: 1.440617793 | H50: 1.45608482
A51: ASFALTOS DILUÍDOS CM-30 | B51: 2012-05-01 | C51: 1.596178941 | D51: 1.386362272 | E51: 1.712061183 | F51: 1.39923955 | G51: 1.448350887 | H51: 1.498461969
A52: ASFALTOS DILUÍDOS CM-30 | B52: 2012-06-01 | C52: 1.701432576 | D52: 1.388053518 | E52: 1.740352007 | F52: 1.422118749 | G52: 1.449196072 | H52: 1.527722717
A53: ASFALTOS DILUÍDOS CM-30 | B53: 2012-07-01 | C53: 1.652026742 | D53: 1.39436857 | E53: 1.718644846 | F53: 1.439670261 | G53: 1.46187567 | H53: 1.523069159
A54: ASFALTOS DILUÍDOS CM-30 | B54: 2012-08-01 | C54: 1.689998835 | D54: 1.40333785 | E54: 1.741895041 | F54: 1.421723369 | G54: 1.445685799 | H54: 1.536533078
A55: ASFALTOS DILUÍDOS CM-30 | B55: 2012-09-01 | C55: 1.690177972 | D55: 1.421500003 | E55: 1.780920724 | F55: 1.445180432 | G55: 1.483645866 | H55: 1.549410653
A56: ASFALTOS DILUÍDOS CM-30 | B56: 2012-10-01 | C56: 1.574840342 | D56: 1.417066109 | E56: 1.794832036 | F56: 1.451304526 | G56: 1.482037109 | H56: 1.550631802
A57: ASFALTOS DILUÍDOS CM-30 | B57: 2012-11-01 | C57: 1.655163526 | D57: 1.455878748 | E57: 1.840129766 | F57: 1.461204615 | G57: 1.483499722 | H57: 1.552500776
A58: ASFALTOS DILUÍDOS CM-30 | B58: 2012-12-01 | C58: 1.714876125 | D58: 1.435854741 | E58: 1.804066573 | F58: 1.45222765 | G58: 1.509417648 | H58: 1.523411999
A59: ASFALTOS DILUÍDOS CM-30 | B59: 2013-01-01 | C59: 1.495776335 | D59: 1.449494588 | E59: 1.854050525 | F59: 1.44638752 | G59: 1.563753675 | H59: 1.502137259
A60: ASFALTOS DILUÍDOS CM-30 | B60: 2013-02-01 | C60: 1.635067666 | D60: 1.420609638 | E60: 1.731071498 | F60: 1.442746356 | G60: 1.461828405 | H60: 1.4739561
A61: ASFALTOS DILUÍDOS CM-30 | B61: 2013-03-01 | C61: 1.646229098 | D61: 1.413299983 | E61: 1.83828087 | F61: 1.450015152 | G61: 1.525760413 | H61: 1.506542904
A62: ASFALTOS DILUÍDOS CM-30 | B62: 2013-04-01 | C62: 1.581864474 | D62: 1.399189564 | E62: 1.793825113 | F62: 1.458704755 | G62: 1.551913702 | H62: 1.523623636
A63: ASFALTOS DILUÍDOS CM-30 | B63: 2013-05-01 | C63: 1.815646773 | D63: 1.390143517 | E63: 1.812783313 | F63: 1.44951052 | G63: 1.504233457 | H63: 1.549918592
A64: ASFALTOS DILUÍDOS CM-30 | B64: 2013-06-01 | C64: 1.631101583 | D64: 1.383186536 | E64: 1.816642105 | F64: 1.474232641 | G64: 1.503043689 | H64: 1.581049429
A65: ASFALTOS DILUÍDOS CM-30 | B65: 2013-07-01 | C65: 1.86596563 | D65: 1.422051117 | E65: 1.793072753 | F65: 1.498018808 | G65: 1.533391901 | H65: 1.59880513
A66: ASFALTOS DILUÍDOS CM-30 | B66: 2013-08-01 | C66: 1.700325546 | D66: 1.435094415 | E66: 1.821452614 | F66: 1.511722868 | G66: 1.530793596 | H66: 1.606176585
A67: ASFALTOS DILUÍDOS CM-30 | B67: 2013-09-01 | C67: 1.562873733 | D67: 1.472197748 | E67: 1.879842712 | F67: 1.542652867 | G67: 1.490667543 | H67: 1.627945893
A68: ASFALTOS DILUÍDOS CM-30 | B68: 2013-10-01 | C68: 1.648504013 | D68: 1.472152345 | E68: 1.825494997 | F68: 1.501177682 | G68: 1.48378912 | H68: 1.597538775
A69: ASFALTOS DILUÍDOS CM-30 | B69: 2013-11-01 | C69: 1.619179062 | D69: 1.486413317 | E69: 1.844012679 | F69: 1.496326809 | G69: 1.506096878 | H69: 1.581665844
A70: ASFALTOS DILUÍDOS CM-30 | B70: 2013-12-01 | C70: 1.633358293 | D70: 1.494818097 | E70: 1.897197176 | F70: 1.502864538 | G70: 1.517074296 | H70: 1.572475244
A71: ASFALTOS DILUÍDOS CM-30 | B71: 2014-01-01 | C71: 1.688311265 | D71: 1.494181305 | E71: 1.798355903 | F71: 1.484202293 | G71: 1.533353813 | H71: 1.542909737
A72: ASFALTOS DILUÍDOS CM-30 | B72: 2014-02-01 | C72: 1.598304434 | D72: 1.479706587 | E72: 1.814390215 | F72: 1.514829392 | G72: 1.522800588 | H72: 1.528970287
A73: ASFALTOS DILUÍDOS CM-30 | B73: 2014-03-01 | C73: 1.648287687 | D73: 1.472852501 | E73: 1.76657319 | F73: 1.513020673 | G73: 1.506185248 | H73: 1.530181178
A74: ASFALTOS DILUÍDOS CM-30 | B74: 2014-04-01 | C74: 1.534459987 | D74: 1.493898767 | E74: 1.757271278 | F74: 1.533021309 | G74: 1.524275274 | H74: 1.550566305
A75: ASFALTOS DILUÍDOS CM-30 | B75: 2014-05-01 | C75: 1.58658327 | D75: 1.490834685 | E75: 1.804339251 | F75: 1.501138131 | G75: 1.567043824 | H75: 1.586452272
A76: ASFALTOS DILUÍDOS CM-30 | B76: 2014-06-01 | C76: 1.658277164 | D76: 1.505801121 | E76: 1.839593445 | F76: 1.5068632 | G76: 1.523776953 | H76: 1.636070702
A77: ASFALTOS DILUÍDOS CM-30 | B77: 2014-07-01 | C77: 1.890299542 | D77: 1.500730514 | E77: 1.708277865 | F77: 1.487293964 | G77: 1.505956069 | H77: 1.587065158
A78: ASFALTOS DILUÍDOS CM-30 | B78: 2014-08-01 | C78: 1.632741832 | D78: 1.501945324 | E78: 1.671203189 | F78: 1.482359341 | G78: 1.506327366 | H78: 1.557910377
A79: ASFALTOS DILUÍDOS CM-30 | B79: 2014-09-01 | C79: 1.66956717 | D79: 1.546830427 | E79: 1.864797016 | F79: 1.496764585 | G79: 1.570533242 | H79: 1.639281057
A80: ASFALTOS DILUÍDOS CM-30 | B80: 2014-10-01 | C80: 1.742876916 | D80: 1.508978569 | E80: 1.746650466 | F80: 1.470773645 | G80: 1.454273462 | H80: 1.57912022
A81: ASFALTOS DILUÍDOS CM-30 | B81: 2014-11-01 | C81: 1.864723419 | D81: 1.57943059 | E81: 1.749156218 | F81: 1.465084479 | G81: 1.529147988 | H81: 1.601359821
A82: ASFALTOS DILUÍDOS CM-30 | B82: 2014-12-01 | C82: 1.812671914 | D82: 1.704844348 | E82: 1.963310066 | F82: 1.623676702 | G82: 1.649644659 | H82: 1.718826981
A83: ASFALTOS DILUÍDOS CM-30 | B83: 2015-01-01 | C83: 2.154807062 | D83: 2.023760447 | E83: 2.318863736 | F83: 1.866588967 | G83: 1.898380434 | H83: 2.007792032
A84: ASFALTOS DILUÍDOS CM-30 | B84: 2015-02-01 | C84: 2.260238625 | D84: 2.005673765 | E84: 2.393875762 | F84: 1.854519766 | G84: 1.927395107 | H84: 2.007653781
A85: ASFALTOS DILUÍDOS CM-30 | B85: 2015-03-01 | C85: 2.124176462 | D85: 1.968822849 | E85: 2.279643254 | F85: 1.887760911 | G85: 1.930217145 | H85: 1.984816916
A86: ASFALTOS DILUÍDOS CM-30 | B86: 2015-04-01 | C86: 2.030049505 | D86: 2.001506448 | E86: 2.379118903 | F86: 1.85245167 | G86: 1.949025254 | H86: 1.98064321
A87: ASFALTOS DILUÍDOS CM-30 | B87: 2015-05-01 | C87: 2.507271651 | D87: 1.946869908 | E87: 2.254758192 | F87: 1.807470001 | G87: 2.016929536 | H87: 2.005474234
A88: ASFALTOS DILUÍDOS CM-30 | B88: 2015-06-01 | C88: 2.248320042 | D88: 1.944259736 | E88: 2.314331796 | F88: 1.846998595 | G88: 1.968565125 | H88: 2.042581344
A89: ASFALTOS DILUÍDOS CM-30 | B89: 2015-07-01 | C89: 1.992222758 | D89: 1.992791635 | E89: 2.046769953 | F89: 1.782648603 | G89: 1.931671385 | H89: 1.942627362
A90: ASFALTOS DILUÍDOS CM-30 | B90: 2015-08-01 | C90: 2.307605931 | D90: 2.038089127 | E90: 2.252748105 | F90: 1.828097705 | G90: 1.939824481 | H90: 2.08193616
A91: ASFALTOS DILUÍDOS CM-30 | B91: 2015-09-01 | C91: 2.314289704 | D91: 2.095307531 | E91: 2.344561987 | F91: 1.942551091 | G91: 2.005352614 | H91: 2.168175541
A92: ASFALTOS DILUÍDOS CM-30 | B92: 2015-10-01 | C92: 2.329456663 | D92: 2.170570012 | E92: 2.43273012 | F92: 2.035624751 | G92: 2.110261148 | H92: 2.237533782
A93: ASFALTOS DILUÍDOS CM-30 | B93: 2015-11-01 | C93: 2.606056566 | D93: 2.437098304 | E93: 2.711612141 | F93: 2.280113896 | G93: 2.326446297 | H93: 2.474998781
A94: ASFALTOS DILUÍDOS CM-30 | B94: 2015-12-01 | C94: 2.635374006 | D94: 2.395920309 | E94: 2.693528386 | F94: 2.272528129 | G94: 2.330740659 | H94: 2.452848156
A95: ASFALTOS DILUÍDOS CM-30 | B95: 2016-01-01 | C95: 2.715863993 | D95: 2.373861647 | E95: 2.844670602 | F95: 2.263650658 | G95: 2.232631691 | H95: 2.400563394
A96: ASFALTOS DILUÍDOS CM-30 | B96: 2016-02-01 | C96: 2.80468316 | D96: 2.466846816 | E96: 2.791787007 | F96: 2.295637115 | G96: 2.346556173 | H96: 2.464348548
A97: ASFALTOS DILUÍDOS CM-30 | B97: 2016-03-01 | C97: 2.5805021 | D97: 2.470678753 | E97: 2.707688025 | F97: 2.235301999 | G97: 2.383115972 | H97: 2.423563924
A98: ASFALTOS DILUÍDOS CM-30 | B98: 2016-04-01 | C98: 2.942006312 | D98: 2.740742032 | E98: 2.759071855 | F98: 2.544439178 | G98: 2.710751632 | H98: 2.680274833
A99: ASFALTOS DILUÍDOS CM-30 | B99: 2016-05-01 | C99: 3.010579472 | D99: 2.650277047 | E99: 2.857121361 | F99: 2.575583152 | G99: 2.770413362 | H99: 2.70973327
A100: ASFALTOS DILUÍDOS CM-30 | B100: 2016-06-01 | C100: 2.909179844 | D100: 2.621385041 | E100: 2.943487281 | F100: 2.659109515 | G100: 2.684759555 | H100: 2.743619517
A101: ASFALTOS DILUÍDOS CM-30 | B101: 2016-07-01 | C101: 2.985740381 | D101: 2.591644045 | E101: 2.98927803 | F101: 2.604396599 | G101: 2.660884423 | H101: 2.745135539
A102: ASFALTOS DILUÍDOS CM-30 | B102: 2016-08-01 | C102: 2.935243919 | D102: 2.623917329 | E102: 2.970490854 | F102: 2.679486504 | G102: 2.727025649 | H102: 2.781385962
A103: ASFALTOS DILUÍDOS CM-30 | B103: 2016-09-01 | C103: 2.649136821 | D103: 2.521054851 | E103: 2.781583925 | F103: 2.51393313 | G103: 2.371271501 | H103: 2.595617128
A104: ASFALTOS DILUÍDOS CM-30 | B104: 2016-10-01 | C104: 2.626109257 | D104: 2.444469093 | E104: 2.781617873 | F104: 2.507383127 | G104: 2.38325399 | H104: 2.566999037
A105: ASFALTOS DILUÍDOS CM-30 | B105: 2016-11-01 | C105: 2.535087408 | D105: 2.374145527 | E105: 2.952768674 | F105: 2.481263765 | G105: 2.382206771 | H105: 2.542842366
A106: ASFALTOS DILUÍDOS CM-30 | B106: 2016-12-01 | C106: 2.50039107 | D106: 2.253413483 | E106: 3.038519458 | F106: 2.589438892 | G106: 2.395593424 | H106: 2.476439295
A107: ASFALTOS DILUÍDOS CM-30 | B107: 2017-01-01 | C107: 2.392875504 | D107: 2.232695674 | E107: 3.089080971 | F107: 2.535744039 | G107: 2.378694833 | H107: 2.374216192
A108: ASFALTOS DILUÍDOS CM-30 | B108: 2017-02-01 | C108: 2.68039414 | D108: 2.271897225 | E108: 2.764408032 | F108: 2.573933685 | G108: 2.384644398 | H108: 2.470721466
A109: ASFALTOS DILUÍDOS CM-30 | B109: 2017-03-01 | C109: 2.23884121 | D109: 2.386958079 | E109: 2.667220252 | F109: 2.372165947 | G109: 2.30121887 | H109: 2.378796986
A110: ASFALTOS DILUÍDOS CM-30 | B110: 2017-04-01 | C110: 2.420191398 | D110: 2.307969596 | E110: 2.794093014 | F110: 2.258409912 | G110: 2.256434297 | H110: 2.380268484
A111: ASFALTOS DILUÍDOS CM-30 | B111: 2017-05-01 | C111: 2.432106692 | D111: 2.167919128 | E111: 2.699836936 | F111: 2.255387192 | G111: 2.204026958 | H111: 2.361515909
A112: ASFALTOS DILUÍDOS CM-30 | B112: 2017-06-01 | C112: 2.428301776 | D112: 2.181938689 | E112: 2.756672055 | F112: 2.234549022 | G112: 2.305778546 | H112: 2.44553453
A113: ASFALTOS DILUÍDOS CM-30 | B113: 2017-07-01 | C113: 2.453752061 | D113: 2.218075334 | E113: 2.694625022 | F113: 2.414329247 | G113: 2.269601102 | H113: 2.473436106
A114: ASFALTOS DILUÍDOS CM-30 | B114: 2017-08-01 | C114: 2.447930976 | D114: 2.153112031 | E114: 2.595349952 | F114: 2.302919065 | G114: 2.170148667 | H114: 2.380876423
A115: ASFALTOS DILUÍDOS CM-30 | B115: 2017-09-01 | C115: 2.494551504 | D115: 2.14243989 | E115: 2.623166503 | F115: 2.371308095 | G115: 2.303698507 | H115: 2.393542204
A116: ASFALTOS DILUÍDOS CM-30 | B116: 2017-10-01 | C116: 2.349953944 | D116: 2.18056004 | E116: 2.614160957 | F116: 2.415254962 | G116: 2.20079573 | H116: 2.367947121
A117: ASFALTOS DILUÍDOS CM-30 | B117: 2017-11-01 | C117: 2.670126991 | D117: 2.433169195 | E117: 2.908627464 | F117: 2.58469482 | G117: 2.415192709 | H117: 2.602101348
A118: ASFALTOS DILUÍDOS CM-30 | B118: 2017-12-01 | C118: 2.587352645 | D118: 2.425358882 | E118: 2.906633765 | F118: 2.602890298 | G118: 2.42288976 | H118: 2.531764464
A119: ASFALTOS DILUÍDOS CM-30 | B119: 2018-01-01 | C119: 2.950360755 | D119: 2.662862923 | E119: 2.875953993 | F119: 2.620738484 | G119: 2.646955252 | H119: 2.735956369
A120: ASFALTOS DILUÍDOS CM-30 | B120: 2018-02-01 | C120: 2.677899567 | D120: 2.672498164 | E120: 2.942595474 | F120: 2.62043113 | G120: 2.567885662 | H120: 2.668369933
A121: ASFALTOS DILUÍDOS CM-30 | B121: 2018-03-01 | C121: 2.733363025 | D121: 2.589050022 | E121: 2.809172556 | F121: 2.561928393 | G121: 2.575946067 | H121: 2.634876584
A122: ASFALTOS DILUÍDOS CM-30 | B122: 2018-04-01 | C122: 2.75780112 | D122: 2.669553602 | E122: 2.773908242 | F122: 2.59547006 | G122: 2.556042394 | H122: 2.6643302
A123: ASFALTOS DILUÍDOS CM-30 | B123: 2018-05-01 | C123: 2.841213362 | D123: 2.672025877 | E123: 2.884501482 | F123: 2.686718021 | G123: 2.736485103 | H123: 2.77737896
A124: ASFALTOS DILUÍDOS CM-30 | B124: 2018-06-01 | C124: 3.008444789 | D124: 2.919605178 | E124: 3.158454886 | F124: 2.84673108 | G124: 2.953523993 | H124: 2.982291635
A125: ASFALTOS DILUÍDOS CM-30 | B125: 2018-07-01 | C125: 3.268237549 | D125: 3.036524094 | E125: 3.399360399 | F125: 3.026467598 | G125: 3.19779631 | H125: 3.164126546
A126: ASFALTOS DILUÍDOS CM-30 | B126: 2018-08-01 | C126: 3.56441315 | D126: 3.415193769 | E126: 3.707706206 | F126: 3.425079349 | G126: 3.356722461 | H126: 3.515558112
A127: ASFALTOS DILUÍDOS CM-30 | B127: 2018-09-01 | C127: 3.173913778 | D127: 3.445064118 | E127: 3.73526324 | F127: 3.385816186 | G127: 3.607309454 | H127: 3.483238429
A128: ASFALTOS DILUÍDOS CM-30 | B128: 2018-10-01 | C128: 3.487778119 | D128: 3.460508804 | E128: 3.721444057 | F128: 3.432525565 | G128: 3.60602088 | H128: 3.545390344
A129: ASFALTOS DILUÍDOS CM-30 | B129: 2018-11-01 | C129: 4.047272484 | D129: 3.814893312 | E129: 4.280131586 | F129: 4.178126777 | G129: 3.967681367 | H129: 3.990147183
A130: ASFALTOS DILUÍDOS CM-30 | B130: 2018-12-01 | C130: 3.951491146 | D130: 3.967113195 | E130: 4.341144202 | F130: 3.916766066 | G130: 3.911993357 | H130: 3.999742654
A131: ASFALTOS DILUÍDOS CM-30 | B131: 2019-01-01 | C131: 3.796855325 | D131: 3.870018889 | E131: 4.201901762 | F131: 3.954196997 | G131: 3.976786028 | H131: 3.933951911
A132: ASFALTOS DILUÍDOS CM-30 | B132: 2019-02-01 | C132: 3.516584073 | D132: 4.090361178 | E132: 4.498422953 | F132: 4.469942475 | G132: 4.254590254 | H132: 4.188544679
A133: ASFALTOS DILUÍDOS CM-30 | B133: 2019-03-01 | C133: 4.216758117 | D133: 4.361910728 | E133: 4.907194889 | F133: 4.398717729 | G133: 4.290823922 | H133: 4.360295279
A134: ASFALTOS DILUÍDOS CM-30 | B134: 2019-04-01 | C134: 4.281648205 | D134: 4.234661428 | E134: 4.531627215 | F134: 4.43722653 | G134: 4.466881471 | H134: 4.38082044
A135: ASFALTOS DILUÍDOS CM-30 | B135: 2019-05-01 | C135: 4.287644659 | D135: 4.190699738 | E135: 4.857910872 | F135: 4.267461963 | G135: 4.633806379 | H135: 4.366402151
A136: ASFALTOS DILUÍDOS CM-30 | B136: 2019-06-01 | C136: 4.475609892 | D136: 3.965052934 | E136: 4.66272934 | F136: 4.350600604 | G136: 4.211229921 | H136: 4.319323669
A137: ASFALTOS DILUÍDOS CM-30 | B137: 2019-07-01 | C137: 4.394498989 | D137: 4.058039305 | E137: 4.834221945 | F137: 4.094659414 | G137: 4.233003281 | H137: 4.346977757
A138: ASFALTOS DILUÍDOS CM-30 | B138: 2019-08-01 | C138: 4.48173504 | D138: 3.910662496 | E138: 4.576329081 | F138: 4.11161654 | G138: 4.255419985 | H138: 4.258345083
A139: ASFALTOS DILUÍDOS CM-30 | B139: 2019-09-01 | C139: 4.439578796 | D139: 3.859904896 | E139: 4.495256968 | F139: 4.111321475 | G139: 4.117359152 | H139: 4.251607085
A140: ASFALTOS DILUÍDOS CM-30 | B140: 2019-10-01 | C140: 4.335888631 | D140: 3.772324962 | E140: 4.459242357 | F140: 4.056084115 | G140: 3.942458011 | H140: 4.07740702
A141: ASFALTOS DILUÍDOS CM-30 | B141: 2019-11-01 | C141: 4.316238692 | D141: 3.910245509 | E141: 4.581841077 | F141: 4.07902404 | G141: 4.106621274 | H141: 4.094561212
A142: ASFALTOS DILUÍDOS CM-30 | B142: 2019-12-01 | C142: 4.199435972 | D142: 3.980119663 | E142: 4.673774805 | F142: 4.434268142 | G142: 3.986410312 | H142: 4.164691616
A143: ASFALTOS DILUÍDOS CM-30 | B143: 2020-01-01 | C143: 3.59298003 | D143: 3.895320617 | E143: 4.685420623 | F143: 4.387074674 | G143: 4.124467668 | H143: 4.053338937
A144: ASFALTOS DILUÍDOS CM-30 | B144: 2020-02-01 | C144: 3.642667016 | D144: 3.877395187 | E144: 4.438194543 | F144: 3.699944607 | G144: 3.778164011 | H144: 3.839010438
A145: ASFALTOS DILUÍDOS CM-30 | B145: 2020-03-01 | C145: 4.676668339 | D145: 3.791138977 | E145: 4.289222343 | F145: 3.718402734 | G145: 3.60908619 | H145: 3.93117068
A146: ASFALTOS DILUÍDOS CM-30 | B146: 2020-04-01 | C146: 4.313362837 | D146: 3.6957655 | E146: 4.255395321 | F146: 3.865895531 | G146: 3.732253382 | H146: 3.964125211
A147: ASFALTOS DILUÍDOS CM-30 | B147: 2020-05-01 | C147: 3.249134658 | D147: 3.637769912 | E147: 4.113544882 | F147: 3.760550026 | G147: 3.710618099 | H147: 3.65617504
A148: ASFALTOS DILUÍDOS CM-30 | B148: 2020-06-01 | C148: 4.017903076 | D148: 3.567031492 | E148: 4.277369171 | F148: 3.937886485 | G148: 3.625830069 | H148: 3.924524506
A149: ASFALTOS DILUÍDOS CM-30 | B149: 2020-07-01 | C149: 3.840497509 | D149: 3.51327048 | E149: 4.21549069 | F149: 3.954223886 | G149: 3.688841275 | H149: 3.843774448
A150: ASFALTOS DILUÍDOS CM-30 | B150: 2020-08-01 | C150: 4.174467203 | D150: 3.465394219 | E150: 4.277710211 | F150: 4.06746494 | G150: 3.62858863 | H150: 3.947166917
A151: ASFALTOS DILUÍDOS CM-30 | B151: 2020-09-01 | C151: 4.167371331 | D151: 3.746360816 | E151: 4.167424356 | F151: 3.795621791 | G151: 3.627729935 | H151: 3.973129945
A152: ASFALTOS DILUÍDOS CM-30 | B152: 2020-10-01 | C152: 4.408099527 | D152: 3.718989878 | E152: 4.278979192 | F152: 4.008746906 | G152: 3.591048183 | H152: 4.03964377
A153: ASFALTOS DILUÍDOS CM-30 | B153: 2020-11-01 | C153: 4.056306006 | D153: 3.969209281 | E153: 4.547900893 | F153: 4.27945542 | G153: 3.973347244 | H153: 4.175826149
A154: ASFALTOS DILUÍDOS CM-30 | B154: 2020-12-01 | C154: 4.132064138 | D154: 3.851632751 | E154: 4.426704386 | F154: 3.906236422 | G154: 3.8709398 | H154: 4.035347374
A155: ASFALTOS DILUÍDOS CM-30 | B155: 2021-01-01 | C155: 3.489836333 | D155: 3.951525937 | E155: 4.628269702 | F155: 4.011577011 | G155: 3.935136638 | H155: 3.917092391
A156: ASFALTOS DILUÍDOS CM-30 | B156: 2021-02-01 | C156: 4.099318116 | D156: 4.267109523 | E156: 4.832061615 | F156: 4.414202706 | G156: 4.149048932 | H156: 4.26819704
A157: ASFALTOS DILUÍDOS CM-30 | B157: 2021-03-01 | C157: 4.528355792 | D157: 4.239831731 | E157: 4.926314562 | F157: 4.269697839 | G157: 4.130655409 | H157: 4.377833785
A158: ASFALTOS DILUÍDOS CM-30 | B158: 2021-04-01 | C158: 4.349271867 | D158: 4.086995154 | E158: 4.477597522 | F158: 4.156113398 | G158: 4.044189822 | H158: 4.253361798
A159: ASFALTOS DILUÍDOS CM-30 | B159: 2021-05-01 | C159: 4.488889413 | D159: 4.707945815 | E159: 5.101489686 | F159: 4.784034896 | G159: 4.523986615 | H159: 4.790548085
A160: ASFALTOS DILUÍDOS CM-30 | B160: 2021-06-01 | C160: 4.010467711 | D160: 4.479592126 | E160: 5.113041212 | F160: 4.779739905 | G160: 4.721214307 | H160: 4.764890884
A161: ASFALTOS DILUÍDOS CM-30 | B161: 2021-07-01 | C161: 4.752234128 | D161: 4.559350506 | E161: 5.004758283 | F161: 4.80272972 | G161: 4.748550678 | H161: 4.817586047
A162: ASFALTOS DILUÍDOS CM-30 | B162: 2021-08-01 | C162: 5.085284532 | D162: 4.772501255 | E162: 5.198537142 | F162: 5.244735259 | G162: 4.76131175 | H162: 5.0981692
A163: ASFALTOS DILUÍDOS CM-30 | B163: 2021-09-01 | C163: 5.110300267 | D163: 4.538072365 | E163: 5.241721185 | F163: 5.017144197 | G163: 4.862861245 | H163: 5.016958886
A164: ASFALTOS DILUÍDOS CM-30 | B164: 2021-10-01 | C164: 5.080697261 | D164: 4.66826742 | E164: 5.119544199 | F164: 5.384779065 | G164: 4.658516432 | H164: 5.021294312
A165: ASFALTOS DILUÍDOS CM-30 | B165: 2021-11-01 | C165: 5.436518753 | D165: 5.08776781 | E165: 5.150063985 | F165: 5.634257884 | G165: 5.174530131 | H165: 5.228141289
A166: ASFALTOS DILUÍDOS CM-30 | B166: 2021-12-01 | C166: 5.184291386 | D166: 4.975486975 | E166: 5.572122251 | F166: 6.135655205 | G166: 5.01180992 | H166: 5.339565801
A167: ASFALTOS DILUÍDOS CM-30 | B167: 2022-01-01 | C167: 4.928191974 | D167: 5.023555623 | E167: 6.018407512 | F167: 5.214773026 | G167: 5.481979244 | H167: 5.250789679
A168: ASFALTOS DILUÍDOS CM-30 | B168: 2022-02-01 | C168: 5.545684189 | D168: 5.708628413 | E168: 6.011065894 | F168: 4.8651 | G168: 5.763367147 | H168: 5.736057428
A169: ASFALTOS DILUÍDOS CM-30 | B169: 2022-03-01 | C169: 6.326844735 | D169: 5.644687904 | E169: 5.930807225 | F169: 6.181141143 | G169: 5.498041682 | H169: 5.922781038
A170: ASFALTOS DILUÍDOS CM-30 | B170: 2022-04-01 | C170: 5.974220681 | D170: 5.832747324 | E170: 6.206692615 | F170: 5.720329997 | G170: 6.17800291 | H170: 6.012354229
A171: ASFALTOS DILUÍDOS CM-30 | B171: 2022-05-01 | C171: 5.354015586 | D171: 5.464335309 | E171: 6.007611639 | F171: 5.995095583 | G171: 5.49095009 | H171: 5.670722744
A172: ASFALTOS DILUÍDOS CM-30 | B172: 2022-06-01 | C172: 5.802443798 | D172: 5.316964203 | E172: 5.25267889 | F172: 5.813931518 | G172: 5.644996328 | H172: 5.469498687
A173: ASFALTOS DILUÍDOS CM-30 | B173: 2022-07-01 | C173: 5.965614765 | D173: 5.829314879 | E173: 5.919099711 | F173: 5.742484775 | G173: 5.674430543 | H173: 5.862020702
A174: ASFALTOS DILUÍDOS CM-30 | B174: 2022-08-01 | C174: 6.424230463 | D174: 5.758256878 | E174: 5.752352843 | F174: 5.791905352 | G174: 5.31271724 | H174: 5.823186051
A175: ASFALTOS DILUÍDOS CM-30 | B175: 2022-09-01 | C175: 5.540097074 | D175: 5.609921619 | E175: 5.963592489 | F175: 5.302181194 | G175: 4.977929161 | H175: 5.699429921
A176: ASFALTOS DILUÍDOS CM-30 | B176: 2022-10-01 | C176: 4.785670999 | D176: 4.727521094 | E176: 5.339105147 | F176: 4.851160007 | G176: 4.532580513 | H176: 5.041661715
A177: ASFALTOS DILUÍDOS CM-30 | B177: 2022-11-01 | C177: 7.765855923 | D177: 4.775654982 | E177: 5.237626127 | F177: 4.636383138 | G177: 4.460593179 | H177: 5.074993862
A178: ASFALTOS DILUÍDOS CM-30 | B178: 2022-12-01 | C178: 4.65725 | D178: 4.966905362 | E178: 5.655161554 | F178: 4.840935672 | G178: 4.661007861 | H178: 5.11324949
A179: ASFALTOS DILUÍDOS CM-30 | B179: 2023-01-01 | C179: 4.948950319 | D179: 5.056264922 | E179: 5.359597966 | F179: 4.426497959 | G179: 4.103267888 | H179: 4.715605129
A180: ASFALTOS DILUÍDOS CM-30 | B180: 2023-02-01 | C180: 5.407494667 | D180: 4.335771195 | E180: 4.746646601 | F180: 4.674884727 | G180: 4.014547173 | H180: 4.417800736
A181: ASFALTOS DILUÍDOS CM-30 | B181: 2023-03-01 | C181: 4.99131 | D181: 4.01354912 | E181: 4.74625028 | F181: 4.08071937 | G181: 4.082484954 | H181: 4.270345723
A182: ASFALTOS DILUÍDOS CM-30 | B182: 2023-04-01 | C182: 4.438479015 | D182: 4.094201354 | E182: 5.135816186 | F182: 4.368265095 | G182: 3.859308149 | H182: 4.153818797
A183: ASFALTOS DILUÍDOS CM-30 | B183: 2023-05-01 | C183: 5.018589297 | D183: 4.506282643 | E183: 5.616638293 | F183: 4.034756925 | G183: 4.063701717 | H183: 4.686492725
A184: ASFALTOS DILUÍDOS CM-30 | B184: 2023-06-01 | C184: 4.439644526 | D184: 4.495805354 | E184: 5.228174524 | F184: 3.772028745 | G184: 4.009042073 | H184: 4.588045148
A185: ASFALTOS DILUÍDOS CM-30 | B185: 2023-07-01 | C185: 4.360399352 | D185: 4.250187634 | E185: 6.188049155 | F185: 3.699216781 | G185: 4.315773768 | H185: 4.790717553
A186: ASFALTOS DILUÍDOS CM-30 | B186: 2023-08-01 | C186: 4.043215999 | D186: 4.100901709 | E186: 5.414198228 | F186: 3.964297949 | G186: 4.055989778 | H186: 4.607810697
A187: ASFALTOS DILUÍDOS CM-30 | B187: 2023-09-01 | C187: 5.69501625 | D187: 4.358586276 | E187: 5.187252517 | F187: 4.112508656 | G187: 4.211646236 | H187: 4.748640211
A188: ASFALTOS DILUÍDOS CM-30 | B188: 2023-10-01 | C188: 5.685185 | D188: 4.294075647 | E188: 4.912919476 | F188: 4.365095101 | G188: 4.257370162 | H188: 4.609445905
A189: ASFALTOS DILUÍDOS CM-30 | B189: 2023-11-01 | C189: 4.815085397 | D189: 4.345599447 | E189: 5.404502747 | F189: 4.045271104 | G189: 4.164697405 | H189: 4.781498943
A190: ASFALTOS DILUÍDOS CM-30 | B190: 2023-12-01 | C190: 5.411492308 | D190: 4.700043896 | E190: 5.306415734 | F190: 4.313216862 | G190: 4.188732062 | H190: 4.664845353
A191: ASFALTOS DILUÍDOS CM-30 | B191: 2024-01-01 | C191: 3.716178391 | D191: 4.395163811 | E191: 4.888126947 | F191: 3.977196797 | G191: 4.057095331 | H191: 4.290228903
A192: ASFALTOS DILUÍDOS CM-30 | B192: 2024-02-01 | C192: 5.349588571 | D192: 4.281881871 | E192: 5.36118056 | F192: 4.287786155 | G192: 4.151112946 | H192: 4.366194996
A193: ASFALTOS DILUÍDOS CM-30 | B193: 2024-03-01 | C193: 6.437624165 | D193: 4.512948358 | E193: 4.994035932 | F193: 4.680610304 | G193: 4.197388123 | H193: 4.725137967
A194: ASFALTOS DILUÍDOS CM-30 | B194: 2024-04-01 | C194: 6.524010018 | D194: 5.333668875 | E194: 5.011370357 | F194: 3.991999626 | G194: 4.15116124 | H194: 4.439406986
A195: ASFALTOS DILUÍDOS CM-30 | B195: 2024-05-01 | C195: 6.61993633 | D195: *** | E195: 5.21538288 | F195: 4.24855796 | G195: 4.478170767 | H195: 4.960078568
A196: ASFALTOS DILUÍDOS CM-30 | B196: 2024-06-01 | C196: 6.461820806 | D196: 4.288169263 | E196: 4.921606124 | F196: 4.517339741 | G196: 4.897585787 | H196: 4.922850803
A197: ASFALTOS DILUÍDOS CM-30 | B197: 2024-07-01 | C197: 6.120612239 | D197: 4.599255433 | E197: 5.497451069 | F197: 4.667838533 | G197: 4.514452653 | H197: 4.962740397
A198: ASFALTOS DILUÍDOS CM-70 | B198: 2008-11-01 | C198: *** | D198: *** | E198: *** | F198: *** | G198: *** | H198: ***
A199: ASFALTOS DILUÍDOS CM-70 | B199: 2008-12-01 | C199: *** | D199: *** | E199: *** | F199: *** | G199: *** | H199: ***
A200: ASFALTOS DILUÍDOS CM-70 | B200: 2009-01-01 | C200: *** | D200: *** | E200: *** | F200: *** | G200: *** | H200: ***
A201: ASFALTOS DILUÍDOS CM-70 | B201: 2009-02-01 | C201: *** | D201: *** | E201: *** | F201: *** | G201: *** | H201: ***
A202: ASFALTOS DILUÍDOS CM-70 | B202: 2009-03-01 | C202: *** | D202: *** | E202: *** | F202: *** | G202: *** | H202: ***
A203: ASFALTOS DILUÍDOS CM-70 | B203: 2009-04-01 | C203: *** | D203: *** | E203: *** | F203: *** | G203: *** | H203: ***
A204: ASFALTOS DILUÍDOS CM-70 | B204: 2009-05-01 | C204: *** | D204: *** | E204: *** | F204: *** | G204: *** | H204: ***
... 4600 more rows

Sheet Curva ABC
B2: Item | C2: Descrição | D2: Total R$ | E2: % individual | F2: % acumul. | G2: Classe | I2: Onde: | J2: A <= | K2: 0.75
A3: 1 | B3: =VLOOKUP(A3,#REF!,2,0) ->  | C3: =VLOOKUP(B3,#REF!,4,0) ->  | D3: =VLOOKUP(B3,#REF!,13,0) ->  | E3: =D3/#REF! ->  | F3: =E3 ->  | G3: =IF(F3<=$K$2,"A",IF(AND(F3<=$L$3,F3>$J$3),"B",IF(F3>$K$4,"C"))) ->  | J3: 0.75 | K3: < B <= | L3: 0.95
A4: 2 | B4: =VLOOKUP(A4,#REF!,2,0) ->  | C4: =VLOOKUP(B4,#REF!,4,0) ->  | D4: =VLOOKUP(B4,#REF!,13,0) ->  | E4: =D4/#REF! ->  | F4: =F3+E4 ->  | G4: =IF(F4<=$K$2,"A",IF(AND(F4<=$L$3,F4>$J$3),"B",IF(F4>$K$4,"C"))) ->  | J4: C > | K4: 0.95
A5: 3 | B5: =VLOOKUP(A5,#REF!,2,0) ->  | C5: =VLOOKUP(B5,#REF!,4,0) ->  | D5: =VLOOKUP(B5,#REF!,13,0) ->  | E5: =D5/#REF! ->  | F5: =F4+E5 ->  | G5: =IF(F5<=$K$2,"A",IF(AND(F5<=$L$3,F5>$J$3),"B",IF(F5>$K$4,"C"))) -> 
A6: 4 | B6: =VLOOKUP(A6,#REF!,2,0) ->  | C6: =VLOOKUP(B6,#REF!,4,0) ->  | D6: =VLOOKUP(B6,#REF!,13,0) ->  | E6: =D6/#REF! -> 
A7: 5 | B7: =VLOOKUP(A7,#REF!,2,0) ->  | C7: =VLOOKUP(B7,#REF!,4,0) ->  | D7: =VLOOKUP(B7,#REF!,13,0) ->  | E7: =D7/#REF! -> 
A8: 6 | B8: =VLOOKUP(A8,#REF!,2,0) ->  | C8: =VLOOKUP(B8,#REF!,4,0) ->  | D8: =VLOOKUP(B8,#REF!,13,0) ->  | E8: =D8/#REF! -> 
A9: 7 | B9: =VLOOKUP(A9,#REF!,2,0) ->  | C9: =VLOOKUP(B9,#REF!,4,0) ->  | D9: =VLOOKUP(B9,#REF!,13,0) ->  | E9: =D9/#REF! -> 
A10: 8 | B10: =VLOOKUP(A10,#REF!,2,0) ->  | C10: =VLOOKUP(B10,#REF!,4,0) ->  | D10: =VLOOKUP(B10,#REF!,13,0) ->  | E10: =D10/#REF! -> 
A11: 9 | B11: =VLOOKUP(A11,#REF!,2,0) ->  | C11: =VLOOKUP(B11,#REF!,4,0) ->  | D11: =VLOOKUP(B11,#REF!,13,0) ->  | E11: =D11/#REF! -> 
A12: 10 | B12: =VLOOKUP(A12,#REF!,2,0) ->  | C12: =VLOOKUP(B12,#REF!,4,0) ->  | D12: =VLOOKUP(B12,#REF!,13,0) ->  | E12: =D12/#REF! -> 
A13: 11 | B13: =VLOOKUP(A13,#REF!,2,0) ->  | C13: =VLOOKUP(B13,#REF!,4,0) ->  | D13: =VLOOKUP(B13,#REF!,13,0) ->  | E13: =D13/#REF! -> 
A14: 12 | B14: =VLOOKUP(A14,#REF!,2,0) ->  | C14: =VLOOKUP(B14,#REF!,4,0) ->  | D14: =VLOOKUP(B14,#REF!,13,0) ->  | E14: =D14/#REF! -> 
A15: 13 | B15: =VLOOKUP(A15,#REF!,2,0) ->  | C15: =VLOOKUP(B15,#REF!,4,0) ->  | D15: =VLOOKUP(B15,#REF!,13,0) ->  | E15: =D15/#REF! -> 
A16: 14 | B16: =VLOOKUP(A16,#REF!,2,0) ->  | C16: =VLOOKUP(B16,#REF!,4,0) ->  | D16: =VLOOKUP(B16,#REF!,13,0) ->  | E16: =D16/#REF! -> 
A17: 15 | B17: =VLOOKUP(A17,#REF!,2,0) ->  | C17: =VLOOKUP(B17,#REF!,4,0) ->  | D17: =VLOOKUP(B17,#REF!,13,0) ->  | E17: =D17/#REF! -> 
A18: 16 | B18: =VLOOKUP(A18,#REF!,2,0) ->  | C18: =VLOOKUP(B18,#REF!,4,0) ->  | D18: =VLOOKUP(B18,#REF!,13,0) ->  | E18: =D18/#REF! -> 
A19: 17 | B19: =VLOOKUP(A19,#REF!,2,0) ->  | C19: =VLOOKUP(B19,#REF!,4,0) ->  | D19: =VLOOKUP(B19,#REF!,13,0) ->  | E19: =D19/#REF! -> 
A20: 18 | B20: =VLOOKUP(A20,#REF!,2,0) ->  | C20: =VLOOKUP(B20,#REF!,4,0) ->  | D20: =VLOOKUP(B20,#REF!,13,0) ->  | E20: =D20/#REF! -> 
A21: 19 | B21: =VLOOKUP(A21,#REF!,2,0) ->  | C21: =VLOOKUP(B21,#REF!,4,0) ->  | D21: =VLOOKUP(B21,#REF!,13,0) ->  | E21: =D21/#REF! -> 
A22: 20 | B22: =VLOOKUP(A22,#REF!,2,0) ->  | C22: =VLOOKUP(B22,#REF!,4,0) ->  | D22: =VLOOKUP(B22,#REF!,13,0) ->  | E22: =D22/#REF! -> 
A23: 21 | B23: =VLOOKUP(A23,#REF!,2,0) ->  | C23: =VLOOKUP(B23,#REF!,4,0) ->  | D23: =VLOOKUP(B23,#REF!,13,0) ->  | E23: =D23/#REF! -> 
A24: 22 | B24: =VLOOKUP(A24,#REF!,2,0) ->  | C24: =VLOOKUP(B24,#REF!,4,0) ->  | D24: =VLOOKUP(B24,#REF!,13,0) ->  | E24: =D24/#REF! -> 
A25: 23 | B25: =VLOOKUP(A25,#REF!,2,0) ->  | C25: =VLOOKUP(B25,#REF!,4,0) ->  | D25: =VLOOKUP(B25,#REF!,13,0) ->  | E25: =D25/#REF! -> 
A26: 24 | B26: =VLOOKUP(A26,#REF!,2,0) ->  | C26: =VLOOKUP(B26,#REF!,4,0) ->  | D26: =VLOOKUP(B26,#REF!,13,0) ->  | E26: =D26/#REF! -> 
A27: 25 | B27: =VLOOKUP(A27,#REF!,2,0) ->  | C27: =VLOOKUP(B27,#REF!,4,0) ->  | D27: =VLOOKUP(B27,#REF!,13,0) ->  | E27: =D27/#REF! -> 
A28: 26 | B28: =VLOOKUP(A28,#REF!,2,0) ->  | C28: =VLOOKUP(B28,#REF!,4,0) ->  | D28: =VLOOKUP(B28,#REF!,13,0) ->  | E28: =D28/#REF! ->  | F28: =F27+E28 ->  | G28: =IF(F28<=$K$2,"A",IF(AND(F28<=$L$3,F28>$J$3),"B",IF(F28>$K$4,"C"))) -> 
A29: 27 | B29: =VLOOKUP(A29,#REF!,2,0) ->  | C29: =VLOOKUP(B29,#REF!,4,0) ->  | D29: =VLOOKUP(B29,#REF!,13,0) ->  | E29: =D29/#REF! -> 
A30: 28 | B30: =VLOOKUP(A30,#REF!,2,0) ->  | C30: =VLOOKUP(B30,#REF!,4,0) ->  | D30: =VLOOKUP(B30,#REF!,13,0) ->  | E30: =D30/#REF! -> 
A31: 29 | B31: =VLOOKUP(A31,#REF!,2,0) ->  | C31: =VLOOKUP(B31,#REF!,4,0) ->  | D31: =VLOOKUP(B31,#REF!,13,0) ->  | E31: =D31/#REF! -> 
A32: 30 | B32: =VLOOKUP(A32,#REF!,2,0) ->  | C32: =VLOOKUP(B32,#REF!,4,0) ->  | D32: =VLOOKUP(B32,#REF!,13,0) ->  | E32: =D32/#REF! -> 
A33: 31 | B33: =VLOOKUP(A33,#REF!,2,0) ->  | C33: =VLOOKUP(B33,#REF!,4,0) ->  | D33: =VLOOKUP(B33,#REF!,13,0) ->  | E33: =D33/#REF! -> 
A34: 32 | B34: =VLOOKUP(A34,#REF!,2,0) ->  | C34: =VLOOKUP(B34,#REF!,4,0) ->  | D34: =VLOOKUP(B34,#REF!,13,0) ->  | E34: =D34/#REF! -> 

Sheet MATERIAL SICRO
A1: CGCIT | B1: SISTEMA DE CUSTOS REFERENCIAIS DE OBRAS - SICRO | D1: DNIT
B2: Distrito Federal - Outubro/2023
A3: Código | B3: Descrição | C3: Unidade | D3: Preço Unitário (R$)
A4: M0003 | B4: Aço CA 25 | C4: kg | D4: 7.3312
A5: M0004 | B5: Aço CA 50 | C5: kg | D5: 6.8395
A6: M0005 | B6: Brita 0 | C6: m³ | D6: 143.7917
A7: M0006 | B7: Fibra de poliamida para concreto | C7: kg | D7: 26.314
A8: M0007 | B8: Fibra de aço para concreto | C8: kg | D8: 13.1804
A9: M0008 | B9: Detergente líquido neutro | C9: l | D9: 4.2715
A10: M0009 | B10: Aço CP 175 RB | C10: kg | D10: 9.0855
A11: M0010 | B11: Aditivo superplastificante para concreto e argamassa | C11: kg | D11: 13.6207
A12: M0011 | B12: Aditivo modificador de viscosidade para concreto e argamassa | C12: kg | D12: 10.6542
A13: M0012 | B13: Silicato de alumínio | C13: kg | D13: 1.7125
A14: M0013 | B14: Grampo de ancoragem em aço CA 50 - D = 12,5 mm | C14: kg | D14: 6.8395
A15: M0014 | B15: Aço CA 60 | C15: kg | D15: 8.3391
A16: M0015 | B16: Espoleta elétrica Nº 8 - D = 6,0 mm | C16: un | D16: 23.6179
A17: M0016 | B17: Grampo sargento em ferro fundido tipo C com abertura útil de 105 mm (4") | C17: un | D17: 51.759
A18: M0017 | B18: Saco de aniagem ou de ráfia de 50 kg - C = 95 cm e L = 65 cm | C18: un | D18: 2.7814
A19: M0018 | B19: Grampo pesado em aço-carbono para cabo de aço - D = 13 mm (1/2") | C19: un | D19: 22.4986
A20: M0019 | B20: Esticador em aço tipo olhal x olhal para cabo de aço - D = 13 mm | C20: un | D20: 148.198
A21: M0020 | B21: Grampo de ancoragem em aço CA 50 - D = 6,3 mm | C21: kg | D21: 7.1632
A22: M0021 | B22: Herbicida glifosato para áreas contínuas | C22: l | D22: 25.0499
A23: M0025 | B23: Adesivo plástico para tubos de PVC | C23: kg | D23: 51.1483
A24: M0026 | B24: Aditivo aglutinante para argamassa | C24: l | D24: 7.0377
A25: M0028 | B25: Areia média | C25: m³ | D25: 147.833
A26: M0029 | B26: Sílica ativa para concreto e argamassa (microssílica) | C26: kg | D26: 1.6407
A27: M0030 | B27: Aditivo plastificante e retardador de pega para concreto e argamassa | C27: kg | D27: 6.5452
A28: M0032 | B28: Adesivo de contato para laminado elastoplástico | C28: kg | D28: 42.1656
A29: M0035 | B29: Diluente tipo aguarrás para tintas e vernizes | C29: l | D29: 14.6682
A30: M0039 | B30: Gasolina comum | C30: l | D30: 5.2246
A31: M0041 | B31: Contêiner com 2 banheiros - L = 2,44 m e C = 6,09 m (1 TEU) | C31: un | D31: 77575.5227
A32: M0042 | B32: Contêiner com janela - L = 2,44 m e C = 6,09 m (1 TEU) | C32: un | D32: 55438.3483
A33: M0043 | B33: Óleo diesel | C33: l | D33: 5.5121
A34: M0044 | B34: Abrasivo de vidro com granulometria de 210 a 420 micra | C34: kg | D34: 8.69
A35: M0045 | B35: Barreira plástica monobloco para canalização de trânsito - C = 100 cm, L = 50 cm e H = 55 cm | C35: un | D35: 534.4808
A36: M0046 | B36: Barreira plástica para canalização de trânsito - C = 60 cm, L = 45 cm e H = 60 cm | C36: un | D36: 301.2784
A37: M0047 | B37: Cone de sinalização em polietileno - H = 75 cm e base quadrada de 40 x 40 cm | C37: un | D37: 106.4913
A38: M0048 | B38: Balizador cônico refletivo em polietileno semiflexível - H = 114 cm e base octogonal de D = 40 cm | C38: un | D38: 129.1028
A39: M0049 | B39: Delimitador de tráfego flexível com chumbador e duas faixas refletivas - H = 77 cm e D = 21 cm | C39: un | D39: 164.294
A40: M0050 | B40: Aditivo natural tipo goma xantana para hidrossemeadura | C40: kg | D40: 102.3145
A41: M0051 | B41: Cilindro canalizador de tráfego em polietileno - H = 117 cm e base quadrada de 60 x 60 cm | C41: un | D41: 173.9075
A42: M0052 | B42: Fita adesiva de PVC - L = 50 mm e C = 50 m | C42: m | D42: 0.1338
A43: M0053 | B43: Tela plástica em polipropileno na cor laranja para tapume - L = 1,2 m | C43: m | D43: 1.9406
A44: M0054 | B44: Fita zebrada de cor laranja e branca - L = 7 a 8 cm | C44: m | D44: 0.0719
A45: M0055 | B45: Barreira plástica articulável modular - C = 240 cm e H = 100 cm | C45: un | D45: 1255.7415
A46: M0056 | B46: Ferramenta de corte para removedora de faixa de sinalização (Smith Cutter) | C46: un | D46: 6579.0807
A47: M0057 | B47: Contêiner com janela - L = 4,88 m e C = 6,09 m (1 TEU duplo) | C47: un | D47: 107810.5908
A48: M0058 | B48: Contêiner com janela e 2 banheiros - L = 4,88 m e C = 6,09 m (1 TEU duplo) | C48: un | D48: 112332.8817
A49: M0059 | B49: Contêiner com revestimento térmico, janela e banheiro - L = 2,44 m e C = 6,09 m (1 TEU) | C49: un | D49: 74542.9008
A50: M0060 | B50: Contêiner com janela - L = 2,44 m e C = 4,58 m (3/4 TEU) | C50: un | D50: 44090.3178
A51: M0065 | B51: Contêiner com janela e banheiro - L = 2,44 m e 4,58 m (3/4 TEU) | C51: un | D51: 55769.2454
A52: M0066 | B52: Contêiner com revestimento térmico, janela e banheiro - L = 2,44 m e C = 12,90 m (2 TEU) | C52: un | D52: 88785.7448
A53: M0067 | B53: Tubo PEAD PE 100 PN 10 com flanges - D = 160 mm | C53: m | D53: 159.5075
A54: M0068 | B54: Caibro de pinho - L = 7,5 cm e E = 10,0 cm | C54: m | D54: 16.8367
A55: M0069 | B55: Arame farpado em aço galvanizado - D = 1,60 mm | C55: m | D55: 0.827
A56: M0071 | B56: Contêiner com 3 janelas para guarita - L = 2,44 m e C = 3,05 m (1/2 TEU) | C56: un | D56: 33168.3252
A57: M0072 | B57: Arame liso em aço galvanizado - D = 2,10 mm (14 BWG) | C57: kg | D57: 19.5668
A58: M0073 | B58: Muda de árvore com altura de 0,30 a 0,80 m | C58: un | D58: 11.2832
A59: M0074 | B59: Muda de arbusto com altura até 0,50 m | C59: un | D59: 19.727
A60: M0075 | B60: Arame liso recozido em aço-carbono - D = 1,24 mm (18 BWG) | C60: kg | D60: 11.1128
A61: M0076 | B61: Disco de corte abrasivo para policorte - D = 300 mm | C61: un | D61: 15.2744
A62: M0080 | B62: Areia fina | C62: m³ | D62: 147.833
A63: M0081 | B63: Areia grossa | C63: m³ | D63: 133.5613
A64: M0082 | B64: Areia média lavada | C64: m³ | D64: 150.9218
A65: M0083 | B65: Argamassa pré-dosada para grauteamento | C65: kg | D65: 1.6307
A66: M0084 | B66: Argamassa pré-dosada autoadensável para grauteamento | C66: kg | D66: 1.3999
A67: M0085 | B67: Ancoragem ativa para 4 cordoalhas - D = 12,7 mm | C67: un | D67: 381.6118
A68: M0086 | B68: Ancoragem ativa para 6 cordoalhas - D = 12,7 mm | C68: un | D68: 482.9419
A69: M0087 | B69: Ancoragem ativa para 7 cordoalhas - D = 12,7 mm | C69: un | D69: 559.6814
A70: M0088 | B70: Ancoragem ativa para 8 cordoalhas - D = 12,7 mm | C70: un | D70: 655.9293
A71: M0089 | B71: Ancoragem ativa para 9 cordoalhas - D = 12,7 mm | C71: un | D71: 742.3879
A72: M0091 | B72: Ancoragem ativa para 10 cordoalhas - D = 12,7 mm | C72: un | D72: 810.4716
A73: M0092 | B73: Ancoragem ativa para 12 cordoalhas - D = 12,7 mm | C73: un | D73: 1031.593
A74: M0093 | B74: Ancoragem ativa para 15 cordoalhas - D = 12,7 mm | C74: un | D74: 1426.8037
A75: M0094 | B75: Ancoragem ativa para 19 cordoalhas - D = 12,7 mm | C75: un | D75: 1819.9467
A76: M0098 | B76: Bambu com diâmetro médio de 10 cm | C76: m | D76: 16.8616
A77: M0099 | B77: Equipamentos para a fábrica de dormentes de concreto protendido | C77: ISF | D77: 549.79
A78: M0100 | B78: Ancoragem ativa para 22 cordoalhas - D = 12,7 mm | C78: un | D78: 2346.9847
A79: M0101 | B79: Ancoragem ativa para 27 cordoalhas - D = 12,7 mm | C79: un | D79: 2820.8349
A80: M0102 | B80: Ancoragem ativa para 31 cordoalhas - D = 12,7 mm | C80: un | D80: 3168.478
A81: M0103 | B81: Aditivo acelerador de pega para concreto e argamassa projetados | C81: kg | D81: 6.9292
A82: M0104 | B82: Asfalto diluído de petróleo - CM-30 | C82: t | D82: -
A83: M0105 | B83: Ancoragem ativa para 4 cordoalhas - D = 15,2 mm | C83: un | D83: 464.6684
A84: M0106 | B84: Ancoragem ativa para 6 cordoalhas - D = 15,2 mm | C84: un | D84: 607.9727
A85: M0107 | B85: Geocomposto para drenagem | C85: m² | D85: 27.6763
A86: M0108 | B86: Ancoragem ativa para 7 cordoalhas - D = 15,2 mm | C86: un | D86: 719.5063
A87: M0109 | B87: Geodreno vertical - L = 10 cm e E = 5 mm | C87: m | D87: 4.7664
A88: M0110 | B88: Ancoragem ativa para 10 cordoalhas - D = 15,2 mm | C88: un | D88: 1104.4395
A89: M0111 | B89: Ancoragem ativa para 9 cordoalhas - D = 15,2 mm | C89: un | D89: 979.887
A90: M0112 | B90: Disco diamantado segmentado para corte de pavimento - D = 1.000 mm | C90: un | D90: 5880.0211
A91: M0113 | B91: Ancoragem ativa para 12 cordoalhas - D = 15,2 mm | C91: un | D91: 1358.7101
A92: M0114 | B92: Disco diamantado segmentado para corte de pavimento - D = 1.500 mm | C92: un | D92: 26162.5543
A93: M0115 | B93: Biomanta vegetal de fibras de coco entrelaçadas com fios de polipropileno biodegradáveis - densidade 0,4 kg/m² | C93: m² | D93: 6.5195
A94: M0116 | B94: Mangote flangeado de borracha reforçada com lonas sintéticas - C = 1,80 m e D = 0,30 m | C94: un | D94: 16539.52
A95: M0117 | B95: Mangote flangeado de borracha reforçada com lonas sintéticas - C = 1,80 m e D = 0,40 m | C95: un | D95: 20882.2818
A96: M0118 | B96: Mangote flangeado de borracha reforçada com lonas sintéticas - C = 1,80 m e D = 0,45 m | C96: un | D96: 24566.5277
A97: M0119 | B97: Mangote flangeado de borracha reforçada com lonas sintéticas - C = 1,80 m e D = 0,50 m | C97: un | D97: 26563.1377
A98: M0120 | B98: Tubo PEAD PE 100 PN 8 com flanges - D = 250 mm | C98: m | D98: 322.2453
A99: M0121 | B99: Tubo PEAD PE 100 PN 8 com flanges - D = 400 mm | C99: m | D99: 2077.6526
A100: M0122 | B100: Tubo PEAD PE 100 PN 8 com flanges - D = 450 mm | C100: m | D100: 2607.968
A101: M0123 | B101: Tubo PEAD PE 100 PN 8 com flanges - D = 500 mm | C101: m | D101: 2919.6192
A102: M0124 | B102: Flutuador bipartido em polietileno com núcleo de espuma em poliuretano para tubos - D = 0,30 m | C102: un | D102: 4315.0479
A103: M0125 | B103: Flutuador bipartido em polietileno com núcleo de espuma em poliuretano para tubos - D = 0,40 m | C103: un | D103: 5872.0512
A104: M0126 | B104: Flutuador bipartido em polietileno com núcleo de espuma em poliuretano para tubos - D = 0,45 m | C104: un | D104: 6746.8767
A105: M0127 | B105: Flutuador bipartido em polietileno com núcleo de espuma em poliuretano para tubos - D = 0,50 m | C105: un | D105: 7257.7251
A106: M0128 | B106: Biomanta vegetal de fibras de palha entrelaçadas com fios de polipropileno biodegradáveis - densidade 0,6 kg/m² | C106: m² | D106: 5.7171
A107: M0129 | B107: Retentor de sedimento em fibras vegetais - D = 20 cm | C107: m | D107: 48.3719
A108: M0130 | B108: Ancoragem ativa para 15 cordoalhas - D = 15,2 mm | C108: un | D108: 1773.5595
A109: M0131 | B109: Tubo PEAD corrugado com paredes estruturadas para drenagem - D = 400 mm | C109: m | D109: 205.6368
A110: M0132 | B110: Tubo PEAD corrugado com paredes estruturadas para drenagem - D = 450 mm | C110: m | D110: 229.2691
A111: M0133 | B111: Tubo PEAD corrugado com paredes estruturadas para drenagem - D = 500 mm | C111: m | D111: 333.8672
A112: M0134 | B112: Tubo PEAD corrugado com paredes estruturadas para drenagem - D = 600 mm | C112: m | D112: 493.0225
A113: M0135 | B113: Tubo PEAD corrugado com paredes estruturadas para drenagem - D = 750 mm | C113: m | D113: 648.3924
A114: M0136 | B114: Tubo PEAD corrugado com paredes estruturadas para drenagem - D = 800 mm | C114: m | D114: 720.2147
A115: M0137 | B115: Tubo PEAD corrugado com paredes estruturadas para drenagem - D = 900 mm | C115: m | D115: 969.9897
A116: M0138 | B116: Ancoragem ativa para 19 cordoalhas - D = 15,2 mm | C116: un | D116: 2318.3167
A117: M0139 | B117: Tubo PEAD corrugado com paredes estruturadas para drenagem - D = 1.000 mm | C117: m | D117: 1283.1274
A118: M0140 | B118: Bentonita | C118: kg | D118: 2.9342
A119: M0141 | B119: Tubo PEAD corrugado com paredes estruturadas para drenagem - D = 1.050 mm | C119: m | D119: 1349.913
A120: M0142 | B120: Tubo PEAD corrugado com paredes estruturadas para drenagem - D = 1.200 mm | C120: m | D120: 1703.4195
A121: M0143 | B121: Tubo PEAD corrugado com paredes estruturadas para drenagem - D = 1.500 mm | C121: m | D121: 1999.3344
A122: M0144 | B122: Tubo PEAD corrugado com paredes estruturadas para drenagem - D = 1.800 mm | C122: m | D122: 6920.3412
A123: M0145 | B123: Ancoragem ativa para 22 cordoalhas - D = 15,2 mm | C123: un | D123: 2975.8084
A124: M0146 | B124: Ancoragem ativa para 27 cordoalhas - D = 15,2 mm | C124: un | D124: 3915.3817
A125: M0147 | B125: Tubo PEAD corrugado com paredes estruturadas para drenagem - D = 2.000 mm | C125: m | D125: 8340.3106
A126: M0148 | B126: Ancoragem ativa para lajes para 1 cordoalha - D = 12,7 mm | C126: un | D126: 88.9327
A127: M0149 | B127: Tubo PEAD corrugado com paredes estruturadas para drenagem - D = 2.500 mm | C127: m | D127: 13817.0654
A128: M0150 | B128: Tubo PEAD corrugado com paredes estruturadas para drenagem - D = 3.000 mm | C128: m | D128: 19226.5806
A129: M0151 | B129: Ancoragem ativa para lajes para 2 cordoalhas - D = 12,7 mm | C129: un | D129: 170.5904
A130: M0152 | B130: Ancoragem ativa para lajes para 3 cordoalhas - D = 12,7 mm | C130: un | D130: 230.8239
A131: M0153 | B131: Ancoragem ativa para lajes para 4 cordoalhas - D = 12,7 mm | C131: un | D131: 308.0617
A132: M0156 | B132: Bloco de concreto - L = 19 cm, A = 19 cm e C = 39 cm | C132: un | D132: 4.3078
A133: M0158 | B133: Tela metálica galvanizada dobrada em L - C = 2,0 m, L = 0,4 m e H = 0,4 m | C133: un | D133: 453.2497
A134: M0160 | B134: Extintor de incêndio tipo espuma mecânica - V = 10 l | C134: un | D134: 567.7809
A135: M0161 | B135: Barra de fibra de vidro (vergalhão) - D = 25,0 mm | C135: m | D135: 59.2603
A136: M0162 | B136: Corrente de elo soldado em aço galvanizado com acabamento polido - D = 3,18 mm (1/8") | C136: m | D136: 7.2536
A137: M0163 | B137: Gonzo com aba em aço galvanizado - D = 12,7 mm (1/2") | C137: un | D137: 2.8586
A138: M0164 | B138: Tubo em aço galvanizado - E = 1,50 mm e seção de 20 x 20 mm | C138: m | D138: 14.256
A139: M0166 | B139: Tubo em aço galvanizado - E = 2,25 mm e D = 20 mm (3/4") | C139: m | D139: 36.9135
A140: M0167 | B140: Tela de poliamida industrial - E = 0,40 mm e malha de 1,6 mm | C140: m² | D140: 15.5337
A141: M0168 | B141: Abraçadeira de poliamida - E = 3,6 mm e C = 200 mm | C141: un | D141: 0.2116
A142: M0169 | B142: Roda em aço e pneu com câmara de ar 83/203 mm (3,25"/8") para carrinho de mão | C142: un | D142: 63.3954
A143: M0173 | B143: Ancoragem ativa para lajes para 1 cordoalha - D = 15,2 mm | C143: un | D143: 99.6086
A144: M0178 | B144: Ancoragem ativa para lajes para 2 cordoalhas - D = 15,2 mm | C144: un | D144: 224.1774
A145: M0181 | B145: Ancoragem ativa para lajes para 3 cordoalhas - D = 15,2 mm | C145: un | D145: 281.4055
A146: M0184 | B146: Ancoragem ativa para lajes para 4 cordoalhas - D = 15,2 mm | C146: un | D146: 372.1803
A147: M0191 | B147: Brita 1 | C147: m³ | D147: 129.775
A148: M0192 | B148: Brita 2 | C148: m³ | D148: 129.775
A149: M0193 | B149: Brita 3 | C149: m³ | D149: 125.4056
A150: M0194 | B150: Escória de aciaria | C150: m³ | D150: 13.394
A151: M0198 | B151: Parafuso de cabeça chata em aço - D = 4,5 mm e bucha plástica - D = 8 mm (S8) | C151: un | D151: 0.3345
A152: M0199 | B152: Coroa de botões cruzados linha R32 - D = 43 mm (1 11/16’’) | C152: un | D152: 320.6982
A153: M0201 | B153: Coroa de botões esféricos linha T38 - D = 89 mm (3 1/2") | C153: un | D153: 871.3639
A154: M0202 | B154: Coroa de botões esféricos linha T45 - D = 76 mm (3") | C154: un | D154: 673.2119
A155: M0204 | B155: Instalações físicas para a central de pré-moldagem de dormentes de concreto protendido | C155: CMCC | D155: 1896.47
A156: M0217 | B156: Enxofre | C156: kg | D156: 4.4282
A157: M0220 | B157: Adubo à base de nitrogênio, fósforo e potássio (NPK) | C157: kg | D157: 3.78
A158: M0222 | B158: Filer calcário | C158: kg | D158: 0.1714
A159: M0223 | B159: Sementes para hidrossemeadura | C159: kg | D159: 29.9
A160: M0224 | B160: Guia-chapéu pré-moldada - C = 120 cm | C160: un | D160: 64.427
A161: M0225 | B161: Adubo orgânico composto | C161: kg | D161: 0.2466
A162: M0229 | B162: Gabião tipo colchão em liga de zinco e alumínio revestido com polímero de malha hexagonal - E = 0,17 m | C162: m² | D162: 207.4235
A163: M0230 | B163: Gabião tipo caixa em liga de zinco e alumínio de malha hexagonal - C = 2,00 m, L = 1,00 m e H = 0,50 m | C163: un | D163: 609.4779
A164: M0231 | B164: Gabião tipo caixa em liga de zinco e alumínio de malha hexagonal - C = 2,00 m, L = 1,00 m e H = 1,00 m | C164: un | D164: 964.3868
A165: M0232 | B165: Gabião tipo caixa em liga de zinco e alumínio revestido com polímero de malha hexagonal - C = 2,00 m, L = 1,00 m e H = 0,50 m | C165: un | D165: 763.0167
A166: M0233 | B166: Gabião tipo caixa em liga de zinco e alumínio revestido com polímero de malha hexagonal - C = 2,00 m, L = 1,00 m e H = 1,00 m | C166: un | D166: 1067.501
A167: M0234 | B167: Gabião tipo saco em liga de zinco e alumínio revestido com polímero de malha hexagonal - D = 0,65 m | C167: m³ | D167: 557.0942
A168: M0235 | B168: Gabião tipo colchão em liga de zinco e alumínio revestido com polímero de malha hexagonal - E = 0,23 m | C168: m² | D168: 220.9208
A169: M0236 | B169: Gabião tipo colchão em liga de zinco e alumínio revestido com polímero de malha hexagonal - E = 0,30 m | C169: m² | D169: 243.6485
A170: M0237 | B170: Energia elétrica | C170: kWh | D170: 0.841
A171: M0253 | B171: Cabo de cobre flexível antichama isolado em PVC - tensão de 450/750 V e seção de 16 mm² | C171: m | D171: 17.07
A172: M0254 | B172: Mistura gasosa de argônio e dióxido de carbono para solda MIG/MAG | C172: m³ | D172: 38.4631
A173: M0256 | B173: Tinta à base de etil silicato de zinco bicomponente para fundo preparador de pintura | C173: l | D173: 79.2028
A174: M0257 | B174: Diluente para tinta à base de etil silicato de zinco | C174: l | D174: 28.6641
A175: M0260 | B175: Cabo de cobre PP flexível isolado em PVC - tensão de 300/500 V e seção de 3 x 1,5 mm² | C175: m | D175: 5.678
A176: M0264 | B176: Bomba de combustível industrial eletrônica simples | C176: un | D176: 25847.5195
A177: M0265 | B177: Tanque de combustível aéreo horizontal com escada para visita - capacidade de 5.000 l | C177: un | D177: 19550.3978
A178: M0266 | B178: Cabo de cobre flexível antichama isolado em PVC - tensão de 0,6/1,0 kV e seção de 240 mm² | C178: m | D178: 129.6
A179: M0267 | B179: Módulo de torre de elevador de cremalheira | C179: un | D179: 3764.8949
A180: M0268 | B180: Módulo de ancoragem de torre de elevador de cremalheira | C180: un | D180: 2839.2744
A181: M0269 | B181: Cabo de cobre flexível antichama isolado em PVC - tensão de 0,6/1,0 kV e seção de 50 mm² | C181: m | D181: 33.0002
A182: M0284 | B182: Caibro de pinho - L = 7,5 cm e E = 7,5 cm | C182: m | D182: 12.6276
A183: M0285 | B183: Pontalete para escoramento - D = 15 cm | C183: m | D183: 7.8963
A184: M0286 | B184: Tábua - E = 2,5 cm e L = 30 cm | C184: m | D184: 12.7094
A185: M0289 | B185: Tábua - E = 2,5 cm e L = 15 cm | C185: m | D185: 5.8402
A186: M0290 | B186: Tábua - E = 2,5 cm e L = 10 cm | C186: m | D186: 4.065
A187: M0301 | B187: Pontalete para escoramento - D = 10 cm | C187: m | D187: 3.5112
A188: M0310 | B188: Peça de madeira - L = 7,5 cm e E = 2,5 cm | C188: m | D188: 4.2092
A189: M0311 | B189: Filtro de aspiração de ar externo com capacidade 3,58 l/s para compressor de ar respirável | C189: un | D189: 199.2236
A190: M0312 | B190: Filtro de purificação de ar comprimido com capacidade de 35 MPa para compressor de ar respirável | C190: un | D190: 221.2896
A191: M0344 | B191: Cal hidratada - a granel | C191: kg | D191: 0.46
A192: M0345 | B192: Cal hidratada - saco | C192: kg | D192: 0.7462
A193: M0346 | B193: Disco de aço para bomba de projeção via seca | C193: un | D193: 330
A194: M0347 | B194: Disco de aço para bomba de projeção via úmida | C194: un | D194: 1116.5324
A195: M0348 | B195: Disco de borracha para bomba de projeção via seca | C195: un | D195: 265
A196: M0349 | B196: Disco de borracha para bomba de projeção via úmida | C196: un | D196: 600.6
A197: M0350 | B197: Bico para bomba de projeção | C197: un | D197: 290
A198: M0351 | B198: Mangote para bomba de projeção | C198: m | D198: 293.3724
A199: M0364 | B199: Perfil cartola em aço carbono SAE 1010/1020 galvanizado - 50 x 70 x 3 mm - aba 20 mm | C199: m | D199: 134.23
A200: M0365 | B200: Cantoneira em ferro de abas iguais - L = 25,4 mm e E = 4,76 mm | C200: kg | D200: 10.4038
... 1461 more rows

Sheet Pessoal Sicro
A1: CGCIT | B1: SISTEMA DE CUSTOS REFERENCIAIS DE OBRAS - SICRO | G1: DNIT
A3: Minas Gerais - Abril/2024
A4: Sem desoneração
A5: Código | B5: Descrição | C5: Unidade | D5: Salário (R$) | E5: Encargos Totais | F5: Custo (R$) | G5: Periculosidade/ Insalubridade
A6: P9801 | B6: Ajudante | C6: h | D6: 7.6149 | E6: 1.940368 | F6: 22.3906 | G6: 0
A7: P9802 | B7: Ajudante especializado | C7: h | D7: 9.1379 | E7: 1.887831 | F7: 26.3887 | G7: 0
A8: P9803 | B8: Almoxarife | C8: mês | D8: 2921.6 | E8: 1.155146 | F8: 6296.4745 | G8: 0
A9: P9804 | B9: Apontador | C9: mês | D9: 1725.6266 | E9: 1.447727 | F9: 4223.8628 | G9: 0
A10: P9805 | B10: Armador | C10: h | D10: 12.27 | E10: 1.627295 | F10: 32.2369 | G10: 0
A11: P9806 | B11: Auxiliar administrativo | C11: mês | D11: 1789.3427 | E11: 1.404941 | F11: 4303.2636 | G11: 0
A12: P9807 | B12: Bombeiro hidráulico | C12: h | D12: 12.9252 | E12: 1.657817 | F12: 34.3528 | G12: 0
A13: P9808 | B13: Carpinteiro | C13: h | D13: 9.0201 | E13: 1.819047 | F13: 25.428 | G13: 0
A14: P9809 | B14: Encarregado administrativo | C14: mês | D14: 4637.7158 | E14: 0.988399 | F14: 9221.6294 | G14: 0
A15: P9810 | B15: Eletricista | C15: h | D15: 10.0598 | E15: 1.791438 | F15: 28.0813 | G15: 0
A16: P9811 | B16: Encarregado especializado | C16: mês | D16: 4325.5698 | E16: 1.038477 | F16: 8817.5745 | G16: 0
A17: P9812 | B17: Engenheiro | C17: mês | D17: 13560.4914 | E17: 0.847336 | F17: 25050.7839 | G17: 0
A18: P9814 | B18: Operacional | C18: mês | D18: 1570.3441 | E18: 1.489277 | F18: 3909.0214 | G18: 0
A19: P9815 | B19: Jardineiro | C19: h | D19: 9.63 | E19: 1.748993 | F19: 26.4728 | G19: 0
A20: P9819 | B20: Engenheiro supervisor | C20: mês | D20: 13560.4914 | E20: 0.847336 | F20: 25050.7839 | G20: 0
A21: P9821 | B21: Pedreiro | C21: h | D21: 9.1226 | E21: 1.80589 | F21: 25.597 | G21: 0
A22: P9822 | B22: Pintor | C22: h | D22: 12.27 | E22: 1.630718 | F22: 32.2789 | G22: 0
A23: P9823 | B23: Serralheiro | C23: h | D23: 12.27 | E23: 1.621701 | F23: 32.1682 | G23: 0
A24: P9824 | B24: Servente | C24: h | D24: 6.75 | E24: 2.044284 | F24: 20.5489 | G24: 0
A25: P9825 | B25: Soldador | C25: h | D25: 16.41 | E25: 1.499796 | F25: 41.0216 | G25: 0
A26: P9826 | B26: Chefe setor de finanças | C26: mês | D26: 12637.0071 | E26: 0.84625 | F26: 23331.0743 | G26: 0
A27: P9827 | B27: Vigia | C27: mês | D27: 1485 | E27: 1.76938 | F27: 4558.0292 | G27: 0.3
A28: P9830 | B28: Montador | C28: h | D28: 13.28 | E28: 1.644204 | F28: 35.115 | G28: 0
A29: P9833 | B29: Auxiliar de laboratório | C29: mês | D29: 2699.4 | E29: 1.183421 | F29: 5893.9266 | G29: 0
A30: P9837 | B30: Oceanógrafo | C30: mês | D30: 5313.4666 | E30: 0.967307 | F30: 10453.22 | G30: 0
A31: P9840 | B31: Encarregado geral | C31: mês | D31: 6490.2188 | E31: 0.952001 | F31: 12668.9135 | G31: 0
A32: P9842 | B32: Faxineiro | C32: mês | D32: 2118.6 | E32: 1.304151 | F32: 4881.5743 | G32: 0
A33: P9843 | B33: Operador de equipamento leve | C33: h | D33: 8.4254 | E33: 1.842962 | F33: 23.953 | G33: 0
A34: P9845 | B34: Operador de equipamento pesado | C34: h | D34: 13.0791 | E34: 1.582 | F34: 33.7702 | G34: 0
A35: P9846 | B35: Operador de equipamento especial | C35: h | D35: 17.5698 | E35: 1.452002 | F35: 43.0811 | G35: 0
A36: P9847 | B36: Perfurador de tubulão | C36: h | D36: 7.6149 | E36: 1.935248 | F36: 22.3516 | G36: 0
A37: P9848 | B37: Desenhista | C37: mês | D37: 4673.4913 | E37: 0.992278 | F37: 9310.8939 | G37: 0
A38: P9849 | B38: Condutor maquinista fluvial | C38: mês | D38: 2497.4354 | E38: 1.203174 | F38: 5502.2847 | G38: 0
A39: P9850 | B39: Copeiro | C39: mês | D39: 2118.6 | E39: 1.284939 | F39: 4840.8717 | G39: 0
A40: P9851 | B40: Médico do trabalho | C40: mês | D40: 9683.7414 | E40: 0.873369 | F40: 18141.2209 | G40: 0
A41: P9852 | B41: Blaster | C41: h | D41: 11.0884 | E41: 2.009759 | F41: 36.6999 | G41: 0.3
A42: P9853 | B42: Pré-marcador | C42: h | D42: 7.6149 | E42: 1.914077 | F42: 22.1904 | G42: 0
A43: P9854 | B43: Recepcionista | C43: mês | D43: 2118.6 | E43: 1.263682 | F43: 4795.8366 | G43: 0
A44: P9855 | B44: Marinheiro de máquinas | C44: mês | D44: 2228.695 | E44: 1.253325 | F44: 5021.9741 | G44: 0
A45: P9856 | B45: Marinheiro de convés | C45: h | D45: 9.888 | E45: 1.708729 | F45: 26.7839 | G45: 0
A46: P9857 | B46: Marinheiro de convés - mensalista | C46: mês | D46: 2175.3666 | E46: 1.264919 | F46: 4927.0291 | G46: 0
A47: P9858 | B47: Laboratorista | C47: mês | D47: 2862.1068 | E47: 1.160781 | F47: 6184.3859 | G47: 0
A48: P9859 | B48: Trabalhador de via | C48: h | D48: 6.75 | E48: 2.054708 | F48: 20.6192 | G48: 0
A49: P9861 | B49: Selecionador de material pétreo | C49: h | D49: 7.6149 | E49: 1.923632 | F49: 22.2631 | G49: 0
A50: P9864 | B50: Engenheiro de segurança do trabalho | C50: mês | D50: 12257.0041 | E50: 0.853803 | F50: 22722.0709 | G50: 0
A51: P9866 | B51: Motorista de caminhão | C51: h | D51: 10.3492 | E51: 1.691242 | F51: 27.8522 | G51: 0
A52: P9867 | B52: Técnico especializado - mensalista | C52: mês | D52: 3799.3186 | E52: 1.07043 | F52: 7866.2232 | G52: 0
A53: P9869 | B53: Encarregado de obras de artes especiais | C53: mês | D53: 4325.5698 | E53: 1.038477 | F53: 8817.5745 | G53: 0
A54: P9870 | B54: Motorista de veículo leve | C54: h | D54: 10.0025 | E54: 1.702202 | F54: 27.0287 | G54: 0
A55: P9871 | B55: Motorista de veículo especial | C55: h | D55: 12.2201 | E55: 1.602514 | F55: 31.8029 | G55: 0
A56: P9875 | B56: Encarregado de turma | C56: mês | D56: 2599.4527 | E56: 1.210644 | F56: 5746.4645 | G56: 0
A57: P9876 | B57: Técnico de segurança do trabalho | C57: mês | D57: 3570.811 | E57: 1.087522 | F57: 7454.1465 | G57: 0
A58: P9878 | B58: Secretária | C58: mês | D58: 2855.4442 | E58: 1.123073 | F58: 6062.3164 | G58: 0
A59: P9880 | B59: Piloto fluvial | C59: mês | D59: 3456.53 | E59: 1.073971 | F59: 7168.7429 | G59: 0
A60: P9882 | B60: Técnico especializado | C60: h | D60: 17.2696 | E60: 1.462459 | F60: 42.5256 | G60: 0
A61: P9883 | B61: Chefe do setor administrativo | C61: mês | D61: 4637.8744 | E61: 0.988391 | F61: 9221.9077 | G61: 0
A62: P9884 | B62: Encarregado de terraplenagem | C62: mês | D62: 4325.5698 | E62: 1.038477 | F62: 8817.5745 | G62: 0
A63: P9885 | B63: Frentista de túnel | C63: h | D63: 7.6149 | E63: 1.988305 | F63: 22.7556 | G63: 0
A64: P9889 | B64: Técnico da qualidade | C64: mês | D64: 3966.7457 | E64: 1.055253 | F64: 8152.666 | G64: 0
A65: P9892 | B65: Auxiliar de blaster | C65: h | D65: 9.7647 | E65: 2.088811 | F65: 33.0907 | G65: 0.3
A66: P9893 | B66: Encarregado de pavimentação | C66: mês | D66: 4325.5698 | E66: 1.038477 | F66: 8817.5745 | G66: 0
A67: P9896 | B67: Porteiro | C67: mês | D67: 2118.6 | E67: 1.299531 | F67: 4871.7863 | G67: 0
A68: P9897 | B68: Técnico de meio ambiente | C68: mês | D68: 3587.864 | E68: 1.086519 | F68: 7486.1464 | G68: 0
A69: P9900 | B69: Comprador | C69: mês | D69: 4279.5427 | E69: 1.03008 | F69: 8687.814 | G69: 0
A70: P9901 | B70: Encarregado de superestrutura ferroviária | C70: mês | D70: 4325.5698 | E70: 1.038477 | F70: 8817.5745 | G70: 0
A71: P9903 | B71: Auxiliar técnico | C71: mês | D71: 2145.626 | E71: 1.28649 | F71: 4905.9523 | G71: 0
A72: P9907 | B72: Comandante de longo curso | C72: mês | D72: 11259.3057 | E72: 0.85216 | F72: 20854.0356 | G72: 0
A73: P9908 | B73: Imediato | C73: mês | D73: 8904.606 | E73: 0.878143 | F73: 16724.1234 | G73: 0
A74: P9909 | B74: Oficial de náutica | C74: mês | D74: 2834.3491 | E74: 1.14877 | F74: 6090.3643 | G74: 0
A75: P9910 | B75: Oficial de máquinas | C75: mês | D75: 2921.1265 | E75: 1.133052 | F75: 6230.9147 | G75: 0
A76: P9913 | B76: Draguista | C76: mês | D76: 3595.3388 | E76: 1.061613 | F76: 7412.1972 | G76: 0
A77: P9915 | B77: Maquinista | C77: h | D77: 12.7549 | E77: 1.569933 | F77: 32.7792 | G77: 0
A78: P9916 | B78: Encarregado de conservação rodoviária | C78: mês | D78: 4325.5698 | E78: 1.038477 | F78: 8817.5745 | G78: 0
A79: P9920 | B79: Mestre fluvial | C79: mês | D79: 4677.0464 | E79: 0.990445 | F79: 9309.4036 | G79: 0
A80: P9921 | B80: Mergulhador raso autônomo de emergência | C80: h | D80: 9.9237 | E80: 2.46323 | F80: 36.9353 | G80: 0.2587
A81: P9922 | B81: Mergulhador raso dependente de emergência | C81: h | D81: 9.9208 | E81: 2.539431 | F81: 38.0902 | G81: 0.3
A82: P9924 | B82: Mergulhador raso dependente | C82: h | D82: 9.9208 | E82: 3.855917 | F82: 51.1508 | G82: 0.3
A83: P9925 | B83: Mergulhador raso autônomo | C83: h | D83: 9.9237 | E83: 3.48923 | F83: 47.117 | G83: 0.2587
A84: P9926 | B84: Mergulhador raso auxiliar de superfície | C84: h | D84: 9.9237 | E84: 2.237032 | F84: 34.6905 | G84: 0.2587
A85: P9927 | B85: Frentista de túnel com periculosidade | C85: h | D85: 7.6149 | E85: 2.321759 | F85: 27.5793 | G85: 0.3
A86: P9930 | B86: Eletricista com periculosidade | C86: h | D86: 10.0598 | E86: 2.124014 | F86: 34.4448 | G86: 0.3
A87: P9931 | B87: Operador de equipamento de mergulho | C87: h | D87: 18.0118 | E87: 1.800995 | F87: 53.0176 | G87: 0.1425
A88: P9932 | B88: Operador de equipamento pesado com periculosidade | C88: h | D88: 13.0791 | E88: 1.915268 | F88: 42.0528 | G88: 0.3
A89: P9933 | B89: Supervisor de mergulho raso | C89: mês | D89: 3962.5981 | E89: 1.326142 | F89: 9782.236 | G89: 0.1425
A90: P9934 | B90: Motorista de veículo especial com periculosidade | C90: h | D90: 12.2201 | E90: 1.936021 | F90: 39.5445 | G90: 0.3
A91: P9938 | B91: Operador de equipamento leve com periculosidade | C91: h | D91: 8.4254 | E91: 2.17623 | F91: 29.2886 | G91: 0.3
A92: P9939 | B92: Operador de equipamento leve com insalubridade | C92: h | D92: 8.4254 | E92: 2.323808 | F92: 30.5716 | G92: 0.3047
A93: P9942 | B93: Marinheiro de convés com periculosidade | C93: h | D93: 9.888 | E93: 2.037139 | F93: 32.9976 | G93: 0.3
A94: P9944 | B94: Operador de equipamento especial com periculosidade | C94: h | D94: 17.5698 | E94: 1.78527 | F94: 54.2075 | G94: 0.3
A95: P9946 | B95: Engenheiro auxiliar | C95: mês | D95: 12002 | E95: 0.857547 | F95: 22294.279 | G95: 0
A96: P9947 | B96: Técnico florestal | C96: mês | D96: 3587.864 | E96: 1.086519 | F96: 7486.1464 | G96: 0
A97: P9948 | B97: Motorista de veículo leve - mensalista | C97: mês | D97: 2200.5605 | E97: 1.268166 | F97: 4991.2365 | G97: 0
A98: P9949 | B98: Topógrafo | C98: mês | D98: 3072.0872 | E98: 1.144676 | F98: 6588.6316 | G98: 0
A99: P9950 | B99: Auxiliar de topografia | C99: mês | D99: 2699.4 | E99: 1.195121 | F99: 5925.5096 | G99: 0
A100: P9951 | B100: Médico de câmara hiperbárica | C100: mês | D100: 9683.7414 | E100: 1.016305 | F100: 20089.9383 | G100: 0.0583
A101: P9952 | B101: Pedreiro - mensalista | C101: mês | D101: 2006.9652 | E101: 1.364233 | F101: 4744.9333 | G101: 0
A102: P9953 | B102: Eletricista - mensalista | C102: mês | D102: 2213.1627 | E102: 1.343104 | F102: 5185.6703 | G102: 0
A103: P9954 | B103: Servente - mensalista | C103: mês | D103: 1485 | E103: 1.567135 | F103: 3812.1954 | G103: 0
A104: P9955 | B104: Engenheiro chefe | C104: mês | D104: 17834.6151 | E104: 0.82849 | F104: 32610.4153 | G104: 0
A105: P9956 | B105: Motorista de caminhão com periculosidade | C105: h | D105: 10.3492 | E105: 2.024756 | F105: 34.4085 | G105: 0.3
A106: P9972 | B106: Técnico de batimetria | C106: mês | D106: 3322.76 | E106: 1.108568 | F106: 7006.2654 | G106: 0

Sheet Equipamentos
A1: CGCIT | B1: SISTEMA DE CUSTOS REFERENCIAIS DE OBRAS - SICRO | K1: DNIT
B2: Minas Gerais - Abril/2024
A3: Código | B3: Descrição | C3: Valor de Aquisição (R$) | D3: Depreciação (R$/h) | E3: Oportunidade de Capital (R$/h) | F3: Seguros e Impostos (R$/h) | G3: Manutenção (R$/h) | H3: Operação (R$/h) | I3: Mão de Obra de Operação (R$/h) | J3: Custo Produtivo (R$/h) | K3: Custo Improdutivo (R$/h)
A4: E9001 | B4: Conjunto vibratório para tubos de concreto com encaixe PB e 3 jogos de fôrmas - D = 0,60 m - 2,20 kW | C4: 66191.5628 | D4: 8.8255 | E4: 2.042 | F4: 0 | G4: 6.6192 | H4: 0 | I4: 0 | J4: 17.4867 | K4: 10.8675
A5: E9002 | B5: Conjunto vibratório para tubos de concreto com encaixe PB e 3 jogos de fôrmas - D = 0,80 m - 2,20 kW | C5: 82316.4087 | D5: 10.9755 | E5: 2.5395 | F5: 0 | G5: 8.2316 | H5: 0 | I5: 0 | J5: 21.7466 | K5: 13.515
A6: E9003 | B6: Conjunto vibratório para tubos de concreto com encaixe PB e 3 jogos de fôrmas - D = 1,00 m - 2,20 kW | C6: 101711.7289 | D6: 13.5616 | E6: 3.1378 | F6: 0 | G6: 10.1712 | H6: 0 | I6: 0 | J6: 26.8706 | K6: 16.6994
A7: E9004 | B7: Conjunto vibratório para tubos de concreto com encaixe PB e 3 jogos de fôrmas - D = 1,20 m - 2,20 kW | C7: 107821.1162 | D7: 14.3761 | E7: 3.3263 | F7: 0 | G7: 10.7821 | H7: 0 | I7: 0 | J7: 28.4845 | K7: 17.7024
A8: E9005 | B8: Conjunto vibratório para tubos de concreto com encaixe PB e 3 jogos de fôrmas - D = 1,50 m - 2,20 kW | C8: 112403.0254 | D8: 14.9871 | E8: 3.4676 | F8: 0 | G8: 11.2403 | H8: 0 | I8: 0 | J8: 29.695 | K8: 18.4547
A9: E9006 | B9: Equipamento para sondagem manual | C9: 3003.1425 | D9: 0.5105 | E9: 0.1112 | F9: 0 | G9: 0.3003 | H9: 0 | I9: 0 | J9: 0.922 | K9: 0.6217
A10: E9007 | B10: Bomba de pistão triplex com capacidade de 7,80 m³/h (130 l/min) - 8,20 kW | C10: 156823.7604 | D10: 12.5459 | E10: 2.9028 | F10: 0 | G10: 10.9777 | H10: 8.3193 | I10: 0 | J10: 34.7457 | K10: 15.4487
A11: E9008 | B11: Transportador manual de tubos de concreto com capacidade de 1 t | C11: 1529.3346 | D11: 1.3764 | E11: 0.0944 | F11: 0 | G11: 0.7647 | H11: 0 | I11: 0 | J11: 2.2355 | K11: 1.4708
A12: E9009 | B12: Embarcação rebocadora - 268 kW | C12: 580569.6791 | D12: 7.5595 | E12: 3.3686 | F12: 0 | G12: 16.7989 | H12: 271.8975 | I12: 135.4673 | J12: 435.0918 | K12: 146.3954
A13: E9010 | B13: Balança plataforma digital à bateria, com mesa de 75 x 75 cm e capacidade de 500 kg | C13: 4426.6618 | D13: 0.664 | E13: 0.091 | F13: 0 | G13: 0.3689 | H13: 0 | I13: 0 | J13: 1.1239 | K13: 0.755
A14: E9011 | B14: Carro manual modelo plataforma de 200 x 80 cm com capacidade de 800 kg | C14: 1763.2189 | D14: 0.3174 | E14: 0.0653 | F14: 0 | G14: 0.1763 | H14: 0 | I14: 0 | J14: 0.559 | K14: 0.3827
A15: E9014 | B15: Deflectômetro de impacto (FWD) instalado em picape com reboque e faixa de carga de 7 a 120 kN - 147 kW | C15: 2141825.942 | D15: 171.3461 | E15: 39.6452 | F15: 0 | G15: 107.0913 | H15: 0 | I15: 31.8029 | J15: 349.8855 | K15: 242.7942
A16: E9015 | B16: Elevador de obra com capacidade de 1.000 kg - 9 kW | C16: 65864.4441 | D16: 5.2692 | E16: 1.2192 | F16: 0 | G16: 4.6105 | H16: 0 | I16: 23.953 | J16: 35.0519 | K16: 30.4414
A17: E9016 | B17: Usina misturadora móvel de reciclagem a frio com sistema de espuma de asfalto - 129,40 kW | C17: 10053183.94 | D17: 586.4357 | E17: 180.9154 | F17: 0 | G17: 753.9888 | H17: 96.734 | I17: 43.0811 | J17: 1661.155 | K17: 810.4322
A18: E9017 | B18: Escavadeira hidráulica sobre esteira com capacidade de 0,4 m³ - 64 kW | C18: 706829.1784 | D18: 49.478 | E18: 13.0834 | F18: 0 | G18: 49.478 | H18: 44.4263 | I18: 33.7702 | J18: 190.2359 | K18: 96.3316
A19: E9020 | B19: Recicladora a frio - 455 kW | C19: 4989145.978 | D19: 291.0335 | E19: 89.7838 | F19: 0 | G19: 415.7622 | H19: 485.9127 | I19: 43.0811 | J19: 1325.5733 | K19: 423.8984
A20: E9021 | B20: Grupo gerador - 456 kVA | C20: 327947.4037 | D20: 16.3974 | E20: 5.7812 | F20: 0 | G20: 11.7124 | H20: 370.3082 | I20: 0 | J20: 404.1992 | K20: 22.1786
A21: E9022 | B21: Pórtico metálico rolante com capacidade de 25 t - 30 kW | C21: 932315.245 | D21: 41.9542 | E21: 15.8191 | F21: 0 | G21: 32.631 | H21: 0 | I21: 23.953 | J21: 114.3573 | K21: 81.7263
A22: E9023 | B22: Guindaste móvel sobre esteiras com dragline com capacidade de 1,9 a 2,3 m³ - 270 kW | C22: 3504403.082 | D22: 122.6541 | E22: 59.461 | F22: 0 | G22: 175.2202 | H22: 72.086 | I22: 43.0811 | J22: 472.5024 | K22: 225.1962
A23: E9024 | B23: Misturador de nata cimento - 1,50 kW | C23: 6913.1032 | D23: 0.553 | E23: 0.128 | F23: 0 | G23: 0.4839 | H23: 0 | I23: 23.953 | J23: 25.1179 | K23: 24.634
A24: E9025 | B24: Conjunto bomba e macaco hidráulico para protensão com capacidade de 7.000 kN - 15 kW | C24: 100670.2136 | D24: 5.7526 | E24: 1.7747 | F24: 0 | G24: 5.7526 | H24: 0 | I24: 43.0811 | J24: 56.361 | K24: 50.6084
A25: E9026 | B25: Bomba para injeção de nata de cimento com capacidade de 2 MPa - 2,20 kW | C25: 31486.378 | D25: 2.5189 | E25: 0.5828 | F25: 0 | G25: 2.204 | H25: 0 | I25: 0 | J25: 5.3057 | K25: 3.1017
A26: E9028 | B26: Bomba de alta pressão para hidrojateamento com capacidade de 18 MPa - 5,20 kW | C26: 4505.2864 | D26: 0.3604 | E26: 0.0834 | F26: 0 | G26: 0.4055 | H26: 9.015 | I26: 23.953 | J26: 33.8173 | K26: 24.3968
A27: E9029 | B27: Conjunto bomba e macaco hidráulico para protensão com capacidade de 8.000 kN - 20 kW | C27: 128006.0337 | D27: 7.3146 | E27: 2.2566 | F27: 0 | G27: 7.3146 | H27: 0 | I27: 43.0811 | J27: 59.9669 | K27: 52.6523
A28: E9030 | B28: Bomba de protensão com leitura digital para tensionamento de estais - 3 kW | C28: 13841.9715 | D28: 0.791 | E28: 0.244 | F28: 0 | G28: 0.791 | H28: 0 | I28: 0 | J28: 1.826 | K28: 1.035
A29: E9031 | B29: Elevador de cremalheira com cabine simples, com capacidade de 1.500 kg e altura de até 100 m - 15 kW | C29: 332636.5509 | D29: 26.6109 | E29: 6.1571 | F29: 0 | G29: 23.2846 | H29: 0 | I29: 23.953 | J29: 80.0056 | K29: 56.721
A30: E9032 | B30: Equipamento para regulagem final de estais com até 37 cordoalhas - D = 15,7 mm - 20 kW | C30: 74641.2445 | D30: 4.2652 | E30: 1.3158 | F30: 0 | G30: 4.2652 | H30: 0 | I30: 43.0811 | J30: 52.9273 | K30: 48.6621
A31: E9033 | B31: Equipamento para regulagem final de estais de 38 a 55 cordoalhas - D = 15,7 mm - 30 kW | C31: 106630.3492 | D31: 6.0932 | E31: 1.8797 | F31: 0 | G31: 6.0932 | H31: 0 | I31: 43.0811 | J31: 57.1472 | K31: 51.054
A32: E9034 | B32: Equipamento para regulagem final de estais de 56 a 73 cordoalhas - D = 15,7 mm - 40 kW | C32: 159945.5239 | D32: 9.1397 | E32: 2.8196 | F32: 0 | G32: 9.1397 | H32: 0 | I32: 43.0811 | J32: 64.1801 | K32: 55.0404
A33: E9035 | B33: Equipamento para regulagem final de estais de 74 a 91 cordoalhas - D = 15,7 mm - 50 kW | C33: 213260.6985 | D33: 12.1863 | E33: 3.7595 | F33: 0 | G33: 12.1863 | H33: 0 | I33: 43.0811 | J33: 71.2132 | K33: 59.0269
A34: E9036 | B34: Grua fixa para alturas de 60 a 102 m, com alcance de 60 m com capacidade de 1.500 kg na ponta da lança - 37 kW | C34: 3214869.372 | D34: 160.7435 | E34: 56.6736 | F34: 0 | G34: 183.7068 | H34: 0 | I34: 43.0811 | J34: 444.205 | K34: 260.4982
A35: E9038 | B35: Macaco hidráulico monocordoalha para tensionamento de estais - 3 kW | C35: 17408.8961 | D35: 0.9948 | E35: 0.3069 | F35: 0 | G35: 0.9948 | H35: 0 | I35: 43.0811 | J35: 45.3776 | K35: 44.3828
A36: E9039 | B36: Máquina de solda por termofusão para tubos PEAD com gerador de 4 kW | C36: 117490.2124 | D36: 6.7137 | E36: 2.0712 | F36: 0 | G36: 6.7137 | H36: 4.0582 | I36: 43.0811 | J36: 62.6379 | K36: 51.866
A37: E9040 | B37: Serra mármore - 1,45 kW | C37: 458.3757 | D37: 0.0413 | E37: 0.0085 | F37: 0 | G37: 0.0229 | H37: 0 | I37: 0 | J37: 0.0727 | K37: 0.0498
A38: E9042 | B38: Trator sobre esteiras com lâmina - 97 kW | C38: 1308813.521 | D38: 50.8983 | E38: 22.4316 | F38: 0 | G38: 72.7119 | H38: 72.5131 | I38: 33.7702 | J38: 252.3251 | K38: 107.1001
A39: E9043 | B39: Embarcação de alumínio com comprimento de 6 m e motor de popa - 18,60 kW | C39: 25080.6672 | D39: 0.3919 | E39: 0.1478 | F39: 0 | G39: 0.4354 | H39: 36.8526 | I39: 39.2829 | J39: 77.1106 | K39: 39.8226
A40: E9044 | B40: Central de concreto com capacidade de 150 m³/h - dosadora e misturadora | C40: 2315863.694 | D40: 132.3351 | E40: 40.8254 | F40: 0 | G40: 115.7932 | H40: 0 | I40: 43.0811 | J40: 332.0348 | K40: 216.2416
A41: E9045 | B41: Conjunto bomba e macaco hidráulico para elevação com capacidade de 496 kN | C41: 60100.0669 | D41: 4.808 | E41: 1.1125 | F41: 0 | G41: 4.808 | H41: 5.7062 | I41: 43.0811 | J41: 59.5158 | K41: 49.0016
A42: E9046 | B42: Conjunto bomba e macaco hidráulico para elevação com capacidade de 929 kN | C42: 72967.3597 | D42: 5.8374 | E42: 1.3506 | F42: 0 | G42: 5.8374 | H42: 5.7062 | I42: 43.0811 | J42: 61.8127 | K42: 50.2691
A43: E9047 | B43: Conjunto bomba e macaco hidráulico para elevação com capacidade de 1.390 kN | C43: 103616.3864 | D43: 8.2893 | E43: 1.9179 | F43: 0 | G43: 8.2893 | H43: 5.7062 | I43: 43.0811 | J43: 67.2838 | K43: 53.2883
A44: E9048 | B44: Conjunto bomba e macaco hidráulico para elevação com capacidade de 1.859 kN | C44: 120280.246 | D44: 9.6224 | E44: 2.2264 | F44: 0 | G44: 9.6224 | H44: 5.7062 | I44: 43.0811 | J44: 70.2585 | K44: 54.9299
A45: E9049 | B45: Bomba de alta pressão para hidrojateamento com capacidade de 250 MPa - 72 kW | C45: 696547.3091 | D45: 55.7238 | E45: 12.8931 | F45: 0 | G45: 62.6893 | H45: 57.6688 | I45: 23.953 | J45: 212.928 | K45: 92.5699
A46: E9050 | B46: Guindaste móvel sobre pneus com 2 eixos com capacidade de 18 t - 97 kW | C46: 2812576.496 | D46: 140.6288 | E46: 49.5817 | F46: 0 | G46: 180.8085 | H46: 25.8975 | I46: 31.8029 | J46: 428.7194 | K46: 222.0134
A47: E9051 | B47: Máquina levantadora e posicionadora de via - 7,40 kW | C47: 758416.4158 | D47: 60.6733 | E47: 14.0383 | F47: 0 | G47: 53.0891 | H47: 10.2632 | I47: 23.953 | J47: 162.0169 | K47: 98.6646
A48: E9052 | B48: Empilhadeira a diesel com capacidade de 10 t - 82 kW | C48: 727031.8768 | D48: 58.1626 | E48: 13.4574 | F48: 0 | G48: 50.8922 | H48: 65.6783 | I48: 23.953 | J48: 212.1435 | K48: 95.573
A49: E9053 | B49: Perfuratriz hidráulica montada em flutuante - 32 kW | C49: 352717.8547 | D49: 11.0224 | E49: 2.2669 | F49: 0 | G49: 9.7977 | H49: 17.087 | I49: 29.2886 | J49: 69.4626 | K49: 42.5779
A50: E9054 | B50: Equipamento sobre forma-trilho para execução e acabamento de pavimento de concreto - 13,40 kW | C50: 1344613.576 | D50: 107.5691 | E50: 24.8888 | F50: 0 | G50: 67.2307 | H50: 18.5848 | I50: 23.953 | J50: 242.2264 | K50: 156.4109
A51: E9055 | B51: Guincho pneumático com capacidade de 2,5 t | C51: 524162.6733 | D51: 47.1746 | E51: 9.7023 | F51: 0 | G51: 26.2081 | H51: 0 | I51: 0 | J51: 83.085 | K51: 56.8769
A52: E9056 | B52: Plataforma autoelevatória de 12 x 24 m com capacidade de 150 t | C52: 841147.2471 | D52: 6.5715 | E52: 4.7304 | F52: 0 | G52: 14.6033 | H52: 0 | I52: 102.6951 | J52: 128.6003 | K52: 113.997
A53: E9057 | B53: Batelão sem propulsão com capacidade de 66 m³ | C53: 224935.5128 | D53: 1.7573 | E53: 1.265 | F53: 0 | G53: 2.9288 | H53: 0 | I53: 26.7839 | J53: 32.735 | K53: 29.8062
A54: E9058 | B54: Plataforma flutuante de 12 x 24 x 1,8 m com capacidade de 150 t | C54: 672743.8504 | D54: 5.2558 | E54: 3.7833 | F54: 0 | G54: 8.7597 | H54: 0 | I54: 26.7839 | J54: 44.5827 | K54: 35.823
A55: E9059 | B55: Plataforma autoelevatória de 12 x 24 m montada na obra com capacidade de 150 t | C55: 841147.2471 | D55: 6.5715 | E55: 4.7304 | F55: 0 | G55: 14.6033 | H55: 0 | I55: 102.6951 | J55: 128.6003 | K55: 113.997
A56: E9060 | B56: Perfuratriz pneumática rotopercussiva montada em flutuante com pressão de 0,70 MPa e capacidade de 2.500 gpm | C56: 32255.9661 | D56: 1.008 | E56: 0.2073 | F56: 0 | G56: 0.896 | H56: 0 | I56: 58.5772 | J56: 60.6885 | K56: 59.7925
A57: E9061 | B57: Lixadeira elétrica manual angular - 2 kW | C57: 1381.8136 | D57: 0.1105 | E57: 0.0256 | F57: 0 | G57: 0.0691 | H57: 0 | I57: 0 | J57: 0.2052 | K57: 0.1361
A58: E9062 | B58: Soprador de ar quente manual - 1,60 kW | C58: 4563.5123 | D58: 0.6085 | E58: 0.0939 | F58: 0 | G58: 0.3803 | H58: 0 | I58: 0 | J58: 1.0827 | K58: 0.7024
A59: E9063 | B59: Equipamento de estabilização dinâmica da via - 300 kW | C59: 24247945.64 | D59: 969.9178 | E59: 411.427 | F59: 0 | G59: 969.9178 | H59: 192.2292 | I59: 43.0811 | J59: 2586.5729 | K59: 1424.4259
A60: E9064 | B60: Transportador manual gerica com capacidade de 180 l | C60: 937.5929 | D60: 0.9376 | E60: 0.0578 | F60: 0 | G60: 0.4688 | H60: 0 | I60: 0 | J60: 1.4642 | K60: 0.9954
A61: E9065 | B61: Carro controle ferroviário - 186 kW | C61: 29526139.71 | D61: 1181.0456 | E61: 500.9848 | F61: 0 | G61: 1033.4149 | H61: 119.1821 | I61: 43.0811 | J61: 2877.7085 | K61: 1725.1115
A62: E9066 | B62: Grupo gerador - 14 kVA | C62: 67878.4864 | D62: 3.3939 | E62: 1.1966 | F62: 0 | G62: 2.4242 | H62: 11.16 | I62: 0 | J62: 18.1747 | K62: 4.5905
A63: E9067 | B63: Veículo ferroviário para capina química com capacidade de 12.000 l - 115 kW | C63: 1664232.003 | D63: 66.5693 | E63: 28.2379 | F63: 0 | G63: 41.6058 | H63: 73.6879 | I63: 23.953 | J63: 234.0539 | K63: 118.7602
A64: E9068 | B64: Perfuratriz hidráulica rotopercussiva para CCPH - 123 kW | C64: 3489712.825 | D64: 232.6475 | E64: 62.8003 | F64: 0 | G64: 232.6475 | H64: 98.5175 | I64: 33.7702 | J64: 660.383 | K64: 329.218
A65: E9069 | B65: Vibrador de imersão para concreto - 4,10 kW | C65: 3863.6867 | D65: 0.6182 | E65: 0.143 | F65: 0 | G65: 0.3864 | H65: 7.108 | I65: 0 | J65: 8.2556 | K65: 0.7612
A66: E9070 | B66: Ponte rolante com capacidade de 5 t e vão de até 15 m - 10 kW | C66: 306282.6037 | D66: 12.2513 | E66: 5.1969 | F66: 0 | G66: 7.6571 | H66: 0 | I66: 23.953 | J66: 49.0583 | K66: 41.4012
A67: E9071 | B67: Transportador manual carrinho de mão com capacidade de 80 l | C67: 445.4426 | D67: 0.4454 | E67: 0.0275 | F67: 0 | G67: 0.2227 | H67: 0 | I67: 0 | J67: 0.6956 | K67: 0.4729
A68: E9072 | B68: Martelo hidráulico vibratório com unidade hidráulica - 486 kW | C68: 2859350.813 | D68: 190.6234 | E68: 51.4564 | F68: 0 | G68: 166.7955 | H68: 389.2641 | I68: 43.0811 | J68: 841.2205 | K68: 285.1609
A69: E9073 | B69: Bomba de concreto rebocável com capacidade de 30 m³/h - 74 kW | C69: 457936.2037 | D69: 36.6349 | E69: 8.4764 | F69: 0 | G69: 36.6349 | H69: 75.0762 | I69: 23.953 | J69: 180.7754 | K69: 69.0643
A70: E9074 | B70: Tanque de estocagem de asfalto com agitadores de 60.000 l | C70: 816000 | D70: 34 | E70: 11.8001 | F70: 0 | G70: 21.25 | H70: 0 | I70: 0 | J70: 67.0501 | K70: 45.8001
A71: E9075 | B71: Trado cavadeira de 12" | C71: 126.1077 | D71: 0.0631 | E71: 0.0058 | F71: 0 | G71: 0.0315 | H71: 0 | I71: 0 | J71: 0.1004 | K71: 0.0689
A72: E9076 | B72: Equipamento para pintura eletrostática com cabine dupla de 7,00 kW e estufa de 80.000 kCal | C72: 163164.0882 | D72: 10.4891 | E72: 2.8763 | F72: 0 | G72: 5.8273 | H72: 0 | I72: 23.953 | J72: 43.1457 | K72: 37.3184
A73: E9077 | B73: Perfuratriz de circulação reversa tipo Wirth ou similar com unidade hidráulica (Power Pack) - 273 kW | C73: 4218875.758 | D73: 281.2584 | E73: 75.9222 | F73: 0 | G73: 281.2584 | H73: 145.7738 | I73: 33.7702 | J73: 817.983 | K73: 390.9508
A74: E9078 | B74: Treliça lançadeira com capacidade de carga de 100 a 120 t e vão máximo de 45 m - 110 kW | C74: 3510500 | D74: 93.6133 | E74: 57.7594 | F74: 0 | G74: 58.5083 | H74: 0 | I74: 43.0811 | J74: 252.9621 | K74: 194.4538
A75: E9079 | B75: Bomba submersível com capacidade de 360 m³/h - 23 kW | C75: 179172.3424 | D75: 14.3338 | E75: 3.3165 | F75: 0 | G75: 12.5421 | H75: 0 | I75: 0 | J75: 30.1924 | K75: 17.6503
A76: E9080 | B76: Carrelone com capacidade máxima de 70 t | C76: 1766402.012 | D76: 79.4881 | E76: 29.9714 | F76: 0 | G76: 44.1601 | H76: 0 | I76: 23.953 | J76: 177.5726 | K76: 133.4125
A77: E9081 | B77: Fischietti simples com capacidade de 70 t | C77: 95285 | D77: 4.2878 | E77: 1.6167 | F77: 0 | G77: 2.3821 | H77: 0 | I77: 23.953 | J77: 32.2396 | K77: 29.8575
A78: E9083 | B78: Vagão fechado FLT com capacidade de 99 t | C78: 800000 | D78: 12.6667 | E78: 12.7513 | F78: 0 | G78: 6.6667 | H78: 0 | I78: 0 | J78: 32.0847 | K78: 25.418
A79: E9084 | B79: Vagão tanque convencional TCT com capacidade de 97 t e 103.000 l | C79: 1195000 | D79: 18.9208 | E79: 19.0473 | F79: 0 | G79: 9.9583 | H79: 0 | I79: 0 | J79: 47.9264 | K79: 37.9681
A80: E9085 | B80: Vagão gôndola GDE com capacidade de 93,5 t / 29 m³ | C80: 620000 | D80: 9.8167 | E80: 9.8823 | F80: 0 | G80: 5.1667 | H80: 0 | I80: 0 | J80: 24.8657 | K80: 19.699
A81: E9086 | B81: Bomba de concreto rebocável com capacidade de 41 m³/h - 74 kW | C81: 508086.2037 | D81: 40.6469 | E81: 9.4047 | F81: 0 | G81: 40.6469 | H81: 75.0762 | I81: 23.953 | J81: 189.7277 | K81: 74.0046
A82: E9089 | B82: Roçadeira costal - 1,40 kW | C82: 2838.49 | D82: 0.4258 | E82: 0.0584 | F82: 0 | G82: 0.3312 | H82: 7.6281 | I82: 0 | J82: 8.4435 | K82: 0.4842
A83: E9093 | B83: Veículo leve - 53 kW (sem motorista) | C83: 70423.9311 | D83: 4.2254 | E83: 1.3035 | F83: 0.5282 | G83: 4.2254 | H83: 23.6272 | I83: 0 | J83: 33.9097 | K83: 6.0571
A84: E9094 | B84: Guindaste móvel sobre pneus com 6 eixos com capacidade máxima de 350 t - 450 kW | C84: 16332169.21 | D84: 816.6085 | E84: 287.9128 | F84: 116.6584 | G84: 1049.9252 | H84: 120.1433 | I84: 31.8029 | J84: 2423.0511 | K84: 1252.9826
A85: E9095 | B85: Guindaste móvel sobre pneus com 8 eixos com capacidade máxima de 500 t - 500 kW | C85: 28660408.1 | D85: 1433.0204 | E85: 505.2421 | F85: 204.7172 | G85: 1842.4548 | H85: 133.4925 | I85: 31.8029 | J85: 4150.7299 | K85: 2174.7826
A86: E9096 | B86: Minicarregadeira de pneus - 45,50 kW | C86: 401277.1199 | D86: 28.0894 | E86: 7.4276 | F86: 0 | G86: 28.0894 | H86: 60.7391 | I86: 33.7702 | J86: 158.1157 | K86: 69.2872
A87: E9101 | B87: Removedora de faixas de sinalização viária - 9,69 kW | C87: 49302.5618 | D87: 3.9442 | E87: 0.9126 | F87: 0 | G87: 3.4512 | H87: 16.7991 | I87: 0 | J87: 25.1071 | K87: 4.8568
A88: E9102 | B88: Extrusora para sarjeta de concreto - 10,44 kW | C88: 73158.9707 | D88: 5.8527 | E88: 1.3542 | F88: 0 | G88: 5.1211 | H88: 8.362 | I88: 23.953 | J88: 44.643 | K88: 31.1599
A89: E9103 | B89: Extrusora para meio-fio de concreto - 10,44 kW | C89: 62715.8509 | D89: 5.0173 | E89: 1.1609 | F89: 0 | G89: 4.3901 | H89: 8.362 | I89: 23.953 | J89: 42.8833 | K89: 30.1312
A90: E9105 | B90: Embarcação empurradora multipropósito - 2 x 186 kW | C90: 4997303.263 | D90: 65.0691 | E90: 28.9955 | F90: 0 | G90: 144.5979 | H90: 377.41 | I90: 135.4673 | J90: 751.5398 | K90: 229.5319
A91: E9106 | B91: Balsa de convés com capacidade de 200 t | C91: 1925857.575 | D91: 15.0458 | E91: 10.8304 | F91: 0 | G91: 25.0763 | H91: 0 | I91: 26.7839 | J91: 77.7364 | K91: 52.6601
A92: E9107 | B92: Compactador manual com soquete vibratório - 2,24 kW | C92: 9897.94 | D92: 0.6599 | E92: 0.1781 | F92: 0 | G92: 0.6599 | H92: 3.8834 | I92: 0 | J92: 5.3813 | K92: 0.838
A93: E9108 | B93: Soldadora de trilho por caldeamento na via - 400 kW | C93: 9036682.155 | D93: 144.5869 | E93: 144.9665 | F93: 0 | G93: 180.7336 | H93: 256.3056 | I93: 86.1622 | J93: 812.7548 | K93: 375.7156
A94: E9110 | B94: Escavadeira hidráulica sobre esteiras para rocha com caçamba com capacidade de 1,56 m³ - 118 kW | C94: 1058002.338 | D94: 105.8002 | E94: 20.9825 | F94: 0 | G94: 105.8002 | H94: 119.7161 | I94: 33.7702 | J94: 386.0692 | K94: 160.5529
A95: E9111 | B95: Jateador abrasivo úmido com capacidade de 350 kg de abrasivo | C95: 245830.733 | D95: 22.1248 | E95: 4.5503 | F95: 0 | G95: 22.1248 | H95: 0 | I95: 23.953 | J95: 72.7529 | K95: 50.6281
A96: E9112 | B96: Sinalizador direcional móvel com sistema fotovoltaico de energia e montado em chassi sobre pneus | C96: 21428.9002 | D96: 1.9286 | E96: 0.3966 | F96: 0 | G96: 1.0714 | H96: 0 | I96: 0 | J96: 3.3966 | K96: 2.3252
A97: E9113 | B97: Painel de Mensagem Variável - PMV móvel, com sistema fotovoltaico de energia e montado em chassi sobre pneus | C97: 147006.2037 | D97: 13.2306 | E97: 2.7211 | F97: 0 | G97: 7.3503 | H97: 0 | I97: 0 | J97: 23.302 | K97: 15.9517
A98: E9116 | B98: Semáforo móvel com 3 lentes e bateria - D = 200 mm | C98: 7517.0017 | D98: 0.6765 | E98: 0.1391 | F98: 0 | G98: 0.3759 | H98: 0 | I98: 0 | J98: 1.1915 | K98: 0.8156
A99: E9117 | B99: Carregadeira de pneus para rocha com capacidade de 2,50 m³ - 105 kW | C99: 976809.2269 | D99: 97.6809 | E99: 19.3722 | F99: 0 | G99: 97.6809 | H99: 106.527 | I99: 33.7702 | J99: 355.0312 | K99: 150.8233
A100: E9118 | B100: Cortadora de pavimento com disco diamantado de 450 a 1.500 mm - 55,40 kW | C100: 485922.6191 | D100: 38.8738 | E100: 8.9944 | F100: 0 | G100: 38.8738 | H100: 44.3729 | I100: 23.953 | J100: 155.0679 | K100: 71.8212
A101: E9119 | B101: Minicarregadeira sobre pneus com valetadeira - 55,40 kW | C101: 603072.8639 | D101: 42.2151 | E101: 11.1629 | F101: 0 | G101: 42.2151 | H101: 73.9548 | I101: 33.7702 | J101: 203.3181 | K101: 87.1482
A102: E9120 | B102: Equipamento de cravação sobre esteira para geodreno com haste para profundidade de até 20 m - 258 kW | C102: 3254368.719 | D102: 227.8058 | E102: 60.2384 | F102: 0 | G102: 227.8058 | H102: 179.0935 | I102: 23.953 | J102: 718.8965 | K102: 311.9972
A103: E9122 | B103: Perfuratriz tipo Bottom Feed para coluna de brita - 194 kW | C103: 4500134.649 | D103: 300.009 | E103: 80.9837 | F103: 0 | G103: 300.009 | H103: 103.5902 | I103: 33.7702 | J103: 818.3621 | K103: 414.7629
A104: E9125 | B104: Veículo tipo van furgão com capacidade de 1,54 t - 93 kW | C104: 233051.048 | D104: 11.6526 | E104: 4.1939 | F104: 1.6993 | G104: 11.6526 | H104: 24.8296 | I104: 27.0287 | J104: 81.0567 | K104: 44.5745
A105: E9126 | B105: Draga backhoe com capacidade de 7 m³ - 1.000 kW | C105: 82197311.58 | D105: 924.7198 | E105: 665.6441 | F105: 0 | G105: 2054.9328 | H105: 1014.543 | I105: 67.4009 | J105: 4727.2406 | K105: 1657.7648
A106: E9127 | B106: Escavadeira hidráulica com martelo hidráulico de 520 kg - 75 kW | C106: 1100605.967 | D106: 125.7835 | E106: 21.8274 | F106: 0 | G106: 157.2294 | H106: 52.0621 | I106: 33.7702 | J106: 390.6726 | K106: 181.3811
A107: E9134 | B107: Miniônibus com capacidade para 30 passageiros - 111 kW | C107: 616773.8364 | D107: 26.4332 | E107: 10.8728 | F107: 4.4055 | G107: 39.6497 | H107: 112.6143 | I107: 27.8522 | J107: 221.8277 | K107: 69.5637
A108: E9141 | B108: Rebarbador hidráulico com bomba manual com capacidade de força de 9.000 kgf | C108: 93329.6163 | D108: 7.4664 | E108: 1.7275 | F108: 0 | G108: 4.6665 | H108: 0 | I108: 0 | J108: 13.8604 | K108: 9.1939
A109: E9144 | B109: Pórtico metálico rolante com talha com capacidade de 5 t - 10 kW | C109: 286750.8745 | D109: 11.47 | E109: 4.8654 | F109: 0 | G109: 7.1688 | H109: 0 | I109: 23.953 | J109: 47.4572 | K109: 40.2884
A110: E9148 | B110: Macaco de protensão de fios com bomba - 3,72 kW | C110: 101447.3164 | D110: 5.797 | E110: 1.7884 | F110: 0 | G110: 5.797 | H110: 0 | I110: 43.0811 | J110: 56.4635 | K110: 50.6665
A111: E9149 | B111: Máquina de aplicação e extração de grampo elástico tipo Pandrol - 6,70 kW | C111: 264423.0059 | D111: 21.1538 | E111: 4.8945 | F111: 0 | G111: 21.1538 | H111: 9.2924 | I111: 0 | J111: 56.4945 | K111: 26.0483
A112: E9151 | B112: Britador de mandíbulas móvel sobre esteiras, sem peneira, com capacidade de 140 m³/h - 170 kW | C112: 2939438.58 | D112: 167.9679 | E112: 51.8181 | F112: 0 | G112: 167.9679 | H112: 163.3948 | I112: 43.0811 | J112: 594.2298 | K112: 262.8671
A113: E9152 | B113: Ferramenta de fixação à pólvora de ação direta | C113: 1013.1638 | D113: 0.0861 | E113: 0.0188 | F113: 0 | G113: 0.0811 | H113: 0 | I113: 0 | J113: 0.186 | K113: 0.1049
A114: E9153 | B114: Ferramenta de fixação à pólvora e sistema à pistão | C114: 937.396 | D114: 0.0797 | E114: 0.0174 | F114: 0 | G114: 0.075 | H114: 0 | I114: 0 | J114: 0.1721 | K114: 0.0971
A115: E9154 | B115: Equipamento para selagem com material asfáltico rebocável com capacidade de 370 l - 35 kW | C115: 466965.0498 | D115: 30.0192 | E115: 8.2319 | F115: 0 | G115: 10.0064 | H115: 28.0334 | I115: 23.953 | J115: 100.2439 | K115: 62.2041
A116: E9155 | B116: Caldeira de asfalto rebocável com capacidade de 600 l - 5,20 kW | C116: 130630.7739 | D116: 8.3977 | E116: 2.3028 | F116: 0 | G116: 2.7992 | H116: 3.8873 | I116: 0 | J116: 17.387 | K116: 10.7005
A117: E9156 | B117: Soprador de ar costal - 2,6 kW | C117: 2329.984 | D117: 0.3728 | E117: 0.0863 | F117: 0 | G117: 0.3262 | H117: 4.5075 | I117: 0 | J117: 5.2928 | K117: 0.4591
A118: E9157 | B118: Locomotiva diesel-elétrica CC - bitola métrica - 2.237 kW | C118: 8250000 | D118: 132 | E118: 132.3465 | F118: 0 | G118: 165 | H118: 1433.3891 | I118: 32.7792 | J118: 1895.5148 | K118: 297.1257
A119: E9158 | B119: Locomotiva diesel-elétrica CC - bitola larga - 2.237 kW | C119: 8250000 | D119: 132 | E119: 132.3465 | F119: 0 | G119: 165 | H119: 1433.3891 | I119: 32.7792 | J119: 1895.5148 | K119: 297.1257
A120: E9159 | B120: Vagão plataforma PNE com capacidade de 82 t - bitola métrica | C120: 736000 | D120: 11.6533 | E120: 11.7312 | F120: 0 | G120: 6.1333 | H120: 0 | I120: 0 | J120: 29.5178 | K120: 23.3845
A121: E9160 | B121: Vagão plataforma PNT com capacidade de 98 t - bitola larga | C121: 842000 | D121: 13.3317 | E121: 13.4208 | F121: 0 | G121: 7.0167 | H121: 0 | I121: 0 | J121: 33.7692 | K121: 26.7525
A122: E9161 | B122: Vagão fechado com porta para carga e descarga de paletes FLD com capacidade de 64 t - bitola métrica | C122: 730000 | D122: 11.5583 | E122: 11.6356 | F122: 0 | G122: 6.0833 | H122: 0 | I122: 0 | J122: 29.2772 | K122: 23.1939
A123: E9162 | B123: Vagão fechado com porta para carga e descarga de paletes FLT com capacidade de 99 t - bitola larga | C123: 800000 | D123: 12.6667 | E123: 12.7513 | F123: 0 | G123: 6.6667 | H123: 0 | I123: 0 | J123: 32.0847 | K123: 25.418
A124: E9163 | B124: Vagão hopper aberto com descarga automática HNE com capacidade de 45 m³ - bitola métrica | C124: 880000 | D124: 13.9333 | E124: 14.0265 | F124: 0 | G124: 7.3333 | H124: 0 | I124: 0 | J124: 35.2931 | K124: 27.9598
A125: E9164 | B125: Vagão hopper aberto com descarga automática HNT com capacidade de 63 m³ - bitola larga | C125: 915000 | D125: 14.4875 | E125: 14.5843 | F125: 0 | G125: 7.625 | H125: 0 | I125: 0 | J125: 36.6968 | K125: 29.0718
A126: E9167 | B126: Equipamento para carga e descarga de TLS de até 250 m - 90 kW | C126: 2813415 | D126: 45.0146 | E126: 45.1328 | F126: 0 | G126: 56.2683 | H126: 57.6688 | I126: 43.0811 | J126: 247.1656 | K126: 133.2285
A127: E9168 | B127: Carregadeira de pneus com implemento de garfo - 195 kW | C127: 1709491.931 | D127: 119.6644 | E127: 31.6427 | F127: 0 | G127: 119.6644 | H127: 83.2993 | I127: 33.7702 | J127: 388.041 | K127: 185.0773
A128: E9200 | B128: Carregadeira de pneus para rocha com capacidade de 2,50 m³ - 105 kW com periculosidade | C128: 976809.2269 | D128: 97.6809 | E128: 19.3722 | F128: 0 | G128: 97.6809 | H128: 106.527 | I128: 42.0528 | J128: 363.3138 | K128: 159.1059
A129: E9203 | B129: Escavadeira hidráulica com martelo hidráulico de 1.700 kg - 103 kW com periculosidade | C129: 1906983.132 | D129: 217.9409 | E129: 37.8196 | F129: 0 | G129: 272.4262 | H129: 71.4986 | I129: 42.0528 | J129: 641.7381 | K129: 297.8133
A130: E9204 | B130: Perfuratriz sobre esteiras - 145 kW com periculosidade | C130: 1675283.392 | D130: 111.6856 | E130: 30.1481 | F130: 0 | G130: 111.6856 | H130: 116.1385 | I130: 42.0528 | J130: 411.7106 | K130: 183.8865
A131: E9205 | B131: Equipamento de corte a plasma CNC - 12.000 x 5.500 mm - 19,5 kW | C131: 1055300.914 | D131: 84.4241 | E131: 19.5336 | F131: 0 | G131: 63.3181 | H131: 0 | I131: 0 | J131: 167.2758 | K131: 103.9577
A132: E9206 | B132: Equipamento de solda MIG automática com acessórios - 14,6 kVA | C132: 83448.4205 | D132: 6.6759 | E132: 1.5446 | F132: 0 | G132: 6.6759 | H132: 0 | I132: 0 | J132: 14.8964 | K132: 8.2205
A133: E9207 | B133: Máquina de solda elétrica retificadora 425 A - 18,70 kW | C133: 5743.1428 | D133: 0.4595 | E133: 0.1063 | F133: 0 | G133: 0.4595 | H133: 0 | I133: 0 | J133: 1.0253 | K133: 0.5658
A134: E9209 | B134: Martelete perfurador/rompedor a ar comprimido de 25 kg para rocha, com insalubridade, com capacidade de 2.040 gpm | C134: 26711.0736 | D134: 2.1369 | E134: 0.4944 | F134: 0 | G134: 2.1369 | H134: 0 | I134: 30.5716 | J134: 35.3398 | K134: 33.2029
A135: E9213 | B135: Jumbo eletro-hidráulico com 3 braços - 155 kW/237 kW com periculosidade | C135: 11609091.63 | D135: 773.9394 | E135: 208.9153 | F135: 0 | G135: 967.4243 | H135: 173.8072 | I135: 54.2075 | J135: 2178.2937 | K135: 1037.0622
A136: E9231 | B136: Maçarico lança-chamas a gás liquefeito de petróleo (GLP) | C136: 86.171 | D136: 0.0069 | E136: 0.0016 | F136: 0 | G136: 0.0069 | H136: 0 | I136: 0 | J136: 0.0154 | K136: 0.0085
A137: E9242 | B137: Estação transmissora de superfície para televisionamento | C137: 12113.2512 | D137: 0.7787 | E137: 0.2135 | F137: 0 | G137: 0.4326 | H137: 0 | I137: 0 | J137: 1.4248 | K137: 0.9922
A138: E9243 | B138: Câmara hiperbárica com filtro, serpentina e reservatório de ar para mergulho raso - D = 1,80 m e H = 2,22 m. | C138: 421749.4209 | D138: 7.3806 | E138: 6.8308 | F138: 0 | G138: 10.5437 | H138: 0 | I138: 53.0176 | J138: 77.7727 | K138: 67.229
A139: E9244 | B139: Estação transmissora de superfície para comunicação sem fio | C139: 38565.8635 | D139: 2.4792 | E139: 0.6799 | F139: 0 | G139: 1.3774 | H139: 0 | I139: 0 | J139: 4.5365 | K139: 3.1591
A140: E9245 | B140: Estação transmissora de superfície para comunicação com fio | C140: 6463.8225 | D140: 0.4155 | E140: 0.1139 | F140: 0 | G140: 0.2309 | H140: 0 | I140: 0 | J140: 0.7603 | K140: 0.5294
A141: E9246 | B141: Painel de controle de ar com manômetros e pneufatômetros | C141: 12404.1952 | D141: 0.7974 | E141: 0.2187 | F141: 0 | G141: 0.443 | H141: 0 | I141: 0 | J141: 1.4591 | K141: 1.0161
A142: E9247 | B142: Sistema de Sino aberto (sinete) para mergulho até 50 m - 33,50 kW | C142: 550152.4773 | D142: 14.6707 | E142: 9.0518 | F142: 0 | G142: 14.6707 | H142: 0 | I142: 53.0176 | J142: 91.4108 | K142: 76.7401
A143: E9248 | B143: Sistema de ar comprimido para mergulho até 30 m com pressão de trabalho de 1,4 MPa - 7,46 kW | C143: 50790.2227 | D143: 3.386 | E143: 0.914 | F143: 0 | G143: 3.386 | H143: 6.7718 | I143: 0 | J143: 14.4578 | K143: 4.3
A144: E9249 | B144: Sistema de ar comprimido para mergulho até 50 m com pressão de trabalho de 1,7 MPa - 16,18 kW | C144: 78694.0046 | D144: 5.2463 | E144: 1.4162 | F144: 0 | G144: 5.2463 | H144: 14.6874 | I144: 0 | J144: 26.5962 | K144: 6.6625
A145: E9251 | B145: Fonte de plasma para corte manual - 65A - 15 kW | C145: 32605.9438 | D145: 2.6085 | E145: 0.6035 | F145: 0 | G145: 2.6085 | H145: 0 | I145: 0 | J145: 5.8205 | K145: 3.212
A146: E9252 | B146: Serra de esquadria com braço telescópico - D = 250 mm (10") - 1,80 kW | C146: 5065.15 | D146: 0.4559 | E146: 0.0938 | F146: 0 | G146: 0.2533 | H146: 0 | I146: 0 | J146: 0.803 | K146: 0.5497
A147: E9253 | B147: Rebordeadeira diâmetro máximo 3,00 m - 4,85 kW | C147: 65545.64 | D147: 2.6218 | E147: 1.1121 | F147: 0 | G147: 2.2941 | H147: 0 | I147: 0 | J147: 6.028 | K147: 3.7339
A148: E9254 | B148: Dobradeira viradeira manual comprimento máximo de dobra de até 2.000 mm | C148: 15886.3294 | D148: 0.6355 | E148: 0.2696 | F148: 0 | G148: 0.556 | H148: 0 | I148: 0 | J148: 1.4611 | K148: 0.9051
A149: E9255 | B149: Fonte de plasma para corte manual - 45A - 10 kW | C149: 21773.5438 | D149: 1.7419 | E149: 0.403 | F149: 0 | G149: 1.7419 | H149: 0 | I149: 0 | J149: 3.8868 | K149: 2.1449
A150: E9256 | B150: Equipamento para pintura com cal rebocável com dois bicos aplicadores e capacidade de 2.200 l | C150: 65434.719 | D150: 3.7391 | E150: 1.1535 | F150: 0 | G150: 3.7391 | H150: 0 | I150: 23.953 | J150: 32.5847 | K150: 28.8456
A151: E9259 | B151: Ventilador centrífugo média pressão com capacidade de 38 m³/min - 2,21 kW | C151: 17180 | D151: 1.5462 | E151: 0.318 | F151: 0 | G151: 1.0308 | H151: 0 | I151: 0 | J151: 2.895 | K151: 1.8642
A152: E9260 | B152: Detector de gases com bomba elétrica para espaço confinado | C152: 4049 | D152: 0.3239 | E152: 0.0749 | F152: 0 | G152: 0.2025 | H152: 0 | I152: 0 | J152: 0.6013 | K152: 0.3988
A153: E9261 | B153: Equipamento de pintura com pistola airless - 0,90 kW | C153: 2439.45 | D153: 0.2196 | E153: 0.0452 | F153: 0 | G153: 0.122 | H153: 0 | I153: 0 | J153: 0.3868 | K153: 0.2648
A154: E9262 | B154: Escova rotativa com cerdas de aço para tratamento de superfície - 0,91 kW | C154: 19452 | D154: 1.5562 | E154: 0.3601 | F154: 0 | G154: 0.9726 | H154: 0 | I154: 23.953 | J154: 26.8419 | K154: 25.8693
A155: E9263 | B155: Tripé com guincho para espaço confinado | C155: 9781.53 | D155: 0.7825 | E155: 0.1811 | F155: 0 | G155: 0.5869 | H155: 0 | I155: 0 | J155: 1.5505 | K155: 0.9636
A156: E9264 | B156: Respirador purificador de ar motorizado | C156: 8510.04 | D156: 0.6808 | E156: 0.1575 | F156: 0 | G156: 0.4255 | H156: 0 | I156: 0 | J156: 1.2638 | K156: 0.8383
A157: E9265 | B157: Respirador de adução de ar tipo linha de ar comprimido para jateamento | C157: 17371.8396 | D157: 1.3897 | E157: 0.3216 | F157: 0 | G157: 0.8686 | H157: 0 | I157: 0 | J157: 2.5799 | K157: 1.7113
A158: E9267 | B158: Exaustor centrífugo alta pressão com capacidade de 35 m³/min - 1,47 kW | C158: 5444.14 | D158: 0.49 | E158: 0.1008 | F158: 0 | G158: 0.3266 | H158: 0 | I158: 0 | J158: 0.9174 | K158: 0.5908
A159: E9501 | B159: Ventilador axial para ventilação forçada com velocidade de saída de 32,8 m/s - D = 1.000 mm - 30 kW | C159: 440742.596 | D159: 39.6668 | E159: 8.1581 | F159: 0 | G159: 26.4446 | H159: 0 | I159: 0 | J159: 74.2695 | K159: 47.8249
A160: E9502 | B160: Bate-estaca de gravidade para 6 t - 119 kW | C160: 938230.532 | D160: 53.6132 | E160: 16.5397 | F160: 0 | G160: 40.2099 | H160: 82.6052 | I160: 33.7702 | J160: 226.7382 | K160: 103.9231
A161: E9503 | B161: Guilhotina hidráulica 16 x 6.100 mm - 30 kW | C161: 1280453.19 | D161: 51.2181 | E161: 21.7261 | F161: 0 | G161: 44.8159 | H161: 0 | I161: 23.953 | J161: 141.7131 | K161: 96.8972
A162: E9505 | B162: Prensa dobradeira capacidade 320 t - comprimento até 3.100 mm - 30 kW | C162: 830365.8599 | D162: 33.2146 | E162: 14.0892 | F162: 0 | G162: 29.0628 | H162: 0 | I162: 23.953 | J162: 100.3196 | K162: 71.2568
A163: E9507 | B163: Plotadora de recorte com computador e programa computacional | C163: 87472.4335 | D163: 13.1209 | E163: 1.799 | F163: 0 | G163: 8.7472 | H163: 0 | I163: 0 | J163: 23.6671 | K163: 14.9199
A164: E9510 | B164: Ventilador centrífugo baixa pressão com capacidade de 58 m³/min - 3,68 kW | C164: 13118.0506 | D164: 1.1806 | E164: 0.2428 | F164: 0 | G164: 0.7871 | H164: 0 | I164: 0 | J164: 2.2105 | K164: 1.4234
A165: E9511 | B165: Carregadeira de pneus com capacidade de 3,40 m³ - 195 kW | C165: 2023391.25 | D165: 141.6374 | E165: 37.453 | F165: 0 | G165: 141.6374 | H165: 83.2993 | I165: 33.7702 | J165: 437.7973 | K165: 212.8606
A166: E9512 | B166: Veículo leve - 53 kW | C166: 70423.9311 | D166: 4.2254 | E166: 1.3035 | F166: 0.5282 | G166: 4.2254 | H166: 23.6272 | I166: 27.0287 | J166: 60.9384 | K166: 33.0858
A167: E9513 | B167: Compressor de ar portátil de 160,46 l/s (340 PCM) - 81 kW | C167: 313043.2182 | D167: 20.8695 | E167: 5.6335 | F167: 0 | G167: 20.8695 | H167: 73.5277 | I167: 0 | J167: 120.9002 | K167: 26.503
A168: E9514 | B168: Distribuidor de agregados sobre pneus autopropelido - 130 kW | C168: 924224.6307 | D168: 52.8128 | E168: 16.2928 | F168: 0 | G168: 46.2112 | H168: 131.8906 | I168: 33.7702 | J168: 280.9776 | K168: 102.8758
A169: E9515 | B169: Escavadeira hidráulica sobre esteiras com caçamba com capacidade de 1,56 m³ - 118 kW | C169: 1058002.338 | D169: 74.0602 | E169: 19.5836 | F169: 0 | G169: 74.0602 | H169: 81.911 | I169: 33.7702 | J169: 283.3852 | K169: 127.414
A170: E9516 | B170: Perfuratriz hidráulica sobre esteiras - 283 kW | C170: 4968207.497 | D170: 331.2138 | E170: 89.407 | F170: 0 | G170: 331.2138 | H170: 151.1135 | I170: 33.7702 | J170: 936.7183 | K170: 454.391
A171: E9518 | B171: Grade de 24 discos rebocável de D = 60 cm (24") | C171: 40575.562 | D171: 2.6084 | E171: 0.7153 | F171: 0 | G171: 1.4491 | H171: 0 | I171: 0 | J171: 4.7728 | K171: 3.3237
A172: E9519 | B172: Betoneira com motor a gasolina com capacidade de 600 l - 10 kW | C172: 34345.6626 | D172: 2.7477 | E172: 0.6357 | F172: 0 | G172: 2.0607 | H172: 17.3366 | I172: 23.953 | J172: 46.7337 | K172: 27.3364
A173: E9521 | B173: Grupo gerador - 3,2 kVA | C173: 3435.4279 | D173: 0.1718 | E173: 0.0606 | F173: 0 | G173: 0.1227 | H173: 4.1211 | I173: 0 | J173: 4.4762 | K173: 0.2324
A174: E9522 | B174: Caldeira de asfalto rebocável com capacidade de 1.500 l - 6,5 kW | C174: 173629.9369 | D174: 11.1619 | E174: 3.0608 | F174: 0 | G174: 3.7206 | H174: 4.8591 | I174: 0 | J174: 22.8024 | K174: 14.2227
A175: E9523 | B175: Motoscraper - 304 kW | C175: 5511158.878 | D175: 259.3487 | E175: 95.0108 | F175: 0 | G175: 291.7672 | H175: 259.723 | I175: 33.7702 | J175: 939.6199 | K175: 388.1297
A176: E9524 | B176: Motoniveladora - 93 kW | C176: 1338384.948 | D176: 66.9192 | E176: 23.5938 | F176: 0 | G176: 86.039 | H176: 74.4888 | I176: 33.7702 | J176: 284.811 | K176: 124.2832
A177: E9525 | B177: Ponte rolante com capacidade de 15 t e vão de até 15 m - 20 kW | C177: 3369751.602 | D177: 134.7901 | E177: 57.1763 | F177: 0 | G177: 84.2438 | H177: 0 | I177: 47.906 | J177: 324.1162 | K177: 239.8724
A178: E9526 | B178: Retroescavadeira de pneus - capacidade da caçamba da pá-carregadeira de 0,76 m³ e da retroescavadeira de 0,29 m³ - 58 kW | C178: 457732.1958 | D178: 32.0413 | E178: 8.4726 | F178: 0 | G178: 32.0413 | H178: 40.2613 | I178: 33.7702 | J178: 146.5867 | K178: 74.2841
A179: E9527 | B179: Martelete perfurador/rompedor a ar comprimido de 25 kg para rocha com capacidade de 2.040 gpm | C179: 26711.0736 | D179: 2.1369 | E179: 0.4944 | F179: 0 | G179: 2.1369 | H179: 0 | I179: 23.953 | J179: 28.7212 | K179: 26.5843
A180: E9528 | B180: Empilhadeira a diesel com capacidade de 4 t - 60 kW | C180: 479795.08 | D180: 38.3836 | E180: 8.881 | F180: 0 | G180: 33.5857 | H180: 48.0573 | I180: 23.953 | J180: 152.8606 | K180: 71.2176
A181: E9529 | B181: Jateador para estruturas metálicas com transportador a roletes - 22 kW | C181: 4094966.74 | D181: 272.9978 | E181: 73.6923 | F181: 0 | G181: 204.7483 | H181: 0 | I181: 23.953 | J181: 575.3914 | K181: 370.6431
A182: E9530 | B182: Rolo compactador liso vibratório autopropelido por pneus de 11 t - 97 kW | C182: 855102.0558 | D182: 57.0068 | E182: 15.3883 | F182: 0 | G182: 57.0068 | H182: 82.8721 | I182: 33.7702 | J182: 246.0442 | K182: 106.1653
A183: E9532 | B183: Equipamento de solda MIG com acessórios - 14,6 kVA | C183: 80216.9787 | D183: 6.4174 | E183: 1.4848 | F183: 0 | G183: 6.4174 | H183: 0 | I183: 0 | J183: 14.3196 | K183: 7.9022
A184: E9535 | B184: Serra circular com bancada - D = 30 cm - 4 kW | C184: 6847.8836 | D184: 0.6163 | E184: 0.1268 | F184: 0 | G184: 0.3424 | H184: 0 | I184: 23.953 | J184: 25.0385 | K184: 24.6961
A185: E9536 | B185: Embarcação de transporte de pessoal e apoio logístico - 30 kW | C185: 120653.0488 | D185: 1.8852 | E185: 0.7108 | F185: 0 | G185: 2.0947 | H185: 59.4396 | I185: 39.2829 | J185: 103.4132 | K185: 41.8789
A186: E9538 | B186: Conjunto vibratório para meio tubo de concreto com encaixe PB e 3 jogos de fôrmas - D = 0,30 m - 2,20 kW | C186: 15851.732 | D186: 2.1136 | E186: 0.489 | F186: 0 | G186: 1.5852 | H186: 0 | I186: 0 | J186: 4.1878 | K186: 2.6026
A187: E9539 | B187: Equipamento de batimetria monofeixe | C187: 98075.7501 | D187: 6.3049 | E187: 1.7289 | F187: 0 | G187: 3.5027 | H187: 0 | I187: 38.3925 | J187: 49.929 | K187: 46.4263
A188: E9540 | B188: Trator sobre esteiras com lâmina - 127 kW | C188: 1701948.017 | D188: 66.1869 | E188: 29.1695 | F188: 0 | G188: 94.5527 | H188: 94.9399 | I188: 33.7702 | J188: 318.6192 | K188: 129.1266
A189: E9541 | B189: Trator sobre esteiras com lâmina - 259 kW | C189: 4776357.789 | D189: 185.7472 | E189: 81.8615 | F189: 0 | G189: 265.3532 | H189: 193.6175 | I189: 33.7702 | J189: 760.3496 | K189: 301.3789
A190: E9543 | B190: Compressor de ar respirável com capacidade de até 35 MPa e 3,58 l/s - 5,52 kW | C190: 50228.2666 | D190: 3.3486 | E190: 0.9039 | F190: 0 | G190: 3.3486 | H190: 0 | I190: 0 | J190: 7.6011 | K190: 4.2525
A191: E9544 | B191: Vassoura mecânica rebocável com largura de 2,44 m | C191: 66959.9079 | D191: 6.0264 | E191: 1.2394 | F191: 0 | G191: 4.0176 | H191: 0 | I191: 0 | J191: 11.2834 | K191: 7.2658
A192: E9545 | B192: Vibroacabadora de asfalto sobre esteiras - 82 kW | C192: 3646987.629 | D192: 182.3494 | E192: 64.2912 | F192: 0 | G192: 234.4492 | H192: 83.1925 | I192: 43.0811 | J192: 607.3634 | K192: 289.7217
A193: E9547 | B193: Máquina de solda elétrica transformadora 250 A - 9,20 kW | C193: 1366.4075 | D193: 0.1093 | E193: 0.0253 | F193: 0 | G193: 0.1093 | H193: 0 | I193: 0 | J193: 0.2439 | K193: 0.1346
A194: E9548 | B194: Bomba centrífuga com capacidade de 7,1 a 22 m³/h - 1,50 kW | C194: 2482.7871 | D194: 0.1986 | E194: 0.046 | F194: 0 | G194: 0.1738 | H194: 0 | I194: 0 | J194: 0.4184 | K194: 0.2446
A195: E9551 | B195: Obturador mecânico simples com extensão de 12 m | C195: 4828.0842 | D195: 0.4345 | E195: 0.0894 | F195: 0 | G195: 0.2414 | H195: 0 | I195: 0 | J195: 0.7653 | K195: 0.5239
A196: E9552 | B196: Nível ótico com capacidade de aumento de 32x | C196: 15446.7423 | D196: 1.2357 | E196: 0.2859 | F196: 0 | G196: 0.7723 | H196: 0 | I196: 0 | J196: 2.2939 | K196: 1.5216
A197: E9553 | B197: Estação total eletrônica com alcance máximo de 3.000 m | C197: 31998.0388 | D197: 2.8798 | E197: 0.5923 | F197: 0 | G197: 1.5999 | H197: 0 | I197: 0 | J197: 5.072 | K197: 3.4721
A198: E9556 | B198: Compactador manual de placa vibratória - 3,00 kW | C198: 10833.2547 | D198: 0.7222 | E198: 0.195 | F198: 0 | G198: 0.7222 | H198: 5.201 | I198: 0 | J198: 6.8404 | K198: 0.9172
A199: E9558 | B199: Tanque de estocagem de asfalto com capacidade de 30.000 l | C199: 655534.6273 | D199: 27.3139 | E199: 9.4796 | F199: 0 | G199: 17.0712 | H199: 0 | I199: 0 | J199: 53.8647 | K199: 36.7935
A200: E9559 | B200: Aquecedor de fluido térmico - 12 kW | C200: 681492.9899 | D200: 30.6672 | E200: 9.4608 | F200: 0 | G200: 20.4448 | H200: 9.6115 | I200: 0 | J200: 70.1843 | K200: 40.128
... 341 more rows

Sheet SINTÉTICO SICRO
A1: CGCIT | B1: SISTEMA DE CUSTOS REFERENCIAIS DE OBRAS - SICRO | D1: DNIT
B2: Minas Gerais - Abril/2024
A3: Código | B3: Descrição do Serviço | C3: Unidade | D3: Custo Unitário (R$)
A4: 307731 | B4: Aparelho de apoio de neoprene fretado para estruturas moldadas no local - fornecimento e instalação | C4: dm³ | D4: 126.13
A5: 307732 | B5: Aparelho de apoio de neoprene fretado para estruturas pré-moldadas - fornecimento e instalação | C5: dm³ | D5: 102.57
A6: 308308 | B6: Aparelho de apoio metálico elastomérico fixo com capacidade de 1.500 kN - fornecimento e instalação | C6: un | D6: 7307.52
A7: 308313 | B7: Aparelho de apoio metálico elastomérico fixo com capacidade de 10.000 kN - fornecimento e instalação | C7: un | D7: 46600.73
A8: 308309 | B8: Aparelho de apoio metálico elastomérico fixo com capacidade de 2.500 kN - fornecimento e instalação | C8: un | D8: 11872.18
A9: 308310 | B9: Aparelho de apoio metálico elastomérico fixo com capacidade de 4.000 kN - fornecimento e instalação | C9: un | D9: 17866.44
A10: 308311 | B10: Aparelho de apoio metálico elastomérico fixo com capacidade de 5.500 kN - fornecimento e instalação | C10: un | D10: 24543.5
A11: 308312 | B11: Aparelho de apoio metálico elastomérico fixo com capacidade de 7.500 kN - fornecimento e instalação | C11: un | D11: 33952.75
A12: 308307 | B12: Aparelho de apoio metálico elastomérico fixo com capacidade de 700 kN - fornecimento e instalação | C12: un | D12: 4856.89
A13: 308322 | B13: Aparelho de apoio metálico elastomérico multidirecional com capacidade de 1.500 kN - fornecimento e instalação | C13: un | D13: 5774.31
A14: 308327 | B14: Aparelho de apoio metálico elastomérico multidirecional com capacidade de 10.000 kN - fornecimento e instalação | C14: un | D14: 35832.42
A15: 308323 | B15: Aparelho de apoio metálico elastomérico multidirecional com capacidade de 2.500 kN - fornecimento e instalação | C15: un | D15: 8452.83
A16: 308324 | B16: Aparelho de apoio metálico elastomérico multidirecional com capacidade de 4.000 kN - fornecimento e instalação | C16: un | D16: 13261.98
A17: 308325 | B17: Aparelho de apoio metálico elastomérico multidirecional com capacidade de 5.500 kN - fornecimento e instalação | C17: un | D17: 18767.06
A18: 308326 | B18: Aparelho de apoio metálico elastomérico multidirecional com capacidade de 7.500 kN - fornecimento e instalação | C18: un | D18: 26482.37
A19: 308321 | B19: Aparelho de apoio metálico elastomérico multidirecional com capacidade de 700 kN - fornecimento e instalação | C19: un | D19: 3963.75
A20: 308315 | B20: Aparelho de apoio metálico elastomérico unidirecional com capacidade de 1.500 kN - fornecimento e instalação | C20: un | D20: 7111.63
A21: 308320 | B21: Aparelho de apoio metálico elastomérico unidirecional com capacidade de 10.000 kN - fornecimento e instalação | C21: un | D21: 45458.06
A22: 308316 | B22: Aparelho de apoio metálico elastomérico unidirecional com capacidade de 2.500 kN - fornecimento e instalação | C22: un | D22: 10145.27
A23: 308317 | B23: Aparelho de apoio metálico elastomérico unidirecional com capacidade de 4.000 kN - fornecimento e instalação | C23: un | D23: 17623.75
A24: 308318 | B24: Aparelho de apoio metálico elastomérico unidirecional com capacidade de 5.500 kN - fornecimento e instalação | C24: un | D24: 23943.02
A25: 308319 | B25: Aparelho de apoio metálico elastomérico unidirecional com capacidade de 7.500 kN - fornecimento e instalação | C25: un | D25: 30001.24
A26: 308314 | B26: Aparelho de apoio metálico elastomérico unidirecional com capacidade de 700 kN - fornecimento e instalação | C26: un | D26: 4776.63
A27: 308250 | B27: Aparelho de apoio metálico esférico fixo com capacidade de 1.000 kN - fornecimento e instalação | C27: un | D27: 6075.01
A28: 308251 | B28: Aparelho de apoio metálico esférico fixo com capacidade de 1.500 kN - fornecimento e instalação | C28: un | D28: 9334.78
A29: 308268 | B29: Aparelho de apoio metálico esférico fixo com capacidade de 10.000 kN - fornecimento e instalação | C29: un | D29: 78753.34
A30: 308252 | B30: Aparelho de apoio metálico esférico fixo com capacidade de 2.000 kN - fornecimento e instalação | C30: un | D30: 11472.16
A31: 308253 | B31: Aparelho de apoio metálico esférico fixo com capacidade de 2.500 kN - fornecimento e instalação | C31: un | D31: 14158.25
A32: 308254 | B32: Aparelho de apoio metálico esférico fixo com capacidade de 3.000 kN - fornecimento e instalação | C32: un | D32: 15930.25
